Workbook

Sheet Konfiguration
A1: V1.13 | B1: =Texte!B44 -> durchschnittliche Ausgangsbelastung(%) | C1: =Texte!B45 -> CANopen | D1: =Texte!$B46 -> PROFIBUS | E1: =Texte!$B47 -> EtherCAT | F1: =Texte!$B48 -> PROFINET | G1: =Texte!$B49 -> DeviceNet | H1: =Texte!$B50 -> Modbus TCP | I1: =Texte!$B51 -> L-force Controller | J1: =Texte!$B52 -> 2 DI | K1: =Texte!$B53 -> 4 DI | L1: =Texte!$B54 -> 8 DI | M1: =Texte!$B55 -> 4 DI 3-Leiter | N1: =Texte!$B56 -> 2 DI NPN | O1: =Texte!$B57 -> 4 DI NPN | P1: =Texte!$B58 -> 8 DI NPN | Q1: =Texte!$B59 -> 2 DI 2µs | R1: =Texte!$B60 -> 2 DO | S1: =Texte!$B61 -> 4 DO | T1: =Texte!$B62 -> 8 DO | U1: =Texte!$B63 -> 2 DO NPN | V1: =Texte!$B64 -> 4 DO NPN | W1: =Texte!$B65 -> 8 DO NPN | X1: =Texte!$B66 -> 2 DO 2A | Y1: =Texte!B67 -> 2 DO Relais | Z1: =Texte!$B68 -> 4 DO 2A | AA1: =Texte!$B69 -> 2 DO 1µs | AB1: =Texte!$B70 -> 2 AI 0..10V | AC1: =Texte!$B71 -> 4 AI 0..10V | AD1: =Texte!$B72 -> 2 AI 0(4)-20mA | AE1: =Texte!$B73 -> 4 AI 0(4)-20mA | AF1: =Texte!$B74 -> 4 AI Resistor | AG1: =Texte!$B75 -> 2 AI Thermo | AH1: =Texte!$B76 -> 2 AI -10..10 V 16 Bit | AI1: =Texte!$B77 -> 2 AI 0(4)..20 mA 16 Bit | AJ1: =Texte!$B78 -> 2 AO 0..10V | AK1: =Texte!$B79 -> 4 AO 0..10V | AL1: =Texte!$B80 -> 2 AO 4..20mA | AM1: =Texte!$B81 -> 4 AO 4..20mA | AN1: =Texte!$B82 -> 1-fach Zähler 24 V / 1 DO | AO1: =Texte!$B83 -> 2-fach Zähler 24 V | AP1: =Texte!$B84 -> 1-fach Zähler 5 V | AQ1: =Texte!$B83 -> 2-fach Zähler 24 V | AR1: =Texte!$B86 -> SSI | AS1: =Texte!$B87 -> PWM | AT1: =Texte!$B88 -> RS 232 | AU1: =Texte!$B89 -> RS 422/485 | AV1: =Texte!$B91 -> I/O-Versorgung (Sicherung) | AW1: =Texte!$B92 -> I/O / Elektronik | AX1: =Texte!$B92 -> I/O / Elektronik
A2: DE | C2: EPM-S110 | D2: EPM-S120 | E2: EPM-S130 | F2: EPM-S140 | G2: EPM-S150 | H2: EPM-S160 | I2: 3200 C | J2: EPM-S200 | K2: EPM-S201 | L2: EPM-S202 | M2: EPM-S203 | N2: EPM-S204 | O2: EPM-S205 | P2: EPM-S206 | Q2: EPM-S207 | R2: EPM-S300 | S2: EPM-S301 | T2: EPM-S302 | U2: EPM-S303 | V2: EPM-S304 | W2: EPM-S305 | X2: EPM-S306 | Y2: EPM-S308 | Z2: EPM-S309 | AA2: EPM-S310 | AB2: EPM-S400 | AC2: EPM-S401 | AD2: EPM-S402 | AE2: EPM-S403 | AF2: EPM-S404 | AG2: EPM-S405 | AH2: EPM-S406 | AI2: EPM-S408 | AJ2: EPM-S500 | AK2: EPM-S501 | AL2: EPM-S502 | AM2: EPM-S503 | AN2: EPM-S600 | AO2: EPM-S601 | AP2: EPM-S602 | AQ2: EPM-S603 | AR2: EPM-S604 | AS2: EPM-S620 | AT2: EPM-S640 | AU2: EPM-S650 | AV2: EPM-S701 | AW2: EPM-S702 | AX2: EPM-S703
A3: =Texte!B116 -> Eingabe Bedarf | B3: 0.625
A4: =Texte!B104 -> Summe physikalischer Aufbau | C4: =SUMIF('physikalischer Aufbau'!$D$4:$D$132,Konfiguration!C2,'physikalischer Aufbau'!$O$4:$O$132) -> 0 | D4: =SUMIF('physikalischer Aufbau'!$D$4:$D$132,Konfiguration!D2,'physikalischer Aufbau'!$O$4:$O$132) -> 0 | E4: =SUMIF('physikalischer Aufbau'!$D$4:$D$132,Konfiguration!E2,'physikalischer Aufbau'!$O$4:$O$132) -> 0 | F4: =SUMIF('physikalischer Aufbau'!$D$4:$D$132,Konfiguration!F2,'physikalischer Aufbau'!$O$4:$O$132) -> 0 | G4: =SUMIF('physikalischer Aufbau'!$D$4:$D$132,Konfiguration!G2,'physikalischer Aufbau'!$O$4:$O$132) -> 0 | H4: =SUMIF('physikalischer Aufbau'!$D$4:$D$132,Konfiguration!H2,'physikalischer Aufbau'!$O$4:$O$132) -> 0 | I4: =SUMIF('physikalischer Aufbau'!$D$4:$D$132,Konfiguration!I2,'physikalischer Aufbau'!$O$4:$O$132) -> 0 | J4: =SUMIF('physikalischer Aufbau'!$D$4:$D$132,Konfiguration!J2,'physikalischer Aufbau'!$O$4:$O$132) -> 0 | K4: =SUMIF('physikalischer Aufbau'!$D$4:$D$132,Konfiguration!K2,'physikalischer Aufbau'!$O$4:$O$132) -> 0 | L4: =SUMIF('physikalischer Aufbau'!$D$4:$D$132,Konfiguration!L2,'physikalischer Aufbau'!$O$4:$O$132) -> 0 | M4: =SUMIF('physikalischer Aufbau'!$D$4:$D$132,Konfiguration!M2,'physikalischer Aufbau'!$O$4:$O$132) -> 0 | N4: =SUMIF('physikalischer Aufbau'!$D$4:$D$132,Konfiguration!N2,'physikalischer Aufbau'!$O$4:$O$132) -> 0 | O4: =SUMIF('physikalischer Aufbau'!$D$4:$D$132,Konfiguration!O2,'physikalischer Aufbau'!$O$4:$O$132) -> 0 | P4: =SUMIF('physikalischer Aufbau'!$D$4:$D$132,Konfiguration!P2,'physikalischer Aufbau'!$O$4:$O$132) -> 0 | Q4: =SUMIF('physikalischer Aufbau'!$D$4:$D$132,Konfiguration!Q2,'physikalischer Aufbau'!$O$4:$O$132) -> 0 | R4: =SUMIF('physikalischer Aufbau'!$D$4:$D$132,Konfiguration!R2,'physikalischer Aufbau'!$O$4:$O$132) -> 0 | S4: =SUMIF('physikalischer Aufbau'!$D$4:$D$132,Konfiguration!S2,'physikalischer Aufbau'!$O$4:$O$132) -> 0 | T4: =SUMIF('physikalischer Aufbau'!$D$4:$D$132,Konfiguration!T2,'physikalischer Aufbau'!$O$4:$O$132) -> 0 | U4: =SUMIF('physikalischer Aufbau'!$D$4:$D$132,Konfiguration!U2,'physikalischer Aufbau'!$O$4:$O$132) -> 0 | V4: =SUMIF('physikalischer Aufbau'!$D$4:$D$132,Konfiguration!V2,'physikalischer Aufbau'!$O$4:$O$132) -> 0 | W4: =SUMIF('physikalischer Aufbau'!$D$4:$D$132,Konfiguration!W2,'physikalischer Aufbau'!$O$4:$O$132) -> 0 | X4: =SUMIF('physikalischer Aufbau'!$D$4:$D$132,Konfiguration!X2,'physikalischer Aufbau'!$O$4:$O$132) -> 0 | Y4: =SUMIF('physikalischer Aufbau'!$D$4:$D$132,Konfiguration!Y2,'physikalischer Aufbau'!$O$4:$O$132) -> 0 | Z4: =SUMIF('physikalischer Aufbau'!$D$4:$D$132,Konfiguration!Z2,'physikalischer Aufbau'!$O$4:$O$132) -> 0 | AA4: =SUMIF('physikalischer Aufbau'!$D$4:$D$132,Konfiguration!AA2,'physikalischer Aufbau'!$O$4:$O$132) -> 0 | AB4: =SUMIF('physikalischer Aufbau'!$D$4:$D$132,Konfiguration!AB2,'physikalischer Aufbau'!$O$4:$O$132) -> 0 | AC4: =SUMIF('physikalischer Aufbau'!$D$4:$D$132,Konfiguration!AC2,'physikalischer Aufbau'!$O$4:$O$132) -> 0 | AD4: =SUMIF('physikalischer Aufbau'!$D$4:$D$132,Konfiguration!AD2,'physikalischer Aufbau'!$O$4:$O$132) -> 0 | AE4: =SUMIF('physikalischer Aufbau'!$D$4:$D$132,Konfiguration!AE2,'physikalischer Aufbau'!$O$4:$O$132) -> 0 | AF4: =SUMIF('physikalischer Aufbau'!$D$4:$D$132,Konfiguration!AF2,'physikalischer Aufbau'!$O$4:$O$132) -> 0 | AG4: =SUMIF('physikalischer Aufbau'!$D$4:$D$132,Konfiguration!AG2,'physikalischer Aufbau'!$O$4:$O$132) -> 0 | AJ4: =SUMIF('physikalischer Aufbau'!$D$4:$D$132,Konfiguration!AJ2,'physikalischer Aufbau'!$O$4:$O$132) -> 0 | AK4: =SUMIF('physikalischer Aufbau'!$D$4:$D$132,Konfiguration!AK2,'physikalischer Aufbau'!$O$4:$O$132) -> 0 | AL4: =SUMIF('physikalischer Aufbau'!$D$4:$D$132,Konfiguration!AL2,'physikalischer Aufbau'!$O$4:$O$132) -> 0 | AM4: =SUMIF('physikalischer Aufbau'!$D$4:$D$132,Konfiguration!AM2,'physikalischer Aufbau'!$O$4:$O$132) -> 0 | AN4: =SUMIF('physikalischer Aufbau'!$D$4:$D$132,Konfiguration!AN2,'physikalischer Aufbau'!$O$4:$O$132) -> 0 | AO4: =SUMIF('physikalischer Aufbau'!$D$4:$D$132,Konfiguration!AO2,'physikalischer Aufbau'!$O$4:$O$132) -> 0 | AP4: =SUMIF('physikalischer Aufbau'!$D$4:$D$132,Konfiguration!AP2,'physikalischer Aufbau'!$O$4:$O$132) -> 0 | AQ4: =SUMIF('physikalischer Aufbau'!$D$4:$D$132,Konfiguration!AQ2,'physikalischer Aufbau'!$O$4:$O$132) -> 0 | AR4: =SUMIF('physikalischer Aufbau'!$D$4:$D$132,Konfiguration!AR2,'physikalischer Aufbau'!$O$4:$O$132) -> 0 | AS4: =SUMIF('physikalischer Aufbau'!$D$4:$D$132,Konfiguration!AS2,'physikalischer Aufbau'!$O$4:$O$132) -> 0 | AT4: =SUMIF('physikalischer Aufbau'!$D$4:$D$132,Konfiguration!AT2,'physikalischer Aufbau'!$O$4:$O$132) -> 0 | AU4: =SUMIF('physikalischer Aufbau'!$D$4:$D$132,Konfiguration!AU2,'physikalischer Aufbau'!$O$4:$O$132) -> 0 | AV4: =SUMIF('physikalischer Aufbau'!$D$4:$D$132,Konfiguration!AV2,'physikalischer Aufbau'!$O$4:$O$132) -> 0 | AX4: =SUMIF('physikalischer Aufbau'!$D$4:$D$132,Konfiguration!AX2,'physikalischer Aufbau'!$O$4:$O$132) -> 0
A5: =Texte!$B$106 -> Stromschienenbelastung (UL) | B5: 10A | C5: =IF(EPM_S110 + EPM_S120 + EPM_S130 + EPM_S140 + EPM_S150 + EPM_S160 + _3200_C< 2,1,0) -> 1 | D5: 0 | J5: =IF(B61<=64,1,"") -> 1
A7: =Texte!B2 -> Elektronikversorgung
A8: =Texte!B3 -> Gesamtstrombelastung Elektronik (A) | B8: =SUM(J8:AT8) / 1000 * (-1) -> 0 | C8: =IF(C$3<>"",C$3*VLOOKUP(C$2,'Technische Daten'!$A:$G,2,0),0) -> 0 | D8: =IF(D$3<>"",D$3*VLOOKUP(D$2,'Technische Daten'!$A:$G,2,0),0) -> 0 | E8: =IF(E$3<>"",E$3*VLOOKUP(E$2,'Technische Daten'!$A:$G,2,0),0) -> 0 | F8: =IF(F$3<>"",F$3*VLOOKUP(F$2,'Technische Daten'!$A:$G,2,0),0) -> 0 | G8: =IF(G$3<>"",G$3*VLOOKUP(G$2,'Technische Daten'!$A:$G,2,0),0) -> 0 | H8: =IF(H$3<>"",H$3*VLOOKUP(H$2,'Technische Daten'!$A:$G,2,0),0) -> 0 | I8: =IF(I$3<>"",I$3*VLOOKUP(I$2,'Technische Daten'!$A:$G,2,0),0) -> 0 | J8: =IF(J$3<>"",J$3*VLOOKUP(J$2,'Technische Daten'!$A:$G,2,0),0) -> 0 | K8: =IF(K$3<>"",K$3*VLOOKUP(K$2,'Technische Daten'!$A:$G,2,0),0) -> 0 | L8: =IF(L$3<>"",L$3*VLOOKUP(L$2,'Technische Daten'!$A:$G,2,0),0) -> 0 | M8: =IF(M$3<>"",M$3*VLOOKUP(M$2,'Technische Daten'!$A:$G,2,0),0) -> 0 | N8: =IF(N$3<>"",N$3*VLOOKUP(N$2,'Technische Daten'!$A:$G,2,0),0) -> 0 | O8: =IF(O$3<>"",O$3*VLOOKUP(O$2,'Technische Daten'!$A:$G,2,0),0) -> 0 | P8: =IF(P$3<>"",P$3*VLOOKUP(P$2,'Technische Daten'!$A:$G,2,0),0) -> 0 | Q8: =IF(Q$3<>"",Q$3*VLOOKUP(Q$2,'Technische Daten'!$A:$G,2,0),0) -> 0 | R8: =IF(R$3<>"",R$3*VLOOKUP(R$2,'Technische Daten'!$A:$G,2,0),0) -> 0 | S8: =IF(S$3<>"",S$3*VLOOKUP(S$2,'Technische Daten'!$A:$G,2,0),0) -> 0 | T8: =IF(T$3<>"",T$3*VLOOKUP(T$2,'Technische Daten'!$A:$G,2,0),0) -> 0 | U8: =IF(U$3<>"",U$3*VLOOKUP(U$2,'Technische Daten'!$A:$G,2,0),0) -> 0 | V8: =IF(V$3<>"",V$3*VLOOKUP(V$2,'Technische Daten'!$A:$G,2,0),0) -> 0 | W8: =IF(W$3<>"",W$3*VLOOKUP(W$2,'Technische Daten'!$A:$G,2,0),0) -> 0 | X8: =IF(X$3<>"",X$3*VLOOKUP(X$2,'Technische Daten'!$A:$G,2,0),0) -> 0 | Y8: =IF(Y$3<>"",Y$3*VLOOKUP(Y$2,'Technische Daten'!$A:$G,2,0),0) -> 0 | Z8: =IF(Z$3<>"",Z$3*VLOOKUP(Z$2,'Technische Daten'!$A:$G,2,0),0) -> 0 | AA8: =IF(AA$3<>"",AA$3*VLOOKUP(AA$2,'Technische Daten'!$A:$G,2,0),0) -> 0 | AB8: =IF(AB$3<>"",AB$3*VLOOKUP(AB$2,'Technische Daten'!$A:$G,2,0),0) -> 0 | AC8: =IF(AC$3<>"",AC$3*VLOOKUP(AC$2,'Technische Daten'!$A:$G,2,0),0) -> 0 | AD8: =IF(AD$3<>"",AD$3*VLOOKUP(AD$2,'Technische Daten'!$A:$G,2,0),0) -> 0 | AE8: =IF(AE$3<>"",AE$3*VLOOKUP(AE$2,'Technische Daten'!$A:$G,2,0),0) -> 0 | AF8: =IF(AF$3<>"",AF$3*VLOOKUP(AF$2,'Technische Daten'!$A:$G,2,0),0) -> 0 | AG8: =IF(AG$3<>"",AG$3*VLOOKUP(AG$2,'Technische Daten'!$A:$G,2,0),0) -> 0 | AH8: =IF(AH$3<>"",AH$3*VLOOKUP(AH$2,'Technische Daten'!$A:$G,2,0),0) -> 0 | AI8: =IF(AI$3<>"",AI$3*VLOOKUP(AI$2,'Technische Daten'!$A:$G,2,0),0) -> 0 | AJ8: =IF(AJ$3<>"",AJ$3*VLOOKUP(AJ$2,'Technische Daten'!$A:$G,2,0),0) -> 0 | AK8: =IF(AK$3<>"",AK$3*VLOOKUP(AK$2,'Technische Daten'!$A:$G,2,0),0) -> 0 | AL8: =IF(AL$3<>"",AL$3*VLOOKUP(AL$2,'Technische Daten'!$A:$G,2,0),0) -> 0 | AM8: =IF(AM$3<>"",AM$3*VLOOKUP(AM$2,'Technische Daten'!$A:$G,2,0),0) -> 0 | AN8: =IF(AN$3<>"",AN$3*VLOOKUP(AN$2,'Technische Daten'!$A:$G,2,0),0) -> 0 | AO8: =IF(AO$3<>"",AO$3*VLOOKUP(AO$2,'Technische Daten'!$A:$G,2,0),0) -> 0 | AP8: =IF(AP$3<>"",AP$3*VLOOKUP(AP$2,'Technische Daten'!$A:$G,2,0),0) -> 0 | AQ8: =IF(AQ$3<>"",AQ$3*VLOOKUP(AQ$2,'Technische Daten'!$A:$G,2,0),0) -> 0 | AR8: =IF(AR$3<>"",AR$3*VLOOKUP(AR$2,'Technische Daten'!$A:$G,2,0),0) -> 0 | AS8: =IF(AS$3<>"",AS$3*VLOOKUP(AS$2,'Technische Daten'!$A:$G,2,0),0) -> 0 | AT8: =IF(AT$3<>"",AT$3*VLOOKUP(AT$2,'Technische Daten'!$A:$G,2,0),0) -> 0 | AU8: =IF(AU$3<>"",AU$3*VLOOKUP(AU$2,'Technische Daten'!$A:$G,2,0),0) -> 0 | AV8: =IF(AV$3<>"",AV$3*VLOOKUP(AV$2,'Technische Daten'!$A:$G,2,0),0) -> 0 | AW8: =IF(AW$3<>"",AW$3*VLOOKUP(AW$2,'Technische Daten'!$A:$G,2,0),0) -> 0 | AX8: =IF(AX$3<>"",AX$3*VLOOKUP(AX$2,'Technische Daten'!$A:$G,2,0),0) -> 0
A9: =Texte!B4 -> Einspeisestrom Elektronik (A) | B9: =(SUM(C8:I8)+SUM(AU8:AX8))/1000 -> 0
A10: =Texte!B5 -> benötigte Powermodule EPM-S702 | B10: =IF(SUM(C8:AT8)<0,ROUNDUP(SUM(C8:AT8)*(-1)/VLOOKUP($AW$2,'Technische Daten'!$A:$G,2,0),0),0) -> 0
A11: =Texte!B6 -> Konfigurationscheck | B11: =IF((B9-B8) >= 0,"OK","NOK") -> OK
A13: =Texte!B7 -> I/O-Versorgung
A14: =Texte!B8 -> Gesamtstrom I/O (A) | B14: =SUM(J14:AT14) / 1000 * (-1) -> 0 | C14: =IF(C$3<>"",C$3*VLOOKUP(C$2,'Technische Daten'!$A:$G,3,0) + VLOOKUP(C$2,'Technische Daten'!$A:$G,4,0) + VLOOKUP(C$2,'Technische Daten'!$A:$G,5,0),0) -> 0 | D14: =IF(D$3<>"",D$3*VLOOKUP(D$2,'Technische Daten'!$A:$G,3,0) + VLOOKUP(D$2,'Technische Daten'!$A:$G,4,0) + VLOOKUP(D$2,'Technische Daten'!$A:$G,5,0),0) -> 0 | E14: =IF(E$3<>"",E$3*VLOOKUP(E$2,'Technische Daten'!$A:$G,3,0) + VLOOKUP(E$2,'Technische Daten'!$A:$G,4,0) + VLOOKUP(E$2,'Technische Daten'!$A:$G,5,0),0) -> 0 | F14: =IF(F$3<>"",F$3*VLOOKUP(F$2,'Technische Daten'!$A:$G,3,0) + VLOOKUP(F$2,'Technische Daten'!$A:$G,4,0) + VLOOKUP(F$2,'Technische Daten'!$A:$G,5,0),0) -> 0 | G14: =IF(G$3<>"",G$3*VLOOKUP(G$2,'Technische Daten'!$A:$G,3,0) + VLOOKUP(G$2,'Technische Daten'!$A:$G,4,0) + VLOOKUP(G$2,'Technische Daten'!$A:$G,5,0),0) -> 0 | H14: =IF(H$3<>"",H$3*VLOOKUP(H$2,'Technische Daten'!$A:$G,3,0) + VLOOKUP(H$2,'Technische Daten'!$A:$G,4,0) + VLOOKUP(H$2,'Technische Daten'!$A:$G,5,0),0) -> 0 | I14: =IF(I$3<>"",I$3*VLOOKUP(I$2,'Technische Daten'!$A:$G,3,0) + VLOOKUP(I$2,'Technische Daten'!$A:$G,4,0) + VLOOKUP(I$2,'Technische Daten'!$A:$G,5,0),0) -> 0 | J14: =IF(J$3<>"",$B$3 * J$3*VLOOKUP(J$2,'Technische Daten'!$A:$G,3,0) + J$3*VLOOKUP(J$2,'Technische Daten'!$A:$G,4,0) + J$3*VLOOKUP(J$2,'Technische Daten'!$A:$G,5,0),0) -> 0 | K14: =IF(K$3<>"",$B$3 * K$3*VLOOKUP(K$2,'Technische Daten'!$A:$G,3,0) + K$3*VLOOKUP(K$2,'Technische Daten'!$A:$G,4,0) + K$3*VLOOKUP(K$2,'Technische Daten'!$A:$G,5,0),0) -> 0 | L14: =IF(L$3<>"",$B$3 * L$3*VLOOKUP(L$2,'Technische Daten'!$A:$G,3,0) + L$3*VLOOKUP(L$2,'Technische Daten'!$A:$G,4,0) + L$3*VLOOKUP(L$2,'Technische Daten'!$A:$G,5,0),0) -> 0 | M14: =IF(M$3<>"",$B$3 * M$3*VLOOKUP(M$2,'Technische Daten'!$A:$G,3,0) + M$3*VLOOKUP(M$2,'Technische Daten'!$A:$G,4,0) + M$3*VLOOKUP(M$2,'Technische Daten'!$A:$G,5,0),0) -> 0 | N14: =IF(N$3<>"",$B$3 * N$3*VLOOKUP(N$2,'Technische Daten'!$A:$G,3,0) + N$3*VLOOKUP(N$2,'Technische Daten'!$A:$G,4,0) + N$3*VLOOKUP(N$2,'Technische Daten'!$A:$G,5,0),0) -> 0 | O14: =IF(O$3<>"",$B$3 * O$3*VLOOKUP(O$2,'Technische Daten'!$A:$G,3,0) + O$3*VLOOKUP(O$2,'Technische Daten'!$A:$G,4,0) + O$3*VLOOKUP(O$2,'Technische Daten'!$A:$G,5,0),0) -> 0 | P14: =IF(P$3<>"",$B$3 * P$3*VLOOKUP(P$2,'Technische Daten'!$A:$G,3,0) + P$3*VLOOKUP(P$2,'Technische Daten'!$A:$G,4,0) + P$3*VLOOKUP(P$2,'Technische Daten'!$A:$G,5,0),0) -> 0 | Q14: =IF(Q$3<>"",$B$3 * Q$3*VLOOKUP(Q$2,'Technische Daten'!$A:$G,3,0) + Q$3*VLOOKUP(Q$2,'Technische Daten'!$A:$G,4,0) + Q$3*VLOOKUP(Q$2,'Technische Daten'!$A:$G,5,0),0) -> 0 | R14: =IF(R$3<>"",$B$3 * R$3*VLOOKUP(R$2,'Technische Daten'!$A:$G,3,0) + R$3*VLOOKUP(R$2,'Technische Daten'!$A:$G,4,0) + R$3*VLOOKUP(R$2,'Technische Daten'!$A:$G,5,0),0) -> 0 | S14: =IF(S$3<>"",$B$3 * S$3*VLOOKUP(S$2,'Technische Daten'!$A:$G,3,0) + S$3*VLOOKUP(S$2,'Technische Daten'!$A:$G,4,0) + S$3*VLOOKUP(S$2,'Technische Daten'!$A:$G,5,0),0) -> 0 | T14: =IF(T$3<>"",$B$3 * T$3*VLOOKUP(T$2,'Technische Daten'!$A:$G,3,0) + T$3*VLOOKUP(T$2,'Technische Daten'!$A:$G,4,0) + T$3*VLOOKUP(T$2,'Technische Daten'!$A:$G,5,0),0) -> 0 | U14: =IF(U$3<>"",$B$3 * U$3*VLOOKUP(U$2,'Technische Daten'!$A:$G,3,0) + U$3*VLOOKUP(U$2,'Technische Daten'!$A:$G,4,0) + U$3*VLOOKUP(U$2,'Technische Daten'!$A:$G,5,0),0) -> 0 | V14: =IF(V$3<>"",$B$3 * V$3*VLOOKUP(V$2,'Technische Daten'!$A:$G,3,0) + V$3*VLOOKUP(V$2,'Technische Daten'!$A:$G,4,0) + V$3*VLOOKUP(V$2,'Technische Daten'!$A:$G,5,0),0) -> 0 | W14: =IF(W$3<>"",$B$3 * W$3*VLOOKUP(W$2,'Technische Daten'!$A:$G,3,0) + W$3*VLOOKUP(W$2,'Technische Daten'!$A:$G,4,0) + W$3*VLOOKUP(W$2,'Technische Daten'!$A:$G,5,0),0) -> 0 | X14: =IF(X$3<>"",$B$3 * X$3*VLOOKUP(X$2,'Technische Daten'!$A:$G,3,0) + X$3*VLOOKUP(X$2,'Technische Daten'!$A:$G,4,0) + X$3*VLOOKUP(X$2,'Technische Daten'!$A:$G,5,0),0) -> 0 | Y14: =IF(Y$3<>"",$B$3 * Y$3*VLOOKUP(Y$2,'Technische Daten'!$A:$G,3,0) + Y$3*VLOOKUP(Y$2,'Technische Daten'!$A:$G,4,0) + Y$3*VLOOKUP(Y$2,'Technische Daten'!$A:$G,5,0),0) -> 0 | Z14: =IF(Z$3<>"",$B$3 * Z$3*VLOOKUP(Z$2,'Technische Daten'!$A:$G,3,0) + Z$3*VLOOKUP(Z$2,'Technische Daten'!$A:$G,4,0) + Z$3*VLOOKUP(Z$2,'Technische Daten'!$A:$G,5,0),0) -> 0 | AA14: =IF(AA$3<>"",$B$3 * AA$3*VLOOKUP(AA$2,'Technische Daten'!$A:$G,3,0) + AA$3*VLOOKUP(AA$2,'Technische Daten'!$A:$G,4,0) + AA$3*VLOOKUP(AA$2,'Technische Daten'!$A:$G,5,0),0) -> 0 | AB14: =IF(AB$3<>"",$B$3 * AB$3*VLOOKUP(AB$2,'Technische Daten'!$A:$G,3,0) + AB$3*VLOOKUP(AB$2,'Technische Daten'!$A:$G,4,0) + AB$3*VLOOKUP(AB$2,'Technische Daten'!$A:$G,5,0),0) -> 0 | AC14: =IF(AC$3<>"",$B$3 * AC$3*VLOOKUP(AC$2,'Technische Daten'!$A:$G,3,0) + AC$3*VLOOKUP(AC$2,'Technische Daten'!$A:$G,4,0) + AC$3*VLOOKUP(AC$2,'Technische Daten'!$A:$G,5,0),0) -> 0 | AD14: =IF(AD$3<>"",$B$3 * AD$3*VLOOKUP(AD$2,'Technische Daten'!$A:$G,3,0) + AD$3*VLOOKUP(AD$2,'Technische Daten'!$A:$G,4,0) + AD$3*VLOOKUP(AD$2,'Technische Daten'!$A:$G,5,0),0) -> 0 | AE14: =IF(AE$3<>"",$B$3 * AE$3*VLOOKUP(AE$2,'Technische Daten'!$A:$G,3,0) + AE$3*VLOOKUP(AE$2,'Technische Daten'!$A:$G,4,0) + AE$3*VLOOKUP(AE$2,'Technische Daten'!$A:$G,5,0),0) -> 0 | AF14: =IF(AF$3<>"",$B$3 * AF$3*VLOOKUP(AF$2,'Technische Daten'!$A:$G,3,0) + AF$3*VLOOKUP(AF$2,'Technische Daten'!$A:$G,4,0) + AF$3*VLOOKUP(AF$2,'Technische Daten'!$A:$G,5,0),0) -> 0 | AG14: =IF(AG$3<>"",$B$3 * AG$3*VLOOKUP(AG$2,'Technische Daten'!$A:$G,3,0) + AG$3*VLOOKUP(AG$2,'Technische Daten'!$A:$G,4,0) + AG$3*VLOOKUP(AG$2,'Technische Daten'!$A:$G,5,0),0) -> 0 | AH14: =IF(AH$3<>"",$B$3 * AH$3*VLOOKUP(AH$2,'Technische Daten'!$A:$G,3,0) + AH$3*VLOOKUP(AH$2,'Technische Daten'!$A:$G,4,0) + AH$3*VLOOKUP(AH$2,'Technische Daten'!$A:$G,5,0),0) -> 0 | AI14: =IF(AI$3<>"",$B$3 * AI$3*VLOOKUP(AI$2,'Technische Daten'!$A:$G,3,0) + AI$3*VLOOKUP(AI$2,'Technische Daten'!$A:$G,4,0) + AI$3*VLOOKUP(AI$2,'Technische Daten'!$A:$G,5,0),0) -> 0 | AJ14: =IF(AJ$3<>"",$B$3 * AJ$3*VLOOKUP(AJ$2,'Technische Daten'!$A:$G,3,0) + AJ$3*VLOOKUP(AJ$2,'Technische Daten'!$A:$G,4,0) + AJ$3*VLOOKUP(AJ$2,'Technische Daten'!$A:$G,5,0),0) -> 0 | AK14: =IF(AK$3<>"",$B$3 * AK$3*VLOOKUP(AK$2,'Technische Daten'!$A:$G,3,0) + AK$3*VLOOKUP(AK$2,'Technische Daten'!$A:$G,4,0) + AK$3*VLOOKUP(AK$2,'Technische Daten'!$A:$G,5,0),0) -> 0 | AL14: =IF(AL$3<>"",$B$3 * AL$3*VLOOKUP(AL$2,'Technische Daten'!$A:$G,3,0) + AL$3*VLOOKUP(AL$2,'Technische Daten'!$A:$G,4,0) + AL$3*VLOOKUP(AL$2,'Technische Daten'!$A:$G,5,0),0) -> 0 | AM14: =IF(AM$3<>"",$B$3 * AM$3*VLOOKUP(AM$2,'Technische Daten'!$A:$G,3,0) + AM$3*VLOOKUP(AM$2,'Technische Daten'!$A:$G,4,0) + AM$3*VLOOKUP(AM$2,'Technische Daten'!$A:$G,5,0),0) -> 0 | AN14: =IF(AN$3<>"",$B$3 * AN$3*VLOOKUP(AN$2,'Technische Daten'!$A:$G,3,0) + AN$3*VLOOKUP(AN$2,'Technische Daten'!$A:$G,4,0) + AN$3*VLOOKUP(AN$2,'Technische Daten'!$A:$G,5,0),0) -> 0 | AO14: =IF(AO$3<>"",$B$3 * AO$3*VLOOKUP(AO$2,'Technische Daten'!$A:$G,3,0) + AO$3*VLOOKUP(AO$2,'Technische Daten'!$A:$G,4,0) + AO$3*VLOOKUP(AO$2,'Technische Daten'!$A:$G,5,0),0) -> 0 | AP14: =IF(AP$3<>"",$B$3 * AP$3*VLOOKUP(AP$2,'Technische Daten'!$A:$G,3,0) + AP$3*VLOOKUP(AP$2,'Technische Daten'!$A:$G,4,0) + AP$3*VLOOKUP(AP$2,'Technische Daten'!$A:$G,5,0),0) -> 0 | AQ14: =IF(AQ$3<>"",$B$3 * AQ$3*VLOOKUP(AQ$2,'Technische Daten'!$A:$G,3,0) + AQ$3*VLOOKUP(AQ$2,'Technische Daten'!$A:$G,4,0) + AQ$3*VLOOKUP(AQ$2,'Technische Daten'!$A:$G,5,0),0) -> 0 | AR14: =IF(AR$3<>"",$B$3 * AR$3*VLOOKUP(AR$2,'Technische Daten'!$A:$G,3,0) + AR$3*VLOOKUP(AR$2,'Technische Daten'!$A:$G,4,0) + AR$3*VLOOKUP(AR$2,'Technische Daten'!$A:$G,5,0),0) -> 0 | AS14: =IF(AS$3<>"",$B$3 * AS$3*VLOOKUP(AS$2,'Technische Daten'!$A:$G,3,0) + AS$3*VLOOKUP(AS$2,'Technische Daten'!$A:$G,4,0) + AS$3*VLOOKUP(AS$2,'Technische Daten'!$A:$G,5,0),0) -> 0 | AT14: =IF(AT$3<>"",$B$3 * AT$3*VLOOKUP(AT$2,'Technische Daten'!$A:$G,3,0) + AT$3*VLOOKUP(AT$2,'Technische Daten'!$A:$G,4,0) + AT$3*VLOOKUP(AT$2,'Technische Daten'!$A:$G,5,0),0) -> 0 | AU14: =IF(AU$3<>"",AU$3*VLOOKUP(AU$2,'Technische Daten'!$A:$G,3,0) + VLOOKUP(AU$2,'Technische Daten'!$A:$G,4,0) + VLOOKUP(AU$2,'Technische Daten'!$A:$G,5,0),0) -> 0 | AV14: =IF(AV$3<>"",AV$3*VLOOKUP(AV$2,'Technische Daten'!$A:$G,3,0) + VLOOKUP(AV$2,'Technische Daten'!$A:$G,4,0) + VLOOKUP(AV$2,'Technische Daten'!$A:$G,5,0),0) -> 0 | AW14: =IF(AW$3<>"",AW$3*VLOOKUP(AW$2,'Technische Daten'!$A:$G,3,0) + VLOOKUP(AW$2,'Technische Daten'!$A:$G,4,0) + VLOOKUP(AW$2,'Technische Daten'!$A:$G,5,0),0) -> 0 | AX14: =IF(AX$3<>"",AX$3*VLOOKUP(AX$2,'Technische Daten'!$A:$G,3,0) + VLOOKUP(AX$2,'Technische Daten'!$A:$G,4,0) + VLOOKUP(AX$2,'Technische Daten'!$A:$G,5,0),0) -> 0
A15: =Texte!B9 -> Einspeisestrom I/O (A) | B15: =(SUM(C14:I14)+SUM(AU14:AX14))/1000 -> 0
A16: =Texte!B10 -> benötigte Powermodule EPM-S701 | B16: =IF(SUM(C14:AT14)+$AX14<0,ROUNDUP((SUM(C14:AT14)*(-1)-$AX14)/VLOOKUP($AV$2,'Technische Daten'!$A:$G,3,0),0),0) -> 0
A17: =Texte!B11 -> Konfigurationscheck | B17: =IF((B15-B14) >= 0,"OK","NOK") -> OK
A19: =Texte!B17 -> Kommunikation (CAN) Drive-based
A20: =Texte!B19 -> Anzahl verbleibende Tx-PDO (Byte) | B20: =C20/8+B77+B79+B81+IF(B77<>0,8,0)+IF(B79<>0,8,0) -> 0 | C20: =IF(C$3<>"",C$3*VLOOKUP(C$2,'Technische Daten'!$A:$P,15,0),0) -> 0 | D20: =IF(D$3<>"",D$3*VLOOKUP(D$2,'Technische Daten'!$A:$P,15,0),0) -> 0 | E20: =IF(E$3<>"",E$3*VLOOKUP(E$2,'Technische Daten'!$A:$P,15,0),0) -> 0 | F20: =IF(F$3<>"",F$3*VLOOKUP(F$2,'Technische Daten'!$A:$P,15,0),0) -> 0 | G20: =IF(G$3<>"",G$3*VLOOKUP(G$2,'Technische Daten'!$A:$P,15,0),0) -> 0 | H20: =IF(H$3<>"",H$3*VLOOKUP(H$2,'Technische Daten'!$A:$P,15,0),0) -> 0 | I20: =IF(I$3<>"",I$3*VLOOKUP(I$2,'Technische Daten'!$A:$P,15,0),0) -> 0 | J20: =IF(J$3<>"",J$3*VLOOKUP(J$2,'Technische Daten'!$A:$P,15,0),0) -> 0 | K20: =IF(K$3<>"",K$3*VLOOKUP(K$2,'Technische Daten'!$A:$P,15,0),0) -> 0 | L20: =IF(L$3<>"",L$3*VLOOKUP(L$2,'Technische Daten'!$A:$P,15,0),0) -> 0 | M20: =IF(M$3<>"",M$3*VLOOKUP(M$2,'Technische Daten'!$A:$P,15,0),0) -> 0 | N20: =IF(N$3<>"",N$3*VLOOKUP(N$2,'Technische Daten'!$A:$P,15,0),0) -> 0 | O20: =IF(O$3<>"",O$3*VLOOKUP(O$2,'Technische Daten'!$A:$P,15,0),0) -> 0 | P20: =IF(P$3<>"",P$3*VLOOKUP(P$2,'Technische Daten'!$A:$P,15,0),0) -> 0 | Q20: =IF(Q$3<>"",Q$3*VLOOKUP(Q$2,'Technische Daten'!$A:$P,15,0),0) -> 0 | R20: =IF(R$3<>"",R$3*VLOOKUP(R$2,'Technische Daten'!$A:$P,15,0),0) -> 0 | S20: =IF(S$3<>"",S$3*VLOOKUP(S$2,'Technische Daten'!$A:$P,15,0),0) -> 0 | T20: =IF(T$3<>"",T$3*VLOOKUP(T$2,'Technische Daten'!$A:$P,15,0),0) -> 0 | U20: =IF(U$3<>"",U$3*VLOOKUP(U$2,'Technische Daten'!$A:$P,15,0),0) -> 0 | V20: =IF(V$3<>"",V$3*VLOOKUP(V$2,'Technische Daten'!$A:$P,15,0),0) -> 0 | W20: =IF(W$3<>"",W$3*VLOOKUP(W$2,'Technische Daten'!$A:$P,15,0),0) -> 0 | X20: =IF(X$3<>"",X$3*VLOOKUP(X$2,'Technische Daten'!$A:$P,15,0),0) -> 0 | Y20: =IF(Y$3<>"",Y$3*VLOOKUP(Y$2,'Technische Daten'!$A:$P,15,0),0) -> 0 | Z20: =IF(Z$3<>"",Z$3*VLOOKUP(Z$2,'Technische Daten'!$A:$P,15,0),0) -> 0 | AA20: =IF(AA$3<>"",AA$3*VLOOKUP(AA$2,'Technische Daten'!$A:$P,15,0),0) -> 0 | AB20: =IF(AB$3<>"",AB$3*VLOOKUP(AB$2,'Technische Daten'!$A:$P,15,0),0) -> 0 | AC20: =IF(AC$3<>"",AC$3*VLOOKUP(AC$2,'Technische Daten'!$A:$P,15,0),0) -> 0 | AD20: =IF(AD$3<>"",AD$3*VLOOKUP(AD$2,'Technische Daten'!$A:$P,15,0),0) -> 0 | AE20: =IF(AE$3<>"",AE$3*VLOOKUP(AE$2,'Technische Daten'!$A:$P,15,0),0) -> 0 | AF20: =IF(AF$3<>"",AF$3*VLOOKUP(AF$2,'Technische Daten'!$A:$P,15,0),0) -> 0 | AG20: =IF(AG$3<>"",AG$3*VLOOKUP(AG$2,'Technische Daten'!$A:$P,15,0),0) -> 0 | AH20: =IF(AH$3<>"",AH$3*VLOOKUP(AH$2,'Technische Daten'!$A:$P,15,0),0) -> 0 | AI20: =IF(AI$3<>"",AI$3*VLOOKUP(AI$2,'Technische Daten'!$A:$P,15,0),0) -> 0 | AJ20: =IF(AJ$3<>"",AJ$3*VLOOKUP(AJ$2,'Technische Daten'!$A:$P,15,0),0) -> 0 | AK20: =IF(AK$3<>"",AK$3*VLOOKUP(AK$2,'Technische Daten'!$A:$P,15,0),0) -> 0 | AL20: =IF(AL$3<>"",AL$3*VLOOKUP(AL$2,'Technische Daten'!$A:$P,15,0),0) -> 0 | AM20: =IF(AM$3<>"",AM$3*VLOOKUP(AM$2,'Technische Daten'!$A:$P,15,0),0) -> 0 | AN20: =IF(AN$3<>"",AN$3*VLOOKUP(AN$2,'Technische Daten'!$A:$P,15,0),0) -> 0 | AO20: =IF(AO$3<>"",AO$3*VLOOKUP(AO$2,'Technische Daten'!$A:$P,15,0),0) -> 0 | AP20: =IF(AP$3<>"",AP$3*VLOOKUP(AP$2,'Technische Daten'!$A:$P,15,0),0) -> 0 | AQ20: =IF(AQ$3<>"",AQ$3*VLOOKUP(AQ$2,'Technische Daten'!$A:$P,15,0),0) -> 0 | AR20: =IF(AR$3<>"",AR$3*VLOOKUP(AR$2,'Technische Daten'!$A:$P,15,0),0) -> 0 | AS20: =IF(AS$3<>"",AS$3*VLOOKUP(AS$2,'Technische Daten'!$A:$P,15,0),0) -> 0 | AT20: =IF(AT$3<>"",AT$3*VLOOKUP(AT$2,'Technische Daten'!$A:$P,15,0),0) -> 0 | AU20: =IF(AU$3<>"",AU$3*VLOOKUP(AU$2,'Technische Daten'!$A:$P,15,0),0) -> 0 | AV20: =IF(AV$3<>"",AV$3*VLOOKUP(AV$2,'Technische Daten'!$A:$P,15,0),0) -> 0 | AW20: =IF(AW$3<>"",AW$3*VLOOKUP(AW$2,'Technische Daten'!$A:$P,15,0),0) -> 0 | AX20: =IF(AX$3<>"",AX$3*VLOOKUP(AX$2,'Technische Daten'!$A:$P,15,0),0) -> 0
A21: =Texte!B18 -> Anzahl verbleibende Rx-PDO (Byte) | B21: =C21/8+B78+B80+B82+IF(B78<>0,8,0)+IF(B80<>0,8,0) -> 0 | C21: =IF(C$3<>"",C$3*VLOOKUP(C$2,'Technische Daten'!$A:$P,16,0),0) -> 0 | D21: =IF(D$3<>"",D$3*VLOOKUP(D$2,'Technische Daten'!$A:$P,16,0),0) -> 0 | E21: =IF(E$3<>"",E$3*VLOOKUP(E$2,'Technische Daten'!$A:$P,16,0),0) -> 0 | F21: =IF(F$3<>"",F$3*VLOOKUP(F$2,'Technische Daten'!$A:$P,16,0),0) -> 0 | G21: =IF(G$3<>"",G$3*VLOOKUP(G$2,'Technische Daten'!$A:$P,16,0),0) -> 0 | H21: =IF(H$3<>"",H$3*VLOOKUP(H$2,'Technische Daten'!$A:$P,16,0),0) -> 0 | I21: =IF(I$3<>"",I$3*VLOOKUP(I$2,'Technische Daten'!$A:$P,16,0),0) -> 0 | J21: =IF(J$3<>"",J$3*VLOOKUP(J$2,'Technische Daten'!$A:$P,16,0),0) -> 0 | K21: =IF(K$3<>"",K$3*VLOOKUP(K$2,'Technische Daten'!$A:$P,16,0),0) -> 0 | L21: =IF(L$3<>"",L$3*VLOOKUP(L$2,'Technische Daten'!$A:$P,16,0),0) -> 0 | M21: =IF(M$3<>"",M$3*VLOOKUP(M$2,'Technische Daten'!$A:$P,16,0),0) -> 0 | N21: =IF(N$3<>"",N$3*VLOOKUP(N$2,'Technische Daten'!$A:$P,16,0),0) -> 0 | O21: =IF(O$3<>"",O$3*VLOOKUP(O$2,'Technische Daten'!$A:$P,16,0),0) -> 0 | P21: =IF(P$3<>"",P$3*VLOOKUP(P$2,'Technische Daten'!$A:$P,16,0),0) -> 0 | Q21: =IF(Q$3<>"",Q$3*VLOOKUP(Q$2,'Technische Daten'!$A:$P,16,0),0) -> 0 | R21: =IF(R$3<>"",R$3*VLOOKUP(R$2,'Technische Daten'!$A:$P,16,0),0) -> 0 | S21: =IF(S$3<>"",S$3*VLOOKUP(S$2,'Technische Daten'!$A:$P,16,0),0) -> 0 | T21: =IF(T$3<>"",T$3*VLOOKUP(T$2,'Technische Daten'!$A:$P,16,0),0) -> 0 | U21: =IF(U$3<>"",U$3*VLOOKUP(U$2,'Technische Daten'!$A:$P,16,0),0) -> 0 | V21: =IF(V$3<>"",V$3*VLOOKUP(V$2,'Technische Daten'!$A:$P,16,0),0) -> 0 | W21: =IF(W$3<>"",W$3*VLOOKUP(W$2,'Technische Daten'!$A:$P,16,0),0) -> 0 | X21: =IF(X$3<>"",X$3*VLOOKUP(X$2,'Technische Daten'!$A:$P,16,0),0) -> 0 | Y21: =IF(Y$3<>"",Y$3*VLOOKUP(Y$2,'Technische Daten'!$A:$P,16,0),0) -> 0 | Z21: =IF(Z$3<>"",Z$3*VLOOKUP(Z$2,'Technische Daten'!$A:$P,16,0),0) -> 0 | AA21: =IF(AA$3<>"",AA$3*VLOOKUP(AA$2,'Technische Daten'!$A:$P,16,0),0) -> 0 | AB21: =IF(AB$3<>"",AB$3*VLOOKUP(AB$2,'Technische Daten'!$A:$P,16,0),0) -> 0 | AC21: =IF(AC$3<>"",AC$3*VLOOKUP(AC$2,'Technische Daten'!$A:$P,16,0),0) -> 0 | AD21: =IF(AD$3<>"",AD$3*VLOOKUP(AD$2,'Technische Daten'!$A:$P,16,0),0) -> 0 | AE21: =IF(AE$3<>"",AE$3*VLOOKUP(AE$2,'Technische Daten'!$A:$P,16,0),0) -> 0 | AF21: =IF(AF$3<>"",AF$3*VLOOKUP(AF$2,'Technische Daten'!$A:$P,16,0),0) -> 0 | AG21: =IF(AG$3<>"",AG$3*VLOOKUP(AG$2,'Technische Daten'!$A:$P,16,0),0) -> 0 | AH21: =IF(AH$3<>"",AH$3*VLOOKUP(AH$2,'Technische Daten'!$A:$P,16,0),0) -> 0 | AI21: =IF(AI$3<>"",AI$3*VLOOKUP(AI$2,'Technische Daten'!$A:$P,16,0),0) -> 0 | AJ21: =IF(AJ$3<>"",AJ$3*VLOOKUP(AJ$2,'Technische Daten'!$A:$P,16,0),0) -> 0 | AK21: =IF(AK$3<>"",AK$3*VLOOKUP(AK$2,'Technische Daten'!$A:$P,16,0),0) -> 0 | AL21: =IF(AL$3<>"",AL$3*VLOOKUP(AL$2,'Technische Daten'!$A:$P,16,0),0) -> 0 | AM21: =IF(AM$3<>"",AM$3*VLOOKUP(AM$2,'Technische Daten'!$A:$P,16,0),0) -> 0 | AN21: =IF(AN$3<>"",AN$3*VLOOKUP(AN$2,'Technische Daten'!$A:$P,16,0),0) -> 0 | AO21: =IF(AO$3<>"",AO$3*VLOOKUP(AO$2,'Technische Daten'!$A:$P,16,0),0) -> 0 | AP21: =IF(AP$3<>"",AP$3*VLOOKUP(AP$2,'Technische Daten'!$A:$P,16,0),0) -> 0 | AQ21: =IF(AQ$3<>"",AQ$3*VLOOKUP(AQ$2,'Technische Daten'!$A:$P,16,0),0) -> 0 | AR21: =IF(AR$3<>"",AR$3*VLOOKUP(AR$2,'Technische Daten'!$A:$P,16,0),0) -> 0 | AS21: =IF(AS$3<>"",AS$3*VLOOKUP(AS$2,'Technische Daten'!$A:$P,16,0),0) -> 0 | AT21: =IF(AT$3<>"",AT$3*VLOOKUP(AT$2,'Technische Daten'!$A:$P,16,0),0) -> 0 | AU21: =IF(AU$3<>"",AU$3*VLOOKUP(AU$2,'Technische Daten'!$A:$P,16,0),0) -> 0 | AV21: =IF(AV$3<>"",AV$3*VLOOKUP(AV$2,'Technische Daten'!$A:$P,16,0),0) -> 0 | AW21: =IF(AW$3<>"",AW$3*VLOOKUP(AW$2,'Technische Daten'!$A:$P,16,0),0) -> 0 | AX21: =IF(AX$3<>"",AX$3*VLOOKUP(AX$2,'Technische Daten'!$A:$P,16,0),0) -> 0
A22: =Texte!B11 -> Konfigurationscheck | B22: =IF(AND(B20>=0, B21>=0),"OK","NOK") -> OK
A24: =Texte!B12 -> Kommunikation (CAN) Controller-based
A25: =Texte!B14 -> Anzahl verbleibende Tx-PDO (Byte) | B25: =IF(SUM(C25:AX25)>0,ROUNDDOWN(SUM(C25:AX25)/8,0),ROUNDUP(SUM(C25:AX25)/8,0)) -> 0 | C25: =IF(C$3<>"",C$3*VLOOKUP(C$2,'Technische Daten'!$A:$G,6,0),0) -> 0 | D25: =IF(D$3<>"",D$3*VLOOKUP(D$2,'Technische Daten'!$A:$G,6,0),0) -> 0 | E25: =IF(E$3<>"",E$3*VLOOKUP(E$2,'Technische Daten'!$A:$G,6,0),0) -> 0 | F25: =IF(F$3<>"",F$3*VLOOKUP(F$2,'Technische Daten'!$A:$G,6,0),0) -> 0 | G25: =IF(G$3<>"",G$3*VLOOKUP(G$2,'Technische Daten'!$A:$G,6,0),0) -> 0 | H25: =IF(H$3<>"",H$3*VLOOKUP(H$2,'Technische Daten'!$A:$G,6,0),0) -> 0 | I25: =IF(I$3<>"",I$3*VLOOKUP(I$2,'Technische Daten'!$A:$G,6,0),0) -> 0 | J25: =IF(J$3<>"",J$3*VLOOKUP(J$2,'Technische Daten'!$A:$G,6,0),0) -> 0 | K25: =IF(K$3<>"",K$3*VLOOKUP(K$2,'Technische Daten'!$A:$G,6,0),0) -> 0 | L25: =IF(L$3<>"",L$3*VLOOKUP(L$2,'Technische Daten'!$A:$G,6,0),0) -> 0 | M25: =IF(M$3<>"",M$3*VLOOKUP(M$2,'Technische Daten'!$A:$G,6,0),0) -> 0 | N25: =IF(N$3<>"",N$3*VLOOKUP(N$2,'Technische Daten'!$A:$G,6,0),0) -> 0 | O25: =IF(O$3<>"",O$3*VLOOKUP(O$2,'Technische Daten'!$A:$G,6,0),0) -> 0 | P25: =IF(P$3<>"",P$3*VLOOKUP(P$2,'Technische Daten'!$A:$G,6,0),0) -> 0 | Q25: =IF(Q$3<>"",Q$3*VLOOKUP(Q$2,'Technische Daten'!$A:$G,6,0),0) -> 0 | R25: =IF(R$3<>"",R$3*VLOOKUP(R$2,'Technische Daten'!$A:$G,6,0),0) -> 0 | S25: =IF(S$3<>"",S$3*VLOOKUP(S$2,'Technische Daten'!$A:$G,6,0),0) -> 0 | T25: =IF(T$3<>"",T$3*VLOOKUP(T$2,'Technische Daten'!$A:$G,6,0),0) -> 0 | U25: =IF(U$3<>"",U$3*VLOOKUP(U$2,'Technische Daten'!$A:$G,6,0),0) -> 0 | V25: =IF(V$3<>"",V$3*VLOOKUP(V$2,'Technische Daten'!$A:$G,6,0),0) -> 0 | W25: =IF(W$3<>"",W$3*VLOOKUP(W$2,'Technische Daten'!$A:$G,6,0),0) -> 0 | X25: =IF(X$3<>"",X$3*VLOOKUP(X$2,'Technische Daten'!$A:$G,6,0),0) -> 0 | Y25: =IF(Y$3<>"",Y$3*VLOOKUP(Y$2,'Technische Daten'!$A:$G,6,0),0) -> 0 | Z25: =IF(Z$3<>"",Z$3*VLOOKUP(Z$2,'Technische Daten'!$A:$G,6,0),0) -> 0 | AA25: =IF(AA$3<>"",AA$3*VLOOKUP(AA$2,'Technische Daten'!$A:$G,6,0),0) -> 0 | AB25: =IF(AB$3<>"",AB$3*VLOOKUP(AB$2,'Technische Daten'!$A:$G,6,0),0) -> 0 | AC25: =IF(AC$3<>"",AC$3*VLOOKUP(AC$2,'Technische Daten'!$A:$G,6,0),0) -> 0 | AD25: =IF(AD$3<>"",AD$3*VLOOKUP(AD$2,'Technische Daten'!$A:$G,6,0),0) -> 0 | AE25: =IF(AE$3<>"",AE$3*VLOOKUP(AE$2,'Technische Daten'!$A:$G,6,0),0) -> 0 | AF25: =IF(AF$3<>"",AF$3*VLOOKUP(AF$2,'Technische Daten'!$A:$G,6,0),0) -> 0 | AG25: =IF(AG$3<>"",AG$3*VLOOKUP(AG$2,'Technische Daten'!$A:$G,6,0),0) -> 0 | AH25: =IF(AH$3<>"",AH$3*VLOOKUP(AH$2,'Technische Daten'!$A:$G,6,0),0) -> 0 | AI25: =IF(AI$3<>"",AI$3*VLOOKUP(AI$2,'Technische Daten'!$A:$G,6,0),0) -> 0 | AJ25: =IF(AJ$3<>"",AJ$3*VLOOKUP(AJ$2,'Technische Daten'!$A:$G,6,0),0) -> 0 | AK25: =IF(AK$3<>"",AK$3*VLOOKUP(AK$2,'Technische Daten'!$A:$G,6,0),0) -> 0 | AL25: =IF(AL$3<>"",AL$3*VLOOKUP(AL$2,'Technische Daten'!$A:$G,6,0),0) -> 0 | AM25: =IF(AM$3<>"",AM$3*VLOOKUP(AM$2,'Technische Daten'!$A:$G,6,0),0) -> 0 | AN25: =IF(AN$3<>"",AN$3*VLOOKUP(AN$2,'Technische Daten'!$A:$G,6,0),0) -> 0 | AO25: =IF(AO$3<>"",AO$3*VLOOKUP(AO$2,'Technische Daten'!$A:$G,6,0),0) -> 0 | AP25: =IF(AP$3<>"",AP$3*VLOOKUP(AP$2,'Technische Daten'!$A:$G,6,0),0) -> 0 | AQ25: =IF(AQ$3<>"",AQ$3*VLOOKUP(AQ$2,'Technische Daten'!$A:$G,6,0),0) -> 0 | AR25: =IF(AR$3<>"",AR$3*VLOOKUP(AR$2,'Technische Daten'!$A:$G,6,0),0) -> 0 | AS25: =IF(AS$3<>"",AS$3*VLOOKUP(AS$2,'Technische Daten'!$A:$G,6,0),0) -> 0 | AT25: =IF(AT$3<>"",AT$3*VLOOKUP(AT$2,'Technische Daten'!$A:$G,6,0),0) -> 0 | AU25: =IF(AU$3<>"",AU$3*VLOOKUP(AU$2,'Technische Daten'!$A:$G,6,0),0) -> 0 | AV25: =IF(AV$3<>"",AV$3*VLOOKUP(AV$2,'Technische Daten'!$A:$G,6,0),0) -> 0 | AW25: =IF(AW$3<>"",AW$3*VLOOKUP(AW$2,'Technische Daten'!$A:$G,6,0),0) -> 0 | AX25: =IF(AX$3<>"",AX$3*VLOOKUP(AX$2,'Technische Daten'!$A:$G,6,0),0) -> 0
A26: =Texte!B13 -> Anzahl verbleibende Rx-PDO (Byte) | B26: =IF(SUM(C26:AX26)>0,ROUNDDOWN(SUM(C26:AX26)/8,0),ROUNDUP(SUM(C26:AX26)/8,0)) -> 0 | C26: =IF(C$3<>"",C$3*VLOOKUP(C$2,'Technische Daten'!$A:$G,7,0),0) -> 0 | D26: =IF(D$3<>"",D$3*VLOOKUP(D$2,'Technische Daten'!$A:$G,7,0),0) -> 0 | E26: =IF(E$3<>"",E$3*VLOOKUP(E$2,'Technische Daten'!$A:$G,7,0),0) -> 0 | F26: =IF(F$3<>"",F$3*VLOOKUP(F$2,'Technische Daten'!$A:$G,7,0),0) -> 0 | G26: =IF(G$3<>"",G$3*VLOOKUP(G$2,'Technische Daten'!$A:$G,7,0),0) -> 0 | H26: =IF(H$3<>"",H$3*VLOOKUP(H$2,'Technische Daten'!$A:$G,7,0),0) -> 0 | I26: =IF(I$3<>"",I$3*VLOOKUP(I$2,'Technische Daten'!$A:$G,7,0),0) -> 0 | J26: =IF(J$3<>"",J$3*VLOOKUP(J$2,'Technische Daten'!$A:$G,7,0),0) -> 0 | K26: =IF(K$3<>"",K$3*VLOOKUP(K$2,'Technische Daten'!$A:$G,7,0),0) -> 0 | L26: =IF(L$3<>"",L$3*VLOOKUP(L$2,'Technische Daten'!$A:$G,7,0),0) -> 0 | M26: =IF(M$3<>"",M$3*VLOOKUP(M$2,'Technische Daten'!$A:$G,7,0),0) -> 0 | N26: =IF(N$3<>"",N$3*VLOOKUP(N$2,'Technische Daten'!$A:$G,7,0),0) -> 0 | O26: =IF(O$3<>"",O$3*VLOOKUP(O$2,'Technische Daten'!$A:$G,7,0),0) -> 0 | P26: =IF(P$3<>"",P$3*VLOOKUP(P$2,'Technische Daten'!$A:$G,7,0),0) -> 0 | Q26: =IF(Q$3<>"",Q$3*VLOOKUP(Q$2,'Technische Daten'!$A:$G,7,0),0) -> 0 | R26: =IF(R$3<>"",R$3*VLOOKUP(R$2,'Technische Daten'!$A:$G,7,0),0) -> 0 | S26: =IF(S$3<>"",S$3*VLOOKUP(S$2,'Technische Daten'!$A:$G,7,0),0) -> 0 | T26: =IF(T$3<>"",T$3*VLOOKUP(T$2,'Technische Daten'!$A:$G,7,0),0) -> 0 | U26: =IF(U$3<>"",U$3*VLOOKUP(U$2,'Technische Daten'!$A:$G,7,0),0) -> 0 | V26: =IF(V$3<>"",V$3*VLOOKUP(V$2,'Technische Daten'!$A:$G,7,0),0) -> 0 | W26: =IF(W$3<>"",W$3*VLOOKUP(W$2,'Technische Daten'!$A:$G,7,0),0) -> 0 | X26: =IF(X$3<>"",X$3*VLOOKUP(X$2,'Technische Daten'!$A:$G,7,0),0) -> 0 | Y26: =IF(Y$3<>"",Y$3*VLOOKUP(Y$2,'Technische Daten'!$A:$G,7,0),0) -> 0 | Z26: =IF(Z$3<>"",Z$3*VLOOKUP(Z$2,'Technische Daten'!$A:$G,7,0),0) -> 0 | AA26: =IF(AA$3<>"",AA$3*VLOOKUP(AA$2,'Technische Daten'!$A:$G,7,0),0) -> 0 | AB26: =IF(AB$3<>"",AB$3*VLOOKUP(AB$2,'Technische Daten'!$A:$G,7,0),0) -> 0 | AC26: =IF(AC$3<>"",AC$3*VLOOKUP(AC$2,'Technische Daten'!$A:$G,7,0),0) -> 0 | AD26: =IF(AD$3<>"",AD$3*VLOOKUP(AD$2,'Technische Daten'!$A:$G,7,0),0) -> 0 | AE26: =IF(AE$3<>"",AE$3*VLOOKUP(AE$2,'Technische Daten'!$A:$G,7,0),0) -> 0 | AF26: =IF(AF$3<>"",AF$3*VLOOKUP(AF$2,'Technische Daten'!$A:$G,7,0),0) -> 0 | AG26: =IF(AG$3<>"",AG$3*VLOOKUP(AG$2,'Technische Daten'!$A:$G,7,0),0) -> 0 | AH26: =IF(AH$3<>"",AH$3*VLOOKUP(AH$2,'Technische Daten'!$A:$G,7,0),0) -> 0 | AI26: =IF(AI$3<>"",AI$3*VLOOKUP(AI$2,'Technische Daten'!$A:$G,7,0),0) -> 0 | AJ26: =IF(AJ$3<>"",AJ$3*VLOOKUP(AJ$2,'Technische Daten'!$A:$G,7,0),0) -> 0 | AK26: =IF(AK$3<>"",AK$3*VLOOKUP(AK$2,'Technische Daten'!$A:$G,7,0),0) -> 0 | AL26: =IF(AL$3<>"",AL$3*VLOOKUP(AL$2,'Technische Daten'!$A:$G,7,0),0) -> 0 | AM26: =IF(AM$3<>"",AM$3*VLOOKUP(AM$2,'Technische Daten'!$A:$G,7,0),0) -> 0 | AN26: =IF(AN$3<>"",AN$3*VLOOKUP(AN$2,'Technische Daten'!$A:$G,7,0),0) -> 0 | AO26: =IF(AO$3<>"",AO$3*VLOOKUP(AO$2,'Technische Daten'!$A:$G,7,0),0) -> 0 | AP26: =IF(AP$3<>"",AP$3*VLOOKUP(AP$2,'Technische Daten'!$A:$G,7,0),0) -> 0 | AQ26: =IF(AQ$3<>"",AQ$3*VLOOKUP(AQ$2,'Technische Daten'!$A:$G,7,0),0) -> 0 | AR26: =IF(AR$3<>"",AR$3*VLOOKUP(AR$2,'Technische Daten'!$A:$G,7,0),0) -> 0 | AS26: =IF(AS$3<>"",AS$3*VLOOKUP(AS$2,'Technische Daten'!$A:$G,7,0),0) -> 0 | AT26: =IF(AT$3<>"",AT$3*VLOOKUP(AT$2,'Technische Daten'!$A:$G,7,0),0) -> 0 | AU26: =IF(AU$3<>"",AU$3*VLOOKUP(AU$2,'Technische Daten'!$A:$G,7,0),0) -> 0 | AV26: =IF(AV$3<>"",AV$3*VLOOKUP(AV$2,'Technische Daten'!$A:$G,7,0),0) -> 0 | AW26: =IF(AW$3<>"",AW$3*VLOOKUP(AW$2,'Technische Daten'!$A:$G,7,0),0) -> 0 | AX26: =IF(AX$3<>"",AX$3*VLOOKUP(AX$2,'Technische Daten'!$A:$G,7,0),0) -> 0
A27: =Texte!B16 -> Konfigurationscheck | B27: =IF(AND(B25>=0, B26>=0),"OK","NOK") -> OK
A29: =Texte!B22 -> Kommunikation (PROFIBUS)
A30: =Texte!B24 -> Anzahl verbleibende Rx-PDO (Byte) | B30: =IF(SUM(C30:AX30)>0,ROUNDDOWN(SUM(C30:AX30)/8,0),ROUNDUP(SUM(C30:AX30)/8,0)) -> 0 | C30: =IF(C$3<>"",C$3*VLOOKUP(C$2,'Technische Daten'!$A:$G,6,0),0) -> 0 | D30: =IF(D$3<>"",D$3*VLOOKUP(D$2,'Technische Daten'!$A:$G,6,0),0) -> 0 | E30: =IF(E$3<>"",E$3*VLOOKUP(E$2,'Technische Daten'!$A:$G,6,0),0) -> 0 | F30: =IF(F$3<>"",F$3*VLOOKUP(F$2,'Technische Daten'!$A:$G,6,0),0) -> 0 | G30: =IF(G$3<>"",G$3*VLOOKUP(G$2,'Technische Daten'!$A:$G,6,0),0) -> 0 | H30: =IF(H$3<>"",H$3*VLOOKUP(H$2,'Technische Daten'!$A:$G,6,0),0) -> 0 | I30: =IF(I$3<>"",I$3*VLOOKUP(I$2,'Technische Daten'!$A:$G,6,0),0) -> 0 | J30: =IF(J$3<>"",J$3*VLOOKUP(J$2,'Technische Daten'!$A:$G,6,0),0) -> 0 | K30: =IF(K$3<>"",K$3*VLOOKUP(K$2,'Technische Daten'!$A:$G,6,0),0) -> 0 | L30: =IF(L$3<>"",L$3*VLOOKUP(L$2,'Technische Daten'!$A:$G,6,0),0) -> 0 | M30: =IF(M$3<>"",M$3*VLOOKUP(M$2,'Technische Daten'!$A:$G,6,0),0) -> 0 | N30: =IF(N$3<>"",N$3*VLOOKUP(N$2,'Technische Daten'!$A:$G,6,0),0) -> 0 | O30: =IF(O$3<>"",O$3*VLOOKUP(O$2,'Technische Daten'!$A:$G,6,0),0) -> 0 | P30: =IF(P$3<>"",P$3*VLOOKUP(P$2,'Technische Daten'!$A:$G,6,0),0) -> 0 | Q30: =IF(Q$3<>"",Q$3*VLOOKUP(Q$2,'Technische Daten'!$A:$G,6,0),0) -> 0 | R30: =IF(R$3<>"",R$3*VLOOKUP(R$2,'Technische Daten'!$A:$G,6,0),0) -> 0 | S30: =IF(S$3<>"",S$3*VLOOKUP(S$2,'Technische Daten'!$A:$G,6,0),0) -> 0 | T30: =IF(T$3<>"",T$3*VLOOKUP(T$2,'Technische Daten'!$A:$G,6,0),0) -> 0 | U30: =IF(U$3<>"",U$3*VLOOKUP(U$2,'Technische Daten'!$A:$G,6,0),0) -> 0 | V30: =IF(V$3<>"",V$3*VLOOKUP(V$2,'Technische Daten'!$A:$G,6,0),0) -> 0 | W30: =IF(W$3<>"",W$3*VLOOKUP(W$2,'Technische Daten'!$A:$G,6,0),0) -> 0 | X30: =IF(X$3<>"",X$3*VLOOKUP(X$2,'Technische Daten'!$A:$G,6,0),0) -> 0 | Y30: =IF(Y$3<>"",Y$3*VLOOKUP(Y$2,'Technische Daten'!$A:$G,6,0),0) -> 0 | Z30: =IF(Z$3<>"",Z$3*VLOOKUP(Z$2,'Technische Daten'!$A:$G,6,0),0) -> 0 | AA30: =IF(AA$3<>"",AA$3*VLOOKUP(AA$2,'Technische Daten'!$A:$G,6,0),0) -> 0 | AB30: =IF(AB$3<>"",AB$3*VLOOKUP(AB$2,'Technische Daten'!$A:$G,6,0),0) -> 0 | AC30: =IF(AC$3<>"",AC$3*VLOOKUP(AC$2,'Technische Daten'!$A:$G,6,0),0) -> 0 | AD30: =IF(AD$3<>"",AD$3*VLOOKUP(AD$2,'Technische Daten'!$A:$G,6,0),0) -> 0 | AE30: =IF(AE$3<>"",AE$3*VLOOKUP(AE$2,'Technische Daten'!$A:$G,6,0),0) -> 0 | AF30: =IF(AF$3<>"",AF$3*VLOOKUP(AF$2,'Technische Daten'!$A:$G,6,0),0) -> 0 | AG30: =IF(AG$3<>"",AG$3*VLOOKUP(AG$2,'Technische Daten'!$A:$G,6,0),0) -> 0 | AH30: =IF(AH$3<>"",AH$3*VLOOKUP(AH$2,'Technische Daten'!$A:$G,6,0),0) -> 0 | AI30: =IF(AI$3<>"",AI$3*VLOOKUP(AI$2,'Technische Daten'!$A:$G,6,0),0) -> 0 | AJ30: =IF(AJ$3<>"",AJ$3*VLOOKUP(AJ$2,'Technische Daten'!$A:$G,6,0),0) -> 0 | AK30: =IF(AK$3<>"",AK$3*VLOOKUP(AK$2,'Technische Daten'!$A:$G,6,0),0) -> 0 | AL30: =IF(AL$3<>"",AL$3*VLOOKUP(AL$2,'Technische Daten'!$A:$G,6,0),0) -> 0 | AM30: =IF(AM$3<>"",AM$3*VLOOKUP(AM$2,'Technische Daten'!$A:$G,6,0),0) -> 0 | AN30: =IF(AN$3<>"",AN$3*VLOOKUP(AN$2,'Technische Daten'!$A:$G,6,0),0) -> 0 | AO30: =IF(AO$3<>"",AO$3*VLOOKUP(AO$2,'Technische Daten'!$A:$G,6,0),0) -> 0 | AP30: =IF(AP$3<>"",AP$3*VLOOKUP(AP$2,'Technische Daten'!$A:$G,6,0),0) -> 0 | AQ30: =IF(AQ$3<>"",AQ$3*VLOOKUP(AQ$2,'Technische Daten'!$A:$G,6,0),0) -> 0 | AR30: =IF(AR$3<>"",AR$3*VLOOKUP(AR$2,'Technische Daten'!$A:$G,6,0),0) -> 0 | AS30: =IF(AS$3<>"",AS$3*VLOOKUP(AS$2,'Technische Daten'!$A:$G,6,0),0) -> 0 | AT30: =IF(AT$3<>"",AT$3*VLOOKUP(AT$2,'Technische Daten'!$A:$G,6,0),0) -> 0 | AU30: =IF(AU$3<>"",AU$3*VLOOKUP(AU$2,'Technische Daten'!$A:$G,6,0),0) -> 0 | AV30: =IF(AV$3<>"",AV$3*VLOOKUP(AV$2,'Technische Daten'!$A:$G,6,0),0) -> 0 | AW30: =IF(AW$3<>"",AW$3*VLOOKUP(AW$2,'Technische Daten'!$A:$G,6,0),0) -> 0 | AX30: =IF(AX$3<>"",AX$3*VLOOKUP(AX$2,'Technische Daten'!$A:$G,6,0),0) -> 0
A31: =Texte!B25 -> Anzahl verbleibende Tx-PDO (Byte) | B31: =IF(SUM(C31:AX31)>0,ROUNDDOWN(SUM(C31:AX31)/8,0),ROUNDUP(SUM(C31:AX31)/8,0)) -> 0 | C31: =IF(C$3<>"",C$3*VLOOKUP(C$2,'Technische Daten'!$A:$G,7,0),0) -> 0 | D31: =IF(D$3<>"",D$3*VLOOKUP(D$2,'Technische Daten'!$A:$G,7,0),0) -> 0 | E31: =IF(E$3<>"",E$3*VLOOKUP(E$2,'Technische Daten'!$A:$G,7,0),0) -> 0 | F31: =IF(F$3<>"",F$3*VLOOKUP(F$2,'Technische Daten'!$A:$G,7,0),0) -> 0 | G31: =IF(G$3<>"",G$3*VLOOKUP(G$2,'Technische Daten'!$A:$G,7,0),0) -> 0 | H31: =IF(H$3<>"",H$3*VLOOKUP(H$2,'Technische Daten'!$A:$G,7,0),0) -> 0 | I31: =IF(I$3<>"",I$3*VLOOKUP(I$2,'Technische Daten'!$A:$G,7,0),0) -> 0 | J31: =IF(J$3<>"",J$3*VLOOKUP(J$2,'Technische Daten'!$A:$G,7,0),0) -> 0 | K31: =IF(K$3<>"",K$3*VLOOKUP(K$2,'Technische Daten'!$A:$G,7,0),0) -> 0 | L31: =IF(L$3<>"",L$3*VLOOKUP(L$2,'Technische Daten'!$A:$G,7,0),0) -> 0 | M31: =IF(M$3<>"",M$3*VLOOKUP(M$2,'Technische Daten'!$A:$G,7,0),0) -> 0 | N31: =IF(N$3<>"",N$3*VLOOKUP(N$2,'Technische Daten'!$A:$G,7,0),0) -> 0 | O31: =IF(O$3<>"",O$3*VLOOKUP(O$2,'Technische Daten'!$A:$G,7,0),0) -> 0 | P31: =IF(P$3<>"",P$3*VLOOKUP(P$2,'Technische Daten'!$A:$G,7,0),0) -> 0 | Q31: =IF(Q$3<>"",Q$3*VLOOKUP(Q$2,'Technische Daten'!$A:$G,7,0),0) -> 0 | R31: =IF(R$3<>"",R$3*VLOOKUP(R$2,'Technische Daten'!$A:$G,7,0),0) -> 0 | S31: =IF(S$3<>"",S$3*VLOOKUP(S$2,'Technische Daten'!$A:$G,7,0),0) -> 0 | T31: =IF(T$3<>"",T$3*VLOOKUP(T$2,'Technische Daten'!$A:$G,7,0),0) -> 0 | U31: =IF(U$3<>"",U$3*VLOOKUP(U$2,'Technische Daten'!$A:$G,7,0),0) -> 0 | V31: =IF(V$3<>"",V$3*VLOOKUP(V$2,'Technische Daten'!$A:$G,7,0),0) -> 0 | W31: =IF(W$3<>"",W$3*VLOOKUP(W$2,'Technische Daten'!$A:$G,7,0),0) -> 0 | X31: =IF(X$3<>"",X$3*VLOOKUP(X$2,'Technische Daten'!$A:$G,7,0),0) -> 0 | Y31: =IF(Y$3<>"",Y$3*VLOOKUP(Y$2,'Technische Daten'!$A:$G,7,0),0) -> 0 | Z31: =IF(Z$3<>"",Z$3*VLOOKUP(Z$2,'Technische Daten'!$A:$G,7,0),0) -> 0 | AA31: =IF(AA$3<>"",AA$3*VLOOKUP(AA$2,'Technische Daten'!$A:$G,7,0),0) -> 0 | AB31: =IF(AB$3<>"",AB$3*VLOOKUP(AB$2,'Technische Daten'!$A:$G,7,0),0) -> 0 | AC31: =IF(AC$3<>"",AC$3*VLOOKUP(AC$2,'Technische Daten'!$A:$G,7,0),0) -> 0 | AD31: =IF(AD$3<>"",AD$3*VLOOKUP(AD$2,'Technische Daten'!$A:$G,7,0),0) -> 0 | AE31: =IF(AE$3<>"",AE$3*VLOOKUP(AE$2,'Technische Daten'!$A:$G,7,0),0) -> 0 | AF31: =IF(AF$3<>"",AF$3*VLOOKUP(AF$2,'Technische Daten'!$A:$G,7,0),0) -> 0 | AG31: =IF(AG$3<>"",AG$3*VLOOKUP(AG$2,'Technische Daten'!$A:$G,7,0),0) -> 0 | AH31: =IF(AH$3<>"",AH$3*VLOOKUP(AH$2,'Technische Daten'!$A:$G,7,0),0) -> 0 | AI31: =IF(AI$3<>"",AI$3*VLOOKUP(AI$2,'Technische Daten'!$A:$G,7,0),0) -> 0 | AJ31: =IF(AJ$3<>"",AJ$3*VLOOKUP(AJ$2,'Technische Daten'!$A:$G,7,0),0) -> 0 | AK31: =IF(AK$3<>"",AK$3*VLOOKUP(AK$2,'Technische Daten'!$A:$G,7,0),0) -> 0 | AL31: =IF(AL$3<>"",AL$3*VLOOKUP(AL$2,'Technische Daten'!$A:$G,7,0),0) -> 0 | AM31: =IF(AM$3<>"",AM$3*VLOOKUP(AM$2,'Technische Daten'!$A:$G,7,0),0) -> 0 | AN31: =IF(AN$3<>"",AN$3*VLOOKUP(AN$2,'Technische Daten'!$A:$G,7,0),0) -> 0 | AO31: =IF(AO$3<>"",AO$3*VLOOKUP(AO$2,'Technische Daten'!$A:$G,7,0),0) -> 0 | AP31: =IF(AP$3<>"",AP$3*VLOOKUP(AP$2,'Technische Daten'!$A:$G,7,0),0) -> 0 | AQ31: =IF(AQ$3<>"",AQ$3*VLOOKUP(AQ$2,'Technische Daten'!$A:$G,7,0),0) -> 0 | AR31: =IF(AR$3<>"",AR$3*VLOOKUP(AR$2,'Technische Daten'!$A:$G,7,0),0) -> 0 | AS31: =IF(AS$3<>"",AS$3*VLOOKUP(AS$2,'Technische Daten'!$A:$G,7,0),0) -> 0 | AT31: =IF(AT$3<>"",AT$3*VLOOKUP(AT$2,'Technische Daten'!$A:$G,7,0),0) -> 0 | AU31: =IF(AU$3<>"",AU$3*VLOOKUP(AU$2,'Technische Daten'!$A:$G,7,0),0) -> 0 | AV31: =IF(AV$3<>"",AV$3*VLOOKUP(AV$2,'Technische Daten'!$A:$G,7,0),0) -> 0 | AW31: =IF(AW$3<>"",AW$3*VLOOKUP(AW$2,'Technische Daten'!$A:$G,7,0),0) -> 0 | AX31: =IF(AX$3<>"",AX$3*VLOOKUP(AX$2,'Technische Daten'!$A:$G,7,0),0) -> 0
A32: =Texte!B26 -> Anzahl Parameter (Byte) | B32: =SUM(C32:AX32) / 8 -> 0 | C32: =IF(C$3<>"",C$3*VLOOKUP(C$2,'Technische Daten'!$A:$H,8,0),0) -> 0 | D32: =IF(D$3<>"",D$3*VLOOKUP(D$2,'Technische Daten'!$A:$H,8,0),0) -> 0 | E32: =IF(E$3<>"",E$3*VLOOKUP(E$2,'Technische Daten'!$A:$H,8,0),0) -> 0 | F32: =IF(F$3<>"",F$3*VLOOKUP(F$2,'Technische Daten'!$A:$H,8,0),0) -> 0 | G32: =IF(G$3<>"",G$3*VLOOKUP(G$2,'Technische Daten'!$A:$H,8,0),0) -> 0 | H32: =IF(H$3<>"",H$3*VLOOKUP(H$2,'Technische Daten'!$A:$H,8,0),0) -> 0 | I32: =IF(I$3<>"",I$3*VLOOKUP(I$2,'Technische Daten'!$A:$H,8,0),0) -> 0 | J32: =IF(J$3<>"",J$3*VLOOKUP(J$2,'Technische Daten'!$A:$H,8,0),0) -> 0 | K32: =IF(K$3<>"",K$3*VLOOKUP(K$2,'Technische Daten'!$A:$H,8,0),0) -> 0 | L32: =IF(L$3<>"",L$3*VLOOKUP(L$2,'Technische Daten'!$A:$H,8,0),0) -> 0 | M32: =IF(M$3<>"",M$3*VLOOKUP(M$2,'Technische Daten'!$A:$H,8,0),0) -> 0 | N32: =IF(N$3<>"",N$3*VLOOKUP(N$2,'Technische Daten'!$A:$H,8,0),0) -> 0 | O32: =IF(O$3<>"",O$3*VLOOKUP(O$2,'Technische Daten'!$A:$H,8,0),0) -> 0 | P32: =IF(P$3<>"",P$3*VLOOKUP(P$2,'Technische Daten'!$A:$H,8,0),0) -> 0 | Q32: =IF(Q$3<>"",Q$3*VLOOKUP(Q$2,'Technische Daten'!$A:$H,8,0),0) -> 0 | R32: =IF(R$3<>"",R$3*VLOOKUP(R$2,'Technische Daten'!$A:$H,8,0),0) -> 0 | S32: =IF(S$3<>"",S$3*VLOOKUP(S$2,'Technische Daten'!$A:$H,8,0),0) -> 0 | T32: =IF(T$3<>"",T$3*VLOOKUP(T$2,'Technische Daten'!$A:$H,8,0),0) -> 0 | U32: =IF(U$3<>"",U$3*VLOOKUP(U$2,'Technische Daten'!$A:$H,8,0),0) -> 0 | V32: =IF(V$3<>"",V$3*VLOOKUP(V$2,'Technische Daten'!$A:$H,8,0),0) -> 0 | W32: =IF(W$3<>"",W$3*VLOOKUP(W$2,'Technische Daten'!$A:$H,8,0),0) -> 0 | X32: =IF(X$3<>"",X$3*VLOOKUP(X$2,'Technische Daten'!$A:$H,8,0),0) -> 0 | Y32: =IF(Y$3<>"",Y$3*VLOOKUP(Y$2,'Technische Daten'!$A:$H,8,0),0) -> 0 | Z32: =IF(Z$3<>"",Z$3*VLOOKUP(Z$2,'Technische Daten'!$A:$H,8,0),0) -> 0 | AA32: =IF(AA$3<>"",AA$3*VLOOKUP(AA$2,'Technische Daten'!$A:$H,8,0),0) -> 0 | AB32: =IF(AB$3<>"",AB$3*VLOOKUP(AB$2,'Technische Daten'!$A:$H,8,0),0) -> 0 | AC32: =IF(AC$3<>"",AC$3*VLOOKUP(AC$2,'Technische Daten'!$A:$H,8,0),0) -> 0 | AD32: =IF(AD$3<>"",AD$3*VLOOKUP(AD$2,'Technische Daten'!$A:$H,8,0),0) -> 0 | AE32: =IF(AE$3<>"",AE$3*VLOOKUP(AE$2,'Technische Daten'!$A:$H,8,0),0) -> 0 | AF32: =IF(AF$3<>"",AF$3*VLOOKUP(AF$2,'Technische Daten'!$A:$H,8,0),0) -> 0 | AG32: =IF(AG$3<>"",AG$3*VLOOKUP(AG$2,'Technische Daten'!$A:$H,8,0),0) -> 0 | AH32: =IF(AH$3<>"",AH$3*VLOOKUP(AH$2,'Technische Daten'!$A:$H,8,0),0) -> 0 | AI32: =IF(AI$3<>"",AI$3*VLOOKUP(AI$2,'Technische Daten'!$A:$H,8,0),0) -> 0 | AJ32: =IF(AJ$3<>"",AJ$3*VLOOKUP(AJ$2,'Technische Daten'!$A:$H,8,0),0) -> 0 | AK32: =IF(AK$3<>"",AK$3*VLOOKUP(AK$2,'Technische Daten'!$A:$H,8,0),0) -> 0 | AL32: =IF(AL$3<>"",AL$3*VLOOKUP(AL$2,'Technische Daten'!$A:$H,8,0),0) -> 0 | AM32: =IF(AM$3<>"",AM$3*VLOOKUP(AM$2,'Technische Daten'!$A:$H,8,0),0) -> 0 | AN32: =IF(AN$3<>"",AN$3*VLOOKUP(AN$2,'Technische Daten'!$A:$H,8,0),0) -> 0 | AO32: =IF(AO$3<>"",AO$3*VLOOKUP(AO$2,'Technische Daten'!$A:$H,8,0),0) -> 0 | AP32: =IF(AP$3<>"",AP$3*VLOOKUP(AP$2,'Technische Daten'!$A:$H,8,0),0) -> 0 | AQ32: =IF(AQ$3<>"",AQ$3*VLOOKUP(AQ$2,'Technische Daten'!$A:$H,8,0),0) -> 0 | AR32: =IF(AR$3<>"",AR$3*VLOOKUP(AR$2,'Technische Daten'!$A:$H,8,0),0) -> 0 | AS32: =IF(AS$3<>"",AS$3*VLOOKUP(AS$2,'Technische Daten'!$A:$H,8,0),0) -> 0 | AT32: =IF(AT$3<>"",AT$3*VLOOKUP(AT$2,'Technische Daten'!$A:$H,8,0),0) -> 0 | AU32: =IF(AU$3<>"",AU$3*VLOOKUP(AU$2,'Technische Daten'!$A:$H,8,0),0) -> 0 | AV32: =IF(AV$3<>"",AV$3*VLOOKUP(AV$2,'Technische Daten'!$A:$H,8,0),0) -> 0 | AW32: =IF(AW$3<>"",AW$3*VLOOKUP(AW$2,'Technische Daten'!$A:$H,8,0),0) -> 0 | AX32: =IF(AX$3<>"",AX$3*VLOOKUP(AX$2,'Technische Daten'!$A:$H,8,0),0) -> 0
A33: =Texte!B27 -> Konfigurationscheck | B33: =IF(AND(B30>=0, B31>=0, B32 >= 0),"OK","NOK") -> OK
A35: =Texte!B28 -> Kommunikation (EtherCAT)
A36: =Texte!B29 -> Anzahl verbleibende Rx-PDO (Byte) | B36: =IF(SUM(C36:AX36)>0,ROUNDDOWN(SUM(C36:AX36)/8,0),ROUNDUP(SUM(C36:AX36)/8,0)) -> 0 | C36: =IF(C$3<>"",C$3*VLOOKUP(C$2,'Technische Daten'!$A:$G,6,0),0) -> 0 | D36: =IF(D$3<>"",D$3*VLOOKUP(D$2,'Technische Daten'!$A:$G,6,0),0) -> 0 | E36: =IF(E$3<>"",E$3*VLOOKUP(E$2,'Technische Daten'!$A:$G,6,0),0) -> 0 | F36: =IF(F$3<>"",F$3*VLOOKUP(F$2,'Technische Daten'!$A:$G,6,0),0) -> 0 | G36: =IF(G$3<>"",G$3*VLOOKUP(G$2,'Technische Daten'!$A:$G,6,0),0) -> 0 | H36: =IF(H$3<>"",H$3*VLOOKUP(H$2,'Technische Daten'!$A:$G,6,0),0) -> 0 | I36: =IF(I$3<>"",I$3*VLOOKUP(I$2,'Technische Daten'!$A:$G,6,0),0) -> 0 | J36: =IF(J$3<>"",J$3*VLOOKUP(J$2,'Technische Daten'!$A:$G,6,0),0) -> 0 | K36: =IF(K$3<>"",K$3*VLOOKUP(K$2,'Technische Daten'!$A:$G,6,0),0) -> 0 | L36: =IF(L$3<>"",L$3*VLOOKUP(L$2,'Technische Daten'!$A:$G,6,0),0) -> 0 | M36: =IF(M$3<>"",M$3*VLOOKUP(M$2,'Technische Daten'!$A:$G,6,0),0) -> 0 | N36: =IF(N$3<>"",N$3*VLOOKUP(N$2,'Technische Daten'!$A:$G,6,0),0) -> 0 | O36: =IF(O$3<>"",O$3*VLOOKUP(O$2,'Technische Daten'!$A:$G,6,0),0) -> 0 | P36: =IF(P$3<>"",P$3*VLOOKUP(P$2,'Technische Daten'!$A:$G,6,0),0) -> 0 | Q36: =IF(Q$3<>"",Q$3*VLOOKUP(Q$2,'Technische Daten'!$A:$G,6,0),0) -> 0 | R36: =IF(R$3<>"",R$3*VLOOKUP(R$2,'Technische Daten'!$A:$G,6,0),0) -> 0 | S36: =IF(S$3<>"",S$3*VLOOKUP(S$2,'Technische Daten'!$A:$G,6,0),0) -> 0 | T36: =IF(T$3<>"",T$3*VLOOKUP(T$2,'Technische Daten'!$A:$G,6,0),0) -> 0 | U36: =IF(U$3<>"",U$3*VLOOKUP(U$2,'Technische Daten'!$A:$G,6,0),0) -> 0 | V36: =IF(V$3<>"",V$3*VLOOKUP(V$2,'Technische Daten'!$A:$G,6,0),0) -> 0 | W36: =IF(W$3<>"",W$3*VLOOKUP(W$2,'Technische Daten'!$A:$G,6,0),0) -> 0 | X36: =IF(X$3<>"",X$3*VLOOKUP(X$2,'Technische Daten'!$A:$G,6,0),0) -> 0 | Y36: =IF(Y$3<>"",Y$3*VLOOKUP(Y$2,'Technische Daten'!$A:$G,6,0),0) -> 0 | Z36: =IF(Z$3<>"",Z$3*VLOOKUP(Z$2,'Technische Daten'!$A:$G,6,0),0) -> 0 | AA36: =IF(AA$3<>"",AA$3*VLOOKUP(AA$2,'Technische Daten'!$A:$G,6,0),0) -> 0 | AB36: =IF(AB$3<>"",AB$3*VLOOKUP(AB$2,'Technische Daten'!$A:$G,6,0),0) -> 0 | AC36: =IF(AC$3<>"",AC$3*VLOOKUP(AC$2,'Technische Daten'!$A:$G,6,0),0) -> 0 | AD36: =IF(AD$3<>"",AD$3*VLOOKUP(AD$2,'Technische Daten'!$A:$G,6,0),0) -> 0 | AE36: =IF(AE$3<>"",AE$3*VLOOKUP(AE$2,'Technische Daten'!$A:$G,6,0),0) -> 0 | AF36: =IF(AF$3<>"",AF$3*VLOOKUP(AF$2,'Technische Daten'!$A:$G,6,0),0) -> 0 | AG36: =IF(AG$3<>"",AG$3*VLOOKUP(AG$2,'Technische Daten'!$A:$G,6,0),0) -> 0 | AH36: =IF(AH$3<>"",AH$3*VLOOKUP(AH$2,'Technische Daten'!$A:$G,6,0),0) -> 0 | AI36: =IF(AI$3<>"",AI$3*VLOOKUP(AI$2,'Technische Daten'!$A:$G,6,0),0) -> 0 | AJ36: =IF(AJ$3<>"",AJ$3*VLOOKUP(AJ$2,'Technische Daten'!$A:$G,6,0),0) -> 0 | AK36: =IF(AK$3<>"",AK$3*VLOOKUP(AK$2,'Technische Daten'!$A:$G,6,0),0) -> 0 | AL36: =IF(AL$3<>"",AL$3*VLOOKUP(AL$2,'Technische Daten'!$A:$G,6,0),0) -> 0 | AM36: =IF(AM$3<>"",AM$3*VLOOKUP(AM$2,'Technische Daten'!$A:$G,6,0),0) -> 0 | AN36: =IF(AN$3<>"",AN$3*VLOOKUP(AN$2,'Technische Daten'!$A:$G,6,0),0) -> 0 | AO36: =IF(AO$3<>"",AO$3*VLOOKUP(AO$2,'Technische Daten'!$A:$G,6,0),0) -> 0 | AP36: =IF(AP$3<>"",AP$3*VLOOKUP(AP$2,'Technische Daten'!$A:$G,6,0),0) -> 0 | AQ36: =IF(AQ$3<>"",AQ$3*VLOOKUP(AQ$2,'Technische Daten'!$A:$G,6,0),0) -> 0 | AR36: =IF(AR$3<>"",AR$3*VLOOKUP(AR$2,'Technische Daten'!$A:$G,6,0),0) -> 0 | AS36: =IF(AS$3<>"",AS$3*VLOOKUP(AS$2,'Technische Daten'!$A:$G,6,0),0) -> 0 | AT36: =IF(AT$3<>"",AT$3*VLOOKUP(AT$2,'Technische Daten'!$A:$G,6,0),0) -> 0 | AU36: =IF(AU$3<>"",AU$3*VLOOKUP(AU$2,'Technische Daten'!$A:$G,6,0),0) -> 0 | AV36: =IF(AV$3<>"",AV$3*VLOOKUP(AV$2,'Technische Daten'!$A:$G,6,0),0) -> 0 | AW36: =IF(AW$3<>"",AW$3*VLOOKUP(AW$2,'Technische Daten'!$A:$G,6,0),0) -> 0 | AX36: =IF(AX$3<>"",AX$3*VLOOKUP(AX$2,'Technische Daten'!$A:$G,6,0),0) -> 0
A37: =Texte!B30 -> Anzahl verbleibende Tx-PDO (Byte) | B37: =IF(SUM(C37:AX37)>0,ROUNDDOWN(SUM(C37:AX37)/8,0),ROUNDUP(SUM(C37:AX37)/8,0)) -> 0 | C37: =IF(C$3<>"",C$3*VLOOKUP(C$2,'Technische Daten'!$A:$G,7,0),0) -> 0 | D37: =IF(D$3<>"",D$3*VLOOKUP(D$2,'Technische Daten'!$A:$G,7,0),0) -> 0 | E37: =IF(E$3<>"",E$3*VLOOKUP(E$2,'Technische Daten'!$A:$G,7,0),0) -> 0 | F37: =IF(F$3<>"",F$3*VLOOKUP(F$2,'Technische Daten'!$A:$G,7,0),0) -> 0 | G37: =IF(G$3<>"",G$3*VLOOKUP(G$2,'Technische Daten'!$A:$G,7,0),0) -> 0 | H37: =IF(H$3<>"",H$3*VLOOKUP(H$2,'Technische Daten'!$A:$G,7,0),0) -> 0 | I37: =IF(I$3<>"",I$3*VLOOKUP(I$2,'Technische Daten'!$A:$G,7,0),0) -> 0 | J37: =IF(J$3<>"",J$3*VLOOKUP(J$2,'Technische Daten'!$A:$G,7,0),0) -> 0 | K37: =IF(K$3<>"",K$3*VLOOKUP(K$2,'Technische Daten'!$A:$G,7,0),0) -> 0 | L37: =IF(L$3<>"",L$3*VLOOKUP(L$2,'Technische Daten'!$A:$G,7,0),0) -> 0 | M37: =IF(M$3<>"",M$3*VLOOKUP(M$2,'Technische Daten'!$A:$G,7,0),0) -> 0 | N37: =IF(N$3<>"",N$3*VLOOKUP(N$2,'Technische Daten'!$A:$G,7,0),0) -> 0 | O37: =IF(O$3<>"",O$3*VLOOKUP(O$2,'Technische Daten'!$A:$G,7,0),0) -> 0 | P37: =IF(P$3<>"",P$3*VLOOKUP(P$2,'Technische Daten'!$A:$G,7,0),0) -> 0 | Q37: =IF(Q$3<>"",Q$3*VLOOKUP(Q$2,'Technische Daten'!$A:$G,7,0),0) -> 0 | R37: =IF(R$3<>"",R$3*VLOOKUP(R$2,'Technische Daten'!$A:$G,7,0),0) -> 0 | S37: =IF(S$3<>"",S$3*VLOOKUP(S$2,'Technische Daten'!$A:$G,7,0),0) -> 0 | T37: =IF(T$3<>"",T$3*VLOOKUP(T$2,'Technische Daten'!$A:$G,7,0),0) -> 0 | U37: =IF(U$3<>"",U$3*VLOOKUP(U$2,'Technische Daten'!$A:$G,7,0),0) -> 0 | V37: =IF(V$3<>"",V$3*VLOOKUP(V$2,'Technische Daten'!$A:$G,7,0),0) -> 0 | W37: =IF(W$3<>"",W$3*VLOOKUP(W$2,'Technische Daten'!$A:$G,7,0),0) -> 0 | X37: =IF(X$3<>"",X$3*VLOOKUP(X$2,'Technische Daten'!$A:$G,7,0),0) -> 0 | Y37: =IF(Y$3<>"",Y$3*VLOOKUP(Y$2,'Technische Daten'!$A:$G,7,0),0) -> 0 | Z37: =IF(Z$3<>"",Z$3*VLOOKUP(Z$2,'Technische Daten'!$A:$G,7,0),0) -> 0 | AA37: =IF(AA$3<>"",AA$3*VLOOKUP(AA$2,'Technische Daten'!$A:$G,7,0),0) -> 0 | AB37: =IF(AB$3<>"",AB$3*VLOOKUP(AB$2,'Technische Daten'!$A:$G,7,0),0) -> 0 | AC37: =IF(AC$3<>"",AC$3*VLOOKUP(AC$2,'Technische Daten'!$A:$G,7,0),0) -> 0 | AD37: =IF(AD$3<>"",AD$3*VLOOKUP(AD$2,'Technische Daten'!$A:$G,7,0),0) -> 0 | AE37: =IF(AE$3<>"",AE$3*VLOOKUP(AE$2,'Technische Daten'!$A:$G,7,0),0) -> 0 | AF37: =IF(AF$3<>"",AF$3*VLOOKUP(AF$2,'Technische Daten'!$A:$G,7,0),0) -> 0 | AG37: =IF(AG$3<>"",AG$3*VLOOKUP(AG$2,'Technische Daten'!$A:$G,7,0),0) -> 0 | AH37: =IF(AH$3<>"",AH$3*VLOOKUP(AH$2,'Technische Daten'!$A:$G,7,0),0) -> 0 | AI37: =IF(AI$3<>"",AI$3*VLOOKUP(AI$2,'Technische Daten'!$A:$G,7,0),0) -> 0 | AJ37: =IF(AJ$3<>"",AJ$3*VLOOKUP(AJ$2,'Technische Daten'!$A:$G,7,0),0) -> 0 | AK37: =IF(AK$3<>"",AK$3*VLOOKUP(AK$2,'Technische Daten'!$A:$G,7,0),0) -> 0 | AL37: =IF(AL$3<>"",AL$3*VLOOKUP(AL$2,'Technische Daten'!$A:$G,7,0),0) -> 0 | AM37: =IF(AM$3<>"",AM$3*VLOOKUP(AM$2,'Technische Daten'!$A:$G,7,0),0) -> 0 | AN37: =IF(AN$3<>"",AN$3*VLOOKUP(AN$2,'Technische Daten'!$A:$G,7,0),0) -> 0 | AO37: =IF(AO$3<>"",AO$3*VLOOKUP(AO$2,'Technische Daten'!$A:$G,7,0),0) -> 0 | AP37: =IF(AP$3<>"",AP$3*VLOOKUP(AP$2,'Technische Daten'!$A:$G,7,0),0) -> 0 | AQ37: =IF(AQ$3<>"",AQ$3*VLOOKUP(AQ$2,'Technische Daten'!$A:$G,7,0),0) -> 0 | AR37: =IF(AR$3<>"",AR$3*VLOOKUP(AR$2,'Technische Daten'!$A:$G,7,0),0) -> 0 | AS37: =IF(AS$3<>"",AS$3*VLOOKUP(AS$2,'Technische Daten'!$A:$G,7,0),0) -> 0 | AT37: =IF(AT$3<>"",AT$3*VLOOKUP(AT$2,'Technische Daten'!$A:$G,7,0),0) -> 0 | AU37: =IF(AU$3<>"",AU$3*VLOOKUP(AU$2,'Technische Daten'!$A:$G,7,0),0) -> 0 | AV37: =IF(AV$3<>"",AV$3*VLOOKUP(AV$2,'Technische Daten'!$A:$G,7,0),0) -> 0 | AW37: =IF(AW$3<>"",AW$3*VLOOKUP(AW$2,'Technische Daten'!$A:$G,7,0),0) -> 0 | AX37: =IF(AX$3<>"",AX$3*VLOOKUP(AX$2,'Technische Daten'!$A:$G,7,0),0) -> 0
A38: =Texte!B32 -> Konfigurationscheck | B38: =IF(AND(B36>=0, B37>=0),"OK","NOK") -> OK
A40: =Texte!B23 -> Kommunikation (PROFINET)
A41: =Texte!B24 -> Anzahl verbleibende Rx-PDO (Byte) | B41: =IF(SUM(C41:AX41)>0,ROUNDDOWN(SUM(C41:AX41)/8,0),ROUNDUP(SUM(C41:AX41)/8,0)) -> 0 | C41: =IF(C$3<>"",C$3*VLOOKUP(C$2,'Technische Daten'!$A:$G,6,0),0) -> 0 | D41: =IF(D$3<>"",D$3*VLOOKUP(D$2,'Technische Daten'!$A:$G,6,0),0) -> 0 | E41: =IF(E$3<>"",E$3*VLOOKUP(E$2,'Technische Daten'!$A:$G,6,0),0) -> 0 | F41: =IF(F$3<>"",F$3*VLOOKUP(F$2,'Technische Daten'!$A:$G,6,0),0) -> 0 | G41: =IF(G$3<>"",G$3*VLOOKUP(G$2,'Technische Daten'!$A:$G,6,0),0) -> 0 | H41: =IF(H$3<>"",H$3*VLOOKUP(H$2,'Technische Daten'!$A:$G,6,0),0) -> 0 | I41: =IF(I$3<>"",I$3*VLOOKUP(I$2,'Technische Daten'!$A:$G,6,0),0) -> 0 | J41: =IF(J$3<>"",J$3*VLOOKUP(J$2,'Technische Daten'!$A:$G,6,0),0) -> 0 | K41: =IF(K$3<>"",K$3*VLOOKUP(K$2,'Technische Daten'!$A:$G,6,0),0) -> 0 | L41: =IF(L$3<>"",L$3*VLOOKUP(L$2,'Technische Daten'!$A:$G,6,0),0) -> 0 | M41: =IF(M$3<>"",M$3*VLOOKUP(M$2,'Technische Daten'!$A:$G,6,0),0) -> 0 | N41: =IF(N$3<>"",N$3*VLOOKUP(N$2,'Technische Daten'!$A:$G,6,0),0) -> 0 | O41: =IF(O$3<>"",O$3*VLOOKUP(O$2,'Technische Daten'!$A:$G,6,0),0) -> 0 | P41: =IF(P$3<>"",P$3*VLOOKUP(P$2,'Technische Daten'!$A:$G,6,0),0) -> 0 | Q41: =IF(Q$3<>"",Q$3*VLOOKUP(Q$2,'Technische Daten'!$A:$G,6,0),0) -> 0 | R41: =IF(R$3<>"",R$3*VLOOKUP(R$2,'Technische Daten'!$A:$G,6,0),0) -> 0 | S41: =IF(S$3<>"",S$3*VLOOKUP(S$2,'Technische Daten'!$A:$G,6,0),0) -> 0 | T41: =IF(T$3<>"",T$3*VLOOKUP(T$2,'Technische Daten'!$A:$G,6,0),0) -> 0 | U41: =IF(U$3<>"",U$3*VLOOKUP(U$2,'Technische Daten'!$A:$G,6,0),0) -> 0 | V41: =IF(V$3<>"",V$3*VLOOKUP(V$2,'Technische Daten'!$A:$G,6,0),0) -> 0 | W41: =IF(W$3<>"",W$3*VLOOKUP(W$2,'Technische Daten'!$A:$G,6,0),0) -> 0 | X41: =IF(X$3<>"",X$3*VLOOKUP(X$2,'Technische Daten'!$A:$G,6,0),0) -> 0 | Y41: =IF(Y$3<>"",Y$3*VLOOKUP(Y$2,'Technische Daten'!$A:$G,6,0),0) -> 0 | Z41: =IF(Z$3<>"",Z$3*VLOOKUP(Z$2,'Technische Daten'!$A:$G,6,0),0) -> 0 | AA41: =IF(AA$3<>"",AA$3*VLOOKUP(AA$2,'Technische Daten'!$A:$G,6,0),0) -> 0 | AB41: =IF(AB$3<>"",AB$3*VLOOKUP(AB$2,'Technische Daten'!$A:$G,6,0),0) -> 0 | AC41: =IF(AC$3<>"",AC$3*VLOOKUP(AC$2,'Technische Daten'!$A:$G,6,0),0) -> 0 | AD41: =IF(AD$3<>"",AD$3*VLOOKUP(AD$2,'Technische Daten'!$A:$G,6,0),0) -> 0 | AE41: =IF(AE$3<>"",AE$3*VLOOKUP(AE$2,'Technische Daten'!$A:$G,6,0),0) -> 0 | AF41: =IF(AF$3<>"",AF$3*VLOOKUP(AF$2,'Technische Daten'!$A:$G,6,0),0) -> 0 | AG41: =IF(AG$3<>"",AG$3*VLOOKUP(AG$2,'Technische Daten'!$A:$G,6,0),0) -> 0 | AH41: =IF(AH$3<>"",AH$3*VLOOKUP(AH$2,'Technische Daten'!$A:$G,6,0),0) -> 0 | AI41: =IF(AI$3<>"",AI$3*VLOOKUP(AI$2,'Technische Daten'!$A:$G,6,0),0) -> 0 | AJ41: =IF(AJ$3<>"",AJ$3*VLOOKUP(AJ$2,'Technische Daten'!$A:$G,6,0),0) -> 0 | AK41: =IF(AK$3<>"",AK$3*VLOOKUP(AK$2,'Technische Daten'!$A:$G,6,0),0) -> 0 | AL41: =IF(AL$3<>"",AL$3*VLOOKUP(AL$2,'Technische Daten'!$A:$G,6,0),0) -> 0 | AM41: =IF(AM$3<>"",AM$3*VLOOKUP(AM$2,'Technische Daten'!$A:$G,6,0),0) -> 0 | AN41: =IF(AN$3<>"",AN$3*VLOOKUP(AN$2,'Technische Daten'!$A:$G,6,0),0) -> 0 | AO41: =IF(AO$3<>"",AO$3*VLOOKUP(AO$2,'Technische Daten'!$A:$G,6,0),0) -> 0 | AP41: =IF(AP$3<>"",AP$3*VLOOKUP(AP$2,'Technische Daten'!$A:$G,6,0),0) -> 0 | AQ41: =IF(AQ$3<>"",AQ$3*VLOOKUP(AQ$2,'Technische Daten'!$A:$G,6,0),0) -> 0 | AR41: =IF(AR$3<>"",AR$3*VLOOKUP(AR$2,'Technische Daten'!$A:$G,6,0),0) -> 0 | AS41: =IF(AS$3<>"",AS$3*VLOOKUP(AS$2,'Technische Daten'!$A:$G,6,0),0) -> 0 | AT41: =IF(AT$3<>"",AT$3*VLOOKUP(AT$2,'Technische Daten'!$A:$G,6,0),0) -> 0 | AU41: =IF(AU$3<>"",AU$3*VLOOKUP(AU$2,'Technische Daten'!$A:$G,6,0),0) -> 0 | AV41: =IF(AV$3<>"",AV$3*VLOOKUP(AV$2,'Technische Daten'!$A:$G,6,0),0) -> 0 | AW41: =IF(AW$3<>"",AW$3*VLOOKUP(AW$2,'Technische Daten'!$A:$G,6,0),0) -> 0 | AX41: =IF(AX$3<>"",AX$3*VLOOKUP(AX$2,'Technische Daten'!$A:$G,6,0),0) -> 0
A42: =Texte!B25 -> Anzahl verbleibende Tx-PDO (Byte) | B42: =IF(SUM(C42:AX42)>0,ROUNDDOWN(SUM(C42:AX42)/8,0),ROUNDUP(SUM(C42:AX42)/8,0)) -> 0 | C42: =IF(C$3<>"",C$3*VLOOKUP(C$2,'Technische Daten'!$A:$G,7,0),0) -> 0 | D42: =IF(D$3<>"",D$3*VLOOKUP(D$2,'Technische Daten'!$A:$G,7,0),0) -> 0 | E42: =IF(E$3<>"",E$3*VLOOKUP(E$2,'Technische Daten'!$A:$G,7,0),0) -> 0 | F42: =IF(F$3<>"",F$3*VLOOKUP(F$2,'Technische Daten'!$A:$G,7,0),0) -> 0 | G42: =IF(G$3<>"",G$3*VLOOKUP(G$2,'Technische Daten'!$A:$G,7,0),0) -> 0 | H42: =IF(H$3<>"",H$3*VLOOKUP(H$2,'Technische Daten'!$A:$G,7,0),0) -> 0 | I42: =IF(I$3<>"",I$3*VLOOKUP(I$2,'Technische Daten'!$A:$G,7,0),0) -> 0 | J42: =IF(J$3<>"",J$3*VLOOKUP(J$2,'Technische Daten'!$A:$G,7,0),0) -> 0 | K42: =IF(K$3<>"",K$3*VLOOKUP(K$2,'Technische Daten'!$A:$G,7,0),0) -> 0 | L42: =IF(L$3<>"",L$3*VLOOKUP(L$2,'Technische Daten'!$A:$G,7,0),0) -> 0 | M42: =IF(M$3<>"",M$3*VLOOKUP(M$2,'Technische Daten'!$A:$G,7,0),0) -> 0 | N42: =IF(N$3<>"",N$3*VLOOKUP(N$2,'Technische Daten'!$A:$G,7,0),0) -> 0 | O42: =IF(O$3<>"",O$3*VLOOKUP(O$2,'Technische Daten'!$A:$G,7,0),0) -> 0 | P42: =IF(P$3<>"",P$3*VLOOKUP(P$2,'Technische Daten'!$A:$G,7,0),0) -> 0 | Q42: =IF(Q$3<>"",Q$3*VLOOKUP(Q$2,'Technische Daten'!$A:$G,7,0),0) -> 0 | R42: =IF(R$3<>"",R$3*VLOOKUP(R$2,'Technische Daten'!$A:$G,7,0),0) -> 0 | S42: =IF(S$3<>"",S$3*VLOOKUP(S$2,'Technische Daten'!$A:$G,7,0),0) -> 0 | T42: =IF(T$3<>"",T$3*VLOOKUP(T$2,'Technische Daten'!$A:$G,7,0),0) -> 0 | U42: =IF(U$3<>"",U$3*VLOOKUP(U$2,'Technische Daten'!$A:$G,7,0),0) -> 0 | V42: =IF(V$3<>"",V$3*VLOOKUP(V$2,'Technische Daten'!$A:$G,7,0),0) -> 0 | W42: =IF(W$3<>"",W$3*VLOOKUP(W$2,'Technische Daten'!$A:$G,7,0),0) -> 0 | X42: =IF(X$3<>"",X$3*VLOOKUP(X$2,'Technische Daten'!$A:$G,7,0),0) -> 0 | Y42: =IF(Y$3<>"",Y$3*VLOOKUP(Y$2,'Technische Daten'!$A:$G,7,0),0) -> 0 | Z42: =IF(Z$3<>"",Z$3*VLOOKUP(Z$2,'Technische Daten'!$A:$G,7,0),0) -> 0 | AA42: =IF(AA$3<>"",AA$3*VLOOKUP(AA$2,'Technische Daten'!$A:$G,7,0),0) -> 0 | AB42: =IF(AB$3<>"",AB$3*VLOOKUP(AB$2,'Technische Daten'!$A:$G,7,0),0) -> 0 | AC42: =IF(AC$3<>"",AC$3*VLOOKUP(AC$2,'Technische Daten'!$A:$G,7,0),0) -> 0 | AD42: =IF(AD$3<>"",AD$3*VLOOKUP(AD$2,'Technische Daten'!$A:$G,7,0),0) -> 0 | AE42: =IF(AE$3<>"",AE$3*VLOOKUP(AE$2,'Technische Daten'!$A:$G,7,0),0) -> 0 | AF42: =IF(AF$3<>"",AF$3*VLOOKUP(AF$2,'Technische Daten'!$A:$G,7,0),0) -> 0 | AG42: =IF(AG$3<>"",AG$3*VLOOKUP(AG$2,'Technische Daten'!$A:$G,7,0),0) -> 0 | AH42: =IF(AH$3<>"",AH$3*VLOOKUP(AH$2,'Technische Daten'!$A:$G,7,0),0) -> 0 | AI42: =IF(AI$3<>"",AI$3*VLOOKUP(AI$2,'Technische Daten'!$A:$G,7,0),0) -> 0 | AJ42: =IF(AJ$3<>"",AJ$3*VLOOKUP(AJ$2,'Technische Daten'!$A:$G,7,0),0) -> 0 | AK42: =IF(AK$3<>"",AK$3*VLOOKUP(AK$2,'Technische Daten'!$A:$G,7,0),0) -> 0 | AL42: =IF(AL$3<>"",AL$3*VLOOKUP(AL$2,'Technische Daten'!$A:$G,7,0),0) -> 0 | AM42: =IF(AM$3<>"",AM$3*VLOOKUP(AM$2,'Technische Daten'!$A:$G,7,0),0) -> 0 | AN42: =IF(AN$3<>"",AN$3*VLOOKUP(AN$2,'Technische Daten'!$A:$G,7,0),0) -> 0 | AO42: =IF(AO$3<>"",AO$3*VLOOKUP(AO$2,'Technische Daten'!$A:$G,7,0),0) -> 0 | AP42: =IF(AP$3<>"",AP$3*VLOOKUP(AP$2,'Technische Daten'!$A:$G,7,0),0) -> 0 | AQ42: =IF(AQ$3<>"",AQ$3*VLOOKUP(AQ$2,'Technische Daten'!$A:$G,7,0),0) -> 0 | AR42: =IF(AR$3<>"",AR$3*VLOOKUP(AR$2,'Technische Daten'!$A:$G,7,0),0) -> 0 | AS42: =IF(AS$3<>"",AS$3*VLOOKUP(AS$2,'Technische Daten'!$A:$G,7,0),0) -> 0 | AT42: =IF(AT$3<>"",AT$3*VLOOKUP(AT$2,'Technische Daten'!$A:$G,7,0),0) -> 0 | AU42: =IF(AU$3<>"",AU$3*VLOOKUP(AU$2,'Technische Daten'!$A:$G,7,0),0) -> 0 | AV42: =IF(AV$3<>"",AV$3*VLOOKUP(AV$2,'Technische Daten'!$A:$G,7,0),0) -> 0 | AW42: =IF(AW$3<>"",AW$3*VLOOKUP(AW$2,'Technische Daten'!$A:$G,7,0),0) -> 0 | AX42: =IF(AX$3<>"",AX$3*VLOOKUP(AX$2,'Technische Daten'!$A:$G,7,0),0) -> 0
A43: =Texte!B26 -> Anzahl Parameter (Byte) | B43: =SUM(C43:AX43) / 8 -> 0 | C43: =IF(C$3<>"",C$3*VLOOKUP(C$2,'Technische Daten'!$A:$H,8,0),0) -> 0 | D43: =IF(D$3<>"",D$3*VLOOKUP(D$2,'Technische Daten'!$A:$H,8,0),0) -> 0 | E43: =IF(E$3<>"",E$3*VLOOKUP(E$2,'Technische Daten'!$A:$H,8,0),0) -> 0 | F43: =IF(F$3<>"",F$3*VLOOKUP(F$2,'Technische Daten'!$A:$H,8,0),0) -> 0 | G43: =IF(G$3<>"",G$3*VLOOKUP(G$2,'Technische Daten'!$A:$H,8,0),0) -> 0 | H43: =IF(H$3<>"",H$3*VLOOKUP(H$2,'Technische Daten'!$A:$H,8,0),0) -> 0 | I43: =IF(I$3<>"",I$3*VLOOKUP(I$2,'Technische Daten'!$A:$H,8,0),0) -> 0 | J43: =IF(J$3<>"",J$3*VLOOKUP(J$2,'Technische Daten'!$A:$H,8,0),0) -> 0 | K43: =IF(K$3<>"",K$3*VLOOKUP(K$2,'Technische Daten'!$A:$H,8,0),0) -> 0 | L43: =IF(L$3<>"",L$3*VLOOKUP(L$2,'Technische Daten'!$A:$H,8,0),0) -> 0 | M43: =IF(M$3<>"",M$3*VLOOKUP(M$2,'Technische Daten'!$A:$H,8,0),0) -> 0 | N43: =IF(N$3<>"",N$3*VLOOKUP(N$2,'Technische Daten'!$A:$H,8,0),0) -> 0 | O43: =IF(O$3<>"",O$3*VLOOKUP(O$2,'Technische Daten'!$A:$H,8,0),0) -> 0 | P43: =IF(P$3<>"",P$3*VLOOKUP(P$2,'Technische Daten'!$A:$H,8,0),0) -> 0 | Q43: =IF(Q$3<>"",Q$3*VLOOKUP(Q$2,'Technische Daten'!$A:$H,8,0),0) -> 0 | R43: =IF(R$3<>"",R$3*VLOOKUP(R$2,'Technische Daten'!$A:$H,8,0),0) -> 0 | S43: =IF(S$3<>"",S$3*VLOOKUP(S$2,'Technische Daten'!$A:$H,8,0),0) -> 0 | T43: =IF(T$3<>"",T$3*VLOOKUP(T$2,'Technische Daten'!$A:$H,8,0),0) -> 0 | U43: =IF(U$3<>"",U$3*VLOOKUP(U$2,'Technische Daten'!$A:$H,8,0),0) -> 0 | V43: =IF(V$3<>"",V$3*VLOOKUP(V$2,'Technische Daten'!$A:$H,8,0),0) -> 0 | W43: =IF(W$3<>"",W$3*VLOOKUP(W$2,'Technische Daten'!$A:$H,8,0),0) -> 0 | X43: =IF(X$3<>"",X$3*VLOOKUP(X$2,'Technische Daten'!$A:$H,8,0),0) -> 0 | Y43: =IF(Y$3<>"",Y$3*VLOOKUP(Y$2,'Technische Daten'!$A:$H,8,0),0) -> 0 | Z43: =IF(Z$3<>"",Z$3*VLOOKUP(Z$2,'Technische Daten'!$A:$H,8,0),0) -> 0 | AA43: =IF(AA$3<>"",AA$3*VLOOKUP(AA$2,'Technische Daten'!$A:$H,8,0),0) -> 0 | AB43: =IF(AB$3<>"",AB$3*VLOOKUP(AB$2,'Technische Daten'!$A:$H,8,0),0) -> 0 | AC43: =IF(AC$3<>"",AC$3*VLOOKUP(AC$2,'Technische Daten'!$A:$H,8,0),0) -> 0 | AD43: =IF(AD$3<>"",AD$3*VLOOKUP(AD$2,'Technische Daten'!$A:$H,8,0),0) -> 0 | AE43: =IF(AE$3<>"",AE$3*VLOOKUP(AE$2,'Technische Daten'!$A:$H,8,0),0) -> 0 | AF43: =IF(AF$3<>"",AF$3*VLOOKUP(AF$2,'Technische Daten'!$A:$H,8,0),0) -> 0 | AG43: =IF(AG$3<>"",AG$3*VLOOKUP(AG$2,'Technische Daten'!$A:$H,8,0),0) -> 0 | AH43: =IF(AH$3<>"",AH$3*VLOOKUP(AH$2,'Technische Daten'!$A:$H,8,0),0) -> 0 | AI43: =IF(AI$3<>"",AI$3*VLOOKUP(AI$2,'Technische Daten'!$A:$H,8,0),0) -> 0 | AJ43: =IF(AJ$3<>"",AJ$3*VLOOKUP(AJ$2,'Technische Daten'!$A:$H,8,0),0) -> 0 | AK43: =IF(AK$3<>"",AK$3*VLOOKUP(AK$2,'Technische Daten'!$A:$H,8,0),0) -> 0 | AL43: =IF(AL$3<>"",AL$3*VLOOKUP(AL$2,'Technische Daten'!$A:$H,8,0),0) -> 0 | AM43: =IF(AM$3<>"",AM$3*VLOOKUP(AM$2,'Technische Daten'!$A:$H,8,0),0) -> 0 | AN43: =IF(AN$3<>"",AN$3*VLOOKUP(AN$2,'Technische Daten'!$A:$H,8,0),0) -> 0 | AO43: =IF(AO$3<>"",AO$3*VLOOKUP(AO$2,'Technische Daten'!$A:$H,8,0),0) -> 0 | AP43: =IF(AP$3<>"",AP$3*VLOOKUP(AP$2,'Technische Daten'!$A:$H,8,0),0) -> 0 | AQ43: =IF(AQ$3<>"",AQ$3*VLOOKUP(AQ$2,'Technische Daten'!$A:$H,8,0),0) -> 0 | AR43: =IF(AR$3<>"",AR$3*VLOOKUP(AR$2,'Technische Daten'!$A:$H,8,0),0) -> 0 | AS43: =IF(AS$3<>"",AS$3*VLOOKUP(AS$2,'Technische Daten'!$A:$H,8,0),0) -> 0 | AT43: =IF(AT$3<>"",AT$3*VLOOKUP(AT$2,'Technische Daten'!$A:$H,8,0),0) -> 0 | AU43: =IF(AU$3<>"",AU$3*VLOOKUP(AU$2,'Technische Daten'!$A:$H,8,0),0) -> 0 | AV43: =IF(AV$3<>"",AV$3*VLOOKUP(AV$2,'Technische Daten'!$A:$H,8,0),0) -> 0 | AW43: =IF(AW$3<>"",AW$3*VLOOKUP(AW$2,'Technische Daten'!$A:$H,8,0),0) -> 0 | AX43: =IF(AX$3<>"",AX$3*VLOOKUP(AX$2,'Technische Daten'!$A:$H,8,0),0) -> 0
A44: =Texte!B27 -> Konfigurationscheck | B44: =IF(AND(B41>=0, B42>=0, B43 >= 0),"OK","NOK") -> OK
A46: =Texte!B39 -> Kommunikation (DeviceNet)
A47: =Texte!B24 -> Anzahl verbleibende Rx-PDO (Byte) | B47: =IF(SUM(C47:AX47)>0,ROUNDDOWN(SUM(C47:AX47)/8,0),ROUNDUP(SUM(C47:AX47)/8,0)) -> 0 | C47: =IF(C$3<>"",C$3*VLOOKUP(C$2,'Technische Daten'!$A:$G,6,0),0) -> 0 | D47: =IF(D$3<>"",D$3*VLOOKUP(D$2,'Technische Daten'!$A:$G,6,0),0) -> 0 | E47: =IF(E$3<>"",E$3*VLOOKUP(E$2,'Technische Daten'!$A:$G,6,0),0) -> 0 | F47: =IF(F$3<>"",F$3*VLOOKUP(F$2,'Technische Daten'!$A:$G,6,0),0) -> 0 | G47: =IF(G$3<>"",G$3*VLOOKUP(G$2,'Technische Daten'!$A:$G,6,0),0) -> 0 | H47: =IF(H$3<>"",H$3*VLOOKUP(H$2,'Technische Daten'!$A:$G,6,0),0) -> 0 | I47: =IF(I$3<>"",I$3*VLOOKUP(I$2,'Technische Daten'!$A:$G,6,0),0) -> 0 | J47: =IF(J$3<>"",J$3*VLOOKUP(J$2,'Technische Daten'!$A:$G,6,0),0) -> 0 | K47: =IF(K$3<>"",K$3*VLOOKUP(K$2,'Technische Daten'!$A:$G,6,0),0) -> 0 | L47: =IF(L$3<>"",L$3*VLOOKUP(L$2,'Technische Daten'!$A:$G,6,0),0) -> 0 | M47: =IF(M$3<>"",M$3*VLOOKUP(M$2,'Technische Daten'!$A:$G,6,0),0) -> 0 | N47: =IF(N$3<>"",N$3*VLOOKUP(N$2,'Technische Daten'!$A:$G,6,0),0) -> 0 | O47: =IF(O$3<>"",O$3*VLOOKUP(O$2,'Technische Daten'!$A:$G,6,0),0) -> 0 | P47: =IF(P$3<>"",P$3*VLOOKUP(P$2,'Technische Daten'!$A:$G,6,0),0) -> 0 | Q47: =IF(Q$3<>"",Q$3*VLOOKUP(Q$2,'Technische Daten'!$A:$G,6,0),0) -> 0 | R47: =IF(R$3<>"",R$3*VLOOKUP(R$2,'Technische Daten'!$A:$G,6,0),0) -> 0 | S47: =IF(S$3<>"",S$3*VLOOKUP(S$2,'Technische Daten'!$A:$G,6,0),0) -> 0 | T47: =IF(T$3<>"",T$3*VLOOKUP(T$2,'Technische Daten'!$A:$G,6,0),0) -> 0 | U47: =IF(U$3<>"",U$3*VLOOKUP(U$2,'Technische Daten'!$A:$G,6,0),0) -> 0 | V47: =IF(V$3<>"",V$3*VLOOKUP(V$2,'Technische Daten'!$A:$G,6,0),0) -> 0 | W47: =IF(W$3<>"",W$3*VLOOKUP(W$2,'Technische Daten'!$A:$G,6,0),0) -> 0 | X47: =IF(X$3<>"",X$3*VLOOKUP(X$2,'Technische Daten'!$A:$G,6,0),0) -> 0 | Y47: =IF(Y$3<>"",Y$3*VLOOKUP(Y$2,'Technische Daten'!$A:$G,6,0),0) -> 0 | Z47: =IF(Z$3<>"",Z$3*VLOOKUP(Z$2,'Technische Daten'!$A:$G,6,0),0) -> 0 | AA47: =IF(AA$3<>"",AA$3*VLOOKUP(AA$2,'Technische Daten'!$A:$G,6,0),0) -> 0 | AB47: =IF(AB$3<>"",AB$3*VLOOKUP(AB$2,'Technische Daten'!$A:$G,6,0),0) -> 0 | AC47: =IF(AC$3<>"",AC$3*VLOOKUP(AC$2,'Technische Daten'!$A:$G,6,0),0) -> 0 | AD47: =IF(AD$3<>"",AD$3*VLOOKUP(AD$2,'Technische Daten'!$A:$G,6,0),0) -> 0 | AE47: =IF(AE$3<>"",AE$3*VLOOKUP(AE$2,'Technische Daten'!$A:$G,6,0),0) -> 0 | AF47: =IF(AF$3<>"",AF$3*VLOOKUP(AF$2,'Technische Daten'!$A:$G,6,0),0) -> 0 | AG47: =IF(AG$3<>"",AG$3*VLOOKUP(AG$2,'Technische Daten'!$A:$G,6,0),0) -> 0 | AH47: =IF(AH$3<>"",AH$3*VLOOKUP(AH$2,'Technische Daten'!$A:$G,6,0),0) -> 0 | AI47: =IF(AI$3<>"",AI$3*VLOOKUP(AI$2,'Technische Daten'!$A:$G,6,0),0) -> 0 | AJ47: =IF(AJ$3<>"",AJ$3*VLOOKUP(AJ$2,'Technische Daten'!$A:$G,6,0),0) -> 0 | AK47: =IF(AK$3<>"",AK$3*VLOOKUP(AK$2,'Technische Daten'!$A:$G,6,0),0) -> 0 | AL47: =IF(AL$3<>"",AL$3*VLOOKUP(AL$2,'Technische Daten'!$A:$G,6,0),0) -> 0 | AM47: =IF(AM$3<>"",AM$3*VLOOKUP(AM$2,'Technische Daten'!$A:$G,6,0),0) -> 0 | AN47: =IF(AN$3<>"",AN$3*VLOOKUP(AN$2,'Technische Daten'!$A:$G,6,0),0) -> 0 | AO47: =IF(AO$3<>"",AO$3*VLOOKUP(AO$2,'Technische Daten'!$A:$G,6,0),0) -> 0 | AP47: =IF(AP$3<>"",AP$3*VLOOKUP(AP$2,'Technische Daten'!$A:$G,6,0),0) -> 0 | AQ47: =IF(AQ$3<>"",AQ$3*VLOOKUP(AQ$2,'Technische Daten'!$A:$G,6,0),0) -> 0 | AR47: =IF(AR$3<>"",AR$3*VLOOKUP(AR$2,'Technische Daten'!$A:$G,6,0),0) -> 0 | AS47: =IF(AS$3<>"",AS$3*VLOOKUP(AS$2,'Technische Daten'!$A:$G,6,0),0) -> 0 | AT47: =IF(AT$3<>"",AT$3*VLOOKUP(AT$2,'Technische Daten'!$A:$G,6,0),0) -> 0 | AU47: =IF(AU$3<>"",AU$3*VLOOKUP(AU$2,'Technische Daten'!$A:$G,6,0),0) -> 0 | AV47: =IF(AV$3<>"",AV$3*VLOOKUP(AV$2,'Technische Daten'!$A:$G,6,0),0) -> 0 | AW47: =IF(AW$3<>"",AW$3*VLOOKUP(AW$2,'Technische Daten'!$A:$G,6,0),0) -> 0 | AX47: =IF(AX$3<>"",AX$3*VLOOKUP(AX$2,'Technische Daten'!$A:$G,6,0),0) -> 0
A48: =Texte!B25 -> Anzahl verbleibende Tx-PDO (Byte) | B48: =IF(SUM(C48:AX48)>0,ROUNDDOWN(SUM(C48:AX48)/8,0),ROUNDUP(SUM(C48:AX48)/8,0)) -> 0 | C48: =IF(C$3<>"",C$3*VLOOKUP(C$2,'Technische Daten'!$A:$G,7,0),0) -> 0 | D48: =IF(D$3<>"",D$3*VLOOKUP(D$2,'Technische Daten'!$A:$G,7,0),0) -> 0 | E48: =IF(E$3<>"",E$3*VLOOKUP(E$2,'Technische Daten'!$A:$G,7,0),0) -> 0 | F48: =IF(F$3<>"",F$3*VLOOKUP(F$2,'Technische Daten'!$A:$G,7,0),0) -> 0 | G48: =IF(G$3<>"",G$3*VLOOKUP(G$2,'Technische Daten'!$A:$G,7,0),0) -> 0 | H48: =IF(H$3<>"",H$3*VLOOKUP(H$2,'Technische Daten'!$A:$G,7,0),0) -> 0 | I48: =IF(I$3<>"",I$3*VLOOKUP(I$2,'Technische Daten'!$A:$G,7,0),0) -> 0 | J48: =IF(J$3<>"",J$3*VLOOKUP(J$2,'Technische Daten'!$A:$G,7,0),0) -> 0 | K48: =IF(K$3<>"",K$3*VLOOKUP(K$2,'Technische Daten'!$A:$G,7,0),0) -> 0 | L48: =IF(L$3<>"",L$3*VLOOKUP(L$2,'Technische Daten'!$A:$G,7,0),0) -> 0 | M48: =IF(M$3<>"",M$3*VLOOKUP(M$2,'Technische Daten'!$A:$G,7,0),0) -> 0 | N48: =IF(N$3<>"",N$3*VLOOKUP(N$2,'Technische Daten'!$A:$G,7,0),0) -> 0 | O48: =IF(O$3<>"",O$3*VLOOKUP(O$2,'Technische Daten'!$A:$G,7,0),0) -> 0 | P48: =IF(P$3<>"",P$3*VLOOKUP(P$2,'Technische Daten'!$A:$G,7,0),0) -> 0 | Q48: =IF(Q$3<>"",Q$3*VLOOKUP(Q$2,'Technische Daten'!$A:$G,7,0),0) -> 0 | R48: =IF(R$3<>"",R$3*VLOOKUP(R$2,'Technische Daten'!$A:$G,7,0),0) -> 0 | S48: =IF(S$3<>"",S$3*VLOOKUP(S$2,'Technische Daten'!$A:$G,7,0),0) -> 0 | T48: =IF(T$3<>"",T$3*VLOOKUP(T$2,'Technische Daten'!$A:$G,7,0),0) -> 0 | U48: =IF(U$3<>"",U$3*VLOOKUP(U$2,'Technische Daten'!$A:$G,7,0),0) -> 0 | V48: =IF(V$3<>"",V$3*VLOOKUP(V$2,'Technische Daten'!$A:$G,7,0),0) -> 0 | W48: =IF(W$3<>"",W$3*VLOOKUP(W$2,'Technische Daten'!$A:$G,7,0),0) -> 0 | X48: =IF(X$3<>"",X$3*VLOOKUP(X$2,'Technische Daten'!$A:$G,7,0),0) -> 0 | Y48: =IF(Y$3<>"",Y$3*VLOOKUP(Y$2,'Technische Daten'!$A:$G,7,0),0) -> 0 | Z48: =IF(Z$3<>"",Z$3*VLOOKUP(Z$2,'Technische Daten'!$A:$G,7,0),0) -> 0 | AA48: =IF(AA$3<>"",AA$3*VLOOKUP(AA$2,'Technische Daten'!$A:$G,7,0),0) -> 0 | AB48: =IF(AB$3<>"",AB$3*VLOOKUP(AB$2,'Technische Daten'!$A:$G,7,0),0) -> 0 | AC48: =IF(AC$3<>"",AC$3*VLOOKUP(AC$2,'Technische Daten'!$A:$G,7,0),0) -> 0 | AD48: =IF(AD$3<>"",AD$3*VLOOKUP(AD$2,'Technische Daten'!$A:$G,7,0),0) -> 0 | AE48: =IF(AE$3<>"",AE$3*VLOOKUP(AE$2,'Technische Daten'!$A:$G,7,0),0) -> 0 | AF48: =IF(AF$3<>"",AF$3*VLOOKUP(AF$2,'Technische Daten'!$A:$G,7,0),0) -> 0 | AG48: =IF(AG$3<>"",AG$3*VLOOKUP(AG$2,'Technische Daten'!$A:$G,7,0),0) -> 0 | AH48: =IF(AH$3<>"",AH$3*VLOOKUP(AH$2,'Technische Daten'!$A:$G,7,0),0) -> 0 | AI48: =IF(AI$3<>"",AI$3*VLOOKUP(AI$2,'Technische Daten'!$A:$G,7,0),0) -> 0 | AJ48: =IF(AJ$3<>"",AJ$3*VLOOKUP(AJ$2,'Technische Daten'!$A:$G,7,0),0) -> 0 | AK48: =IF(AK$3<>"",AK$3*VLOOKUP(AK$2,'Technische Daten'!$A:$G,7,0),0) -> 0 | AL48: =IF(AL$3<>"",AL$3*VLOOKUP(AL$2,'Technische Daten'!$A:$G,7,0),0) -> 0 | AM48: =IF(AM$3<>"",AM$3*VLOOKUP(AM$2,'Technische Daten'!$A:$G,7,0),0) -> 0 | AN48: =IF(AN$3<>"",AN$3*VLOOKUP(AN$2,'Technische Daten'!$A:$G,7,0),0) -> 0 | AO48: =IF(AO$3<>"",AO$3*VLOOKUP(AO$2,'Technische Daten'!$A:$G,7,0),0) -> 0 | AP48: =IF(AP$3<>"",AP$3*VLOOKUP(AP$2,'Technische Daten'!$A:$G,7,0),0) -> 0 | AQ48: =IF(AQ$3<>"",AQ$3*VLOOKUP(AQ$2,'Technische Daten'!$A:$G,7,0),0) -> 0 | AR48: =IF(AR$3<>"",AR$3*VLOOKUP(AR$2,'Technische Daten'!$A:$G,7,0),0) -> 0 | AS48: =IF(AS$3<>"",AS$3*VLOOKUP(AS$2,'Technische Daten'!$A:$G,7,0),0) -> 0 | AT48: =IF(AT$3<>"",AT$3*VLOOKUP(AT$2,'Technische Daten'!$A:$G,7,0),0) -> 0 | AU48: =IF(AU$3<>"",AU$3*VLOOKUP(AU$2,'Technische Daten'!$A:$G,7,0),0) -> 0 | AV48: =IF(AV$3<>"",AV$3*VLOOKUP(AV$2,'Technische Daten'!$A:$G,7,0),0) -> 0 | AW48: =IF(AW$3<>"",AW$3*VLOOKUP(AW$2,'Technische Daten'!$A:$G,7,0),0) -> 0 | AX48: =IF(AX$3<>"",AX$3*VLOOKUP(AX$2,'Technische Daten'!$A:$G,7,0),0) -> 0
A49: =Texte!B27 -> Konfigurationscheck | B49: =IF(AND(B47>=0, B48>=0),"OK","NOK") -> OK
A51: =Texte!B40 -> Kommunikation (Modbus TCP)
A52: =Texte!B24 -> Anzahl verbleibende Rx-PDO (Byte) | B52: =IF(SUM(C52:AX52)>0,ROUNDDOWN(SUM(C52:AX52)/8,0),ROUNDUP(SUM(C52:AX52)/8,0)) -> 0 | C52: =IF(C$3<>"",C$3*VLOOKUP(C$2,'Technische Daten'!$A:$G,6,0),0) -> 0 | D52: =IF(D$3<>"",D$3*VLOOKUP(D$2,'Technische Daten'!$A:$G,6,0),0) -> 0 | E52: =IF(E$3<>"",E$3*VLOOKUP(E$2,'Technische Daten'!$A:$G,6,0),0) -> 0 | F52: =IF(F$3<>"",F$3*VLOOKUP(F$2,'Technische Daten'!$A:$G,6,0),0) -> 0 | G52: =IF(G$3<>"",G$3*VLOOKUP(G$2,'Technische Daten'!$A:$G,6,0),0) -> 0 | H52: =IF(H$3<>"",H$3*VLOOKUP(H$2,'Technische Daten'!$A:$G,6,0),0) -> 0 | I52: =IF(I$3<>"",I$3*VLOOKUP(I$2,'Technische Daten'!$A:$G,6,0),0) -> 0 | J52: =IF(J$3<>"",J$3*VLOOKUP(J$2,'Technische Daten'!$A:$G,6,0),0) -> 0 | K52: =IF(K$3<>"",K$3*VLOOKUP(K$2,'Technische Daten'!$A:$G,6,0),0) -> 0 | L52: =IF(L$3<>"",L$3*VLOOKUP(L$2,'Technische Daten'!$A:$G,6,0),0) -> 0 | M52: =IF(M$3<>"",M$3*VLOOKUP(M$2,'Technische Daten'!$A:$G,6,0),0) -> 0 | N52: =IF(N$3<>"",N$3*VLOOKUP(N$2,'Technische Daten'!$A:$G,6,0),0) -> 0 | O52: =IF(O$3<>"",O$3*VLOOKUP(O$2,'Technische Daten'!$A:$G,6,0),0) -> 0 | P52: =IF(P$3<>"",P$3*VLOOKUP(P$2,'Technische Daten'!$A:$G,6,0),0) -> 0 | Q52: =IF(Q$3<>"",Q$3*VLOOKUP(Q$2,'Technische Daten'!$A:$G,6,0),0) -> 0 | R52: =IF(R$3<>"",R$3*VLOOKUP(R$2,'Technische Daten'!$A:$G,6,0),0) -> 0 | S52: =IF(S$3<>"",S$3*VLOOKUP(S$2,'Technische Daten'!$A:$G,6,0),0) -> 0 | T52: =IF(T$3<>"",T$3*VLOOKUP(T$2,'Technische Daten'!$A:$G,6,0),0) -> 0 | U52: =IF(U$3<>"",U$3*VLOOKUP(U$2,'Technische Daten'!$A:$G,6,0),0) -> 0 | V52: =IF(V$3<>"",V$3*VLOOKUP(V$2,'Technische Daten'!$A:$G,6,0),0) -> 0 | W52: =IF(W$3<>"",W$3*VLOOKUP(W$2,'Technische Daten'!$A:$G,6,0),0) -> 0 | X52: =IF(X$3<>"",X$3*VLOOKUP(X$2,'Technische Daten'!$A:$G,6,0),0) -> 0 | Y52: =IF(Y$3<>"",Y$3*VLOOKUP(Y$2,'Technische Daten'!$A:$G,6,0),0) -> 0 | Z52: =IF(Z$3<>"",Z$3*VLOOKUP(Z$2,'Technische Daten'!$A:$G,6,0),0) -> 0 | AA52: =IF(AA$3<>"",AA$3*VLOOKUP(AA$2,'Technische Daten'!$A:$G,6,0),0) -> 0 | AB52: =IF(AB$3<>"",AB$3*VLOOKUP(AB$2,'Technische Daten'!$A:$G,6,0),0) -> 0 | AC52: =IF(AC$3<>"",AC$3*VLOOKUP(AC$2,'Technische Daten'!$A:$G,6,0),0) -> 0 | AD52: =IF(AD$3<>"",AD$3*VLOOKUP(AD$2,'Technische Daten'!$A:$G,6,0),0) -> 0 | AE52: =IF(AE$3<>"",AE$3*VLOOKUP(AE$2,'Technische Daten'!$A:$G,6,0),0) -> 0 | AF52: =IF(AF$3<>"",AF$3*VLOOKUP(AF$2,'Technische Daten'!$A:$G,6,0),0) -> 0 | AG52: =IF(AG$3<>"",AG$3*VLOOKUP(AG$2,'Technische Daten'!$A:$G,6,0),0) -> 0 | AH52: =IF(AH$3<>"",AH$3*VLOOKUP(AH$2,'Technische Daten'!$A:$G,6,0),0) -> 0 | AI52: =IF(AI$3<>"",AI$3*VLOOKUP(AI$2,'Technische Daten'!$A:$G,6,0),0) -> 0 | AJ52: =IF(AJ$3<>"",AJ$3*VLOOKUP(AJ$2,'Technische Daten'!$A:$G,6,0),0) -> 0 | AK52: =IF(AK$3<>"",AK$3*VLOOKUP(AK$2,'Technische Daten'!$A:$G,6,0),0) -> 0 | AL52: =IF(AL$3<>"",AL$3*VLOOKUP(AL$2,'Technische Daten'!$A:$G,6,0),0) -> 0 | AM52: =IF(AM$3<>"",AM$3*VLOOKUP(AM$2,'Technische Daten'!$A:$G,6,0),0) -> 0 | AN52: =IF(AN$3<>"",AN$3*VLOOKUP(AN$2,'Technische Daten'!$A:$G,6,0),0) -> 0 | AO52: =IF(AO$3<>"",AO$3*VLOOKUP(AO$2,'Technische Daten'!$A:$G,6,0),0) -> 0 | AP52: =IF(AP$3<>"",AP$3*VLOOKUP(AP$2,'Technische Daten'!$A:$G,6,0),0) -> 0 | AQ52: =IF(AQ$3<>"",AQ$3*VLOOKUP(AQ$2,'Technische Daten'!$A:$G,6,0),0) -> 0 | AR52: =IF(AR$3<>"",AR$3*VLOOKUP(AR$2,'Technische Daten'!$A:$G,6,0),0) -> 0 | AS52: =IF(AS$3<>"",AS$3*VLOOKUP(AS$2,'Technische Daten'!$A:$G,6,0),0) -> 0 | AT52: =IF(AT$3<>"",AT$3*VLOOKUP(AT$2,'Technische Daten'!$A:$G,6,0),0) -> 0 | AU52: =IF(AU$3<>"",AU$3*VLOOKUP(AU$2,'Technische Daten'!$A:$G,6,0),0) -> 0 | AV52: =IF(AV$3<>"",AV$3*VLOOKUP(AV$2,'Technische Daten'!$A:$G,6,0),0) -> 0 | AW52: =IF(AW$3<>"",AW$3*VLOOKUP(AW$2,'Technische Daten'!$A:$G,6,0),0) -> 0 | AX52: =IF(AX$3<>"",AX$3*VLOOKUP(AX$2,'Technische Daten'!$A:$G,6,0),0) -> 0
A53: =Texte!B25 -> Anzahl verbleibende Tx-PDO (Byte) | B53: =IF(SUM(C53:AX53)>0,ROUNDDOWN(SUM(C53:AX53)/8,0),ROUNDUP(SUM(C53:AX53)/8,0)) -> 0 | C53: =IF(C$3<>"",C$3*VLOOKUP(C$2,'Technische Daten'!$A:$G,7,0),0) -> 0 | D53: =IF(D$3<>"",D$3*VLOOKUP(D$2,'Technische Daten'!$A:$G,7,0),0) -> 0 | E53: =IF(E$3<>"",E$3*VLOOKUP(E$2,'Technische Daten'!$A:$G,7,0),0) -> 0 | F53: =IF(F$3<>"",F$3*VLOOKUP(F$2,'Technische Daten'!$A:$G,7,0),0) -> 0 | G53: =IF(G$3<>"",G$3*VLOOKUP(G$2,'Technische Daten'!$A:$G,7,0),0) -> 0 | H53: =IF(H$3<>"",H$3*VLOOKUP(H$2,'Technische Daten'!$A:$G,7,0),0) -> 0 | I53: =IF(I$3<>"",I$3*VLOOKUP(I$2,'Technische Daten'!$A:$G,7,0),0) -> 0 | J53: =IF(J$3<>"",J$3*VLOOKUP(J$2,'Technische Daten'!$A:$G,7,0),0) -> 0 | K53: =IF(K$3<>"",K$3*VLOOKUP(K$2,'Technische Daten'!$A:$G,7,0),0) -> 0 | L53: =IF(L$3<>"",L$3*VLOOKUP(L$2,'Technische Daten'!$A:$G,7,0),0) -> 0 | M53: =IF(M$3<>"",M$3*VLOOKUP(M$2,'Technische Daten'!$A:$G,7,0),0) -> 0 | N53: =IF(N$3<>"",N$3*VLOOKUP(N$2,'Technische Daten'!$A:$G,7,0),0) -> 0 | O53: =IF(O$3<>"",O$3*VLOOKUP(O$2,'Technische Daten'!$A:$G,7,0),0) -> 0 | P53: =IF(P$3<>"",P$3*VLOOKUP(P$2,'Technische Daten'!$A:$G,7,0),0) -> 0 | Q53: =IF(Q$3<>"",Q$3*VLOOKUP(Q$2,'Technische Daten'!$A:$G,7,0),0) -> 0 | R53: =IF(R$3<>"",R$3*VLOOKUP(R$2,'Technische Daten'!$A:$G,7,0),0) -> 0 | S53: =IF(S$3<>"",S$3*VLOOKUP(S$2,'Technische Daten'!$A:$G,7,0),0) -> 0 | T53: =IF(T$3<>"",T$3*VLOOKUP(T$2,'Technische Daten'!$A:$G,7,0),0) -> 0 | U53: =IF(U$3<>"",U$3*VLOOKUP(U$2,'Technische Daten'!$A:$G,7,0),0) -> 0 | V53: =IF(V$3<>"",V$3*VLOOKUP(V$2,'Technische Daten'!$A:$G,7,0),0) -> 0 | W53: =IF(W$3<>"",W$3*VLOOKUP(W$2,'Technische Daten'!$A:$G,7,0),0) -> 0 | X53: =IF(X$3<>"",X$3*VLOOKUP(X$2,'Technische Daten'!$A:$G,7,0),0) -> 0 | Y53: =IF(Y$3<>"",Y$3*VLOOKUP(Y$2,'Technische Daten'!$A:$G,7,0),0) -> 0 | Z53: =IF(Z$3<>"",Z$3*VLOOKUP(Z$2,'Technische Daten'!$A:$G,7,0),0) -> 0 | AA53: =IF(AA$3<>"",AA$3*VLOOKUP(AA$2,'Technische Daten'!$A:$G,7,0),0) -> 0 | AB53: =IF(AB$3<>"",AB$3*VLOOKUP(AB$2,'Technische Daten'!$A:$G,7,0),0) -> 0 | AC53: =IF(AC$3<>"",AC$3*VLOOKUP(AC$2,'Technische Daten'!$A:$G,7,0),0) -> 0 | AD53: =IF(AD$3<>"",AD$3*VLOOKUP(AD$2,'Technische Daten'!$A:$G,7,0),0) -> 0 | AE53: =IF(AE$3<>"",AE$3*VLOOKUP(AE$2,'Technische Daten'!$A:$G,7,0),0) -> 0 | AF53: =IF(AF$3<>"",AF$3*VLOOKUP(AF$2,'Technische Daten'!$A:$G,7,0),0) -> 0 | AG53: =IF(AG$3<>"",AG$3*VLOOKUP(AG$2,'Technische Daten'!$A:$G,7,0),0) -> 0 | AH53: =IF(AH$3<>"",AH$3*VLOOKUP(AH$2,'Technische Daten'!$A:$G,7,0),0) -> 0 | AI53: =IF(AI$3<>"",AI$3*VLOOKUP(AI$2,'Technische Daten'!$A:$G,7,0),0) -> 0 | AJ53: =IF(AJ$3<>"",AJ$3*VLOOKUP(AJ$2,'Technische Daten'!$A:$G,7,0),0) -> 0 | AK53: =IF(AK$3<>"",AK$3*VLOOKUP(AK$2,'Technische Daten'!$A:$G,7,0),0) -> 0 | AL53: =IF(AL$3<>"",AL$3*VLOOKUP(AL$2,'Technische Daten'!$A:$G,7,0),0) -> 0 | AM53: =IF(AM$3<>"",AM$3*VLOOKUP(AM$2,'Technische Daten'!$A:$G,7,0),0) -> 0 | AN53: =IF(AN$3<>"",AN$3*VLOOKUP(AN$2,'Technische Daten'!$A:$G,7,0),0) -> 0 | AO53: =IF(AO$3<>"",AO$3*VLOOKUP(AO$2,'Technische Daten'!$A:$G,7,0),0) -> 0 | AP53: =IF(AP$3<>"",AP$3*VLOOKUP(AP$2,'Technische Daten'!$A:$G,7,0),0) -> 0 | AQ53: =IF(AQ$3<>"",AQ$3*VLOOKUP(AQ$2,'Technische Daten'!$A:$G,7,0),0) -> 0 | AR53: =IF(AR$3<>"",AR$3*VLOOKUP(AR$2,'Technische Daten'!$A:$G,7,0),0) -> 0 | AS53: =IF(AS$3<>"",AS$3*VLOOKUP(AS$2,'Technische Daten'!$A:$G,7,0),0) -> 0 | AT53: =IF(AT$3<>"",AT$3*VLOOKUP(AT$2,'Technische Daten'!$A:$G,7,0),0) -> 0 | AU53: =IF(AU$3<>"",AU$3*VLOOKUP(AU$2,'Technische Daten'!$A:$G,7,0),0) -> 0 | AV53: =IF(AV$3<>"",AV$3*VLOOKUP(AV$2,'Technische Daten'!$A:$G,7,0),0) -> 0 | AW53: =IF(AW$3<>"",AW$3*VLOOKUP(AW$2,'Technische Daten'!$A:$G,7,0),0) -> 0 | AX53: =IF(AX$3<>"",AX$3*VLOOKUP(AX$2,'Technische Daten'!$A:$G,7,0),0) -> 0
A54: =Texte!B27 -> Konfigurationscheck | B54: =IF(AND(B52>=0, B53>=0),"OK","NOK") -> OK
A56: =Texte!B41 -> Kommunikation (Rückwandbus)
A57: =Texte!B42 -> Auslastung Rückwandbus | B57: =B104 -> 0.2043
A58: =Texte!B27 -> Konfigurationscheck | B58: =IF(B57<= 100%,"OK","NOK") -> OK
A60: =Texte!B33 -> Übersicht
A61: =Texte!B34 -> Gesamtanzahl Module (ohne Versorgung) | B61: =SUM(J3:AR3) -> 0
A62: =Texte!B35 -> Gesamtanzahl digitale Eingänge | B62: =SUM(C62:AX62) -> 0 | C62: =IF(C$3<>"",C$3*VLOOKUP(C$2,'Technische Daten'!$A:$L,9,0),0) -> 0 | D62: =IF(D$3<>"",D$3*VLOOKUP(D$2,'Technische Daten'!$A:$L,9,0),0) -> 0 | E62: =IF(E$3<>"",E$3*VLOOKUP(E$2,'Technische Daten'!$A:$L,9,0),0) -> 0 | F62: =IF(F$3<>"",F$3*VLOOKUP(F$2,'Technische Daten'!$A:$L,9,0),0) -> 0 | G62: =IF(G$3<>"",G$3*VLOOKUP(G$2,'Technische Daten'!$A:$L,9,0),0) -> 0 | H62: =IF(H$3<>"",H$3*VLOOKUP(H$2,'Technische Daten'!$A:$L,9,0),0) -> 0 | I62: =IF(I$3<>"",I$3*VLOOKUP(I$2,'Technische Daten'!$A:$L,9,0),0) -> 0 | J62: =IF(J$3<>"",J$3*VLOOKUP(J$2,'Technische Daten'!$A:$L,9,0),0) -> 0 | K62: =IF(K$3<>"",K$3*VLOOKUP(K$2,'Technische Daten'!$A:$L,9,0),0) -> 0 | L62: =IF(L$3<>"",L$3*VLOOKUP(L$2,'Technische Daten'!$A:$L,9,0),0) -> 0 | M62: =IF(M$3<>"",M$3*VLOOKUP(M$2,'Technische Daten'!$A:$L,9,0),0) -> 0 | N62: =IF(N$3<>"",N$3*VLOOKUP(N$2,'Technische Daten'!$A:$L,9,0),0) -> 0 | O62: =IF(O$3<>"",O$3*VLOOKUP(O$2,'Technische Daten'!$A:$L,9,0),0) -> 0 | P62: =IF(P$3<>"",P$3*VLOOKUP(P$2,'Technische Daten'!$A:$L,9,0),0) -> 0 | Q62: =IF(Q$3<>"",Q$3*VLOOKUP(Q$2,'Technische Daten'!$A:$L,9,0),0) -> 0 | R62: =IF(R$3<>"",R$3*VLOOKUP(R$2,'Technische Daten'!$A:$L,9,0),0) -> 0 | S62: =IF(S$3<>"",S$3*VLOOKUP(S$2,'Technische Daten'!$A:$L,9,0),0) -> 0 | T62: =IF(T$3<>"",T$3*VLOOKUP(T$2,'Technische Daten'!$A:$L,9,0),0) -> 0 | U62: =IF(U$3<>"",U$3*VLOOKUP(U$2,'Technische Daten'!$A:$L,9,0),0) -> 0 | V62: =IF(V$3<>"",V$3*VLOOKUP(V$2,'Technische Daten'!$A:$L,9,0),0) -> 0 | W62: =IF(W$3<>"",W$3*VLOOKUP(W$2,'Technische Daten'!$A:$L,9,0),0) -> 0 | X62: =IF(X$3<>"",X$3*VLOOKUP(X$2,'Technische Daten'!$A:$L,9,0),0) -> 0 | Y62: =IF(Y$3<>"",Y$3*VLOOKUP(Y$2,'Technische Daten'!$A:$L,9,0),0) -> 0 | Z62: =IF(Z$3<>"",Z$3*VLOOKUP(Z$2,'Technische Daten'!$A:$L,9,0),0) -> 0 | AA62: =IF(AA$3<>"",AA$3*VLOOKUP(AA$2,'Technische Daten'!$A:$L,9,0),0) -> 0 | AB62: =IF(AB$3<>"",AB$3*VLOOKUP(AB$2,'Technische Daten'!$A:$L,9,0),0) -> 0 | AC62: =IF(AC$3<>"",AC$3*VLOOKUP(AC$2,'Technische Daten'!$A:$L,9,0),0) -> 0 | AD62: =IF(AD$3<>"",AD$3*VLOOKUP(AD$2,'Technische Daten'!$A:$L,9,0),0) -> 0 | AE62: =IF(AE$3<>"",AE$3*VLOOKUP(AE$2,'Technische Daten'!$A:$L,9,0),0) -> 0 | AF62: =IF(AF$3<>"",AF$3*VLOOKUP(AF$2,'Technische Daten'!$A:$L,9,0),0) -> 0 | AG62: =IF(AG$3<>"",AG$3*VLOOKUP(AG$2,'Technische Daten'!$A:$L,9,0),0) -> 0 | AH62: =IF(AH$3<>"",AH$3*VLOOKUP(AH$2,'Technische Daten'!$A:$L,9,0),0) -> 0 | AI62: =IF(AI$3<>"",AI$3*VLOOKUP(AI$2,'Technische Daten'!$A:$L,9,0),0) -> 0 | AJ62: =IF(AJ$3<>"",AJ$3*VLOOKUP(AJ$2,'Technische Daten'!$A:$L,9,0),0) -> 0 | AK62: =IF(AK$3<>"",AK$3*VLOOKUP(AK$2,'Technische Daten'!$A:$L,9,0),0) -> 0 | AL62: =IF(AL$3<>"",AL$3*VLOOKUP(AL$2,'Technische Daten'!$A:$L,9,0),0) -> 0 | AM62: =IF(AM$3<>"",AM$3*VLOOKUP(AM$2,'Technische Daten'!$A:$L,9,0),0) -> 0 | AN62: =IF(AN$3<>"",AN$3*VLOOKUP(AN$2,'Technische Daten'!$A:$L,9,0),0) -> 0 | AO62: =IF(AO$3<>"",AO$3*VLOOKUP(AO$2,'Technische Daten'!$A:$L,9,0),0) -> 0 | AP62: =IF(AP$3<>"",AP$3*VLOOKUP(AP$2,'Technische Daten'!$A:$L,9,0),0) -> 0 | AQ62: =IF(AQ$3<>"",AQ$3*VLOOKUP(AQ$2,'Technische Daten'!$A:$L,9,0),0) -> 0 | AR62: =IF(AR$3<>"",AR$3*VLOOKUP(AR$2,'Technische Daten'!$A:$L,9,0),0) -> 0 | AS62: =IF(AS$3<>"",AS$3*VLOOKUP(AS$2,'Technische Daten'!$A:$L,9,0),0) -> 0 | AT62: =IF(AT$3<>"",AT$3*VLOOKUP(AT$2,'Technische Daten'!$A:$L,9,0),0) -> 0 | AU62: =IF(AU$3<>"",AU$3*VLOOKUP(AU$2,'Technische Daten'!$A:$L,9,0),0) -> 0 | AV62: =IF(AV$3<>"",AV$3*VLOOKUP(AV$2,'Technische Daten'!$A:$L,9,0),0) -> 0 | AW62: =IF(AW$3<>"",AW$3*VLOOKUP(AW$2,'Technische Daten'!$A:$L,9,0),0) -> 0 | AX62: =IF(AX$3<>"",AX$3*VLOOKUP(AX$2,'Technische Daten'!$A:$L,9,0),0) -> 0
A63: =Texte!B36 -> Gesamtanzahl digitale Ausgänge | B63: =SUM(C63:AX63) -> 0 | C63: =IF(C$3<>"",C$3*VLOOKUP(C$2,'Technische Daten'!$A:$L,10,0),0) -> 0 | D63: =IF(D$3<>"",D$3*VLOOKUP(D$2,'Technische Daten'!$A:$L,10,0),0) -> 0 | E63: =IF(E$3<>"",E$3*VLOOKUP(E$2,'Technische Daten'!$A:$L,10,0),0) -> 0 | F63: =IF(F$3<>"",F$3*VLOOKUP(F$2,'Technische Daten'!$A:$L,10,0),0) -> 0 | G63: =IF(G$3<>"",G$3*VLOOKUP(G$2,'Technische Daten'!$A:$L,10,0),0) -> 0 | H63: =IF(H$3<>"",H$3*VLOOKUP(H$2,'Technische Daten'!$A:$L,10,0),0) -> 0 | I63: =IF(I$3<>"",I$3*VLOOKUP(I$2,'Technische Daten'!$A:$L,10,0),0) -> 0 | J63: =IF(J$3<>"",J$3*VLOOKUP(J$2,'Technische Daten'!$A:$L,10,0),0) -> 0 | K63: =IF(K$3<>"",K$3*VLOOKUP(K$2,'Technische Daten'!$A:$L,10,0),0) -> 0 | L63: =IF(L$3<>"",L$3*VLOOKUP(L$2,'Technische Daten'!$A:$L,10,0),0) -> 0 | M63: =IF(M$3<>"",M$3*VLOOKUP(M$2,'Technische Daten'!$A:$L,10,0),0) -> 0 | N63: =IF(N$3<>"",N$3*VLOOKUP(N$2,'Technische Daten'!$A:$L,10,0),0) -> 0 | O63: =IF(O$3<>"",O$3*VLOOKUP(O$2,'Technische Daten'!$A:$L,10,0),0) -> 0 | P63: =IF(P$3<>"",P$3*VLOOKUP(P$2,'Technische Daten'!$A:$L,10,0),0) -> 0 | Q63: =IF(Q$3<>"",Q$3*VLOOKUP(Q$2,'Technische Daten'!$A:$L,10,0),0) -> 0 | R63: =IF(R$3<>"",R$3*VLOOKUP(R$2,'Technische Daten'!$A:$L,10,0),0) -> 0 | S63: =IF(S$3<>"",S$3*VLOOKUP(S$2,'Technische Daten'!$A:$L,10,0),0) -> 0 | T63: =IF(T$3<>"",T$3*VLOOKUP(T$2,'Technische Daten'!$A:$L,10,0),0) -> 0 | U63: =IF(U$3<>"",U$3*VLOOKUP(U$2,'Technische Daten'!$A:$L,10,0),0) -> 0 | V63: =IF(V$3<>"",V$3*VLOOKUP(V$2,'Technische Daten'!$A:$L,10,0),0) -> 0 | W63: =IF(W$3<>"",W$3*VLOOKUP(W$2,'Technische Daten'!$A:$L,10,0),0) -> 0 | X63: =IF(X$3<>"",X$3*VLOOKUP(X$2,'Technische Daten'!$A:$L,10,0),0) -> 0 | Y63: =IF(Y$3<>"",Y$3*VLOOKUP(Y$2,'Technische Daten'!$A:$L,10,0),0) -> 0 | Z63: =IF(Z$3<>"",Z$3*VLOOKUP(Z$2,'Technische Daten'!$A:$L,10,0),0) -> 0 | AA63: =IF(AA$3<>"",AA$3*VLOOKUP(AA$2,'Technische Daten'!$A:$L,10,0),0) -> 0 | AB63: =IF(AB$3<>"",AB$3*VLOOKUP(AB$2,'Technische Daten'!$A:$L,10,0),0) -> 0 | AC63: =IF(AC$3<>"",AC$3*VLOOKUP(AC$2,'Technische Daten'!$A:$L,10,0),0) -> 0 | AD63: =IF(AD$3<>"",AD$3*VLOOKUP(AD$2,'Technische Daten'!$A:$L,10,0),0) -> 0 | AE63: =IF(AE$3<>"",AE$3*VLOOKUP(AE$2,'Technische Daten'!$A:$L,10,0),0) -> 0 | AF63: =IF(AF$3<>"",AF$3*VLOOKUP(AF$2,'Technische Daten'!$A:$L,10,0),0) -> 0 | AG63: =IF(AG$3<>"",AG$3*VLOOKUP(AG$2,'Technische Daten'!$A:$L,10,0),0) -> 0 | AH63: =IF(AH$3<>"",AH$3*VLOOKUP(AH$2,'Technische Daten'!$A:$L,10,0),0) -> 0 | AI63: =IF(AI$3<>"",AI$3*VLOOKUP(AI$2,'Technische Daten'!$A:$L,10,0),0) -> 0 | AJ63: =IF(AJ$3<>"",AJ$3*VLOOKUP(AJ$2,'Technische Daten'!$A:$L,10,0),0) -> 0 | AK63: =IF(AK$3<>"",AK$3*VLOOKUP(AK$2,'Technische Daten'!$A:$L,10,0),0) -> 0 | AL63: =IF(AL$3<>"",AL$3*VLOOKUP(AL$2,'Technische Daten'!$A:$L,10,0),0) -> 0 | AM63: =IF(AM$3<>"",AM$3*VLOOKUP(AM$2,'Technische Daten'!$A:$L,10,0),0) -> 0 | AN63: =IF(AN$3<>"",AN$3*VLOOKUP(AN$2,'Technische Daten'!$A:$L,10,0),0) -> 0 | AO63: =IF(AO$3<>"",AO$3*VLOOKUP(AO$2,'Technische Daten'!$A:$L,10,0),0) -> 0 | AP63: =IF(AP$3<>"",AP$3*VLOOKUP(AP$2,'Technische Daten'!$A:$L,10,0),0) -> 0 | AQ63: =IF(AQ$3<>"",AQ$3*VLOOKUP(AQ$2,'Technische Daten'!$A:$L,10,0),0) -> 0 | AR63: =IF(AR$3<>"",AR$3*VLOOKUP(AR$2,'Technische Daten'!$A:$L,10,0),0) -> 0 | AS63: =IF(AS$3<>"",AS$3*VLOOKUP(AS$2,'Technische Daten'!$A:$L,10,0),0) -> 0 | AT63: =IF(AT$3<>"",AT$3*VLOOKUP(AT$2,'Technische Daten'!$A:$L,10,0),0) -> 0 | AU63: =IF(AU$3<>"",AU$3*VLOOKUP(AU$2,'Technische Daten'!$A:$L,10,0),0) -> 0 | AV63: =IF(AV$3<>"",AV$3*VLOOKUP(AV$2,'Technische Daten'!$A:$L,10,0),0) -> 0 | AW63: =IF(AW$3<>"",AW$3*VLOOKUP(AW$2,'Technische Daten'!$A:$L,10,0),0) -> 0 | AX63: =IF(AX$3<>"",AX$3*VLOOKUP(AX$2,'Technische Daten'!$A:$L,10,0),0) -> 0
A64: =Texte!B37 -> Gesamtanzahl analoge Eingänge | B64: =SUM(C64:AX64) -> 0 | C64: =IF(C$3<>"",C$3*VLOOKUP(C$2,'Technische Daten'!$A:$L,11,0),0) -> 0 | D64: =IF(D$3<>"",D$3*VLOOKUP(D$2,'Technische Daten'!$A:$L,11,0),0) -> 0 | E64: =IF(E$3<>"",E$3*VLOOKUP(E$2,'Technische Daten'!$A:$L,11,0),0) -> 0 | F64: =IF(F$3<>"",F$3*VLOOKUP(F$2,'Technische Daten'!$A:$L,11,0),0) -> 0 | G64: =IF(G$3<>"",G$3*VLOOKUP(G$2,'Technische Daten'!$A:$L,11,0),0) -> 0 | H64: =IF(H$3<>"",H$3*VLOOKUP(H$2,'Technische Daten'!$A:$L,11,0),0) -> 0 | I64: =IF(I$3<>"",I$3*VLOOKUP(I$2,'Technische Daten'!$A:$L,11,0),0) -> 0 | J64: =IF(J$3<>"",J$3*VLOOKUP(J$2,'Technische Daten'!$A:$L,11,0),0) -> 0 | K64: =IF(K$3<>"",K$3*VLOOKUP(K$2,'Technische Daten'!$A:$L,11,0),0) -> 0 | L64: =IF(L$3<>"",L$3*VLOOKUP(L$2,'Technische Daten'!$A:$L,11,0),0) -> 0 | M64: =IF(M$3<>"",M$3*VLOOKUP(M$2,'Technische Daten'!$A:$L,11,0),0) -> 0 | N64: =IF(N$3<>"",N$3*VLOOKUP(N$2,'Technische Daten'!$A:$L,11,0),0) -> 0 | O64: =IF(O$3<>"",O$3*VLOOKUP(O$2,'Technische Daten'!$A:$L,11,0),0) -> 0 | P64: =IF(P$3<>"",P$3*VLOOKUP(P$2,'Technische Daten'!$A:$L,11,0),0) -> 0 | Q64: =IF(Q$3<>"",Q$3*VLOOKUP(Q$2,'Technische Daten'!$A:$L,11,0),0) -> 0 | R64: =IF(R$3<>"",R$3*VLOOKUP(R$2,'Technische Daten'!$A:$L,11,0),0) -> 0 | S64: =IF(S$3<>"",S$3*VLOOKUP(S$2,'Technische Daten'!$A:$L,11,0),0) -> 0 | T64: =IF(T$3<>"",T$3*VLOOKUP(T$2,'Technische Daten'!$A:$L,11,0),0) -> 0 | U64: =IF(U$3<>"",U$3*VLOOKUP(U$2,'Technische Daten'!$A:$L,11,0),0) -> 0 | V64: =IF(V$3<>"",V$3*VLOOKUP(V$2,'Technische Daten'!$A:$L,11,0),0) -> 0 | W64: =IF(W$3<>"",W$3*VLOOKUP(W$2,'Technische Daten'!$A:$L,11,0),0) -> 0 | X64: =IF(X$3<>"",X$3*VLOOKUP(X$2,'Technische Daten'!$A:$L,11,0),0) -> 0 | Y64: =IF(Y$3<>"",Y$3*VLOOKUP(Y$2,'Technische Daten'!$A:$L,11,0),0) -> 0 | Z64: =IF(Z$3<>"",Z$3*VLOOKUP(Z$2,'Technische Daten'!$A:$L,11,0),0) -> 0 | AA64: =IF(AA$3<>"",AA$3*VLOOKUP(AA$2,'Technische Daten'!$A:$L,11,0),0) -> 0 | AB64: =IF(AB$3<>"",AB$3*VLOOKUP(AB$2,'Technische Daten'!$A:$L,11,0),0) -> 0 | AC64: =IF(AC$3<>"",AC$3*VLOOKUP(AC$2,'Technische Daten'!$A:$L,11,0),0) -> 0 | AD64: =IF(AD$3<>"",AD$3*VLOOKUP(AD$2,'Technische Daten'!$A:$L,11,0),0) -> 0 | AE64: =IF(AE$3<>"",AE$3*VLOOKUP(AE$2,'Technische Daten'!$A:$L,11,0),0) -> 0 | AF64: =IF(AF$3<>"",AF$3*VLOOKUP(AF$2,'Technische Daten'!$A:$L,11,0),0) -> 0 | AG64: =IF(AG$3<>"",AG$3*VLOOKUP(AG$2,'Technische Daten'!$A:$L,11,0),0) -> 0 | AH64: =IF(AH$3<>"",AH$3*VLOOKUP(AH$2,'Technische Daten'!$A:$L,11,0),0) -> 0 | AI64: =IF(AI$3<>"",AI$3*VLOOKUP(AI$2,'Technische Daten'!$A:$L,11,0),0) -> 0 | AJ64: =IF(AJ$3<>"",AJ$3*VLOOKUP(AJ$2,'Technische Daten'!$A:$L,11,0),0) -> 0 | AK64: =IF(AK$3<>"",AK$3*VLOOKUP(AK$2,'Technische Daten'!$A:$L,11,0),0) -> 0 | AL64: =IF(AL$3<>"",AL$3*VLOOKUP(AL$2,'Technische Daten'!$A:$L,11,0),0) -> 0 | AM64: =IF(AM$3<>"",AM$3*VLOOKUP(AM$2,'Technische Daten'!$A:$L,11,0),0) -> 0 | AN64: =IF(AN$3<>"",AN$3*VLOOKUP(AN$2,'Technische Daten'!$A:$L,11,0),0) -> 0 | AO64: =IF(AO$3<>"",AO$3*VLOOKUP(AO$2,'Technische Daten'!$A:$L,11,0),0) -> 0 | AP64: =IF(AP$3<>"",AP$3*VLOOKUP(AP$2,'Technische Daten'!$A:$L,11,0),0) -> 0 | AQ64: =IF(AQ$3<>"",AQ$3*VLOOKUP(AQ$2,'Technische Daten'!$A:$L,11,0),0) -> 0 | AR64: =IF(AR$3<>"",AR$3*VLOOKUP(AR$2,'Technische Daten'!$A:$L,11,0),0) -> 0 | AS64: =IF(AS$3<>"",AS$3*VLOOKUP(AS$2,'Technische Daten'!$A:$L,11,0),0) -> 0 | AT64: =IF(AT$3<>"",AT$3*VLOOKUP(AT$2,'Technische Daten'!$A:$L,11,0),0) -> 0 | AU64: =IF(AU$3<>"",AU$3*VLOOKUP(AU$2,'Technische Daten'!$A:$L,11,0),0) -> 0 | AV64: =IF(AV$3<>"",AV$3*VLOOKUP(AV$2,'Technische Daten'!$A:$L,11,0),0) -> 0 | AW64: =IF(AW$3<>"",AW$3*VLOOKUP(AW$2,'Technische Daten'!$A:$L,11,0),0) -> 0 | AX64: =IF(AX$3<>"",AX$3*VLOOKUP(AX$2,'Technische Daten'!$A:$L,11,0),0) -> 0
A65: =Texte!B38 -> Gesamtanzahl analoge Ausgänge | B65: =SUM(C65:AX65) -> 0 | C65: =IF(C$3<>"",C$3*VLOOKUP(C$2,'Technische Daten'!$A:$L,12,0),0) -> 0 | D65: =IF(D$3<>"",D$3*VLOOKUP(D$2,'Technische Daten'!$A:$L,12,0),0) -> 0 | E65: =IF(E$3<>"",E$3*VLOOKUP(E$2,'Technische Daten'!$A:$L,12,0),0) -> 0 | F65: =IF(F$3<>"",F$3*VLOOKUP(F$2,'Technische Daten'!$A:$L,12,0),0) -> 0 | G65: =IF(G$3<>"",G$3*VLOOKUP(G$2,'Technische Daten'!$A:$L,12,0),0) -> 0 | H65: =IF(H$3<>"",H$3*VLOOKUP(H$2,'Technische Daten'!$A:$L,12,0),0) -> 0 | I65: =IF(I$3<>"",I$3*VLOOKUP(I$2,'Technische Daten'!$A:$L,12,0),0) -> 0 | J65: =IF(J$3<>"",J$3*VLOOKUP(J$2,'Technische Daten'!$A:$L,12,0),0) -> 0 | K65: =IF(K$3<>"",K$3*VLOOKUP(K$2,'Technische Daten'!$A:$L,12,0),0) -> 0 | L65: =IF(L$3<>"",L$3*VLOOKUP(L$2,'Technische Daten'!$A:$L,12,0),0) -> 0 | M65: =IF(M$3<>"",M$3*VLOOKUP(M$2,'Technische Daten'!$A:$L,12,0),0) -> 0 | N65: =IF(N$3<>"",N$3*VLOOKUP(N$2,'Technische Daten'!$A:$L,12,0),0) -> 0 | O65: =IF(O$3<>"",O$3*VLOOKUP(O$2,'Technische Daten'!$A:$L,12,0),0) -> 0 | P65: =IF(P$3<>"",P$3*VLOOKUP(P$2,'Technische Daten'!$A:$L,12,0),0) -> 0 | Q65: =IF(Q$3<>"",Q$3*VLOOKUP(Q$2,'Technische Daten'!$A:$L,12,0),0) -> 0 | R65: =IF(R$3<>"",R$3*VLOOKUP(R$2,'Technische Daten'!$A:$L,12,0),0) -> 0 | S65: =IF(S$3<>"",S$3*VLOOKUP(S$2,'Technische Daten'!$A:$L,12,0),0) -> 0 | T65: =IF(T$3<>"",T$3*VLOOKUP(T$2,'Technische Daten'!$A:$L,12,0),0) -> 0 | U65: =IF(U$3<>"",U$3*VLOOKUP(U$2,'Technische Daten'!$A:$L,12,0),0) -> 0 | V65: =IF(V$3<>"",V$3*VLOOKUP(V$2,'Technische Daten'!$A:$L,12,0),0) -> 0 | W65: =IF(W$3<>"",W$3*VLOOKUP(W$2,'Technische Daten'!$A:$L,12,0),0) -> 0 | X65: =IF(X$3<>"",X$3*VLOOKUP(X$2,'Technische Daten'!$A:$L,12,0),0) -> 0 | Y65: =IF(Y$3<>"",Y$3*VLOOKUP(Y$2,'Technische Daten'!$A:$L,12,0),0) -> 0 | Z65: =IF(Z$3<>"",Z$3*VLOOKUP(Z$2,'Technische Daten'!$A:$L,12,0),0) -> 0 | AA65: =IF(AA$3<>"",AA$3*VLOOKUP(AA$2,'Technische Daten'!$A:$L,12,0),0) -> 0 | AB65: =IF(AB$3<>"",AB$3*VLOOKUP(AB$2,'Technische Daten'!$A:$L,12,0),0) -> 0 | AC65: =IF(AC$3<>"",AC$3*VLOOKUP(AC$2,'Technische Daten'!$A:$L,12,0),0) -> 0 | AD65: =IF(AD$3<>"",AD$3*VLOOKUP(AD$2,'Technische Daten'!$A:$L,12,0),0) -> 0 | AE65: =IF(AE$3<>"",AE$3*VLOOKUP(AE$2,'Technische Daten'!$A:$L,12,0),0) -> 0 | AF65: =IF(AF$3<>"",AF$3*VLOOKUP(AF$2,'Technische Daten'!$A:$L,12,0),0) -> 0 | AG65: =IF(AG$3<>"",AG$3*VLOOKUP(AG$2,'Technische Daten'!$A:$L,12,0),0) -> 0 | AH65: =IF(AH$3<>"",AH$3*VLOOKUP(AH$2,'Technische Daten'!$A:$L,12,0),0) -> 0 | AI65: =IF(AI$3<>"",AI$3*VLOOKUP(AI$2,'Technische Daten'!$A:$L,12,0),0) -> 0 | AJ65: =IF(AJ$3<>"",AJ$3*VLOOKUP(AJ$2,'Technische Daten'!$A:$L,12,0),0) -> 0 | AK65: =IF(AK$3<>"",AK$3*VLOOKUP(AK$2,'Technische Daten'!$A:$L,12,0),0) -> 0 | AL65: =IF(AL$3<>"",AL$3*VLOOKUP(AL$2,'Technische Daten'!$A:$L,12,0),0) -> 0 | AM65: =IF(AM$3<>"",AM$3*VLOOKUP(AM$2,'Technische Daten'!$A:$L,12,0),0) -> 0 | AN65: =IF(AN$3<>"",AN$3*VLOOKUP(AN$2,'Technische Daten'!$A:$L,12,0),0) -> 0 | AO65: =IF(AO$3<>"",AO$3*VLOOKUP(AO$2,'Technische Daten'!$A:$L,12,0),0) -> 0 | AP65: =IF(AP$3<>"",AP$3*VLOOKUP(AP$2,'Technische Daten'!$A:$L,12,0),0) -> 0 | AQ65: =IF(AQ$3<>"",AQ$3*VLOOKUP(AQ$2,'Technische Daten'!$A:$L,12,0),0) -> 0 | AR65: =IF(AR$3<>"",AR$3*VLOOKUP(AR$2,'Technische Daten'!$A:$L,12,0),0) -> 0 | AS65: =IF(AS$3<>"",AS$3*VLOOKUP(AS$2,'Technische Daten'!$A:$L,12,0),0) -> 0 | AT65: =IF(AT$3<>"",AT$3*VLOOKUP(AT$2,'Technische Daten'!$A:$L,12,0),0) -> 0 | AU65: =IF(AU$3<>"",AU$3*VLOOKUP(AU$2,'Technische Daten'!$A:$L,12,0),0) -> 0 | AV65: =IF(AV$3<>"",AV$3*VLOOKUP(AV$2,'Technische Daten'!$A:$L,12,0),0) -> 0 | AW65: =IF(AW$3<>"",AW$3*VLOOKUP(AW$2,'Technische Daten'!$A:$L,12,0),0) -> 0 | AX65: =IF(AX$3<>"",AX$3*VLOOKUP(AX$2,'Technische Daten'!$A:$L,12,0),0) -> 0
A67: =Texte!B112 -> Mechanische Abmaße
A68: =Texte!B113 -> Breite (mm) | B68: =SUM(C68:AX68) -> 0 | C68: =IF(C$3<>"",C$3*VLOOKUP(C$2,'Technische Daten'!$A:$Z,26,0),0) -> 0 | D68: =IF(D$3<>"",D$3*VLOOKUP(D$2,'Technische Daten'!$A:$Z,26,0),0) -> 0 | E68: =IF(E$3<>"",E$3*VLOOKUP(E$2,'Technische Daten'!$A:$Z,26,0),0) -> 0 | F68: =IF(F$3<>"",F$3*VLOOKUP(F$2,'Technische Daten'!$A:$Z,26,0),0) -> 0 | G68: =IF(G$3<>"",G$3*VLOOKUP(G$2,'Technische Daten'!$A:$Z,26,0),0) -> 0 | H68: =IF(H$3<>"",H$3*VLOOKUP(H$2,'Technische Daten'!$A:$Z,26,0),0) -> 0 | I68: =IF(I$3<>"",I$3*VLOOKUP(I$2,'Technische Daten'!$A:$Z,26,0),0) -> 0 | J68: =IF(J$3<>"",J$3*VLOOKUP(J$2,'Technische Daten'!$A:$Z,26,0),0) -> 0 | K68: =IF(K$3<>"",K$3*VLOOKUP(K$2,'Technische Daten'!$A:$Z,26,0),0) -> 0 | L68: =IF(L$3<>"",L$3*VLOOKUP(L$2,'Technische Daten'!$A:$Z,26,0),0) -> 0 | M68: =IF(M$3<>"",M$3*VLOOKUP(M$2,'Technische Daten'!$A:$Z,26,0),0) -> 0 | N68: =IF(N$3<>"",N$3*VLOOKUP(N$2,'Technische Daten'!$A:$Z,26,0),0) -> 0 | O68: =IF(O$3<>"",O$3*VLOOKUP(O$2,'Technische Daten'!$A:$Z,26,0),0) -> 0 | P68: =IF(P$3<>"",P$3*VLOOKUP(P$2,'Technische Daten'!$A:$Z,26,0),0) -> 0 | Q68: =IF(Q$3<>"",Q$3*VLOOKUP(Q$2,'Technische Daten'!$A:$Z,26,0),0) -> 0 | R68: =IF(R$3<>"",R$3*VLOOKUP(R$2,'Technische Daten'!$A:$Z,26,0),0) -> 0 | S68: =IF(S$3<>"",S$3*VLOOKUP(S$2,'Technische Daten'!$A:$Z,26,0),0) -> 0 | T68: =IF(T$3<>"",T$3*VLOOKUP(T$2,'Technische Daten'!$A:$Z,26,0),0) -> 0 | U68: =IF(U$3<>"",U$3*VLOOKUP(U$2,'Technische Daten'!$A:$Z,26,0),0) -> 0 | V68: =IF(V$3<>"",V$3*VLOOKUP(V$2,'Technische Daten'!$A:$Z,26,0),0) -> 0 | W68: =IF(W$3<>"",W$3*VLOOKUP(W$2,'Technische Daten'!$A:$Z,26,0),0) -> 0 | X68: =IF(X$3<>"",X$3*VLOOKUP(X$2,'Technische Daten'!$A:$Z,26,0),0) -> 0 | Y68: =IF(Y$3<>"",Y$3*VLOOKUP(Y$2,'Technische Daten'!$A:$Z,26,0),0) -> 0 | Z68: =IF(Z$3<>"",Z$3*VLOOKUP(Z$2,'Technische Daten'!$A:$Z,26,0),0) -> 0 | AA68: =IF(AA$3<>"",AA$3*VLOOKUP(AA$2,'Technische Daten'!$A:$Z,26,0),0) -> 0 | AB68: =IF(AB$3<>"",AB$3*VLOOKUP(AB$2,'Technische Daten'!$A:$Z,26,0),0) -> 0 | AC68: =IF(AC$3<>"",AC$3*VLOOKUP(AC$2,'Technische Daten'!$A:$Z,26,0),0) -> 0 | AD68: =IF(AD$3<>"",AD$3*VLOOKUP(AD$2,'Technische Daten'!$A:$Z,26,0),0) -> 0 | AE68: =IF(AE$3<>"",AE$3*VLOOKUP(AE$2,'Technische Daten'!$A:$Z,26,0),0) -> 0 | AF68: =IF(AF$3<>"",AF$3*VLOOKUP(AF$2,'Technische Daten'!$A:$Z,26,0),0) -> 0 | AG68: =IF(AG$3<>"",AG$3*VLOOKUP(AG$2,'Technische Daten'!$A:$Z,26,0),0) -> 0 | AH68: =IF(AH$3<>"",AH$3*VLOOKUP(AH$2,'Technische Daten'!$A:$Z,26,0),0) -> 0 | AI68: =IF(AI$3<>"",AI$3*VLOOKUP(AI$2,'Technische Daten'!$A:$Z,26,0),0) -> 0 | AJ68: =IF(AJ$3<>"",AJ$3*VLOOKUP(AJ$2,'Technische Daten'!$A:$Z,26,0),0) -> 0 | AK68: =IF(AK$3<>"",AK$3*VLOOKUP(AK$2,'Technische Daten'!$A:$Z,26,0),0) -> 0 | AL68: =IF(AL$3<>"",AL$3*VLOOKUP(AL$2,'Technische Daten'!$A:$Z,26,0),0) -> 0 | AM68: =IF(AM$3<>"",AM$3*VLOOKUP(AM$2,'Technische Daten'!$A:$Z,26,0),0) -> 0 | AN68: =IF(AN$3<>"",AN$3*VLOOKUP(AN$2,'Technische Daten'!$A:$Z,26,0),0) -> 0 | AO68: =IF(AO$3<>"",AO$3*VLOOKUP(AO$2,'Technische Daten'!$A:$Z,26,0),0) -> 0 | AP68: =IF(AP$3<>"",AP$3*VLOOKUP(AP$2,'Technische Daten'!$A:$Z,26,0),0) -> 0 | AQ68: =IF(AQ$3<>"",AQ$3*VLOOKUP(AQ$2,'Technische Daten'!$A:$Z,26,0),0) -> 0 | AR68: =IF(AR$3<>"",AR$3*VLOOKUP(AR$2,'Technische Daten'!$A:$Z,26,0),0) -> 0 | AS68: =IF(AS$3<>"",AS$3*VLOOKUP(AS$2,'Technische Daten'!$A:$Z,26,0),0) -> 0 | AT68: =IF(AT$3<>"",AT$3*VLOOKUP(AT$2,'Technische Daten'!$A:$Z,26,0),0) -> 0 | AU68: =IF(AU$3<>"",AU$3*VLOOKUP(AU$2,'Technische Daten'!$A:$Z,26,0),0) -> 0 | AV68: =IF(AV$3<>"",AV$3*VLOOKUP(AV$2,'Technische Daten'!$A:$Z,26,0),0) -> 0 | AW68: =IF(AW$3<>"",AW$3*VLOOKUP(AW$2,'Technische Daten'!$A:$Z,26,0),0) -> 0 | AX68: =IF(AX$3<>"",AX$3*VLOOKUP(AX$2,'Technische Daten'!$A:$Z,26,0),0) -> 0
A72: ab hier Hilfszeilen
A73: =Texte!B107 -> 7A
A74: =Texte!B108 -> 10A
A76: CAN Drive-based
A77: Summe DI TX | B77: =ROUNDUP(ROUNDUP(SUM(C77:AX77)/8,0) /8,0) * 8 -> 0 | C77: =IF(AND(C$3<>"", VLOOKUP(C$2,'Technische Daten'!$A:$P,9,0) <> 0,VLOOKUP(C$2,'Technische Daten'!$A:$AA,27,0) = 1),C$3*VLOOKUP(C$2,'Technische Daten'!$A:$P,15,0),0) -> 0 | D77: =IF(AND(D$3<>"", VLOOKUP(D$2,'Technische Daten'!$A:$P,9,0) <> 0,VLOOKUP(D$2,'Technische Daten'!$A:$AA,27,0) = 1),D$3*VLOOKUP(D$2,'Technische Daten'!$A:$P,15,0),0) -> 0 | E77: =IF(AND(E$3<>"", VLOOKUP(E$2,'Technische Daten'!$A:$P,9,0) <> 0,VLOOKUP(E$2,'Technische Daten'!$A:$AA,27,0) = 1),E$3*VLOOKUP(E$2,'Technische Daten'!$A:$P,15,0),0) -> 0 | F77: =IF(AND(F$3<>"", VLOOKUP(F$2,'Technische Daten'!$A:$P,9,0) <> 0,VLOOKUP(F$2,'Technische Daten'!$A:$AA,27,0) = 1),F$3*VLOOKUP(F$2,'Technische Daten'!$A:$P,15,0),0) -> 0 | G77: =IF(AND(G$3<>"", VLOOKUP(G$2,'Technische Daten'!$A:$P,9,0) <> 0,VLOOKUP(G$2,'Technische Daten'!$A:$AA,27,0) = 1),G$3*VLOOKUP(G$2,'Technische Daten'!$A:$P,15,0),0) -> 0 | H77: =IF(AND(H$3<>"", VLOOKUP(H$2,'Technische Daten'!$A:$P,9,0) <> 0,VLOOKUP(H$2,'Technische Daten'!$A:$AA,27,0) = 1),H$3*VLOOKUP(H$2,'Technische Daten'!$A:$P,15,0),0) -> 0 | I77: =IF(AND(I$3<>"", VLOOKUP(I$2,'Technische Daten'!$A:$P,9,0) <> 0,VLOOKUP(I$2,'Technische Daten'!$A:$AA,27,0) = 1),I$3*VLOOKUP(I$2,'Technische Daten'!$A:$P,15,0),0) -> 0 | J77: =IF(AND(J$3<>"", VLOOKUP(J$2,'Technische Daten'!$A:$P,9,0) <> 0,VLOOKUP(J$2,'Technische Daten'!$A:$AA,27,0) = 1),J$3*VLOOKUP(J$2,'Technische Daten'!$A:$P,15,0),0) -> 0 | K77: =IF(AND(K$3<>"", VLOOKUP(K$2,'Technische Daten'!$A:$P,9,0) <> 0,VLOOKUP(K$2,'Technische Daten'!$A:$AA,27,0) = 1),K$3*VLOOKUP(K$2,'Technische Daten'!$A:$P,15,0),0) -> 0 | L77: =IF(AND(L$3<>"", VLOOKUP(L$2,'Technische Daten'!$A:$P,9,0) <> 0,VLOOKUP(L$2,'Technische Daten'!$A:$AA,27,0) = 1),L$3*VLOOKUP(L$2,'Technische Daten'!$A:$P,15,0),0) -> 0 | M77: =IF(AND(M$3<>"", VLOOKUP(M$2,'Technische Daten'!$A:$P,9,0) <> 0,VLOOKUP(M$2,'Technische Daten'!$A:$AA,27,0) = 1),M$3*VLOOKUP(M$2,'Technische Daten'!$A:$P,15,0),0) -> 0 | N77: =IF(AND(N$3<>"", VLOOKUP(N$2,'Technische Daten'!$A:$P,9,0) <> 0,VLOOKUP(N$2,'Technische Daten'!$A:$AA,27,0) = 1),N$3*VLOOKUP(N$2,'Technische Daten'!$A:$P,15,0),0) -> 0 | O77: =IF(AND(O$3<>"", VLOOKUP(O$2,'Technische Daten'!$A:$P,9,0) <> 0,VLOOKUP(O$2,'Technische Daten'!$A:$AA,27,0) = 1),O$3*VLOOKUP(O$2,'Technische Daten'!$A:$P,15,0),0) -> 0 | P77: =IF(AND(P$3<>"", VLOOKUP(P$2,'Technische Daten'!$A:$P,9,0) <> 0,VLOOKUP(P$2,'Technische Daten'!$A:$AA,27,0) = 1),P$3*VLOOKUP(P$2,'Technische Daten'!$A:$P,15,0),0) -> 0 | Q77: =IF(AND(Q$3<>"", VLOOKUP(Q$2,'Technische Daten'!$A:$P,9,0) <> 0,VLOOKUP(Q$2,'Technische Daten'!$A:$AA,27,0) = 1),Q$3*VLOOKUP(Q$2,'Technische Daten'!$A:$P,15,0),0) -> 0 | R77: =IF(AND(R$3<>"", VLOOKUP(R$2,'Technische Daten'!$A:$P,9,0) <> 0,VLOOKUP(R$2,'Technische Daten'!$A:$AA,27,0) = 1),R$3*VLOOKUP(R$2,'Technische Daten'!$A:$P,15,0),0) -> 0 | S77: =IF(AND(S$3<>"", VLOOKUP(S$2,'Technische Daten'!$A:$P,9,0) <> 0,VLOOKUP(S$2,'Technische Daten'!$A:$AA,27,0) = 1),S$3*VLOOKUP(S$2,'Technische Daten'!$A:$P,15,0),0) -> 0 | T77: =IF(AND(T$3<>"", VLOOKUP(T$2,'Technische Daten'!$A:$P,9,0) <> 0,VLOOKUP(T$2,'Technische Daten'!$A:$AA,27,0) = 1),T$3*VLOOKUP(T$2,'Technische Daten'!$A:$P,15,0),0) -> 0 | U77: =IF(AND(U$3<>"", VLOOKUP(U$2,'Technische Daten'!$A:$P,9,0) <> 0,VLOOKUP(U$2,'Technische Daten'!$A:$AA,27,0) = 1),U$3*VLOOKUP(U$2,'Technische Daten'!$A:$P,15,0),0) -> 0 | V77: =IF(AND(V$3<>"", VLOOKUP(V$2,'Technische Daten'!$A:$P,9,0) <> 0,VLOOKUP(V$2,'Technische Daten'!$A:$AA,27,0) = 1),V$3*VLOOKUP(V$2,'Technische Daten'!$A:$P,15,0),0) -> 0 | W77: =IF(AND(W$3<>"", VLOOKUP(W$2,'Technische Daten'!$A:$P,9,0) <> 0,VLOOKUP(W$2,'Technische Daten'!$A:$AA,27,0) = 1),W$3*VLOOKUP(W$2,'Technische Daten'!$A:$P,15,0),0) -> 0 | X77: =IF(AND(X$3<>"", VLOOKUP(X$2,'Technische Daten'!$A:$P,9,0) <> 0,VLOOKUP(X$2,'Technische Daten'!$A:$AA,27,0) = 1),X$3*VLOOKUP(X$2,'Technische Daten'!$A:$P,15,0),0) -> 0 | Y77: =IF(AND(Y$3<>"", VLOOKUP(Y$2,'Technische Daten'!$A:$P,9,0) <> 0,VLOOKUP(Y$2,'Technische Daten'!$A:$AA,27,0) = 1),Y$3*VLOOKUP(Y$2,'Technische Daten'!$A:$P,15,0),0) -> 0 | Z77: =IF(AND(Z$3<>"", VLOOKUP(Z$2,'Technische Daten'!$A:$P,9,0) <> 0,VLOOKUP(Z$2,'Technische Daten'!$A:$AA,27,0) = 1),Z$3*VLOOKUP(Z$2,'Technische Daten'!$A:$P,15,0),0) -> 0 | AA77: =IF(AND(AA$3<>"", VLOOKUP(AA$2,'Technische Daten'!$A:$P,9,0) <> 0,VLOOKUP(AA$2,'Technische Daten'!$A:$AA,27,0) = 1),AA$3*VLOOKUP(AA$2,'Technische Daten'!$A:$P,15,0),0) -> 0 | AB77: =IF(AND(AB$3<>"", VLOOKUP(AB$2,'Technische Daten'!$A:$P,9,0) <> 0,VLOOKUP(AB$2,'Technische Daten'!$A:$AA,27,0) = 1),AB$3*VLOOKUP(AB$2,'Technische Daten'!$A:$P,15,0),0) -> 0 | AC77: =IF(AND(AC$3<>"", VLOOKUP(AC$2,'Technische Daten'!$A:$P,9,0) <> 0,VLOOKUP(AC$2,'Technische Daten'!$A:$AA,27,0) = 1),AC$3*VLOOKUP(AC$2,'Technische Daten'!$A:$P,15,0),0) -> 0 | AD77: =IF(AND(AD$3<>"", VLOOKUP(AD$2,'Technische Daten'!$A:$P,9,0) <> 0,VLOOKUP(AD$2,'Technische Daten'!$A:$AA,27,0) = 1),AD$3*VLOOKUP(AD$2,'Technische Daten'!$A:$P,15,0),0) -> 0 | AE77: =IF(AND(AE$3<>"", VLOOKUP(AE$2,'Technische Daten'!$A:$P,9,0) <> 0,VLOOKUP(AE$2,'Technische Daten'!$A:$AA,27,0) = 1),AE$3*VLOOKUP(AE$2,'Technische Daten'!$A:$P,15,0),0) -> 0 | AF77: =IF(AND(AF$3<>"", VLOOKUP(AF$2,'Technische Daten'!$A:$P,9,0) <> 0,VLOOKUP(AF$2,'Technische Daten'!$A:$AA,27,0) = 1),AF$3*VLOOKUP(AF$2,'Technische Daten'!$A:$P,15,0),0) -> 0 | AG77: =IF(AND(AG$3<>"", VLOOKUP(AG$2,'Technische Daten'!$A:$P,9,0) <> 0,VLOOKUP(AG$2,'Technische Daten'!$A:$AA,27,0) = 1),AG$3*VLOOKUP(AG$2,'Technische Daten'!$A:$P,15,0),0) -> 0 | AH77: =IF(AND(AH$3<>"", VLOOKUP(AH$2,'Technische Daten'!$A:$P,9,0) <> 0,VLOOKUP(AH$2,'Technische Daten'!$A:$AA,27,0) = 1),AH$3*VLOOKUP(AH$2,'Technische Daten'!$A:$P,15,0),0) -> 0 | AI77: =IF(AND(AI$3<>"", VLOOKUP(AI$2,'Technische Daten'!$A:$P,9,0) <> 0,VLOOKUP(AI$2,'Technische Daten'!$A:$AA,27,0) = 1),AI$3*VLOOKUP(AI$2,'Technische Daten'!$A:$P,15,0),0) -> 0 | AJ77: =IF(AND(AJ$3<>"", VLOOKUP(AJ$2,'Technische Daten'!$A:$P,9,0) <> 0,VLOOKUP(AJ$2,'Technische Daten'!$A:$AA,27,0) = 1),AJ$3*VLOOKUP(AJ$2,'Technische Daten'!$A:$P,15,0),0) -> 0 | AK77: =IF(AND(AK$3<>"", VLOOKUP(AK$2,'Technische Daten'!$A:$P,9,0) <> 0,VLOOKUP(AK$2,'Technische Daten'!$A:$AA,27,0) = 1),AK$3*VLOOKUP(AK$2,'Technische Daten'!$A:$P,15,0),0) -> 0 | AL77: =IF(AND(AL$3<>"", VLOOKUP(AL$2,'Technische Daten'!$A:$P,9,0) <> 0,VLOOKUP(AL$2,'Technische Daten'!$A:$AA,27,0) = 1),AL$3*VLOOKUP(AL$2,'Technische Daten'!$A:$P,15,0),0) -> 0 | AM77: =IF(AND(AM$3<>"", VLOOKUP(AM$2,'Technische Daten'!$A:$P,9,0) <> 0,VLOOKUP(AM$2,'Technische Daten'!$A:$AA,27,0) = 1),AM$3*VLOOKUP(AM$2,'Technische Daten'!$A:$P,15,0),0) -> 0 | AN77: =IF(AND(AN$3<>"", VLOOKUP(AN$2,'Technische Daten'!$A:$P,9,0) <> 0,VLOOKUP(AN$2,'Technische Daten'!$A:$AA,27,0) = 1),AN$3*VLOOKUP(AN$2,'Technische Daten'!$A:$P,15,0),0) -> 0 | AO77: =IF(AND(AO$3<>"", VLOOKUP(AO$2,'Technische Daten'!$A:$P,9,0) <> 0,VLOOKUP(AO$2,'Technische Daten'!$A:$AA,27,0) = 1),AO$3*VLOOKUP(AO$2,'Technische Daten'!$A:$P,15,0),0) -> 0 | AP77: =IF(AND(AP$3<>"", VLOOKUP(AP$2,'Technische Daten'!$A:$P,9,0) <> 0,VLOOKUP(AP$2,'Technische Daten'!$A:$AA,27,0) = 1),AP$3*VLOOKUP(AP$2,'Technische Daten'!$A:$P,15,0),0) -> 0 | AQ77: =IF(AND(AQ$3<>"", VLOOKUP(AQ$2,'Technische Daten'!$A:$P,9,0) <> 0,VLOOKUP(AQ$2,'Technische Daten'!$A:$AA,27,0) = 1),AQ$3*VLOOKUP(AQ$2,'Technische Daten'!$A:$P,15,0),0) -> 0 | AR77: =IF(AND(AR$3<>"", VLOOKUP(AR$2,'Technische Daten'!$A:$P,9,0) <> 0,VLOOKUP(AR$2,'Technische Daten'!$A:$AA,27,0) = 1),AR$3*VLOOKUP(AR$2,'Technische Daten'!$A:$P,15,0),0) -> 0 | AS77: =IF(AND(AS$3<>"", VLOOKUP(AS$2,'Technische Daten'!$A:$P,9,0) <> 0,VLOOKUP(AS$2,'Technische Daten'!$A:$AA,27,0) = 1),AS$3*VLOOKUP(AS$2,'Technische Daten'!$A:$P,15,0),0) -> 0 | AT77: =IF(AND(AT$3<>"", VLOOKUP(AT$2,'Technische Daten'!$A:$P,9,0) <> 0,VLOOKUP(AT$2,'Technische Daten'!$A:$AA,27,0) = 1),AT$3*VLOOKUP(AT$2,'Technische Daten'!$A:$P,15,0),0) -> 0 | AU77: =IF(AND(AU$3<>"", VLOOKUP(AU$2,'Technische Daten'!$A:$P,9,0) <> 0,VLOOKUP(AU$2,'Technische Daten'!$A:$AA,27,0) = 1),AU$3*VLOOKUP(AU$2,'Technische Daten'!$A:$P,15,0),0) -> 0 | AV77: =IF(AND(AV$3<>"", VLOOKUP(AV$2,'Technische Daten'!$A:$P,9,0) <> 0,VLOOKUP(AV$2,'Technische Daten'!$A:$AA,27,0) = 1),AV$3*VLOOKUP(AV$2,'Technische Daten'!$A:$P,15,0),0) -> 0 | AX77: =IF(AND(AX$3<>"", VLOOKUP(AX$2,'Technische Daten'!$A:$P,9,0) <> 0,VLOOKUP(AX$2,'Technische Daten'!$A:$AA,27,0) = 1),AX$3*VLOOKUP(AX$2,'Technische Daten'!$A:$P,15,0),0) -> 0
A78: Summe DO RX | B78: 0 | C78: =IF(AND(C$3<>"", VLOOKUP(C$2,'Technische Daten'!$A:$P,10,0) <> 0,VLOOKUP(C$2,'Technische Daten'!$A:$AA,27,0) = 1),C$3*VLOOKUP(C$2,'Technische Daten'!$A:$P,16,0),0) -> 0 | D78: =IF(AND(D$3<>"", VLOOKUP(D$2,'Technische Daten'!$A:$P,10,0) <> 0,VLOOKUP(D$2,'Technische Daten'!$A:$AA,27,0) = 1),D$3*VLOOKUP(D$2,'Technische Daten'!$A:$P,16,0),0) -> 0 | E78: =IF(AND(E$3<>"", VLOOKUP(E$2,'Technische Daten'!$A:$P,10,0) <> 0,VLOOKUP(E$2,'Technische Daten'!$A:$AA,27,0) = 1),E$3*VLOOKUP(E$2,'Technische Daten'!$A:$P,16,0),0) -> 0 | F78: =IF(AND(F$3<>"", VLOOKUP(F$2,'Technische Daten'!$A:$P,10,0) <> 0,VLOOKUP(F$2,'Technische Daten'!$A:$AA,27,0) = 1),F$3*VLOOKUP(F$2,'Technische Daten'!$A:$P,16,0),0) -> 0 | G78: =IF(AND(G$3<>"", VLOOKUP(G$2,'Technische Daten'!$A:$P,10,0) <> 0,VLOOKUP(G$2,'Technische Daten'!$A:$AA,27,0) = 1),G$3*VLOOKUP(G$2,'Technische Daten'!$A:$P,16,0),0) -> 0 | H78: =IF(AND(H$3<>"", VLOOKUP(H$2,'Technische Daten'!$A:$P,10,0) <> 0,VLOOKUP(H$2,'Technische Daten'!$A:$AA,27,0) = 1),H$3*VLOOKUP(H$2,'Technische Daten'!$A:$P,16,0),0) -> 0 | I78: =IF(AND(I$3<>"", VLOOKUP(I$2,'Technische Daten'!$A:$P,10,0) <> 0,VLOOKUP(I$2,'Technische Daten'!$A:$AA,27,0) = 1),I$3*VLOOKUP(I$2,'Technische Daten'!$A:$P,16,0),0) -> 0 | J78: =IF(AND(J$3<>"", VLOOKUP(J$2,'Technische Daten'!$A:$P,10,0) <> 0,VLOOKUP(J$2,'Technische Daten'!$A:$AA,27,0) = 1),J$3*VLOOKUP(J$2,'Technische Daten'!$A:$P,16,0),0) -> 0 | K78: =IF(AND(K$3<>"", VLOOKUP(K$2,'Technische Daten'!$A:$P,10,0) <> 0,VLOOKUP(K$2,'Technische Daten'!$A:$AA,27,0) = 1),K$3*VLOOKUP(K$2,'Technische Daten'!$A:$P,16,0),0) -> 0 | L78: =IF(AND(L$3<>"", VLOOKUP(L$2,'Technische Daten'!$A:$P,10,0) <> 0,VLOOKUP(L$2,'Technische Daten'!$A:$AA,27,0) = 1),L$3*VLOOKUP(L$2,'Technische Daten'!$A:$P,16,0),0) -> 0 | M78: =IF(AND(M$3<>"", VLOOKUP(M$2,'Technische Daten'!$A:$P,10,0) <> 0,VLOOKUP(M$2,'Technische Daten'!$A:$AA,27,0) = 1),M$3*VLOOKUP(M$2,'Technische Daten'!$A:$P,16,0),0) -> 0 | N78: =IF(AND(N$3<>"", VLOOKUP(N$2,'Technische Daten'!$A:$P,10,0) <> 0,VLOOKUP(N$2,'Technische Daten'!$A:$AA,27,0) = 1),N$3*VLOOKUP(N$2,'Technische Daten'!$A:$P,16,0),0) -> 0 | O78: =IF(AND(O$3<>"", VLOOKUP(O$2,'Technische Daten'!$A:$P,10,0) <> 0,VLOOKUP(O$2,'Technische Daten'!$A:$AA,27,0) = 1),O$3*VLOOKUP(O$2,'Technische Daten'!$A:$P,16,0),0) -> 0 | P78: =IF(AND(P$3<>"", VLOOKUP(P$2,'Technische Daten'!$A:$P,10,0) <> 0,VLOOKUP(P$2,'Technische Daten'!$A:$AA,27,0) = 1),P$3*VLOOKUP(P$2,'Technische Daten'!$A:$P,16,0),0) -> 0 | Q78: =IF(AND(Q$3<>"", VLOOKUP(Q$2,'Technische Daten'!$A:$P,10,0) <> 0,VLOOKUP(Q$2,'Technische Daten'!$A:$AA,27,0) = 1),Q$3*VLOOKUP(Q$2,'Technische Daten'!$A:$P,16,0),0) -> 0 | R78: =IF(AND(R$3<>"", VLOOKUP(R$2,'Technische Daten'!$A:$P,10,0) <> 0,VLOOKUP(R$2,'Technische Daten'!$A:$AA,27,0) = 1),R$3*VLOOKUP(R$2,'Technische Daten'!$A:$P,16,0),0) -> 0 | S78: =IF(AND(S$3<>"", VLOOKUP(S$2,'Technische Daten'!$A:$P,10,0) <> 0,VLOOKUP(S$2,'Technische Daten'!$A:$AA,27,0) = 1),S$3*VLOOKUP(S$2,'Technische Daten'!$A:$P,16,0),0) -> 0 | T78: =IF(AND(T$3<>"", VLOOKUP(T$2,'Technische Daten'!$A:$P,10,0) <> 0,VLOOKUP(T$2,'Technische Daten'!$A:$AA,27,0) = 1),T$3*VLOOKUP(T$2,'Technische Daten'!$A:$P,16,0),0) -> 0 | U78: =IF(AND(U$3<>"", VLOOKUP(U$2,'Technische Daten'!$A:$P,10,0) <> 0,VLOOKUP(U$2,'Technische Daten'!$A:$AA,27,0) = 1),U$3*VLOOKUP(U$2,'Technische Daten'!$A:$P,16,0),0) -> 0 | V78: =IF(AND(V$3<>"", VLOOKUP(V$2,'Technische Daten'!$A:$P,10,0) <> 0,VLOOKUP(V$2,'Technische Daten'!$A:$AA,27,0) = 1),V$3*VLOOKUP(V$2,'Technische Daten'!$A:$P,16,0),0) -> 0 | W78: =IF(AND(W$3<>"", VLOOKUP(W$2,'Technische Daten'!$A:$P,10,0) <> 0,VLOOKUP(W$2,'Technische Daten'!$A:$AA,27,0) = 1),W$3*VLOOKUP(W$2,'Technische Daten'!$A:$P,16,0),0) -> 0 | X78: =IF(AND(X$3<>"", VLOOKUP(X$2,'Technische Daten'!$A:$P,10,0) <> 0,VLOOKUP(X$2,'Technische Daten'!$A:$AA,27,0) = 1),X$3*VLOOKUP(X$2,'Technische Daten'!$A:$P,16,0),0) -> 0 | Y78: =IF(AND(Y$3<>"", VLOOKUP(Y$2,'Technische Daten'!$A:$P,10,0) <> 0,VLOOKUP(Y$2,'Technische Daten'!$A:$AA,27,0) = 1),Y$3*VLOOKUP(Y$2,'Technische Daten'!$A:$P,16,0),0) -> 0 | Z78: =IF(AND(Z$3<>"", VLOOKUP(Z$2,'Technische Daten'!$A:$P,10,0) <> 0,VLOOKUP(Z$2,'Technische Daten'!$A:$AA,27,0) = 1),Z$3*VLOOKUP(Z$2,'Technische Daten'!$A:$P,16,0),0) -> 0 | AA78: =IF(AND(AA$3<>"", VLOOKUP(AA$2,'Technische Daten'!$A:$P,10,0) <> 0,VLOOKUP(AA$2,'Technische Daten'!$A:$AA,27,0) = 1),AA$3*VLOOKUP(AA$2,'Technische Daten'!$A:$P,16,0),0) -> 0 | AB78: =IF(AND(AB$3<>"", VLOOKUP(AB$2,'Technische Daten'!$A:$P,10,0) <> 0,VLOOKUP(AB$2,'Technische Daten'!$A:$AA,27,0) = 1),AB$3*VLOOKUP(AB$2,'Technische Daten'!$A:$P,16,0),0) -> 0 | AC78: =IF(AND(AC$3<>"", VLOOKUP(AC$2,'Technische Daten'!$A:$P,10,0) <> 0,VLOOKUP(AC$2,'Technische Daten'!$A:$AA,27,0) = 1),AC$3*VLOOKUP(AC$2,'Technische Daten'!$A:$P,16,0),0) -> 0 | AD78: =IF(AND(AD$3<>"", VLOOKUP(AD$2,'Technische Daten'!$A:$P,10,0) <> 0,VLOOKUP(AD$2,'Technische Daten'!$A:$AA,27,0) = 1),AD$3*VLOOKUP(AD$2,'Technische Daten'!$A:$P,16,0),0) -> 0 | AE78: =IF(AND(AE$3<>"", VLOOKUP(AE$2,'Technische Daten'!$A:$P,10,0) <> 0,VLOOKUP(AE$2,'Technische Daten'!$A:$AA,27,0) = 1),AE$3*VLOOKUP(AE$2,'Technische Daten'!$A:$P,16,0),0) -> 0 | AF78: =IF(AND(AF$3<>"", VLOOKUP(AF$2,'Technische Daten'!$A:$P,10,0) <> 0,VLOOKUP(AF$2,'Technische Daten'!$A:$AA,27,0) = 1),AF$3*VLOOKUP(AF$2,'Technische Daten'!$A:$P,16,0),0) -> 0 | AG78: =IF(AND(AG$3<>"", VLOOKUP(AG$2,'Technische Daten'!$A:$P,10,0) <> 0,VLOOKUP(AG$2,'Technische Daten'!$A:$AA,27,0) = 1),AG$3*VLOOKUP(AG$2,'Technische Daten'!$A:$P,16,0),0) -> 0 | AH78: =IF(AND(AH$3<>"", VLOOKUP(AH$2,'Technische Daten'!$A:$P,10,0) <> 0,VLOOKUP(AH$2,'Technische Daten'!$A:$AA,27,0) = 1),AH$3*VLOOKUP(AH$2,'Technische Daten'!$A:$P,16,0),0) -> 0 | AI78: =IF(AND(AI$3<>"", VLOOKUP(AI$2,'Technische Daten'!$A:$P,10,0) <> 0,VLOOKUP(AI$2,'Technische Daten'!$A:$AA,27,0) = 1),AI$3*VLOOKUP(AI$2,'Technische Daten'!$A:$P,16,0),0) -> 0 | AJ78: =IF(AND(AJ$3<>"", VLOOKUP(AJ$2,'Technische Daten'!$A:$P,10,0) <> 0,VLOOKUP(AJ$2,'Technische Daten'!$A:$AA,27,0) = 1),AJ$3*VLOOKUP(AJ$2,'Technische Daten'!$A:$P,16,0),0) -> 0 | AK78: =IF(AND(AK$3<>"", VLOOKUP(AK$2,'Technische Daten'!$A:$P,10,0) <> 0,VLOOKUP(AK$2,'Technische Daten'!$A:$AA,27,0) = 1),AK$3*VLOOKUP(AK$2,'Technische Daten'!$A:$P,16,0),0) -> 0 | AL78: =IF(AND(AL$3<>"", VLOOKUP(AL$2,'Technische Daten'!$A:$P,10,0) <> 0,VLOOKUP(AL$2,'Technische Daten'!$A:$AA,27,0) = 1),AL$3*VLOOKUP(AL$2,'Technische Daten'!$A:$P,16,0),0) -> 0 | AM78: =IF(AND(AM$3<>"", VLOOKUP(AM$2,'Technische Daten'!$A:$P,10,0) <> 0,VLOOKUP(AM$2,'Technische Daten'!$A:$AA,27,0) = 1),AM$3*VLOOKUP(AM$2,'Technische Daten'!$A:$P,16,0),0) -> 0 | AN78: =IF(AND(AN$3<>"", VLOOKUP(AN$2,'Technische Daten'!$A:$P,10,0) <> 0,VLOOKUP(AN$2,'Technische Daten'!$A:$AA,27,0) = 1),AN$3*VLOOKUP(AN$2,'Technische Daten'!$A:$P,16,0),0) -> 0 | AO78: =IF(AND(AO$3<>"", VLOOKUP(AO$2,'Technische Daten'!$A:$P,10,0) <> 0,VLOOKUP(AO$2,'Technische Daten'!$A:$AA,27,0) = 1),AO$3*VLOOKUP(AO$2,'Technische Daten'!$A:$P,16,0),0) -> 0 | AP78: =IF(AND(AP$3<>"", VLOOKUP(AP$2,'Technische Daten'!$A:$P,10,0) <> 0,VLOOKUP(AP$2,'Technische Daten'!$A:$AA,27,0) = 1),AP$3*VLOOKUP(AP$2,'Technische Daten'!$A:$P,16,0),0) -> 0 | AQ78: =IF(AND(AQ$3<>"", VLOOKUP(AQ$2,'Technische Daten'!$A:$P,10,0) <> 0,VLOOKUP(AQ$2,'Technische Daten'!$A:$AA,27,0) = 1),AQ$3*VLOOKUP(AQ$2,'Technische Daten'!$A:$P,16,0),0) -> 0 | AR78: =IF(AND(AR$3<>"", VLOOKUP(AR$2,'Technische Daten'!$A:$P,10,0) <> 0,VLOOKUP(AR$2,'Technische Daten'!$A:$AA,27,0) = 1),AR$3*VLOOKUP(AR$2,'Technische Daten'!$A:$P,16,0),0) -> 0 | AS78: =IF(AND(AS$3<>"", VLOOKUP(AS$2,'Technische Daten'!$A:$P,10,0) <> 0,VLOOKUP(AS$2,'Technische Daten'!$A:$AA,27,0) = 1),AS$3*VLOOKUP(AS$2,'Technische Daten'!$A:$P,16,0),0) -> 0 | AT78: =IF(AND(AT$3<>"", VLOOKUP(AT$2,'Technische Daten'!$A:$P,10,0) <> 0,VLOOKUP(AT$2,'Technische Daten'!$A:$AA,27,0) = 1),AT$3*VLOOKUP(AT$2,'Technische Daten'!$A:$P,16,0),0) -> 0 | AU78: =IF(AND(AU$3<>"", VLOOKUP(AU$2,'Technische Daten'!$A:$P,10,0) <> 0,VLOOKUP(AU$2,'Technische Daten'!$A:$AA,27,0) = 1),AU$3*VLOOKUP(AU$2,'Technische Daten'!$A:$P,16,0),0) -> 0 | AV78: =IF(AND(AV$3<>"", VLOOKUP(AV$2,'Technische Daten'!$A:$P,10,0) <> 0,VLOOKUP(AV$2,'Technische Daten'!$A:$AA,27,0) = 1),AV$3*VLOOKUP(AV$2,'Technische Daten'!$A:$P,16,0),0) -> 0 | AX78: =IF(AND(AX$3<>"", VLOOKUP(AX$2,'Technische Daten'!$A:$P,10,0) <> 0,VLOOKUP(AX$2,'Technische Daten'!$A:$AA,27,0) = 1),AX$3*VLOOKUP(AX$2,'Technische Daten'!$A:$P,16,0),0) -> 0
A79: Summe AI TX | B79: 0 | C79: =IF(AND(C$3<>"", VLOOKUP(C$2,'Technische Daten'!$A:$P,11,0) <> 0,VLOOKUP(C$2,'Technische Daten'!$A:$AA,27,0) = 1),C$3*VLOOKUP(C$2,'Technische Daten'!$A:$P,15,0),0) -> 0 | D79: =IF(AND(D$3<>"", VLOOKUP(D$2,'Technische Daten'!$A:$P,11,0) <> 0,VLOOKUP(D$2,'Technische Daten'!$A:$AA,27,0) = 1),D$3*VLOOKUP(D$2,'Technische Daten'!$A:$P,15,0),0) -> 0 | E79: =IF(AND(E$3<>"", VLOOKUP(E$2,'Technische Daten'!$A:$P,11,0) <> 0,VLOOKUP(E$2,'Technische Daten'!$A:$AA,27,0) = 1),E$3*VLOOKUP(E$2,'Technische Daten'!$A:$P,15,0),0) -> 0 | F79: =IF(AND(F$3<>"", VLOOKUP(F$2,'Technische Daten'!$A:$P,11,0) <> 0,VLOOKUP(F$2,'Technische Daten'!$A:$AA,27,0) = 1),F$3*VLOOKUP(F$2,'Technische Daten'!$A:$P,15,0),0) -> 0 | G79: =IF(AND(G$3<>"", VLOOKUP(G$2,'Technische Daten'!$A:$P,11,0) <> 0,VLOOKUP(G$2,'Technische Daten'!$A:$AA,27,0) = 1),G$3*VLOOKUP(G$2,'Technische Daten'!$A:$P,15,0),0) -> 0 | H79: =IF(AND(H$3<>"", VLOOKUP(H$2,'Technische Daten'!$A:$P,11,0) <> 0,VLOOKUP(H$2,'Technische Daten'!$A:$AA,27,0) = 1),H$3*VLOOKUP(H$2,'Technische Daten'!$A:$P,15,0),0) -> 0 | I79: =IF(AND(I$3<>"", VLOOKUP(I$2,'Technische Daten'!$A:$P,11,0) <> 0,VLOOKUP(I$2,'Technische Daten'!$A:$AA,27,0) = 1),I$3*VLOOKUP(I$2,'Technische Daten'!$A:$P,15,0),0) -> 0 | J79: =IF(AND(J$3<>"", VLOOKUP(J$2,'Technische Daten'!$A:$P,11,0) <> 0,VLOOKUP(J$2,'Technische Daten'!$A:$AA,27,0) = 1),J$3*VLOOKUP(J$2,'Technische Daten'!$A:$P,15,0),0) -> 0 | K79: =IF(AND(K$3<>"", VLOOKUP(K$2,'Technische Daten'!$A:$P,11,0) <> 0,VLOOKUP(K$2,'Technische Daten'!$A:$AA,27,0) = 1),K$3*VLOOKUP(K$2,'Technische Daten'!$A:$P,15,0),0) -> 0 | L79: =IF(AND(L$3<>"", VLOOKUP(L$2,'Technische Daten'!$A:$P,11,0) <> 0,VLOOKUP(L$2,'Technische Daten'!$A:$AA,27,0) = 1),L$3*VLOOKUP(L$2,'Technische Daten'!$A:$P,15,0),0) -> 0 | M79: =IF(AND(M$3<>"", VLOOKUP(M$2,'Technische Daten'!$A:$P,11,0) <> 0,VLOOKUP(M$2,'Technische Daten'!$A:$AA,27,0) = 1),M$3*VLOOKUP(M$2,'Technische Daten'!$A:$P,15,0),0) -> 0 | N79: =IF(AND(N$3<>"", VLOOKUP(N$2,'Technische Daten'!$A:$P,11,0) <> 0,VLOOKUP(N$2,'Technische Daten'!$A:$AA,27,0) = 1),N$3*VLOOKUP(N$2,'Technische Daten'!$A:$P,15,0),0) -> 0 | O79: =IF(AND(O$3<>"", VLOOKUP(O$2,'Technische Daten'!$A:$P,11,0) <> 0,VLOOKUP(O$2,'Technische Daten'!$A:$AA,27,0) = 1),O$3*VLOOKUP(O$2,'Technische Daten'!$A:$P,15,0),0) -> 0 | P79: =IF(AND(P$3<>"", VLOOKUP(P$2,'Technische Daten'!$A:$P,11,0) <> 0,VLOOKUP(P$2,'Technische Daten'!$A:$AA,27,0) = 1),P$3*VLOOKUP(P$2,'Technische Daten'!$A:$P,15,0),0) -> 0 | Q79: =IF(AND(Q$3<>"", VLOOKUP(Q$2,'Technische Daten'!$A:$P,11,0) <> 0,VLOOKUP(Q$2,'Technische Daten'!$A:$AA,27,0) = 1),Q$3*VLOOKUP(Q$2,'Technische Daten'!$A:$P,15,0),0) -> 0 | R79: =IF(AND(R$3<>"", VLOOKUP(R$2,'Technische Daten'!$A:$P,11,0) <> 0,VLOOKUP(R$2,'Technische Daten'!$A:$AA,27,0) = 1),R$3*VLOOKUP(R$2,'Technische Daten'!$A:$P,15,0),0) -> 0 | S79: =IF(AND(S$3<>"", VLOOKUP(S$2,'Technische Daten'!$A:$P,11,0) <> 0,VLOOKUP(S$2,'Technische Daten'!$A:$AA,27,0) = 1),S$3*VLOOKUP(S$2,'Technische Daten'!$A:$P,15,0),0) -> 0 | T79: =IF(AND(T$3<>"", VLOOKUP(T$2,'Technische Daten'!$A:$P,11,0) <> 0,VLOOKUP(T$2,'Technische Daten'!$A:$AA,27,0) = 1),T$3*VLOOKUP(T$2,'Technische Daten'!$A:$P,15,0),0) -> 0 | U79: =IF(AND(U$3<>"", VLOOKUP(U$2,'Technische Daten'!$A:$P,11,0) <> 0,VLOOKUP(U$2,'Technische Daten'!$A:$AA,27,0) = 1),U$3*VLOOKUP(U$2,'Technische Daten'!$A:$P,15,0),0) -> 0 | V79: =IF(AND(V$3<>"", VLOOKUP(V$2,'Technische Daten'!$A:$P,11,0) <> 0,VLOOKUP(V$2,'Technische Daten'!$A:$AA,27,0) = 1),V$3*VLOOKUP(V$2,'Technische Daten'!$A:$P,15,0),0) -> 0 | W79: =IF(AND(W$3<>"", VLOOKUP(W$2,'Technische Daten'!$A:$P,11,0) <> 0,VLOOKUP(W$2,'Technische Daten'!$A:$AA,27,0) = 1),W$3*VLOOKUP(W$2,'Technische Daten'!$A:$P,15,0),0) -> 0 | X79: =IF(AND(X$3<>"", VLOOKUP(X$2,'Technische Daten'!$A:$P,11,0) <> 0,VLOOKUP(X$2,'Technische Daten'!$A:$AA,27,0) = 1),X$3*VLOOKUP(X$2,'Technische Daten'!$A:$P,15,0),0) -> 0 | Y79: =IF(AND(Y$3<>"", VLOOKUP(Y$2,'Technische Daten'!$A:$P,11,0) <> 0,VLOOKUP(Y$2,'Technische Daten'!$A:$AA,27,0) = 1),Y$3*VLOOKUP(Y$2,'Technische Daten'!$A:$P,15,0),0) -> 0 | Z79: =IF(AND(Z$3<>"", VLOOKUP(Z$2,'Technische Daten'!$A:$P,11,0) <> 0,VLOOKUP(Z$2,'Technische Daten'!$A:$AA,27,0) = 1),Z$3*VLOOKUP(Z$2,'Technische Daten'!$A:$P,15,0),0) -> 0 | AA79: =IF(AND(AA$3<>"", VLOOKUP(AA$2,'Technische Daten'!$A:$P,11,0) <> 0,VLOOKUP(AA$2,'Technische Daten'!$A:$AA,27,0) = 1),AA$3*VLOOKUP(AA$2,'Technische Daten'!$A:$P,15,0),0) -> 0 | AB79: =IF(AND(AB$3<>"", VLOOKUP(AB$2,'Technische Daten'!$A:$P,11,0) <> 0,VLOOKUP(AB$2,'Technische Daten'!$A:$AA,27,0) = 1),AB$3*VLOOKUP(AB$2,'Technische Daten'!$A:$P,15,0),0) -> 0 | AC79: =IF(AND(AC$3<>"", VLOOKUP(AC$2,'Technische Daten'!$A:$P,11,0) <> 0,VLOOKUP(AC$2,'Technische Daten'!$A:$AA,27,0) = 1),AC$3*VLOOKUP(AC$2,'Technische Daten'!$A:$P,15,0),0) -> 0 | AD79: =IF(AND(AD$3<>"", VLOOKUP(AD$2,'Technische Daten'!$A:$P,11,0) <> 0,VLOOKUP(AD$2,'Technische Daten'!$A:$AA,27,0) = 1),AD$3*VLOOKUP(AD$2,'Technische Daten'!$A:$P,15,0),0) -> 0 | AE79: =IF(AND(AE$3<>"", VLOOKUP(AE$2,'Technische Daten'!$A:$P,11,0) <> 0,VLOOKUP(AE$2,'Technische Daten'!$A:$AA,27,0) = 1),AE$3*VLOOKUP(AE$2,'Technische Daten'!$A:$P,15,0),0) -> 0 | AF79: =IF(AND(AF$3<>"", VLOOKUP(AF$2,'Technische Daten'!$A:$P,11,0) <> 0,VLOOKUP(AF$2,'Technische Daten'!$A:$AA,27,0) = 1),AF$3*VLOOKUP(AF$2,'Technische Daten'!$A:$P,15,0),0) -> 0 | AG79: =IF(AND(AG$3<>"", VLOOKUP(AG$2,'Technische Daten'!$A:$P,11,0) <> 0,VLOOKUP(AG$2,'Technische Daten'!$A:$AA,27,0) = 1),AG$3*VLOOKUP(AG$2,'Technische Daten'!$A:$P,15,0),0) -> 0 | AH79: =IF(AND(AH$3<>"", VLOOKUP(AH$2,'Technische Daten'!$A:$P,11,0) <> 0,VLOOKUP(AH$2,'Technische Daten'!$A:$AA,27,0) = 1),AH$3*VLOOKUP(AH$2,'Technische Daten'!$A:$P,15,0),0) -> 0 | AI79: =IF(AND(AI$3<>"", VLOOKUP(AI$2,'Technische Daten'!$A:$P,11,0) <> 0,VLOOKUP(AI$2,'Technische Daten'!$A:$AA,27,0) = 1),AI$3*VLOOKUP(AI$2,'Technische Daten'!$A:$P,15,0),0) -> 0 | AJ79: =IF(AND(AJ$3<>"", VLOOKUP(AJ$2,'Technische Daten'!$A:$P,11,0) <> 0,VLOOKUP(AJ$2,'Technische Daten'!$A:$AA,27,0) = 1),AJ$3*VLOOKUP(AJ$2,'Technische Daten'!$A:$P,15,0),0) -> 0 | AK79: =IF(AND(AK$3<>"", VLOOKUP(AK$2,'Technische Daten'!$A:$P,11,0) <> 0,VLOOKUP(AK$2,'Technische Daten'!$A:$AA,27,0) = 1),AK$3*VLOOKUP(AK$2,'Technische Daten'!$A:$P,15,0),0) -> 0 | AL79: =IF(AND(AL$3<>"", VLOOKUP(AL$2,'Technische Daten'!$A:$P,11,0) <> 0,VLOOKUP(AL$2,'Technische Daten'!$A:$AA,27,0) = 1),AL$3*VLOOKUP(AL$2,'Technische Daten'!$A:$P,15,0),0) -> 0 | AM79: =IF(AND(AM$3<>"", VLOOKUP(AM$2,'Technische Daten'!$A:$P,11,0) <> 0,VLOOKUP(AM$2,'Technische Daten'!$A:$AA,27,0) = 1),AM$3*VLOOKUP(AM$2,'Technische Daten'!$A:$P,15,0),0) -> 0 | AN79: =IF(AND(AN$3<>"", VLOOKUP(AN$2,'Technische Daten'!$A:$P,11,0) <> 0,VLOOKUP(AN$2,'Technische Daten'!$A:$AA,27,0) = 1),AN$3*VLOOKUP(AN$2,'Technische Daten'!$A:$P,15,0),0) -> 0 | AO79: =IF(AND(AO$3<>"", VLOOKUP(AO$2,'Technische Daten'!$A:$P,11,0) <> 0,VLOOKUP(AO$2,'Technische Daten'!$A:$AA,27,0) = 1),AO$3*VLOOKUP(AO$2,'Technische Daten'!$A:$P,15,0),0) -> 0 | AP79: =IF(AND(AP$3<>"", VLOOKUP(AP$2,'Technische Daten'!$A:$P,11,0) <> 0,VLOOKUP(AP$2,'Technische Daten'!$A:$AA,27,0) = 1),AP$3*VLOOKUP(AP$2,'Technische Daten'!$A:$P,15,0),0) -> 0 | AQ79: =IF(AND(AQ$3<>"", VLOOKUP(AQ$2,'Technische Daten'!$A:$P,11,0) <> 0,VLOOKUP(AQ$2,'Technische Daten'!$A:$AA,27,0) = 1),AQ$3*VLOOKUP(AQ$2,'Technische Daten'!$A:$P,15,0),0) -> 0 | AR79: =IF(AND(AR$3<>"", VLOOKUP(AR$2,'Technische Daten'!$A:$P,11,0) <> 0,VLOOKUP(AR$2,'Technische Daten'!$A:$AA,27,0) = 1),AR$3*VLOOKUP(AR$2,'Technische Daten'!$A:$P,15,0),0) -> 0 | AS79: =IF(AND(AS$3<>"", VLOOKUP(AS$2,'Technische Daten'!$A:$P,11,0) <> 0,VLOOKUP(AS$2,'Technische Daten'!$A:$AA,27,0) = 1),AS$3*VLOOKUP(AS$2,'Technische Daten'!$A:$P,15,0),0) -> 0 | AT79: =IF(AND(AT$3<>"", VLOOKUP(AT$2,'Technische Daten'!$A:$P,11,0) <> 0,VLOOKUP(AT$2,'Technische Daten'!$A:$AA,27,0) = 1),AT$3*VLOOKUP(AT$2,'Technische Daten'!$A:$P,15,0),0) -> 0 | AU79: =IF(AND(AU$3<>"", VLOOKUP(AU$2,'Technische Daten'!$A:$P,11,0) <> 0,VLOOKUP(AU$2,'Technische Daten'!$A:$AA,27,0) = 1),AU$3*VLOOKUP(AU$2,'Technische Daten'!$A:$P,15,0),0) -> 0 | AV79: =IF(AND(AV$3<>"", VLOOKUP(AV$2,'Technische Daten'!$A:$P,11,0) <> 0,VLOOKUP(AV$2,'Technische Daten'!$A:$AA,27,0) = 1),AV$3*VLOOKUP(AV$2,'Technische Daten'!$A:$P,15,0),0) -> 0 | AX79: =IF(AND(AX$3<>"", VLOOKUP(AX$2,'Technische Daten'!$A:$P,11,0) <> 0,VLOOKUP(AX$2,'Technische Daten'!$A:$AA,27,0) = 1),AX$3*VLOOKUP(AX$2,'Technische Daten'!$A:$P,15,0),0) -> 0
A80: Summe AO RX | B80: 0 | C80: =IF(AND(C$3<>"", VLOOKUP(C$2,'Technische Daten'!$A:$P,12,0) <> 0,VLOOKUP(C$2,'Technische Daten'!$A:$AA,27,0) = 1),C$3*VLOOKUP(C$2,'Technische Daten'!$A:$P,16,0),0) -> 0 | D80: =IF(AND(D$3<>"", VLOOKUP(D$2,'Technische Daten'!$A:$P,12,0) <> 0,VLOOKUP(D$2,'Technische Daten'!$A:$AA,27,0) = 1),D$3*VLOOKUP(D$2,'Technische Daten'!$A:$P,16,0),0) -> 0 | E80: =IF(AND(E$3<>"", VLOOKUP(E$2,'Technische Daten'!$A:$P,12,0) <> 0,VLOOKUP(E$2,'Technische Daten'!$A:$AA,27,0) = 1),E$3*VLOOKUP(E$2,'Technische Daten'!$A:$P,16,0),0) -> 0 | F80: =IF(AND(F$3<>"", VLOOKUP(F$2,'Technische Daten'!$A:$P,12,0) <> 0,VLOOKUP(F$2,'Technische Daten'!$A:$AA,27,0) = 1),F$3*VLOOKUP(F$2,'Technische Daten'!$A:$P,16,0),0) -> 0 | G80: =IF(AND(G$3<>"", VLOOKUP(G$2,'Technische Daten'!$A:$P,12,0) <> 0,VLOOKUP(G$2,'Technische Daten'!$A:$AA,27,0) = 1),G$3*VLOOKUP(G$2,'Technische Daten'!$A:$P,16,0),0) -> 0 | H80: =IF(AND(H$3<>"", VLOOKUP(H$2,'Technische Daten'!$A:$P,12,0) <> 0,VLOOKUP(H$2,'Technische Daten'!$A:$AA,27,0) = 1),H$3*VLOOKUP(H$2,'Technische Daten'!$A:$P,16,0),0) -> 0 | I80: =IF(AND(I$3<>"", VLOOKUP(I$2,'Technische Daten'!$A:$P,12,0) <> 0,VLOOKUP(I$2,'Technische Daten'!$A:$AA,27,0) = 1),I$3*VLOOKUP(I$2,'Technische Daten'!$A:$P,16,0),0) -> 0 | J80: =IF(AND(J$3<>"", VLOOKUP(J$2,'Technische Daten'!$A:$P,12,0) <> 0,VLOOKUP(J$2,'Technische Daten'!$A:$AA,27,0) = 1),J$3*VLOOKUP(J$2,'Technische Daten'!$A:$P,16,0),0) -> 0 | K80: =IF(AND(K$3<>"", VLOOKUP(K$2,'Technische Daten'!$A:$P,12,0) <> 0,VLOOKUP(K$2,'Technische Daten'!$A:$AA,27,0) = 1),K$3*VLOOKUP(K$2,'Technische Daten'!$A:$P,16,0),0) -> 0 | L80: =IF(AND(L$3<>"", VLOOKUP(L$2,'Technische Daten'!$A:$P,12,0) <> 0,VLOOKUP(L$2,'Technische Daten'!$A:$AA,27,0) = 1),L$3*VLOOKUP(L$2,'Technische Daten'!$A:$P,16,0),0) -> 0 | M80: =IF(AND(M$3<>"", VLOOKUP(M$2,'Technische Daten'!$A:$P,12,0) <> 0,VLOOKUP(M$2,'Technische Daten'!$A:$AA,27,0) = 1),M$3*VLOOKUP(M$2,'Technische Daten'!$A:$P,16,0),0) -> 0 | N80: =IF(AND(N$3<>"", VLOOKUP(N$2,'Technische Daten'!$A:$P,12,0) <> 0,VLOOKUP(N$2,'Technische Daten'!$A:$AA,27,0) = 1),N$3*VLOOKUP(N$2,'Technische Daten'!$A:$P,16,0),0) -> 0 | O80: =IF(AND(O$3<>"", VLOOKUP(O$2,'Technische Daten'!$A:$P,12,0) <> 0,VLOOKUP(O$2,'Technische Daten'!$A:$AA,27,0) = 1),O$3*VLOOKUP(O$2,'Technische Daten'!$A:$P,16,0),0) -> 0 | P80: =IF(AND(P$3<>"", VLOOKUP(P$2,'Technische Daten'!$A:$P,12,0) <> 0,VLOOKUP(P$2,'Technische Daten'!$A:$AA,27,0) = 1),P$3*VLOOKUP(P$2,'Technische Daten'!$A:$P,16,0),0) -> 0 | Q80: =IF(AND(Q$3<>"", VLOOKUP(Q$2,'Technische Daten'!$A:$P,12,0) <> 0,VLOOKUP(Q$2,'Technische Daten'!$A:$AA,27,0) = 1),Q$3*VLOOKUP(Q$2,'Technische Daten'!$A:$P,16,0),0) -> 0 | R80: =IF(AND(R$3<>"", VLOOKUP(R$2,'Technische Daten'!$A:$P,12,0) <> 0,VLOOKUP(R$2,'Technische Daten'!$A:$AA,27,0) = 1),R$3*VLOOKUP(R$2,'Technische Daten'!$A:$P,16,0),0) -> 0 | S80: =IF(AND(S$3<>"", VLOOKUP(S$2,'Technische Daten'!$A:$P,12,0) <> 0,VLOOKUP(S$2,'Technische Daten'!$A:$AA,27,0) = 1),S$3*VLOOKUP(S$2,'Technische Daten'!$A:$P,16,0),0) -> 0 | T80: =IF(AND(T$3<>"", VLOOKUP(T$2,'Technische Daten'!$A:$P,12,0) <> 0,VLOOKUP(T$2,'Technische Daten'!$A:$AA,27,0) = 1),T$3*VLOOKUP(T$2,'Technische Daten'!$A:$P,16,0),0) -> 0 | U80: =IF(AND(U$3<>"", VLOOKUP(U$2,'Technische Daten'!$A:$P,12,0) <> 0,VLOOKUP(U$2,'Technische Daten'!$A:$AA,27,0) = 1),U$3*VLOOKUP(U$2,'Technische Daten'!$A:$P,16,0),0) -> 0 | V80: =IF(AND(V$3<>"", VLOOKUP(V$2,'Technische Daten'!$A:$P,12,0) <> 0,VLOOKUP(V$2,'Technische Daten'!$A:$AA,27,0) = 1),V$3*VLOOKUP(V$2,'Technische Daten'!$A:$P,16,0),0) -> 0 | W80: =IF(AND(W$3<>"", VLOOKUP(W$2,'Technische Daten'!$A:$P,12,0) <> 0,VLOOKUP(W$2,'Technische Daten'!$A:$AA,27,0) = 1),W$3*VLOOKUP(W$2,'Technische Daten'!$A:$P,16,0),0) -> 0 | X80: =IF(AND(X$3<>"", VLOOKUP(X$2,'Technische Daten'!$A:$P,12,0) <> 0,VLOOKUP(X$2,'Technische Daten'!$A:$AA,27,0) = 1),X$3*VLOOKUP(X$2,'Technische Daten'!$A:$P,16,0),0) -> 0 | Y80: =IF(AND(Y$3<>"", VLOOKUP(Y$2,'Technische Daten'!$A:$P,12,0) <> 0,VLOOKUP(Y$2,'Technische Daten'!$A:$AA,27,0) = 1),Y$3*VLOOKUP(Y$2,'Technische Daten'!$A:$P,16,0),0) -> 0 | Z80: =IF(AND(Z$3<>"", VLOOKUP(Z$2,'Technische Daten'!$A:$P,12,0) <> 0,VLOOKUP(Z$2,'Technische Daten'!$A:$AA,27,0) = 1),Z$3*VLOOKUP(Z$2,'Technische Daten'!$A:$P,16,0),0) -> 0 | AA80: =IF(AND(AA$3<>"", VLOOKUP(AA$2,'Technische Daten'!$A:$P,12,0) <> 0,VLOOKUP(AA$2,'Technische Daten'!$A:$AA,27,0) = 1),AA$3*VLOOKUP(AA$2,'Technische Daten'!$A:$P,16,0),0) -> 0 | AB80: =IF(AND(AB$3<>"", VLOOKUP(AB$2,'Technische Daten'!$A:$P,12,0) <> 0,VLOOKUP(AB$2,'Technische Daten'!$A:$AA,27,0) = 1),AB$3*VLOOKUP(AB$2,'Technische Daten'!$A:$P,16,0),0) -> 0 | AC80: =IF(AND(AC$3<>"", VLOOKUP(AC$2,'Technische Daten'!$A:$P,12,0) <> 0,VLOOKUP(AC$2,'Technische Daten'!$A:$AA,27,0) = 1),AC$3*VLOOKUP(AC$2,'Technische Daten'!$A:$P,16,0),0) -> 0 | AD80: =IF(AND(AD$3<>"", VLOOKUP(AD$2,'Technische Daten'!$A:$P,12,0) <> 0,VLOOKUP(AD$2,'Technische Daten'!$A:$AA,27,0) = 1),AD$3*VLOOKUP(AD$2,'Technische Daten'!$A:$P,16,0),0) -> 0 | AE80: =IF(AND(AE$3<>"", VLOOKUP(AE$2,'Technische Daten'!$A:$P,12,0) <> 0,VLOOKUP(AE$2,'Technische Daten'!$A:$AA,27,0) = 1),AE$3*VLOOKUP(AE$2,'Technische Daten'!$A:$P,16,0),0) -> 0 | AF80: =IF(AND(AF$3<>"", VLOOKUP(AF$2,'Technische Daten'!$A:$P,12,0) <> 0,VLOOKUP(AF$2,'Technische Daten'!$A:$AA,27,0) = 1),AF$3*VLOOKUP(AF$2,'Technische Daten'!$A:$P,16,0),0) -> 0 | AG80: =IF(AND(AG$3<>"", VLOOKUP(AG$2,'Technische Daten'!$A:$P,12,0) <> 0,VLOOKUP(AG$2,'Technische Daten'!$A:$AA,27,0) = 1),AG$3*VLOOKUP(AG$2,'Technische Daten'!$A:$P,16,0),0) -> 0 | AH80: =IF(AND(AH$3<>"", VLOOKUP(AH$2,'Technische Daten'!$A:$P,12,0) <> 0,VLOOKUP(AH$2,'Technische Daten'!$A:$AA,27,0) = 1),AH$3*VLOOKUP(AH$2,'Technische Daten'!$A:$P,16,0),0) -> 0 | AI80: =IF(AND(AI$3<>"", VLOOKUP(AI$2,'Technische Daten'!$A:$P,12,0) <> 0,VLOOKUP(AI$2,'Technische Daten'!$A:$AA,27,0) = 1),AI$3*VLOOKUP(AI$2,'Technische Daten'!$A:$P,16,0),0) -> 0 | AJ80: =IF(AND(AJ$3<>"", VLOOKUP(AJ$2,'Technische Daten'!$A:$P,12,0) <> 0,VLOOKUP(AJ$2,'Technische Daten'!$A:$AA,27,0) = 1),AJ$3*VLOOKUP(AJ$2,'Technische Daten'!$A:$P,16,0),0) -> 0 | AK80: =IF(AND(AK$3<>"", VLOOKUP(AK$2,'Technische Daten'!$A:$P,12,0) <> 0,VLOOKUP(AK$2,'Technische Daten'!$A:$AA,27,0) = 1),AK$3*VLOOKUP(AK$2,'Technische Daten'!$A:$P,16,0),0) -> 0 | AL80: =IF(AND(AL$3<>"", VLOOKUP(AL$2,'Technische Daten'!$A:$P,12,0) <> 0,VLOOKUP(AL$2,'Technische Daten'!$A:$AA,27,0) = 1),AL$3*VLOOKUP(AL$2,'Technische Daten'!$A:$P,16,0),0) -> 0 | AM80: =IF(AND(AM$3<>"", VLOOKUP(AM$2,'Technische Daten'!$A:$P,12,0) <> 0,VLOOKUP(AM$2,'Technische Daten'!$A:$AA,27,0) = 1),AM$3*VLOOKUP(AM$2,'Technische Daten'!$A:$P,16,0),0) -> 0 | AN80: =IF(AND(AN$3<>"", VLOOKUP(AN$2,'Technische Daten'!$A:$P,12,0) <> 0,VLOOKUP(AN$2,'Technische Daten'!$A:$AA,27,0) = 1),AN$3*VLOOKUP(AN$2,'Technische Daten'!$A:$P,16,0),0) -> 0 | AO80: =IF(AND(AO$3<>"", VLOOKUP(AO$2,'Technische Daten'!$A:$P,12,0) <> 0,VLOOKUP(AO$2,'Technische Daten'!$A:$AA,27,0) = 1),AO$3*VLOOKUP(AO$2,'Technische Daten'!$A:$P,16,0),0) -> 0 | AP80: =IF(AND(AP$3<>"", VLOOKUP(AP$2,'Technische Daten'!$A:$P,12,0) <> 0,VLOOKUP(AP$2,'Technische Daten'!$A:$AA,27,0) = 1),AP$3*VLOOKUP(AP$2,'Technische Daten'!$A:$P,16,0),0) -> 0 | AQ80: =IF(AND(AQ$3<>"", VLOOKUP(AQ$2,'Technische Daten'!$A:$P,12,0) <> 0,VLOOKUP(AQ$2,'Technische Daten'!$A:$AA,27,0) = 1),AQ$3*VLOOKUP(AQ$2,'Technische Daten'!$A:$P,16,0),0) -> 0 | AR80: =IF(AND(AR$3<>"", VLOOKUP(AR$2,'Technische Daten'!$A:$P,12,0) <> 0,VLOOKUP(AR$2,'Technische Daten'!$A:$AA,27,0) = 1),AR$3*VLOOKUP(AR$2,'Technische Daten'!$A:$P,16,0),0) -> 0 | AS80: =IF(AND(AS$3<>"", VLOOKUP(AS$2,'Technische Daten'!$A:$P,12,0) <> 0,VLOOKUP(AS$2,'Technische Daten'!$A:$AA,27,0) = 1),AS$3*VLOOKUP(AS$2,'Technische Daten'!$A:$P,16,0),0) -> 0 | AT80: =IF(AND(AT$3<>"", VLOOKUP(AT$2,'Technische Daten'!$A:$P,12,0) <> 0,VLOOKUP(AT$2,'Technische Daten'!$A:$AA,27,0) = 1),AT$3*VLOOKUP(AT$2,'Technische Daten'!$A:$P,16,0),0) -> 0 | AU80: =IF(AND(AU$3<>"", VLOOKUP(AU$2,'Technische Daten'!$A:$P,12,0) <> 0,VLOOKUP(AU$2,'Technische Daten'!$A:$AA,27,0) = 1),AU$3*VLOOKUP(AU$2,'Technische Daten'!$A:$P,16,0),0) -> 0 | AV80: =IF(AND(AV$3<>"", VLOOKUP(AV$2,'Technische Daten'!$A:$P,12,0) <> 0,VLOOKUP(AV$2,'Technische Daten'!$A:$AA,27,0) = 1),AV$3*VLOOKUP(AV$2,'Technische Daten'!$A:$P,16,0),0) -> 0 | AX80: =IF(AND(AX$3<>"", VLOOKUP(AX$2,'Technische Daten'!$A:$P,12,0) <> 0,VLOOKUP(AX$2,'Technische Daten'!$A:$AA,27,0) = 1),AX$3*VLOOKUP(AX$2,'Technische Daten'!$A:$P,16,0),0) -> 0
A81: Summe Rest TX | B81: 0 | Q81: =IF(Q$3 <> "", Q$3*VLOOKUP(Q$2,'Technische Daten'!$A:$P,15,0),0) -> 0 | AA81: =IF(AA$3 <> "", AA$3*VLOOKUP(AA$2,'Technische Daten'!$A:$P,15,0),0) -> 0 | AN81: =IF(AN$3 <> "", AN$3*VLOOKUP(AN$2,'Technische Daten'!$A:$P,15,0),0) -> 0 | AO81: =IF(AO$3 <> "", AO$3*VLOOKUP(AO$2,'Technische Daten'!$A:$P,15,0),0) -> 0 | AP81: =IF(AP$3 <> "", AP$3*VLOOKUP(AP$2,'Technische Daten'!$A:$P,15,0),0) -> 0 | AQ81: =IF(AQ$3 <> "", AQ$3*VLOOKUP(AQ$2,'Technische Daten'!$A:$P,15,0),0) -> 0 | AR81: =IF(AR$3 <> "", AR$3*VLOOKUP(AR$2,'Technische Daten'!$A:$P,15,0),0) -> 0 | AS81: =IF(AS$3 <> "", AS$3*VLOOKUP(AS$2,'Technische Daten'!$A:$P,15,0),0) -> 0 | AT81: =IF(AT$3 <> "", AT$3*VLOOKUP(AT$2,'Technische Daten'!$A:$P,15,0),0) -> 0
A82: Summe Rest RX | B82: 0 | Q82: =IF(Q$3 <> "", Q$3*VLOOKUP(Q$2,'Technische Daten'!$A:$P,16,0),0) -> 0 | AA82: =IF(AA$3 <> "", AA$3*VLOOKUP(AA$2,'Technische Daten'!$A:$P,16,0),0) -> 0 | AN82: =IF(AN$3 <> "", AN$3*VLOOKUP(AN$2,'Technische Daten'!$A:$P,16,0),0) -> 0 | AO82: =IF(AO$3 <> "", AO$3*VLOOKUP(AO$2,'Technische Daten'!$A:$P,16,0),0) -> 0 | AP82: =IF(AP$3 <> "", AP$3*VLOOKUP(AP$2,'Technische Daten'!$A:$P,16,0),0) -> 0 | AQ82: =IF(AQ$3 <> "", AQ$3*VLOOKUP(AQ$2,'Technische Daten'!$A:$P,16,0),0) -> 0 | AR82: =IF(AR$3 <> "", AR$3*VLOOKUP(AR$2,'Technische Daten'!$A:$P,16,0),0) -> 0 | AS82: =IF(AS$3 <> "", AS$3*VLOOKUP(AS$2,'Technische Daten'!$A:$P,16,0),0) -> 0 | AT82: =IF(AT$3 <> "", AT$3*VLOOKUP(AT$2,'Technische Daten'!$A:$P,16,0),0) -> 0
A84: Rückwandbus
A85: Tx (RWB) (Gesamtbetrachtung) | B85: =IF(SUM(C85:AX85)>0,ROUNDDOWN(SUM(C85:AX85)/8,0),ROUNDUP(SUM(C85:AX85)/8,0)) -> 0 | C85: =IF(C$3<>"",C$3*VLOOKUP(C$2,'Technische Daten'!$A:$G,6,0),0) -> 0 | D85: =IF(D$3<>"",D$3*VLOOKUP(D$2,'Technische Daten'!$A:$G,6,0),0) -> 0 | E85: =IF(E$3<>"",E$3*VLOOKUP(E$2,'Technische Daten'!$A:$G,6,0),0) -> 0 | F85: =IF(F$3<>"",F$3*VLOOKUP(F$2,'Technische Daten'!$A:$G,6,0),0) -> 0 | G85: =IF(G$3<>"",G$3*VLOOKUP(G$2,'Technische Daten'!$A:$G,6,0),0) -> 0 | H85: =IF(H$3<>"",H$3*VLOOKUP(H$2,'Technische Daten'!$A:$G,6,0),0) -> 0 | I85: =IF(I$3<>"",I$3*VLOOKUP(I$2,'Technische Daten'!$A:$G,6,0),0) -> 0 | J85: =IF(J$3<>"",J$3*VLOOKUP(J$2,'Technische Daten'!$A:$G,6,0),0) -> 0 | K85: =IF(K$3<>"",K$3*VLOOKUP(K$2,'Technische Daten'!$A:$G,6,0),0) -> 0 | L85: =IF(L$3<>"",L$3*VLOOKUP(L$2,'Technische Daten'!$A:$G,6,0),0) -> 0 | M85: =IF(M$3<>"",M$3*VLOOKUP(M$2,'Technische Daten'!$A:$G,6,0),0) -> 0 | N85: =IF(N$3<>"",N$3*VLOOKUP(N$2,'Technische Daten'!$A:$G,6,0),0) -> 0 | O85: =IF(O$3<>"",O$3*VLOOKUP(O$2,'Technische Daten'!$A:$G,6,0),0) -> 0 | P85: =IF(P$3<>"",P$3*VLOOKUP(P$2,'Technische Daten'!$A:$G,6,0),0) -> 0 | Q85: =IF(Q$3<>"",Q$3*VLOOKUP(Q$2,'Technische Daten'!$A:$G,6,0),0) -> 0 | R85: =IF(R$3<>"",R$3*VLOOKUP(R$2,'Technische Daten'!$A:$G,6,0),0) -> 0 | S85: =IF(S$3<>"",S$3*VLOOKUP(S$2,'Technische Daten'!$A:$G,6,0),0) -> 0 | T85: =IF(T$3<>"",T$3*VLOOKUP(T$2,'Technische Daten'!$A:$G,6,0),0) -> 0 | U85: =IF(U$3<>"",U$3*VLOOKUP(U$2,'Technische Daten'!$A:$G,6,0),0) -> 0 | V85: =IF(V$3<>"",V$3*VLOOKUP(V$2,'Technische Daten'!$A:$G,6,0),0) -> 0 | W85: =IF(W$3<>"",W$3*VLOOKUP(W$2,'Technische Daten'!$A:$G,6,0),0) -> 0 | X85: =IF(X$3<>"",X$3*VLOOKUP(X$2,'Technische Daten'!$A:$G,6,0),0) -> 0 | Y85: =IF(Y$3<>"",Y$3*VLOOKUP(Y$2,'Technische Daten'!$A:$G,6,0),0) -> 0 | Z85: =IF(Z$3<>"",Z$3*VLOOKUP(Z$2,'Technische Daten'!$A:$G,6,0),0) -> 0 | AA85: =IF(AA$3<>"",AA$3*VLOOKUP(AA$2,'Technische Daten'!$A:$G,6,0),0) -> 0 | AB85: =IF(AB$3<>"",AB$3*VLOOKUP(AB$2,'Technische Daten'!$A:$G,6,0),0) -> 0 | AC85: =IF(AC$3<>"",AC$3*VLOOKUP(AC$2,'Technische Daten'!$A:$G,6,0),0) -> 0 | AD85: =IF(AD$3<>"",AD$3*VLOOKUP(AD$2,'Technische Daten'!$A:$G,6,0),0) -> 0 | AE85: =IF(AE$3<>"",AE$3*VLOOKUP(AE$2,'Technische Daten'!$A:$G,6,0),0) -> 0 | AF85: =IF(AF$3<>"",AF$3*VLOOKUP(AF$2,'Technische Daten'!$A:$G,6,0),0) -> 0 | AG85: =IF(AG$3<>"",AG$3*VLOOKUP(AG$2,'Technische Daten'!$A:$G,6,0),0) -> 0 | AH85: =IF(AH$3<>"",AH$3*VLOOKUP(AH$2,'Technische Daten'!$A:$G,6,0),0) -> 0 | AI85: =IF(AI$3<>"",AI$3*VLOOKUP(AI$2,'Technische Daten'!$A:$G,6,0),0) -> 0 | AJ85: =IF(AJ$3<>"",AJ$3*VLOOKUP(AJ$2,'Technische Daten'!$A:$G,6,0),0) -> 0 | AK85: =IF(AK$3<>"",AK$3*VLOOKUP(AK$2,'Technische Daten'!$A:$G,6,0),0) -> 0 | AL85: =IF(AL$3<>"",AL$3*VLOOKUP(AL$2,'Technische Daten'!$A:$G,6,0),0) -> 0 | AM85: =IF(AM$3<>"",AM$3*VLOOKUP(AM$2,'Technische Daten'!$A:$G,6,0),0) -> 0 | AN85: =IF(AN$3<>"",AN$3*VLOOKUP(AN$2,'Technische Daten'!$A:$G,6,0),0) -> 0 | AO85: =IF(AO$3<>"",AO$3*VLOOKUP(AO$2,'Technische Daten'!$A:$G,6,0),0) -> 0 | AP85: =IF(AP$3<>"",AP$3*VLOOKUP(AP$2,'Technische Daten'!$A:$G,6,0),0) -> 0 | AQ85: =IF(AQ$3<>"",AQ$3*VLOOKUP(AQ$2,'Technische Daten'!$A:$G,6,0),0) -> 0 | AR85: =IF(AR$3<>"",AR$3*VLOOKUP(AR$2,'Technische Daten'!$A:$G,6,0),0) -> 0 | AS85: =IF(AS$3<>"",AS$3*VLOOKUP(AS$2,'Technische Daten'!$A:$G,6,0),0) -> 0 | AT85: =IF(AT$3<>"",AT$3*VLOOKUP(AT$2,'Technische Daten'!$A:$G,6,0),0) -> 0 | AU85: =IF(AU$3<>"",AU$3*VLOOKUP(AU$2,'Technische Daten'!$A:$G,6,0),0) -> 0 | AV85: =IF(AV$3<>"",AV$3*VLOOKUP(AV$2,'Technische Daten'!$A:$G,6,0),0) -> 0 | AX85: =IF(AX$3<>"",AX$3*VLOOKUP(AX$2,'Technische Daten'!$A:$G,6,0),0) -> 0
A86: Rx (RWB) (Gesamtbetrachtung) | B86: =IF(SUM(C86:AX86)>0,ROUNDDOWN(SUM(C86:AX86)/8,0),ROUNDUP(SUM(C86:AX86)/8,0)) -> 0 | C86: =IF(C$3<>"",C$3*VLOOKUP(C$2,'Technische Daten'!$A:$G,7,0),0) -> 0 | D86: =IF(D$3<>"",D$3*VLOOKUP(D$2,'Technische Daten'!$A:$G,7,0),0) -> 0 | E86: =IF(E$3<>"",E$3*VLOOKUP(E$2,'Technische Daten'!$A:$G,7,0),0) -> 0 | F86: =IF(F$3<>"",F$3*VLOOKUP(F$2,'Technische Daten'!$A:$G,7,0),0) -> 0 | G86: =IF(G$3<>"",G$3*VLOOKUP(G$2,'Technische Daten'!$A:$G,7,0),0) -> 0 | H86: =IF(H$3<>"",H$3*VLOOKUP(H$2,'Technische Daten'!$A:$G,7,0),0) -> 0 | I86: =IF(I$3<>"",I$3*VLOOKUP(I$2,'Technische Daten'!$A:$G,7,0),0) -> 0 | J86: =IF(J$3<>"",J$3*VLOOKUP(J$2,'Technische Daten'!$A:$G,7,0),0) -> 0 | K86: =IF(K$3<>"",K$3*VLOOKUP(K$2,'Technische Daten'!$A:$G,7,0),0) -> 0 | L86: =IF(L$3<>"",L$3*VLOOKUP(L$2,'Technische Daten'!$A:$G,7,0),0) -> 0 | M86: =IF(M$3<>"",M$3*VLOOKUP(M$2,'Technische Daten'!$A:$G,7,0),0) -> 0 | N86: =IF(N$3<>"",N$3*VLOOKUP(N$2,'Technische Daten'!$A:$G,7,0),0) -> 0 | O86: =IF(O$3<>"",O$3*VLOOKUP(O$2,'Technische Daten'!$A:$G,7,0),0) -> 0 | P86: =IF(P$3<>"",P$3*VLOOKUP(P$2,'Technische Daten'!$A:$G,7,0),0) -> 0 | Q86: =IF(Q$3<>"",Q$3*VLOOKUP(Q$2,'Technische Daten'!$A:$G,7,0),0) -> 0 | R86: =IF(R$3<>"",R$3*VLOOKUP(R$2,'Technische Daten'!$A:$G,7,0),0) -> 0 | S86: =IF(S$3<>"",S$3*VLOOKUP(S$2,'Technische Daten'!$A:$G,7,0),0) -> 0 | T86: =IF(T$3<>"",T$3*VLOOKUP(T$2,'Technische Daten'!$A:$G,7,0),0) -> 0 | U86: =IF(U$3<>"",U$3*VLOOKUP(U$2,'Technische Daten'!$A:$G,7,0),0) -> 0 | V86: =IF(V$3<>"",V$3*VLOOKUP(V$2,'Technische Daten'!$A:$G,7,0),0) -> 0 | W86: =IF(W$3<>"",W$3*VLOOKUP(W$2,'Technische Daten'!$A:$G,7,0),0) -> 0 | X86: =IF(X$3<>"",X$3*VLOOKUP(X$2,'Technische Daten'!$A:$G,7,0),0) -> 0 | Y86: =IF(Y$3<>"",Y$3*VLOOKUP(Y$2,'Technische Daten'!$A:$G,7,0),0) -> 0 | Z86: =IF(Z$3<>"",Z$3*VLOOKUP(Z$2,'Technische Daten'!$A:$G,7,0),0) -> 0 | AA86: =IF(AA$3<>"",AA$3*VLOOKUP(AA$2,'Technische Daten'!$A:$G,7,0),0) -> 0 | AB86: =IF(AB$3<>"",AB$3*VLOOKUP(AB$2,'Technische Daten'!$A:$G,7,0),0) -> 0 | AC86: =IF(AC$3<>"",AC$3*VLOOKUP(AC$2,'Technische Daten'!$A:$G,7,0),0) -> 0 | AD86: =IF(AD$3<>"",AD$3*VLOOKUP(AD$2,'Technische Daten'!$A:$G,7,0),0) -> 0 | AE86: =IF(AE$3<>"",AE$3*VLOOKUP(AE$2,'Technische Daten'!$A:$G,7,0),0) -> 0 | AF86: =IF(AF$3<>"",AF$3*VLOOKUP(AF$2,'Technische Daten'!$A:$G,7,0),0) -> 0 | AG86: =IF(AG$3<>"",AG$3*VLOOKUP(AG$2,'Technische Daten'!$A:$G,7,0),0) -> 0 | AH86: =IF(AH$3<>"",AH$3*VLOOKUP(AH$2,'Technische Daten'!$A:$G,7,0),0) -> 0 | AI86: =IF(AI$3<>"",AI$3*VLOOKUP(AI$2,'Technische Daten'!$A:$G,7,0),0) -> 0 | AJ86: =IF(AJ$3<>"",AJ$3*VLOOKUP(AJ$2,'Technische Daten'!$A:$G,7,0),0) -> 0 | AK86: =IF(AK$3<>"",AK$3*VLOOKUP(AK$2,'Technische Daten'!$A:$G,7,0),0) -> 0 | AL86: =IF(AL$3<>"",AL$3*VLOOKUP(AL$2,'Technische Daten'!$A:$G,7,0),0) -> 0 | AM86: =IF(AM$3<>"",AM$3*VLOOKUP(AM$2,'Technische Daten'!$A:$G,7,0),0) -> 0 | AN86: =IF(AN$3<>"",AN$3*VLOOKUP(AN$2,'Technische Daten'!$A:$G,7,0),0) -> 0 | AO86: =IF(AO$3<>"",AO$3*VLOOKUP(AO$2,'Technische Daten'!$A:$G,7,0),0) -> 0 | AP86: =IF(AP$3<>"",AP$3*VLOOKUP(AP$2,'Technische Daten'!$A:$G,7,0),0) -> 0 | AQ86: =IF(AQ$3<>"",AQ$3*VLOOKUP(AQ$2,'Technische Daten'!$A:$G,7,0),0) -> 0 | AR86: =IF(AR$3<>"",AR$3*VLOOKUP(AR$2,'Technische Daten'!$A:$G,7,0),0) -> 0 | AS86: =IF(AS$3<>"",AS$3*VLOOKUP(AS$2,'Technische Daten'!$A:$G,7,0),0) -> 0 | AT86: =IF(AT$3<>"",AT$3*VLOOKUP(AT$2,'Technische Daten'!$A:$G,7,0),0) -> 0 | AU86: =IF(AU$3<>"",AU$3*VLOOKUP(AU$2,'Technische Daten'!$A:$G,7,0),0) -> 0 | AV86: =IF(AV$3<>"",AV$3*VLOOKUP(AV$2,'Technische Daten'!$A:$G,7,0),0) -> 0 | AX86: =IF(AX$3<>"",AX$3*VLOOKUP(AX$2,'Technische Daten'!$A:$G,7,0),0) -> 0
A87: Tx (RWB) (nur Slave) | B87: =IF(SUM(J87:AX87)>0,ROUNDDOWN(SUM(J87:AX87)/8,0),ROUNDUP(SUM(J87:AX87)/8,0)) -> 0 | C87: =IF(C$3<>"",C$3*VLOOKUP(C$2,'Technische Daten'!$A:$G,6,0),0) -> 0 | D87: =IF(D$3<>"",D$3*VLOOKUP(D$2,'Technische Daten'!$A:$G,6,0),0) -> 0 | E87: =IF(E$3<>"",E$3*VLOOKUP(E$2,'Technische Daten'!$A:$G,6,0),0) -> 0 | F87: =IF(F$3<>"",F$3*VLOOKUP(F$2,'Technische Daten'!$A:$G,6,0),0) -> 0 | G87: =IF(G$3<>"",G$3*VLOOKUP(G$2,'Technische Daten'!$A:$G,6,0),0) -> 0 | H87: =IF(H$3<>"",H$3*VLOOKUP(H$2,'Technische Daten'!$A:$G,6,0),0) -> 0 | I87: =IF(I$3<>"",I$3*VLOOKUP(I$2,'Technische Daten'!$A:$G,6,0),0) -> 0 | J87: =IF(J$3<>"",J$3*VLOOKUP(J$2,'Technische Daten'!$A:$G,6,0),0) -> 0 | K87: =IF(K$3<>"",K$3*VLOOKUP(K$2,'Technische Daten'!$A:$G,6,0),0) -> 0 | L87: =IF(L$3<>"",L$3*VLOOKUP(L$2,'Technische Daten'!$A:$G,6,0),0) -> 0 | M87: =IF(M$3<>"",M$3*VLOOKUP(M$2,'Technische Daten'!$A:$G,6,0),0) -> 0 | N87: =IF(N$3<>"",N$3*VLOOKUP(N$2,'Technische Daten'!$A:$G,6,0),0) -> 0 | O87: =IF(O$3<>"",O$3*VLOOKUP(O$2,'Technische Daten'!$A:$G,6,0),0) -> 0 | P87: =IF(P$3<>"",P$3*VLOOKUP(P$2,'Technische Daten'!$A:$G,6,0),0) -> 0 | Q87: =IF(Q$3<>"",Q$3*VLOOKUP(Q$2,'Technische Daten'!$A:$G,6,0),0) -> 0 | R87: =IF(R$3<>"",R$3*VLOOKUP(R$2,'Technische Daten'!$A:$G,6,0),0) -> 0 | S87: =IF(S$3<>"",S$3*VLOOKUP(S$2,'Technische Daten'!$A:$G,6,0),0) -> 0 | T87: =IF(T$3<>"",T$3*VLOOKUP(T$2,'Technische Daten'!$A:$G,6,0),0) -> 0 | U87: =IF(U$3<>"",U$3*VLOOKUP(U$2,'Technische Daten'!$A:$G,6,0),0) -> 0 | V87: =IF(V$3<>"",V$3*VLOOKUP(V$2,'Technische Daten'!$A:$G,6,0),0) -> 0 | W87: =IF(W$3<>"",W$3*VLOOKUP(W$2,'Technische Daten'!$A:$G,6,0),0) -> 0 | X87: =IF(X$3<>"",X$3*VLOOKUP(X$2,'Technische Daten'!$A:$G,6,0),0) -> 0 | Y87: =IF(Y$3<>"",Y$3*VLOOKUP(Y$2,'Technische Daten'!$A:$G,6,0),0) -> 0 | Z87: =IF(Z$3<>"",Z$3*VLOOKUP(Z$2,'Technische Daten'!$A:$G,6,0),0) -> 0 | AA87: =IF(AA$3<>"",AA$3*VLOOKUP(AA$2,'Technische Daten'!$A:$G,6,0),0) -> 0 | AB87: =IF(AB$3<>"",AB$3*VLOOKUP(AB$2,'Technische Daten'!$A:$G,6,0),0) -> 0 | AC87: =IF(AC$3<>"",AC$3*VLOOKUP(AC$2,'Technische Daten'!$A:$G,6,0),0) -> 0 | AD87: =IF(AD$3<>"",AD$3*VLOOKUP(AD$2,'Technische Daten'!$A:$G,6,0),0) -> 0 | AE87: =IF(AE$3<>"",AE$3*VLOOKUP(AE$2,'Technische Daten'!$A:$G,6,0),0) -> 0 | AF87: =IF(AF$3<>"",AF$3*VLOOKUP(AF$2,'Technische Daten'!$A:$G,6,0),0) -> 0 | AG87: =IF(AG$3<>"",AG$3*VLOOKUP(AG$2,'Technische Daten'!$A:$G,6,0),0) -> 0 | AH87: =IF(AH$3<>"",AH$3*VLOOKUP(AH$2,'Technische Daten'!$A:$G,6,0),0) -> 0 | AI87: =IF(AI$3<>"",AI$3*VLOOKUP(AI$2,'Technische Daten'!$A:$G,6,0),0) -> 0 | AJ87: =IF(AJ$3<>"",AJ$3*VLOOKUP(AJ$2,'Technische Daten'!$A:$G,6,0),0) -> 0 | AK87: =IF(AK$3<>"",AK$3*VLOOKUP(AK$2,'Technische Daten'!$A:$G,6,0),0) -> 0 | AL87: =IF(AL$3<>"",AL$3*VLOOKUP(AL$2,'Technische Daten'!$A:$G,6,0),0) -> 0 | AM87: =IF(AM$3<>"",AM$3*VLOOKUP(AM$2,'Technische Daten'!$A:$G,6,0),0) -> 0 | AN87: =IF(AN$3<>"",AN$3*VLOOKUP(AN$2,'Technische Daten'!$A:$G,6,0),0) -> 0 | AO87: =IF(AO$3<>"",AO$3*VLOOKUP(AO$2,'Technische Daten'!$A:$G,6,0),0) -> 0 | AP87: =IF(AP$3<>"",AP$3*VLOOKUP(AP$2,'Technische Daten'!$A:$G,6,0),0) -> 0 | AQ87: =IF(AQ$3<>"",AQ$3*VLOOKUP(AQ$2,'Technische Daten'!$A:$G,6,0),0) -> 0 | AR87: =IF(AR$3<>"",AR$3*VLOOKUP(AR$2,'Technische Daten'!$A:$G,6,0),0) -> 0 | AS87: =IF(AS$3<>"",AS$3*VLOOKUP(AS$2,'Technische Daten'!$A:$G,6,0),0) -> 0 | AT87: =IF(AT$3<>"",AT$3*VLOOKUP(AT$2,'Technische Daten'!$A:$G,6,0),0) -> 0 | AU87: =IF(AU$3<>"",AU$3*VLOOKUP(AU$2,'Technische Daten'!$A:$G,6,0),0) -> 0 | AV87: =IF(AV$3<>"",AV$3*VLOOKUP(AV$2,'Technische Daten'!$A:$G,6,0),0) -> 0 | AX87: =IF(AX$3<>"",AX$3*VLOOKUP(AX$2,'Technische Daten'!$A:$G,6,0),0) -> 0
A88: Rx (RWB) (nur Slave) | B88: =IF(SUM(J88:AX88)>0,ROUNDDOWN(SUM(J88:AX88)/8,0),ROUNDUP(SUM(J88:AX88)/8,0)) -> 0 | C88: =IF(C$3<>"",C$3*VLOOKUP(C$2,'Technische Daten'!$A:$G,7,0),0) -> 0 | D88: =IF(D$3<>"",D$3*VLOOKUP(D$2,'Technische Daten'!$A:$G,7,0),0) -> 0 | E88: =IF(E$3<>"",E$3*VLOOKUP(E$2,'Technische Daten'!$A:$G,7,0),0) -> 0 | F88: =IF(F$3<>"",F$3*VLOOKUP(F$2,'Technische Daten'!$A:$G,7,0),0) -> 0 | G88: =IF(G$3<>"",G$3*VLOOKUP(G$2,'Technische Daten'!$A:$G,7,0),0) -> 0 | H88: =IF(H$3<>"",H$3*VLOOKUP(H$2,'Technische Daten'!$A:$G,7,0),0) -> 0 | I88: =IF(I$3<>"",I$3*VLOOKUP(I$2,'Technische Daten'!$A:$G,7,0),0) -> 0 | J88: =IF(J$3<>"",J$3*VLOOKUP(J$2,'Technische Daten'!$A:$G,7,0),0) -> 0 | K88: =IF(K$3<>"",K$3*VLOOKUP(K$2,'Technische Daten'!$A:$G,7,0),0) -> 0 | L88: =IF(L$3<>"",L$3*VLOOKUP(L$2,'Technische Daten'!$A:$G,7,0),0) -> 0 | M88: =IF(M$3<>"",M$3*VLOOKUP(M$2,'Technische Daten'!$A:$G,7,0),0) -> 0 | N88: =IF(N$3<>"",N$3*VLOOKUP(N$2,'Technische Daten'!$A:$G,7,0),0) -> 0 | O88: =IF(O$3<>"",O$3*VLOOKUP(O$2,'Technische Daten'!$A:$G,7,0),0) -> 0 | P88: =IF(P$3<>"",P$3*VLOOKUP(P$2,'Technische Daten'!$A:$G,7,0),0) -> 0 | Q88: =IF(Q$3<>"",Q$3*VLOOKUP(Q$2,'Technische Daten'!$A:$G,7,0),0) -> 0 | R88: =IF(R$3<>"",R$3*VLOOKUP(R$2,'Technische Daten'!$A:$G,7,0),0) -> 0 | S88: =IF(S$3<>"",S$3*VLOOKUP(S$2,'Technische Daten'!$A:$G,7,0),0) -> 0 | T88: =IF(T$3<>"",T$3*VLOOKUP(T$2,'Technische Daten'!$A:$G,7,0),0) -> 0 | U88: =IF(U$3<>"",U$3*VLOOKUP(U$2,'Technische Daten'!$A:$G,7,0),0) -> 0 | V88: =IF(V$3<>"",V$3*VLOOKUP(V$2,'Technische Daten'!$A:$G,7,0),0) -> 0 | W88: =IF(W$3<>"",W$3*VLOOKUP(W$2,'Technische Daten'!$A:$G,7,0),0) -> 0 | X88: =IF(X$3<>"",X$3*VLOOKUP(X$2,'Technische Daten'!$A:$G,7,0),0) -> 0 | Y88: =IF(Y$3<>"",Y$3*VLOOKUP(Y$2,'Technische Daten'!$A:$G,7,0),0) -> 0 | Z88: =IF(Z$3<>"",Z$3*VLOOKUP(Z$2,'Technische Daten'!$A:$G,7,0),0) -> 0 | AA88: =IF(AA$3<>"",AA$3*VLOOKUP(AA$2,'Technische Daten'!$A:$G,7,0),0) -> 0 | AB88: =IF(AB$3<>"",AB$3*VLOOKUP(AB$2,'Technische Daten'!$A:$G,7,0),0) -> 0 | AC88: =IF(AC$3<>"",AC$3*VLOOKUP(AC$2,'Technische Daten'!$A:$G,7,0),0) -> 0 | AD88: =IF(AD$3<>"",AD$3*VLOOKUP(AD$2,'Technische Daten'!$A:$G,7,0),0) -> 0 | AE88: =IF(AE$3<>"",AE$3*VLOOKUP(AE$2,'Technische Daten'!$A:$G,7,0),0) -> 0 | AF88: =IF(AF$3<>"",AF$3*VLOOKUP(AF$2,'Technische Daten'!$A:$G,7,0),0) -> 0 | AG88: =IF(AG$3<>"",AG$3*VLOOKUP(AG$2,'Technische Daten'!$A:$G,7,0),0) -> 0 | AH88: =IF(AH$3<>"",AH$3*VLOOKUP(AH$2,'Technische Daten'!$A:$G,7,0),0) -> 0 | AI88: =IF(AI$3<>"",AI$3*VLOOKUP(AI$2,'Technische Daten'!$A:$G,7,0),0) -> 0 | AJ88: =IF(AJ$3<>"",AJ$3*VLOOKUP(AJ$2,'Technische Daten'!$A:$G,7,0),0) -> 0 | AK88: =IF(AK$3<>"",AK$3*VLOOKUP(AK$2,'Technische Daten'!$A:$G,7,0),0) -> 0 | AL88: =IF(AL$3<>"",AL$3*VLOOKUP(AL$2,'Technische Daten'!$A:$G,7,0),0) -> 0 | AM88: =IF(AM$3<>"",AM$3*VLOOKUP(AM$2,'Technische Daten'!$A:$G,7,0),0) -> 0 | AN88: =IF(AN$3<>"",AN$3*VLOOKUP(AN$2,'Technische Daten'!$A:$G,7,0),0) -> 0 | AO88: =IF(AO$3<>"",AO$3*VLOOKUP(AO$2,'Technische Daten'!$A:$G,7,0),0) -> 0 | AP88: =IF(AP$3<>"",AP$3*VLOOKUP(AP$2,'Technische Daten'!$A:$G,7,0),0) -> 0 | AQ88: =IF(AQ$3<>"",AQ$3*VLOOKUP(AQ$2,'Technische Daten'!$A:$G,7,0),0) -> 0 | AR88: =IF(AR$3<>"",AR$3*VLOOKUP(AR$2,'Technische Daten'!$A:$G,7,0),0) -> 0 | AS88: =IF(AS$3<>"",AS$3*VLOOKUP(AS$2,'Technische Daten'!$A:$G,7,0),0) -> 0 | AT88: =IF(AT$3<>"",AT$3*VLOOKUP(AT$2,'Technische Daten'!$A:$G,7,0),0) -> 0 | AU88: =IF(AU$3<>"",AU$3*VLOOKUP(AU$2,'Technische Daten'!$A:$G,7,0),0) -> 0 | AV88: =IF(AV$3<>"",AV$3*VLOOKUP(AV$2,'Technische Daten'!$A:$G,7,0),0) -> 0 | AX88: =IF(AX$3<>"",AX$3*VLOOKUP(AX$2,'Technische Daten'!$A:$G,7,0),0) -> 0
A90: Overhead durch Header (Ausgänge, Rx) | B90: =(-1) * ROUNDUP(B88/64,0) * 8 -> 0
A91: Gesamt Rx Bytes | B91: =B90+(B88 * (-1)) -> 0
A92: Gesamt Rx Bits | B92: =B91*10 -> 0
A93: Anzahl zu durchlaufender Module | B93: =SUM(J3:AT3) -> 0
A94: Übertragungszeit Rx (ns) | B94: =(B92+B93) * 20 * 2 + 2700 -> 2700
A95: Antworttelegramme je Modul (byte) | J95: =ROUNDUP(IF(J$3<>"",VLOOKUP(J$2,'Technische Daten'!$A:$G,6,0),0) / (-8),0) -> 0 | K95: =ROUNDUP(IF(K$3<>"",VLOOKUP(K$2,'Technische Daten'!$A:$G,6,0),0) / (-8),0) -> 0 | L95: =ROUNDUP(IF(L$3<>"",VLOOKUP(L$2,'Technische Daten'!$A:$G,6,0),0) / (-8),0) -> 0 | M95: =ROUNDUP(IF(M$3<>"",VLOOKUP(M$2,'Technische Daten'!$A:$G,6,0),0) / (-8),0) -> 0 | N95: =ROUNDUP(IF(N$3<>"",VLOOKUP(N$2,'Technische Daten'!$A:$G,6,0),0) / (-8),0) -> 0 | O95: =ROUNDUP(IF(O$3<>"",VLOOKUP(O$2,'Technische Daten'!$A:$G,6,0),0) / (-8),0) -> 0 | P95: =ROUNDUP(IF(P$3<>"",VLOOKUP(P$2,'Technische Daten'!$A:$G,6,0),0) / (-8),0) -> 0 | Q95: =ROUNDUP(IF(Q$3<>"",VLOOKUP(Q$2,'Technische Daten'!$A:$G,6,0),0) / (-8),0) -> 0 | R95: =ROUNDUP(IF(R$3<>"",VLOOKUP(R$2,'Technische Daten'!$A:$G,6,0),0) / (-8),0) -> 0 | S95: =ROUNDUP(IF(S$3<>"",VLOOKUP(S$2,'Technische Daten'!$A:$G,6,0),0) / (-8),0) -> 0 | T95: =ROUNDUP(IF(T$3<>"",VLOOKUP(T$2,'Technische Daten'!$A:$G,6,0),0) / (-8),0) -> 0 | U95: =ROUNDUP(IF(U$3<>"",VLOOKUP(U$2,'Technische Daten'!$A:$G,6,0),0) / (-8),0) -> 0 | V95: =ROUNDUP(IF(V$3<>"",VLOOKUP(V$2,'Technische Daten'!$A:$G,6,0),0) / (-8),0) -> 0 | W95: =ROUNDUP(IF(W$3<>"",VLOOKUP(W$2,'Technische Daten'!$A:$G,6,0),0) / (-8),0) -> 0 | X95: =ROUNDUP(IF(X$3<>"",VLOOKUP(X$2,'Technische Daten'!$A:$G,6,0),0) / (-8),0) -> 0 | Y95: =ROUNDUP(IF(Y$3<>"",VLOOKUP(Y$2,'Technische Daten'!$A:$G,6,0),0) / (-8),0) -> 0 | Z95: =ROUNDUP(IF(Z$3<>"",VLOOKUP(Z$2,'Technische Daten'!$A:$G,6,0),0) / (-8),0) -> 0 | AA95: =ROUNDUP(IF(AA$3<>"",VLOOKUP(AA$2,'Technische Daten'!$A:$G,6,0),0) / (-8),0) -> 0 | AB95: =ROUNDUP(IF(AB$3<>"",VLOOKUP(AB$2,'Technische Daten'!$A:$G,6,0),0) / (-8),0) -> 0 | AC95: =ROUNDUP(IF(AC$3<>"",VLOOKUP(AC$2,'Technische Daten'!$A:$G,6,0),0) / (-8),0) -> 0 | AD95: =ROUNDUP(IF(AD$3<>"",VLOOKUP(AD$2,'Technische Daten'!$A:$G,6,0),0) / (-8),0) -> 0 | AE95: =ROUNDUP(IF(AE$3<>"",VLOOKUP(AE$2,'Technische Daten'!$A:$G,6,0),0) / (-8),0) -> 0 | AF95: =ROUNDUP(IF(AF$3<>"",VLOOKUP(AF$2,'Technische Daten'!$A:$G,6,0),0) / (-8),0) -> 0 | AG95: =ROUNDUP(IF(AG$3<>"",VLOOKUP(AG$2,'Technische Daten'!$A:$G,6,0),0) / (-8),0) -> 0 | AH95: =ROUNDUP(IF(AH$3<>"",VLOOKUP(AH$2,'Technische Daten'!$A:$G,6,0),0) / (-8),0) -> 0 | AI95: =ROUNDUP(IF(AI$3<>"",VLOOKUP(AI$2,'Technische Daten'!$A:$G,6,0),0) / (-8),0) -> 0 | AJ95: =ROUNDUP(IF(AJ$3<>"",VLOOKUP(AJ$2,'Technische Daten'!$A:$G,6,0),0) / (-8),0) -> 0 | AK95: =ROUNDUP(IF(AK$3<>"",VLOOKUP(AK$2,'Technische Daten'!$A:$G,6,0),0) / (-8),0) -> 0 | AL95: =ROUNDUP(IF(AL$3<>"",VLOOKUP(AL$2,'Technische Daten'!$A:$G,6,0),0) / (-8),0) -> 0 | AM95: =ROUNDUP(IF(AM$3<>"",VLOOKUP(AM$2,'Technische Daten'!$A:$G,6,0),0) / (-8),0) -> 0 | AN95: =ROUNDUP(IF(AN$3<>"",VLOOKUP(AN$2,'Technische Daten'!$A:$G,6,0),0) / (-8),0) -> 0 | AO95: =ROUNDUP(IF(AO$3<>"",VLOOKUP(AO$2,'Technische Daten'!$A:$G,6,0),0) / (-8),0) -> 0 | AP95: =ROUNDUP(IF(AP$3<>"",VLOOKUP(AP$2,'Technische Daten'!$A:$G,6,0),0) / (-8),0) -> 0 | AQ95: =ROUNDUP(IF(AQ$3<>"",VLOOKUP(AQ$2,'Technische Daten'!$A:$G,6,0),0) / (-8),0) -> 0 | AR95: =ROUNDUP(IF(AR$3<>"",VLOOKUP(AR$2,'Technische Daten'!$A:$G,6,0),0) / (-8),0) -> 0 | AS95: =ROUNDUP(IF(AS$3<>"",VLOOKUP(AS$2,'Technische Daten'!$A:$G,6,0),0) / (-8),0) -> 0 | AT95: =ROUNDUP(IF(AT$3<>"",VLOOKUP(AT$2,'Technische Daten'!$A:$G,6,0),0) / (-8),0) -> 0
A96: dazu Antworttelegramm-Aufschlag je Modul | J96: =IF(J95 > 0, IF(J95 < 12,J95+3+3,J95+5+3),0) -> 0 | K96: 0 | L96: 0 | M96: 0 | N96: 0 | O96: 0 | P96: 0 | Q96: =IF(Q95 > 0, IF(Q95 < 12,Q95+3+3,Q95+5+3),0) -> 0 | R96: =IF(R95 > 0, IF(R95 < 12,R95+3+3,R95+5+3),0) -> 0 | S96: 0 | T96: 0 | U96: 0 | V96: 0 | W96: 0 | X96: 0 | Y96: 0 | Z96: 0 | AA96: 0 | AB96: 0 | AC96: 0 | AD96: 0 | AE96: 0 | AF96: 0 | AG96: 0 | AH96: 0 | AI96: 0 | AJ96: 0 | AK96: 0 | AL96: 0 | AM96: 0 | AN96: 0 | AO96: 0 | AP96: 0 | AQ96: 0 | AR96: 0 | AS96: 0 | AT96: 0
A97: Gesamt Tx Bytes | B97: =4 + SUM(J97:AT97) -> 4 | J97: =J96*J$3 -> 0 | K97: 0 | L97: 0 | M97: 0 | N97: 0 | O97: 0 | P97: 0 | Q97: =Q96*Q$3 -> 0 | R97: =R96*R$3 -> 0 | S97: 0 | T97: 0 | U97: 0 | V97: 0 | W97: 0 | X97: 0 | Y97: 0 | Z97: 0 | AA97: 0 | AB97: 0 | AC97: 0 | AD97: 0 | AE97: 0 | AF97: 0 | AG97: 0 | AH97: 0 | AI97: 0 | AJ97: 0 | AK97: 0 | AL97: 0 | AM97: 0 | AN97: 0 | AO97: 0 | AP97: 0 | AQ97: 0 | AR97: 0 | AS97: 0 | AT97: 0
A98: Gesamt Tx Bits | B98: =10 * B97 -> 40
A99: reine Übertragungszeit Tx (ns) | B99: =B98 * 20 -> 800
A100: Durchlaufzeit Anfrage Tx (ns) | B100: =SUM(J100:AT100) * 2 * 10 -> 0 | J100: =J$3 -> 0 | K100: 0 | L100: 0 | M100: 0 | N100: 0 | O100: 0 | P100: 0 | Q100: =Q$3 -> 0 | R100: =R$3 -> 0 | S100: 0 | T100: 0 | U100: 0 | V100: 0 | W100: 0 | X100: 0 | Y100: 0 | Z100: 0 | AA100: 0 | AB100: 0 | AC100: 0 | AD100: 0 | AE100: 0 | AF100: 0 | AG100: 0 | AH100: 0 | AI100: 0 | AJ100: 0 | AK100: 0 | AL100: 0 | AM100: 0 | AN100: 0 | AO100: 0 | AP100: 0 | AQ100: 0 | AR100: 0 | AS100: 0 | AT100: 0
A101: Durchlaufzeit Antwort Tx (ns) | B101: =10 * (SUM(J101:AT101) - 1) * SUM(J101:AT101)/2 -> 0 | J101: 0 | K101: 0 | L101: 0 | M101: 0 | N101: 0 | O101: 0 | P101: 0 | Q101: =Q$3 -> 0 | R101: 0 | S101: 0 | T101: 0 | U101: 0 | V101: 0 | W101: 0 | X101: 0 | Y101: 0 | Z101: 0 | AA101: 0 | AB101: 0 | AC101: 0 | AD101: 0 | AE101: 0 | AF101: 0 | AG101: 0 | AH101: 0 | AI101: 0 | AJ101: 0 | AK101: 0 | AL101: 0 | AM101: 0 | AN101: 0 | AO101: 0 | AP101: 0 | AQ101: 0 | AR101: 0 | AS101: 0 | AT101: 0
A102: Übertragungszeit Tx Gesamt (ns) | B102: =(B99+B100+B101)* 2 -> 1600
A103: Restzykluszeit (µs) | B103: =((('Technische Daten'!AB8 - 200) * 1000) - B94 - B102) / 1000 -> 795.7
A104: prozentuale Auslastung | B104: =('Technische Daten'!AB8 - Konfiguration!B103)/'Technische Daten'!AB8 -> 0.2043

Sheet Technische Daten (hidden)
A1: Typ | B1: Elektronikstrom | C1: =IF(Konfiguration!B5 = Texte!B107,'Technische Daten'!N1,'Technische Daten'!M1) -> I/O Strom max | D1: I/O Strom zusätzlich fest | E1: zusätzlicher I/O-Strom (Annahme) | F1: max. Eingangs-PDO Tx (Bit) | G1: max. Ausgangs-PDO Rx (Bit) | H1: Parameter | I1: Anzahl DI | J1: Anzahl DO | K1: Anzahl AI | L1: Anzahl AO | M1: I/O Strom max | N1: I/O Strom UL | O1: Eingangs-PDO Tx (Bit) CAN Drive-based (7 PDOs frei, 2 feste kommen ggf hinzu) | P1: Ausgangs-PDO Rx CAN Drive-based(Bit) (7 PDOs frei, 2 feste kommen ggf hinzu) | Q1: min. Eingangs-PDO Tx (Bit) | R1: min. Ausgangs-PDO Rx (Bit) | S1: EPM-S110 | T1: EPM-S120 | U1: EPM-S130 | V1: EPM-S140 | W1: EPM-S150 | X1: EPM-S160 | Y1: 3200 C | Z1: Breite (mm) | AA1: Drive based festes PDO | AB1: min Zykluszeit (µs)
A2: EPM-S110 | B2: 3000 | C2: =HLOOKUP($C$1,$M:$N,ROW()-ROW($B$1)+1,FALSE) -> 10000 | F2: =16*8*8 -> 1024 | G2: =16*8*8 -> 1024 | M2: 10000 | N2: 7000 | O2: 512 | P2: 512 | Q2: =16*8*8 -> 1024 | R2: =16*8*8 -> 1024 | Z2: 48
A3: EPM-S120 | B3: 3000 | C3: 10000 | F3: =244*8 -> 1952 | G3: =244*8 -> 1952 | H3: =224*8 -> 1792 | M3: 10000 | N3: 7000 | Q3: =244*8 -> 1952 | R3: =244*8 -> 1952 | Z3: 48
A4: EPM-S130 | B4: 3000 | C4: 10000 | F4: =1024*4*8 -> 32768 | G4: =1024*4*8 -> 32768 | M4: 10000 | N4: 7000 | Q4: =F4 -> 32768 | R4: 32768 | Z4: 48
A5: EPM-S140 | B5: 3000 | C5: 10000 | F5: =512*8 -> 4096 | G5: =512*8 -> 4096 | H5: =4068*8 -> 32544 | M5: 10000 | N5: 7000 | Q5: 4096 | R5: 4096 | Z5: 48
A6: EPM-S150 | B6: 3000 | C6: 10000 | F6: =256*8 -> 2048 | G6: =256*8 -> 2048 | M6: 10000 | N6: 7000 | Q6: 2048 | R6: 2048 | Z6: 48
A7: EPM-S160 | B7: 3000 | C7: 10000 | F7: =1024*8 -> 8192 | G7: =1024*8 -> 8192 | M7: 10000 | N7: 7000 | Q7: 8192 | R7: 8192 | Z7: 48
A8: 3200 C | B8: 1700 | C8: 0 | F8: =(2048-256)*8 -> 14336 | M8: 0 | N8: 0 | Q8: =2048-128 -> 1920 | Z8: 136 | AB8: 1000
A9: EPM-S200 | B9: -55 | C9: =HLOOKUP($C$1,$M:$N,ROW()-ROW($B$1)+1,FALSE) -> 0 | F9: =HLOOKUP($C$71,$S:$Y,ROW()-ROW($B$1)+1,FALSE) -> -2 | H9: 0 | I9: 2 | O9: =S9 -> -2 | P9: =G9 -> 0 | Q9: =F9 -> -2 | S9: -2 | T9: -8 | U9: -8 | V9: -8 | W9: -8 | X9: -8 | Y9: -2 | Z9: 12.5 | AA9: 1
A10: EPM-S201 | B10: -55 | C10: 0 | F10: -4 | H10: 0 | I10: 4 | O10: =S10 -> -4 | P10: 0 | Q10: =F10 -> -4 | S10: -4 | T10: -8 | U10: -8 | V10: -8 | W10: -8 | X10: -8 | Y10: -4 | Z10: 12.5 | AA10: 1
A11: EPM-S202 | B11: -60 | C11: 0 | F11: -8 | H11: 0 | I11: 8 | O11: -8 | P11: 0 | Q11: -8 | S11: -8 | T11: -8 | U11: -8 | V11: -8 | W11: -8 | X11: -8 | Y11: -8 | Z11: 12.5 | AA11: 1
A12: EPM-S203 | B12: -55 | C12: 0 | F12: -4 | H12: 0 | I12: 4 | O12: -4 | P12: 0 | Q12: -4 | S12: -4 | T12: -8 | U12: -8 | V12: -8 | W12: -8 | X12: -8 | Y12: -4 | Z12: 12.5 | AA12: 1
A13: EPM-S204 | B13: -60 | C13: 0 | F13: -2 | H13: 0 | I13: 2 | O13: -2 | P13: 0 | Q13: -2 | S13: -2 | T13: -8 | U13: -8 | V13: -8 | W13: -8 | X13: -8 | Y13: -2 | Z13: 12.5 | AA13: 1
A14: EPM-S205 | B14: -60 | C14: 0 | F14: -4 | H14: 0 | I14: 4 | O14: -4 | P14: 0 | Q14: -4 | S14: -4 | T14: -8 | U14: -8 | V14: -8 | W14: -8 | X14: -8 | Y14: -4 | Z14: 12.5 | AA14: 1
A15: EPM-S206 | B15: -65 | C15: 0 | F15: -8 | H15: 0 | I15: 8 | O15: -8 | P15: 0 | Q15: -8 | S15: -8 | T15: -8 | U15: -8 | V15: -8 | W15: -8 | X15: -8 | Y15: -8 | Z15: 12.5 | AA15: 1
A16: EPM-S207 | B16: -85 | C16: 0 | F16: -256 | H16: =-6*8 -> -48 | I16: 2 | O16: =F16 -> -256 | P16: 0 | Q16: =-4*8 -> -32 | S16: =-60*8 -> -480 | T16: -480 | U16: -480 | V16: -480 | W16: -480 | X16: -480 | Y16: =-32*8 -> -256 | Z16: 12.5
A17: EPM-S208 | C17: 0 | O17: 0 | P17: 0 | Z17: 12.5
A18: EPM-S300 | B18: -55 | C18: -1000 | D18: -5 | G18: =HLOOKUP($C$71,$S:$Y,ROW()-ROW($B$1)+1,FALSE) -> -2 | H18: 0 | J18: 2 | M18: -1000 | N18: -1000 | O18: 0 | P18: =S18 -> -2 | R18: =G18 -> -2 | S18: -2 | T18: -8 | U18: -8 | V18: -8 | W18: -8 | X18: -8 | Y18: -2 | Z18: 12.5 | AA18: 1
A19: EPM-S301 | B19: -55 | C19: -2000 | D19: -10 | G19: -4 | H19: 0 | J19: 4 | M19: -2000 | N19: -2000 | O19: 0 | P19: =S19 -> -4 | R19: =G19 -> -4 | S19: -4 | T19: -8 | U19: -8 | V19: -8 | W19: -8 | X19: -8 | Y19: -4 | Z19: 12.5 | AA19: 1
A20: EPM-S302 | B20: -65 | C20: -4000 | D20: -15 | G20: -8 | H20: 0 | J20: 8 | M20: -4000 | N20: -4000 | O20: 0 | P20: -8 | R20: -8 | S20: -8 | T20: -8 | U20: -8 | V20: -8 | W20: -8 | X20: -8 | Y20: -8 | Z20: 12.5 | AA20: 1
A21: EPM-S303 | B21: -60 | C21: -1000 | D21: -3 | G21: -2 | H21: 0 | J21: 2 | M21: -1000 | N21: -1000 | O21: 0 | P21: -2 | R21: -2 | S21: -2 | T21: -8 | U21: -8 | V21: -8 | W21: -8 | X21: -8 | Y21: -2 | Z21: 12.5 | AA21: 1
A22: EPM-S304 | B22: -65 | C22: -2000 | D22: -5 | G22: -4 | H22: 0 | J22: 4 | M22: -2000 | N22: -2000 | O22: 0 | P22: -4 | R22: -4 | S22: -4 | T22: -8 | U22: -8 | V22: -8 | W22: -8 | X22: -8 | Y22: -4 | Z22: 12.5 | AA22: 1
A23: EPM-S305 | B23: -70 | C23: -4000 | D23: -10 | G23: -8 | H23: 0 | J23: 8 | M23: -4000 | N23: -4000 | O23: 0 | P23: -8 | R23: -8 | S23: -8 | T23: -8 | U23: -8 | V23: -8 | W23: -8 | X23: -8 | Y23: -8 | Z23: 12.5 | AA23: 1
A24: EPM-S306 | B24: -55 | C24: -4000 | D24: -5 | G24: -2 | H24: 0 | J24: 2 | M24: -4000 | N24: -4000 | O24: 0 | P24: -2 | R24: -2 | S24: -2 | T24: -8 | U24: -8 | V24: -8 | W24: -8 | X24: -8 | Y24: -2 | Z24: 12.5 | AA24: 1
A25: EPM-S308 | B25: -55 | C25: 0 | D25: 0 | G25: -2 | H25: 0 | M25: 0 | N25: 0 | O25: 0 | P25: -2 | R25: -2 | S25: -2 | T25: -8 | U25: -8 | V25: -8 | W25: -8 | X25: -8 | Y25: -2 | Z25: 12.5 | AA25: 1
A26: EPM-S309 | B26: -55 | C26: -4000 | D26: -10 | G26: -4 | H26: 0 | J26: 4 | M26: -4000 | N26: -4000 | O26: 0 | P26: -4 | R26: -4 | S26: -4 | T26: -8 | U26: -8 | V26: -8 | W26: -8 | X26: -8 | Y26: -4 | Z26: 12.5 | AA26: 1
A27: EPM-S310 | B27: -85 | C27: -1000 | D27: -14 | F27: =-4*8 -> -32 | G27: -256 | H27: =-2*8 -> -16 | J27: 2 | M27: -1000 | N27: -1000 | O27: =F27 -> -32 | P27: -256 | R27: =-24*8 -> -192 | S27: =-60*8 -> -480 | T27: -480 | U27: -480 | V27: -480 | W27: -480 | X27: -480 | Y27: =-32*8 -> -256 | Z27: 12.5
A28: EPM-S311 | C28: =HLOOKUP($C$1,$M:$N,ROW()-ROW($B$1)+1,FALSE) -> 0 | O28: 0 | P28: 0 | Z28: 12.5
A29: EPM-S400 | B29: -70 | C29: 0 | D29: -15 | F29: -32 | H29: -48 | K29: 2 | O29: -32 | P29: 0 | Q29: -32 | Z29: 12.5 | AA29: 1
A30: EPM-S401 | B30: -70 | C30: 0 | D30: -15 | F30: -64 | H30: -64 | K30: 4 | O30: -64 | P30: 0 | Q30: -64 | Z30: 12.5 | AA30: 1
A31: EPM-S402 | B31: -70 | C31: 0 | D31: -15 | F31: -32 | H31: -48 | K31: 2 | O31: -32 | P31: 0 | Q31: -32 | Z31: 12.5 | AA31: 1
A32: EPM-S403 | B32: -70 | C32: 0 | D32: -15 | F32: -64 | H32: -64 | K32: 4 | O32: -64 | P32: 0 | Q32: -64 | Z32: 12.5 | AA32: 1
A33: EPM-S404 | B33: -75 | C33: 0 | D33: -30 | F33: -64 | H33: =-34*8 -> -272 | K33: 4 | O33: -64 | P33: 0 | Q33: -64 | Z33: 12.5 | AA33: 1
A34: EPM-S405 | B34: -75 | C34: 0 | D34: -30 | F34: -32 | H34: =-22*8 -> -176 | K34: 2 | O34: -32 | P34: 0 | Q34: -32 | Z34: 12.5 | AA34: 1
A35: EPM-S406 | B35: -60 | C35: 0 | D35: -20 | F35: -32 | H35: =-20*8 -> -160 | K35: 2 | O35: -32 | P35: 0 | Q35: -32 | Z35: 12.5 | AA35: 1
A36: EPM-S407 | C36: 0 | F36: -64 | O36: -64 | P36: 0 | Q36: -64 | Z36: 12.5
A37: EPM-S408 | B37: -60 | C37: 0 | D37: -20 | F37: -32 | H37: =-20*8 -> -160 | K37: 2 | O37: -32 | P37: 0 | Q37: -32 | Z37: 12.5 | AA37: 1
A38: EPM-S409 | C38: 0 | F38: -64 | O38: -64 | P38: 0 | Q38: -64 | Z38: 12.5
A39: EPM-S500 | B39: -80 | C39: 0 | D39: -35 | G39: -32 | H39: -64 | L39: 2 | O39: 0 | P39: -32 | R39: -32 | Z39: 12.5 | AA39: 1
A40: EPM-S501 | B40: -80 | C40: 0 | D40: -35 | G40: -64 | H40: -80 | L40: 4 | O40: 0 | P40: -64 | R40: -64 | Z40: 12.5 | AA40: 1
A41: EPM-S502 | B41: -80 | C41: 0 | D41: -15 | E41: -40 | G41: -32 | H41: -64 | L41: 2 | O41: =F41 -> 0 | P41: =G41 -> -32 | R41: -32 | Z41: 12.5 | AA41: 1
A42: EPM-S503 | B42: -80 | C42: 0 | D42: -15 | E42: -80 | G42: -64 | H42: -80 | L42: 4 | O42: 0 | P42: -64 | R42: -64 | Z42: 12.5 | AA42: 1
A43: EPM-S600 | B43: -75 | C43: -500 | D43: -20 | E43: -200 | F43: -96 | G43: -80 | H43: =-21*8 -> -168 | J43: 1 | O43: -96 | P43: -80 | Q43: -96 | R43: -80 | Z43: 12.5
A44: EPM-S601 | B44: -75 | C44: =HLOOKUP($C$1,$M:$N,ROW()-ROW($B$1)+1,FALSE) -> 0 | D44: -15 | E44: -400 | F44: -96 | G44: -96 | H44: =-42*8 -> -336 | O44: -96 | P44: -96 | Q44: -96 | R44: -96 | Z44: 12.5
A45: EPM-S602 | B45: -75 | C45: =HLOOKUP($C$1,$M:$N,ROW()-ROW($B$1)+1,FALSE) -> 0 | D45: -20 | E45: -200 | F45: -64 | G45: -80 | H45: =-22*8 -> -176 | O45: -64 | P45: -80 | Q45: -64 | R45: -80 | Z45: 12.5
A46: EPM-S603 | B46: -100 | C46: =HLOOKUP($C$1,$M:$N,ROW()-ROW($B$1)+1,FALSE) -> 0 | D46: -15 | E46: -200 | F46: -96 | G46: -32 | H46: =-8*8 -> -64 | O46: -96 | P46: -32 | Q46: -96 | R46: -32 | Z46: 12.5
A47: EPM-S604 | B47: -70 | C47: =HLOOKUP($C$1,$M:$N,ROW()-ROW($B$1)+1,FALSE) -> 0 | D47: -30 | E47: -250 | F47: -48 | H47: =-33*8 -> -264 | O47: -48 | P47: 0 | Q47: -48 | Z47: 12.5
A48: EPM-S620 | B48: -95 | C48: -1000 | D48: -14 | F48: =-12*8 -> -96 | G48: =-4*8 -> -32 | H48: =-8*8 -> -64 | O48: -96 | P48: -32 | Z48: 12.5
A49: EPM-S640 | B49: -100 | D49: -10 | E49: -10 | F49: =HLOOKUP($C$71,$S:$Y,ROW()-ROW($B$1)+1,FALSE) -> -480 | G49: =HLOOKUP($C$71,$S:$Y,ROW()-ROW($B$1)+1,FALSE) -> -480 | H49: =-17*8 -> -136 | O49: -480 | P49: -480 | Q49: -480 | R49: -480 | S49: =-8*8 -> -64 | T49: =-20*8 -> -160 | U49: =-60*8 -> -480 | V49: -480 | W49: -480 | X49: -480 | Y49: -480 | Z49: 12.5
A50: EPM-S650 | B50: -100 | D50: -10 | E50: -10 | F50: =HLOOKUP($C$71,$S:$Y,ROW()-ROW($B$1)+1,FALSE) -> -480 | G50: =HLOOKUP($C$71,$S:$Y,ROW()-ROW($B$1)+1,FALSE) -> -480 | H50: =-17*8 -> -136 | O50: =F50 -> -480 | P50: =G50 -> -480 | Q50: -480 | R50: -480 | S50: =-8*8 -> -64 | T50: =-20*8 -> -160 | U50: -480 | V50: -480 | W50: -480 | X50: -480 | Y50: -480 | Z50: 12.5
A51: EPM-S700 | B51: 3000 | C51: =HLOOKUP($C$1,$M:$N,ROW()-ROW($B$1)+1,FALSE) -> 10000 | M51: 10000 | N51: 7000 | O51: 0 | P51: 0 | Z51: 12.5
A52: EPM-S701 | B52: 0 | C52: 10000 | M52: 10000 | N52: 7000 | O52: 0 | P52: 0 | Z52: 12.5
A53: EPM-S702 | B53: 2000 | C53: 4000 | M53: 4000 | N53: 4000 | O53: 0 | P53: 0 | Z53: 12.5
A54: EPM-S703 | B54: 0 | C54: 10000 | M54: 10000 | N54: 7000 | O54: =F54 -> 0 | P54: =G54 -> 0 | Z54: 12.5
A55: EPM-S800 | C55: 0 | O55: 0 | P55: 0 | Z55: 12.5
A56: EPM-S820 | C56: 0 | O56: 0 | P56: 0 | Z56: 12.5
A57: EPM-S840 | C57: 0 | O57: 0 | P57: 0 | Z57: 12.5
A58: EPM-S900 | C58: 0 | O58: 0 | P58: 0 | Z58: 12.5
A59: EPM-S910 | C59: 0 | O59: 0 | P59: 0 | Z59: 12.5
A60: EPM-S911 | C60: 0 | O60: 0 | P60: 0 | Z60: 12.5
A61: EPM-S912 | C61: 0 | O61: 0 | P61: 0 | Z61: 12.5
A71: aktuelles Bussystem: | C71: =IF(EPM_S110<>0,"EPM-S110",IF(EPM_S120<>0,"EPM-S120",IF(EPM_S130<>0,"EPM-S130",IF(EPM_S140<>0,"EPM-S140",IF(EPM_S150<>0,"EPM-S150",IF(EPM_S160<>0,"EPM-S160","3200 C")))))) -> 3200 C

Sheet Texte (hidden)
A1: Sprache | B1: =Konfiguration!A2 -> DE | D1: DE | E1: EN
B2: =HLOOKUP($B$1,$D:$K,ROW()-ROW($B$1)+1,FALSE) -> Elektronikversorgung | D2: Elektronikversorgung | E2: Electronics Supply
B3: Gesamtstrombelastung Elektronik (A) | D3: Gesamtstrombelastung Elektronik (A) | E3: total current electronics (A)
B4: Einspeisestrom Elektronik (A) | D4: Einspeisestrom Elektronik (A) | E4: available supply current electronics (A)
B5: benötigte Powermodule EPM-S702 | D5: benötigte Powermodule EPM-S702 | E5: number supply modules EPM-S701/702
B6: Konfigurationscheck | D6: Konfigurationscheck | E6: Configuration Check
B7: I/O-Versorgung | D7: I/O-Versorgung | E7: I/O supply
B8: Gesamtstrom I/O (A) | D8: Gesamtstrom I/O (A) | E8: total current I/O (A)
B9: Einspeisestrom I/O (A) | D9: Einspeisestrom I/O (A) | E9: available supply current I/O (A)
B10: benötigte Powermodule EPM-S701 | D10: benötigte Powermodule EPM-S701 | E10: number supply modules EPM-S701 | F10: 1
B11: Konfigurationscheck | D11: Konfigurationscheck | E11: Configuration Check
B12: Kommunikation (CAN) Controller-based | D12: Kommunikation (CAN) Controller-based | E12: Communication (CAN) Controller-based
B13: Anzahl verbleibende Rx-PDO (Byte) | D13: Anzahl verbleibende Rx-PDO (Byte) | E13: Number remaining Rx-PDO (Byte)
B14: Anzahl verbleibende Tx-PDO (Byte) | D14: Anzahl verbleibende Tx-PDO (Byte) | E14: Number remaining Tx-PDO (Byte)
B15: Anzahl Parameter (Byte) | D15: Anzahl Parameter (Byte) | E15: Anzahl Parameter (Byte)
B16: Konfigurationscheck | D16: Konfigurationscheck | E16: Configuration Check
B17: Kommunikation (CAN) Drive-based | D17: Kommunikation (CAN) Drive-based | E17: Communication (CAN) Drive-based
B18: Anzahl verbleibende Rx-PDO (Byte) | D18: Anzahl verbleibende Rx-PDO (Byte) | E18: Number remaining Rx-PDO (Byte)
B19: Anzahl verbleibende Tx-PDO (Byte) | D19: Anzahl verbleibende Tx-PDO (Byte) | E19: Number remaining Tx-PDO (Byte)
B20: Anzahl Parameter (Byte) | D20: Anzahl Parameter (Byte) | E20: Anzahl Parameter (Byte)
B21: Konfigurationscheck | D21: Konfigurationscheck | E21: Configuration Check
B22: Kommunikation (PROFIBUS) | D22: Kommunikation (PROFIBUS) | E22: Communication (PROFIBUS)
B23: Kommunikation (PROFINET) | D23: Kommunikation (PROFINET) | E23: Communication (PROFINET)
B24: Anzahl verbleibende Rx-PDO (Byte) | D24: Anzahl verbleibende Rx-PDO (Byte) | E24: Number remaining Rx-PDO (Byte)
B25: Anzahl verbleibende Tx-PDO (Byte) | D25: Anzahl verbleibende Tx-PDO (Byte) | E25: Number remaining Tx-PDO (Byte)
B26: Anzahl Parameter (Byte) | D26: Anzahl Parameter (Byte) | E26: Number Parameter (Byte)
B27: Konfigurationscheck | D27: Konfigurationscheck | E27: Configuration Check
B28: Kommunikation (EtherCAT) | D28: Kommunikation (EtherCAT) | E28: Communication (EtherCAT)
B29: Anzahl verbleibende Rx-PDO (Byte) | D29: Anzahl verbleibende Rx-PDO (Byte) | E29: Number remaining Rx-PDO (Byte)
B30: Anzahl verbleibende Tx-PDO (Byte) | D30: Anzahl verbleibende Tx-PDO (Byte) | E30: Number remaining Tx-PDO (Byte)
B31: Anzahl Parameter (Byte) | D31: Anzahl Parameter (Byte) | E31: Number Parameter (Byte)
B32: Konfigurationscheck | D32: Konfigurationscheck | E32: Configuration Check
B33: Übersicht | D33: Übersicht | E33: Overview
B34: Gesamtanzahl Module (ohne Versorgung) | D34: Gesamtanzahl Module (ohne Versorgung) | E34: Total number modules (without supply)
B35: Gesamtanzahl digitale Eingänge | D35: Gesamtanzahl digitale Eingänge | E35: Total number digutal inputs
B36: Gesamtanzahl digitale Ausgänge | D36: Gesamtanzahl digitale Ausgänge | E36: Total number digital outputs
B37: Gesamtanzahl analoge Eingänge | D37: Gesamtanzahl analoge Eingänge | E37: Total number analog inputs
B38: Gesamtanzahl analoge Ausgänge | D38: Gesamtanzahl analoge Ausgänge | E38: Total number analog outputs
B39: Kommunikation (DeviceNet) | D39: Kommunikation (DeviceNet) | E39: Communication (DeviceNet)
B40: Kommunikation (Modbus TCP) | D40: Kommunikation (Modbus TCP) | E40: Communication (Modbus TCP)
B41: Kommunikation (Rückwandbus) | D41: Kommunikation (Rückwandbus) | E41: Communication (I/O backplane bus)
B42: Auslastung Rückwandbus | D42: Auslastung Rückwandbus | E42: Backplane bus load
B44: =HLOOKUP($B$1,$D:$K,ROW()-ROW($B$1)+1,FALSE) -> durchschnittliche Ausgangsbelastung(%) | D44: durchschnittliche Ausgangsbelastung(%) | E44: average output load (%)
A45: EPM-S110 | B45: CANopen | D45: CANopen | E45: CANopen
A46: EPM-S120 | B46: PROFIBUS | D46: PROFIBUS | E46: PROFIBUS
A47: EPM-S130 | B47: EtherCAT | D47: EtherCAT | E47: EtherCAT
A48: EPM-S140 | B48: PROFINET | D48: PROFINET | E48: PROFINET
A49: EPM-S150 | B49: DeviceNet | D49: DeviceNet | E49: DeviceNet
A50: EPM-S160 | B50: Modbus TCP | D50: Modbus TCP | E50: Modbus TCP
A51: 3200 C | B51: L-force Controller | D51: L-force Controller | E51: L-force Controller
A52: EPM-S200 | B52: 2 DI | D52: 2 DI | E52: 2 DI
A53: EPM-S201 | B53: 4 DI | D53: 4 DI | E53: 4 DI
A54: EPM-S202 | B54: 8 DI | D54: 8 DI | E54: 8 DI
A55: EPM-S203 | B55: 4 DI 3-Leiter | D55: 4 DI 3-Leiter | E55: 4 DI 3-wire
A56: EPM-S204 | B56: 2 DI NPN | D56: 2 DI NPN | E56: 2 DI NPN
A57: EPM-S205 | B57: 4 DI NPN | D57: 4 DI NPN | E57: 4 DI NPN
A58: EPM-S206 | B58: 8 DI NPN | D58: 8 DI NPN | E58: 8 DI NPN
A59: EPM-S207 | B59: 2 DI 2µs | D59: 2 DI 2µs | E59: 2 DI 2µs
A60: EPM-S300 | B60: 2 DO | D60: 2 DO | E60: 2 DO
A61: EPM-S301 | B61: 4 DO | D61: 4 DO | E61: 4 DO
A62: EPM-S302 | B62: 8 DO | D62: 8 DO | E62: 8 DO
A63: EPM-S303 | B63: 2 DO NPN | D63: 2 DO NPN | E63: 2 DO NPN
A64: EPM-S304 | B64: 4 DO NPN | D64: 4 DO NPN | E64: 4 DO NPN
A65: EPM-S305 | B65: 8 DO NPN | D65: 8 DO NPN | E65: 8 DO NPN
A66: EPM-S306 | B66: 2 DO 2A | D66: 2 DO 2A | E66: 2 DO 2A
A67: EPM-S308 | B67: 2 DO Relais | D67: 2 DO Relais | E67: 2 DO Relais
A68: EPM-S309 | B68: 4 DO 2A | D68: 4 DO 2A | E68: 4 DO 2A
A69: EPM-S310 | B69: 2 DO 1µs | D69: 2 DO 1µs | E69: 2 DO 1µs
A70: EPM-S400 | B70: 2 AI 0..10V | D70: 2 AI 0..10V | E70: 2 AI 0..10V
A71: EPM-S401 | B71: 4 AI 0..10V | D71: 4 AI 0..10V | E71: 4 AI 0..10V
A72: EPM-S402 | B72: 2 AI 0(4)-20mA | D72: 2 AI 0(4)-20mA | E72: 2 AI 0(4)-20mA
A73: EPM-S403 | B73: 4 AI 0(4)-20mA | D73: 4 AI 0(4)-20mA | E73: 4 AI 0(4)-20mA
A74: EPM-S404 | B74: 4 AI Resistor | D74: 4 AI Resistor | E74: 4 AI Resistor
A75: EPM-S405 | B75: 2 AI Thermo | D75: 2 AI Thermo | E75: 2 AI Thermo
A76: EPM-S406 | B76: =HLOOKUP($B$1,$D:$K,ROW()-ROW($B$1)+1,FALSE) -> 2 AI -10..10 V 16 Bit | D76: 2 AI -10..10 V 16 Bit | E76: 2 AI -10..10V 16 Bit
A77: EPM-S408 | B77: 2 AI 0(4)..20 mA 16 Bit | D77: 2 AI 0(4)..20 mA 16 Bit | E77: 2 AI 0(4)..20 mA 16 Bit
A78: EPM-S500 | B78: 2 AO 0..10V | D78: 2 AO 0..10V | E78: 2 AO 0..10V
A79: EPM-S501 | B79: 4 AO 0..10V | D79: 4 AO 0..10V | E79: 4 AO 0..10V
A80: EPM-S502 | B80: 2 AO 4..20mA | D80: 2 AO 4..20mA | E80: 2 AO 4..20mA
A81: EPM-S503 | B81: 4 AO 4..20mA | D81: 4 AO 4..20mA | E81: 4 AO 4..20mA
A82: EPM-S600 | B82: 1-fach Zähler 24 V / 1 DO | D82: 1-fach Zähler 24 V / 1 DO | E82: 1-way Counter 24 V / 1 DO
A83: EPM-S601 | B83: 2-fach Zähler 24 V | D83: 2-fach Zähler 24 V | E83: 2-way Counter 24 V
A84: EPM-S602 | B84: 1-fach Zähler 5 V | D84: 1-fach Zähler 5 V | E84: 1-way Counter 5 V
A85: EPM-S603 | B85: 2-fach Zähler 24 V | D85: 2-fach Zähler 24 V | E85: 2-way Counter 24 V
A86: EPM-S604 | B86: SSI | D86: SSI | E86: SSI
A87: EPM-S620 | B87: PWM | D87: PWM | E87: PWM
A88: EPM-S640 | B88: RS 232 | D88: RS 232 | E88: RS 232
A89: EPM-S650 | B89: RS 422/485 | D89: RS 422/485 | E89: RS 422/485
A90: EPM-S700 | B90: Hauptversorgung | D90: Hauptversorgung | E90: Main supply
A91: EPM-S701 | B91: I/O-Versorgung (Sicherung) | D91: I/O-Versorgung (Sicherung) | E91: I/O-supply (incl. fuse)
A92: EPM-S702 | B92: I/O / Elektronik | D92: I/O / Elektronik | E92: I/O / Elektronics
A93: EPM-S703 | B93: I/O-Versorgung | D93: I/O-Versorgung | E93: I/O-supply
B95: =HLOOKUP($B$1,$D:$K,ROW()-ROW($B$1)+1,FALSE) -> Es kann nur 1 Buskoppler je Station ausgewählt werden | D95: Es kann nur 1 Buskoppler je Station ausgewählt werden | E95: It is only possible to configure 1 bus coupler per station
B97: =HLOOKUP($B$1,$D:$K,ROW()-ROW($B$1)+1,FALSE) -> Buskoppler | D97: Buskoppler | E97: Bus coupler
B98: Modulposition | D98: Modulposition | E98: Module position
B99: Modul | D99: Modul | E99: Module
B100: Funktion | D100: Funktion | E100: Function
B101: Ausgangsstrom je Kanal (mA) | D101: Ausgangsstrom je Kanal (mA) | E101: Output current per channel (mA)
B102: verfügbarer Ausgangsstrom (A) | D102: verfügbarer Ausgangsstrom (A) | E102: available output current (A)
B103: verfügbarer Elektronikstrom (A) | D103: verfügbarer Elektronikstrom (A) | E103: available electronics current (A)
B104: Summe physikalischer Aufbau | D104: Summe physikalischer Aufbau | E104: Total count physical configuration
B106: =HLOOKUP($B$1,$D:$K,ROW()-ROW($B$1)+1,FALSE) -> Stromschienenbelastung (UL) | D106: Stromschienenbelastung (UL) | E106: rail current
B107: =HLOOKUP($B$1,$D:$K,ROW()-ROW($B$1)+1,FALSE) -> 7A | D107: 7A | E107: 7A
B108: =HLOOKUP($B$1,$D:$K,ROW()-ROW($B$1)+1,FALSE) -> 10A | D108: 10A | E108: 10A
B110: =HLOOKUP($B$1,$D:$K,ROW()-ROW($B$1)+1,FALSE) -> Laststrom je Kanal (mA) (Geber, AO) | D110: Laststrom je Kanal (mA) (Geber, AO) | E110: Load current per channel (mA) (Encoder, AO)
B112: =HLOOKUP($B$1,$D:$K,ROW()-ROW($B$1)+1,FALSE) -> Mechanische Abmaße | D112: Mechanische Abmaße | E112: Mechanical Data
B113: =HLOOKUP($B$1,$D:$K,ROW()-ROW($B$1)+1,FALSE) -> Breite (mm) | D113: Breite (mm) | E113: Width (mm)
B114: =HLOOKUP($B$1,$D:$K,ROW()-ROW($B$1)+1,FALSE) -> x | D114: x | E114: x
B115: =HLOOKUP($B$1,$D:$K,ROW()-ROW($B$1)+1,FALSE) -> zusätzliche Versorgung einfügen | D115: zusätzliche Versorgung einfügen | E115: insert additional supply
B116: =HLOOKUP($B$1,$D:$K,ROW()-ROW($B$1)+1,FALSE) -> Eingabe Bedarf | D116: Eingabe Bedarf | E116: Enter required modules

Sheet physikalischer Aufbau
D2: =Texte!B99 -> Modul | E2: =Texte!B100 -> Funktion | F2: ist DO | G2: max Strom je Kanal | H2: =Texte!B101 -> Ausgangsstrom je Kanal (mA) | I2: =Texte!B110 -> Laststrom je Kanal (mA) (Geber, AO) | J2: Laststrom default | K2: Ausgangsstrom | L2: =Texte!B102 -> verfügbarer Ausgangsstrom (A) | M2: =Texte!B103 -> verfügbarer Elektronikstrom (A) | N2: Elektronikstrom | O2: Zeile anzeigen | P2: =Texte!B115 -> zusätzliche Versorgung einfügen
A4: EPM-S110 | B4: =Texte!B97 -> Buskoppler | E4: =IF(D4<>"",VLOOKUP(D4,Texte!A$45:B$107,2,0),"") ->  | K4: =VLOOKUP($D4,'Technische Daten'!$A:$L,3,0) ->  | L4: =IF(D4 <> "",K4,0) -> 0 | M4: =N4 -> 0 | N4: =IF($D4 <> "",VLOOKUP($D4,'Technische Daten'!$A:$L,2,0),0) -> 0 | O4: 1
A5: EPM-S120 | K5: =IF($D5 <> "",VLOOKUP($D5,'Technische Daten'!$A:$L,3,0),0) -> 0 | L5: =IF(D5 <> "",K5,0) -> 0 | N5: =IF($D5 <> "",VLOOKUP($D5,'Technische Daten'!$A:$L,2,0),0) -> 0 | O5: =IF(OR(L6 < 0,M6 < 0,D5 <> "",P6<> ""),1,0) -> 0
A6: EPM-S130 | B6: =Texte!$B$98 -> Modulposition | C6: =(ROW() - 4)/ 2 -> 1 | E6: =IF(D6<>"",VLOOKUP(D6,Texte!A$45:B$107,2,0),"") ->  | F6: =IF(VLOOKUP($D6,'Technische Daten'!$A:$L,10,0) <> "",1,0) ->  | G6: =IF(F6 = 1,VLOOKUP($D6,'Technische Daten'!$A:$L,3,0) / VLOOKUP($D6,'Technische Daten'!$A:$L,10,0) * (-1),0) ->  | J6: =VLOOKUP($D6,'Technische Daten'!$A:$L,5,0) ->  | K6: =IF($D6 <> "",VLOOKUP($D6,'Technische Daten'!$A:$L,4,0) - VLOOKUP($D6,'Technische Daten'!$A:$L,10,0) * H6 - I6,0) -> 0 | L6: =IF(D6<>"",K4+K5+K6,"") ->  | M6: =IF(D6 <> "",IF(N4 <> 0,N4+N6,M3+N4+N6),"") ->  | N6: =IF($D6 <> "",VLOOKUP($D6,'Technische Daten'!$A:$L,2,0),0) -> 0 | O6: 1 | Q6: =Texte!B114 -> x
A7: EPM-S140 | E7: =IF(D7<>"",VLOOKUP(D7,Texte!A$45:B$107,2,0),"") ->  | K7: =IF($D7 <> "",VLOOKUP($D7,'Technische Daten'!$A:$L,3,0),0) -> 0 | L7: =K7 -> 0 | M7: =IF(N7 = 0,M6,N7) ->  | N7: =IF($D7 <> "",VLOOKUP($D7,'Technische Daten'!$A:$L,2,0),0) -> 0 | O7: =IF(OR(L8 < 0,M8 < 0,D7 <> "",P8 <> 0),1,0) -> 0
A8: EPM-S150 | B8: =Texte!$B$98 -> Modulposition | C8: =(ROW() - 4)/ 2 -> 2 | E8: =IF(D8<>"",VLOOKUP(D8,Texte!A$45:B$107,2,0),"") ->  | F8: =IF(VLOOKUP($D8,'Technische Daten'!$A:$L,10,0) <> "",1,0) ->  | G8: =IF(F8 = 1,VLOOKUP($D8,'Technische Daten'!$A:$L,3,0) / VLOOKUP($D8,'Technische Daten'!$A:$L,10,0) * (-1),0) ->  | J8: =VLOOKUP($D8,'Technische Daten'!$A:$L,5,0) ->  | K8: =IF($D8 <> "",VLOOKUP($D8,'Technische Daten'!$A:$L,4,0) - VLOOKUP($D8,'Technische Daten'!$A:$L,10,0) * H8 - I8,0) -> 0 | L8: =IF(D8<>"",IF(D7<>"",K7+K8, L6+K7+K8),"") ->  | M8: =IF(D8 <> "",IF(N7 <> 0,N7+N8,M6+N7+N8),"") ->  | N8: =IF($D8 <> "",VLOOKUP($D8,'Technische Daten'!$A:$L,2,0),0) -> 0 | O8: =IF(D6 <> "",1,0) -> 0
A9: EPM-S160 | E9: =IF(D9<>"",VLOOKUP(D9,Texte!A$45:B$107,2,0),"") ->  | K9: =IF($D9 <> "",VLOOKUP($D9,'Technische Daten'!$A:$L,3,0),0) -> 0 | L9: =K9 -> 0 | M9: =IF(N9 = 0,M8,N9) ->  | N9: =IF($D9 <> "",VLOOKUP($D9,'Technische Daten'!$A:$L,2,0),0) -> 0 | O9: =IF(OR(L10 < 0,M10 < 0,D9 <> "",P10 <> 0),1,0) -> 0
A10: 3200 C | B10: =Texte!$B$98 -> Modulposition | C10: =(ROW() - 4)/ 2 -> 3 | E10: =IF(D10<>"",VLOOKUP(D10,Texte!A$45:B$107,2,0),"") ->  | F10: =IF(VLOOKUP($D10,'Technische Daten'!$A:$L,10,0) <> "",1,0) ->  | G10: =IF(F10 = 1,VLOOKUP($D10,'Technische Daten'!$A:$L,3,0) / VLOOKUP($D10,'Technische Daten'!$A:$L,10,0) * (-1),0) ->  | J10: =VLOOKUP($D10,'Technische Daten'!$A:$L,5,0) ->  | K10: =IF($D10 <> "",VLOOKUP($D10,'Technische Daten'!$A:$L,4,0) - VLOOKUP($D10,'Technische Daten'!$A:$L,10,0) * H10 - I10,0) -> 0 | M10: =IF(D10 <> "",IF(N9 <> 0,N9+N10,M8+N9+N10),"") ->  | N10: =IF($D10 <> "",VLOOKUP($D10,'Technische Daten'!$A:$L,2,0),0) -> 0 | O10: =IF(D8 <> "",1,0) -> 0
E11: =IF(D11<>"",VLOOKUP(D11,Texte!A$45:B$107,2,0),"") ->  | K11: =IF($D11 <> "",VLOOKUP($D11,'Technische Daten'!$A:$L,3,0),0) -> 0 | L11: =K11 -> 0 | M11: =IF(N11 = 0,M10,N11) ->  | N11: =IF($D11 <> "",VLOOKUP($D11,'Technische Daten'!$A:$L,2,0),0) -> 0 | O11: =IF(OR(L12 < 0,M12 < 0,D11 <> "",P12 <> 0),1,0) -> 0
B12: =Texte!$B$98 -> Modulposition | C12: =(ROW() - 4)/ 2 -> 4 | E12: =IF(D12<>"",VLOOKUP(D12,Texte!A$45:B$107,2,0),"") ->  | F12: =IF(VLOOKUP($D12,'Technische Daten'!$A:$L,10,0) <> "",1,0) ->  | G12: =IF(F12 = 1,VLOOKUP($D12,'Technische Daten'!$A:$L,3,0) / VLOOKUP($D12,'Technische Daten'!$A:$L,10,0) * (-1),0) ->  | J12: =VLOOKUP($D12,'Technische Daten'!$A:$L,5,0) ->  | K12: =IF($D12 <> "",VLOOKUP($D12,'Technische Daten'!$A:$L,4,0) - VLOOKUP($D12,'Technische Daten'!$A:$L,10,0) * H12 - I12,0) -> 0 | M12: =IF(D12 <> "",IF(N11 <> 0,N11+N12,M10+N11+N12),"") ->  | N12: =IF($D12 <> "",VLOOKUP($D12,'Technische Daten'!$A:$L,2,0),0) -> 0 | O12: =IF(D10 <> "",1,0) -> 0
E13: =IF(D13<>"",VLOOKUP(D13,Texte!A$45:B$107,2,0),"") ->  | K13: =IF($D13 <> "",VLOOKUP($D13,'Technische Daten'!$A:$L,3,0),0) -> 0 | L13: =K13 -> 0 | M13: =IF(N13 = 0,M12,N13) ->  | N13: =IF($D13 <> "",VLOOKUP($D13,'Technische Daten'!$A:$L,2,0),0) -> 0 | O13: =IF(OR(L14 < 0,M14 < 0,D13 <> "",P14 <> 0),1,0) -> 0
B14: =Texte!$B$98 -> Modulposition | C14: =(ROW() - 4)/ 2 -> 5 | E14: =IF(D14<>"",VLOOKUP(D14,Texte!A$45:B$107,2,0),"") ->  | F14: =IF(VLOOKUP($D14,'Technische Daten'!$A:$L,10,0) <> "",1,0) ->  | G14: =IF(F14 = 1,VLOOKUP($D14,'Technische Daten'!$A:$L,3,0) / VLOOKUP($D14,'Technische Daten'!$A:$L,10,0) * (-1),0) ->  | J14: =VLOOKUP($D14,'Technische Daten'!$A:$L,5,0) ->  | K14: =IF($D14 <> "",VLOOKUP($D14,'Technische Daten'!$A:$L,4,0) - VLOOKUP($D14,'Technische Daten'!$A:$L,10,0) * H14 - I14,0) -> 0 | M14: =IF(D14 <> "",IF(N13 <> 0,N13+N14,M12+N13+N14),"") ->  | N14: =IF($D14 <> "",VLOOKUP($D14,'Technische Daten'!$A:$L,2,0),0) -> 0 | O14: =IF(D12 <> "",1,0) -> 0
E15: =IF(D15<>"",VLOOKUP(D15,Texte!A$45:B$107,2,0),"") ->  | K15: =IF($D15 <> "",VLOOKUP($D15,'Technische Daten'!$A:$L,3,0),0) -> 0 | L15: =K15 -> 0 | M15: =IF(N15 = 0,M14,N15) ->  | N15: =IF($D15 <> "",VLOOKUP($D15,'Technische Daten'!$A:$L,2,0),0) -> 0 | O15: =IF(OR(L16 < 0,M16 < 0,D15 <> "",P16 <> 0),1,0) -> 0
A16: EPM-S200 | B16: =Texte!$B$98 -> Modulposition | C16: =(ROW() - 4)/ 2 -> 6 | E16: =IF(D16<>"",VLOOKUP(D16,Texte!A$45:B$107,2,0),"") ->  | F16: =IF(VLOOKUP($D16,'Technische Daten'!$A:$L,10,0) <> "",1,0) ->  | G16: =IF(F16 = 1,VLOOKUP($D16,'Technische Daten'!$A:$L,3,0) / VLOOKUP($D16,'Technische Daten'!$A:$L,10,0) * (-1),0) ->  | J16: =VLOOKUP($D16,'Technische Daten'!$A:$L,5,0) ->  | K16: =IF($D16 <> "",VLOOKUP($D16,'Technische Daten'!$A:$L,4,0) - VLOOKUP($D16,'Technische Daten'!$A:$L,10,0) * H16 - I16,0) -> 0 | M16: =IF(D16 <> "",IF(N15 <> 0,N15+N16,M14+N15+N16),"") ->  | N16: =IF($D16 <> "",VLOOKUP($D16,'Technische Daten'!$A:$L,2,0),0) -> 0 | O16: =IF(D14 <> "",1,0) -> 0
A17: EPM-S201 | E17: =IF(D17<>"",VLOOKUP(D17,Texte!A$45:B$107,2,0),"") ->  | K17: =IF($D17 <> "",VLOOKUP($D17,'Technische Daten'!$A:$L,3,0),0) -> 0 | L17: =K17 -> 0 | M17: =IF(N17 = 0,M16,N17) ->  | N17: =IF($D17 <> "",VLOOKUP($D17,'Technische Daten'!$A:$L,2,0),0) -> 0 | O17: =IF(OR(L18 < 0,M18 < 0,D17 <> "",P18 <> 0),1,0) -> 0
A18: EPM-S202 | B18: =Texte!$B$98 -> Modulposition | C18: =(ROW() - 4)/ 2 -> 7 | E18: =IF(D18<>"",VLOOKUP(D18,Texte!A$45:B$107,2,0),"") ->  | F18: =IF(VLOOKUP($D18,'Technische Daten'!$A:$L,10,0) <> "",1,0) ->  | G18: =IF(F18 = 1,VLOOKUP($D18,'Technische Daten'!$A:$L,3,0) / VLOOKUP($D18,'Technische Daten'!$A:$L,10,0) * (-1),0) ->  | J18: =VLOOKUP($D18,'Technische Daten'!$A:$L,5,0) ->  | K18: =IF($D18 <> "",VLOOKUP($D18,'Technische Daten'!$A:$L,4,0) - VLOOKUP($D18,'Technische Daten'!$A:$L,10,0) * H18 - I18,0) -> 0 | M18: =IF(D18 <> "",IF(N17 <> 0,N17+N18,M16+N17+N18),"") ->  | N18: =IF($D18 <> "",VLOOKUP($D18,'Technische Daten'!$A:$L,2,0),0) -> 0 | O18: =IF(D16 <> "",1,0) -> 0
A19: EPM-S203 | E19: =IF(D19<>"",VLOOKUP(D19,Texte!A$45:B$107,2,0),"") ->  | K19: =IF($D19 <> "",VLOOKUP($D19,'Technische Daten'!$A:$L,3,0),0) -> 0 | L19: =K19 -> 0 | M19: =IF(N19 = 0,M18,N19) ->  | N19: =IF($D19 <> "",VLOOKUP($D19,'Technische Daten'!$A:$L,2,0),0) -> 0 | O19: =IF(OR(L20 < 0,M20 < 0,D19 <> "",P20 <> 0),1,0) -> 0
A20: EPM-S204 | B20: =Texte!$B$98 -> Modulposition | C20: =(ROW() - 4)/ 2 -> 8 | E20: =IF(D20<>"",VLOOKUP(D20,Texte!A$45:B$107,2,0),"") ->  | F20: =IF(VLOOKUP($D20,'Technische Daten'!$A:$L,10,0) <> "",1,0) ->  | G20: =IF(F20 = 1,VLOOKUP($D20,'Technische Daten'!$A:$L,3,0) / VLOOKUP($D20,'Technische Daten'!$A:$L,10,0) * (-1),0) ->  | J20: =VLOOKUP($D20,'Technische Daten'!$A:$L,5,0) ->  | K20: =IF($D20 <> "",VLOOKUP($D20,'Technische Daten'!$A:$L,4,0) - VLOOKUP($D20,'Technische Daten'!$A:$L,10,0) * H20 - I20,0) -> 0 | M20: =IF(D20 <> "",IF(N19 <> 0,N19+N20,M18+N19+N20),"") ->  | N20: =IF($D20 <> "",VLOOKUP($D20,'Technische Daten'!$A:$L,2,0),0) -> 0 | O20: =IF(D18 <> "",1,0) -> 0
A21: EPM-S205 | E21: =IF(D21<>"",VLOOKUP(D21,Texte!A$45:B$107,2,0),"") ->  | K21: =IF($D21 <> "",VLOOKUP($D21,'Technische Daten'!$A:$L,3,0),0) -> 0 | L21: =K21 -> 0 | M21: =IF(N21 = 0,M20,N21) ->  | N21: =IF($D21 <> "",VLOOKUP($D21,'Technische Daten'!$A:$L,2,0),0) -> 0 | O21: =IF(OR(L22 < 0,M22 < 0,D21 <> "",P22 <> 0),1,0) -> 0
A22: EPM-S206 | B22: =Texte!$B$98 -> Modulposition | C22: =(ROW() - 4)/ 2 -> 9 | E22: =IF(D22<>"",VLOOKUP(D22,Texte!A$45:B$107,2,0),"") ->  | F22: =IF(VLOOKUP($D22,'Technische Daten'!$A:$L,10,0) <> "",1,0) ->  | G22: =IF(F22 = 1,VLOOKUP($D22,'Technische Daten'!$A:$L,3,0) / VLOOKUP($D22,'Technische Daten'!$A:$L,10,0) * (-1),0) ->  | J22: =VLOOKUP($D22,'Technische Daten'!$A:$L,5,0) ->  | K22: =IF($D22 <> "",VLOOKUP($D22,'Technische Daten'!$A:$L,4,0) - VLOOKUP($D22,'Technische Daten'!$A:$L,10,0) * H22 - I22,0) -> 0 | M22: =IF(D22 <> "",IF(N21 <> 0,N21+N22,M20+N21+N22),"") ->  | N22: =IF($D22 <> "",VLOOKUP($D22,'Technische Daten'!$A:$L,2,0),0) -> 0 | O22: =IF(D20 <> "",1,0) -> 0
A23: EPM-S207 | E23: =IF(D23<>"",VLOOKUP(D23,Texte!A$45:B$107,2,0),"") ->  | K23: =IF($D23 <> "",VLOOKUP($D23,'Technische Daten'!$A:$L,3,0),0) -> 0 | L23: =K23 -> 0 | M23: =IF(N23 = 0,M22,N23) ->  | N23: =IF($D23 <> "",VLOOKUP($D23,'Technische Daten'!$A:$L,2,0),0) -> 0 | O23: =IF(OR(L24 < 0,M24 < 0,D23 <> "",P24 <> 0),1,0) -> 0
A24: EPM-S300 | B24: =Texte!$B$98 -> Modulposition | C24: =(ROW() - 4)/ 2 -> 10 | E24: =IF(D24<>"",VLOOKUP(D24,Texte!A$45:B$107,2,0),"") ->  | F24: =IF(VLOOKUP($D24,'Technische Daten'!$A:$L,10,0) <> "",1,0) ->  | G24: =IF(F24 = 1,VLOOKUP($D24,'Technische Daten'!$A:$L,3,0) / VLOOKUP($D24,'Technische Daten'!$A:$L,10,0) * (-1),0) ->  | J24: =VLOOKUP($D24,'Technische Daten'!$A:$L,5,0) ->  | K24: =IF($D24 <> "",VLOOKUP($D24,'Technische Daten'!$A:$L,4,0) - VLOOKUP($D24,'Technische Daten'!$A:$L,10,0) * H24 - I24,0) -> 0 | M24: =IF(D24 <> "",IF(N23 <> 0,N23+N24,M22+N23+N24),"") ->  | N24: =IF($D24 <> "",VLOOKUP($D24,'Technische Daten'!$A:$L,2,0),0) -> 0 | O24: =IF(D22 <> "",1,0) -> 0
A25: EPM-S301 | E25: =IF(D25<>"",VLOOKUP(D25,Texte!A$45:B$107,2,0),"") ->  | K25: =IF($D25 <> "",VLOOKUP($D25,'Technische Daten'!$A:$L,3,0),0) -> 0 | L25: =K25 -> 0 | M25: =IF(N25 = 0,M24,N25) ->  | N25: =IF($D25 <> "",VLOOKUP($D25,'Technische Daten'!$A:$L,2,0),0) -> 0 | O25: =IF(OR(L26 < 0,M26 < 0,D25 <> "",P26 <> 0),1,0) -> 0
A26: EPM-S302 | B26: =Texte!$B$98 -> Modulposition | C26: =(ROW() - 4)/ 2 -> 11 | E26: =IF(D26<>"",VLOOKUP(D26,Texte!A$45:B$107,2,0),"") ->  | F26: =IF(VLOOKUP($D26,'Technische Daten'!$A:$L,10,0) <> "",1,0) ->  | G26: =IF(F26 = 1,VLOOKUP($D26,'Technische Daten'!$A:$L,3,0) / VLOOKUP($D26,'Technische Daten'!$A:$L,10,0) * (-1),0) ->  | J26: =VLOOKUP($D26,'Technische Daten'!$A:$L,5,0) ->  | K26: =IF($D26 <> "",VLOOKUP($D26,'Technische Daten'!$A:$L,4,0) - VLOOKUP($D26,'Technische Daten'!$A:$L,10,0) * H26 - I26,0) -> 0 | M26: =IF(D26 <> "",IF(N25 <> 0,N25+N26,M24+N25+N26),"") ->  | N26: =IF($D26 <> "",VLOOKUP($D26,'Technische Daten'!$A:$L,2,0),0) -> 0 | O26: =IF(D24 <> "",1,0) -> 0
A27: EPM-S303 | E27: =IF(D27<>"",VLOOKUP(D27,Texte!A$45:B$107,2,0),"") ->  | K27: =IF($D27 <> "",VLOOKUP($D27,'Technische Daten'!$A:$L,3,0),0) -> 0 | L27: =K27 -> 0 | M27: =IF(N27 = 0,M26,N27) ->  | N27: =IF($D27 <> "",VLOOKUP($D27,'Technische Daten'!$A:$L,2,0),0) -> 0 | O27: =IF(OR(L28 < 0,M28 < 0,D27 <> "",P28 <> 0),1,0) -> 0
A28: EPM-S304 | B28: =Texte!$B$98 -> Modulposition | C28: =(ROW() - 4)/ 2 -> 12 | E28: =IF(D28<>"",VLOOKUP(D28,Texte!A$45:B$107,2,0),"") ->  | F28: =IF(VLOOKUP($D28,'Technische Daten'!$A:$L,10,0) <> "",1,0) ->  | G28: =IF(F28 = 1,VLOOKUP($D28,'Technische Daten'!$A:$L,3,0) / VLOOKUP($D28,'Technische Daten'!$A:$L,10,0) * (-1),0) ->  | J28: =VLOOKUP($D28,'Technische Daten'!$A:$L,5,0) ->  | K28: =IF($D28 <> "",VLOOKUP($D28,'Technische Daten'!$A:$L,4,0) - VLOOKUP($D28,'Technische Daten'!$A:$L,10,0) * H28 - I28,0) -> 0 | M28: =IF(D28 <> "",IF(N27 <> 0,N27+N28,M26+N27+N28),"") ->  | N28: =IF($D28 <> "",VLOOKUP($D28,'Technische Daten'!$A:$L,2,0),0) -> 0 | O28: =IF(D26 <> "",1,0) -> 0
A29: EPM-S305 | E29: =IF(D29<>"",VLOOKUP(D29,Texte!A$45:B$107,2,0),"") ->  | K29: =IF($D29 <> "",VLOOKUP($D29,'Technische Daten'!$A:$L,3,0),0) -> 0 | L29: =K29 -> 0 | M29: =IF(N29 = 0,M28,N29) ->  | N29: =IF($D29 <> "",VLOOKUP($D29,'Technische Daten'!$A:$L,2,0),0) -> 0 | O29: =IF(OR(L30 < 0,M30 < 0,D29 <> "",P30 <> 0),1,0) -> 0
A30: EPM-S306 | B30: =Texte!$B$98 -> Modulposition | C30: =(ROW() - 4)/ 2 -> 13 | E30: =IF(D30<>"",VLOOKUP(D30,Texte!A$45:B$107,2,0),"") ->  | F30: =IF(VLOOKUP($D30,'Technische Daten'!$A:$L,10,0) <> "",1,0) ->  | G30: =IF(F30 = 1,VLOOKUP($D30,'Technische Daten'!$A:$L,3,0) / VLOOKUP($D30,'Technische Daten'!$A:$L,10,0) * (-1),0) ->  | J30: =VLOOKUP($D30,'Technische Daten'!$A:$L,5,0) ->  | K30: =IF($D30 <> "",VLOOKUP($D30,'Technische Daten'!$A:$L,4,0) - VLOOKUP($D30,'Technische Daten'!$A:$L,10,0) * H30 - I30,0) -> 0 | M30: =IF(D30 <> "",IF(N29 <> 0,N29+N30,M28+N29+N30),"") ->  | N30: =IF($D30 <> "",VLOOKUP($D30,'Technische Daten'!$A:$L,2,0),0) -> 0 | O30: =IF(D28 <> "",1,0) -> 0
A31: EPM-S308 | E31: =IF(D31<>"",VLOOKUP(D31,Texte!A$45:B$107,2,0),"") ->  | K31: =IF($D31 <> "",VLOOKUP($D31,'Technische Daten'!$A:$L,3,0),0) -> 0 | L31: =K31 -> 0 | M31: =IF(N31 = 0,M30,N31) ->  | N31: =IF($D31 <> "",VLOOKUP($D31,'Technische Daten'!$A:$L,2,0),0) -> 0 | O31: =IF(OR(L32 < 0,M32 < 0,D31 <> "",P32 <> 0),1,0) -> 0
A32: EPM-S309 | B32: =Texte!$B$98 -> Modulposition | C32: =(ROW() - 4)/ 2 -> 14 | E32: =IF(D32<>"",VLOOKUP(D32,Texte!A$45:B$107,2,0),"") ->  | F32: =IF(VLOOKUP($D32,'Technische Daten'!$A:$L,10,0) <> "",1,0) ->  | G32: =IF(F32 = 1,VLOOKUP($D32,'Technische Daten'!$A:$L,3,0) / VLOOKUP($D32,'Technische Daten'!$A:$L,10,0) * (-1),0) ->  | J32: =VLOOKUP($D32,'Technische Daten'!$A:$L,5,0) ->  | K32: =IF($D32 <> "",VLOOKUP($D32,'Technische Daten'!$A:$L,4,0) - VLOOKUP($D32,'Technische Daten'!$A:$L,10,0) * H32 - I32,0) -> 0 | M32: =IF(D32 <> "",IF(N31 <> 0,N31+N32,M30+N31+N32),"") ->  | N32: =IF($D32 <> "",VLOOKUP($D32,'Technische Daten'!$A:$L,2,0),0) -> 0 | O32: =IF(D30 <> "",1,0) -> 0
A33: EPM-S310 | E33: =IF(D33<>"",VLOOKUP(D33,Texte!A$45:B$107,2,0),"") ->  | K33: =IF($D33 <> "",VLOOKUP($D33,'Technische Daten'!$A:$L,3,0),0) -> 0 | L33: =K33 -> 0 | M33: =IF(N33 = 0,M32,N33) ->  | N33: =IF($D33 <> "",VLOOKUP($D33,'Technische Daten'!$A:$L,2,0),0) -> 0 | O33: =IF(OR(L34 < 0,M34 < 0,D33 <> "",P34 <> 0),1,0) -> 0
A34: EPM-S400 | B34: =Texte!$B$98 -> Modulposition | C34: =(ROW() - 4)/ 2 -> 15 | E34: =IF(D34<>"",VLOOKUP(D34,Texte!A$45:B$107,2,0),"") ->  | F34: =IF(VLOOKUP($D34,'Technische Daten'!$A:$L,10,0) <> "",1,0) ->  | G34: =IF(F34 = 1,VLOOKUP($D34,'Technische Daten'!$A:$L,3,0) / VLOOKUP($D34,'Technische Daten'!$A:$L,10,0) * (-1),0) ->  | J34: =VLOOKUP($D34,'Technische Daten'!$A:$L,5,0) ->  | K34: =IF($D34 <> "",VLOOKUP($D34,'Technische Daten'!$A:$L,4,0) - VLOOKUP($D34,'Technische Daten'!$A:$L,10,0) * H34 - I34,0) -> 0 | M34: =IF(D34 <> "",IF(N33 <> 0,N33+N34,M32+N33+N34),"") ->  | N34: =IF($D34 <> "",VLOOKUP($D34,'Technische Daten'!$A:$L,2,0),0) -> 0 | O34: =IF(D32 <> "",1,0) -> 0
A35: EPM-S401 | E35: =IF(D35<>"",VLOOKUP(D35,Texte!A$45:B$107,2,0),"") ->  | K35: =IF($D35 <> "",VLOOKUP($D35,'Technische Daten'!$A:$L,3,0),0) -> 0 | L35: =K35 -> 0 | M35: =IF(N35 = 0,M34,N35) ->  | N35: =IF($D35 <> "",VLOOKUP($D35,'Technische Daten'!$A:$L,2,0),0) -> 0 | O35: =IF(OR(L36 < 0,M36 < 0,D35 <> "",P36 <> 0),1,0) -> 0
A36: EPM-S402 | B36: =Texte!$B$98 -> Modulposition | C36: =(ROW() - 4)/ 2 -> 16 | E36: =IF(D36<>"",VLOOKUP(D36,Texte!A$45:B$107,2,0),"") ->  | F36: =IF(VLOOKUP($D36,'Technische Daten'!$A:$L,10,0) <> "",1,0) ->  | G36: =IF(F36 = 1,VLOOKUP($D36,'Technische Daten'!$A:$L,3,0) / VLOOKUP($D36,'Technische Daten'!$A:$L,10,0) * (-1),0) ->  | J36: =VLOOKUP($D36,'Technische Daten'!$A:$L,5,0) ->  | K36: =IF($D36 <> "",VLOOKUP($D36,'Technische Daten'!$A:$L,4,0) - VLOOKUP($D36,'Technische Daten'!$A:$L,10,0) * H36 - I36,0) -> 0 | M36: =IF(D36 <> "",IF(N35 <> 0,N35+N36,M34+N35+N36),"") ->  | N36: =IF($D36 <> "",VLOOKUP($D36,'Technische Daten'!$A:$L,2,0),0) -> 0 | O36: =IF(D34 <> "",1,0) -> 0
A37: EPM-S403 | E37: =IF(D37<>"",VLOOKUP(D37,Texte!A$45:B$107,2,0),"") ->  | K37: =IF($D37 <> "",VLOOKUP($D37,'Technische Daten'!$A:$L,3,0),0) -> 0 | L37: =K37 -> 0 | M37: =IF(N37 = 0,M36,N37) ->  | N37: =IF($D37 <> "",VLOOKUP($D37,'Technische Daten'!$A:$L,2,0),0) -> 0 | O37: =IF(OR(L38 < 0,M38 < 0,D37 <> "",P38 <> 0),1,0) -> 0
A38: EPM-S404 | B38: =Texte!$B$98 -> Modulposition | C38: =(ROW() - 4)/ 2 -> 17 | E38: =IF(D38<>"",VLOOKUP(D38,Texte!A$45:B$107,2,0),"") ->  | F38: =IF(VLOOKUP($D38,'Technische Daten'!$A:$L,10,0) <> "",1,0) ->  | G38: =IF(F38 = 1,VLOOKUP($D38,'Technische Daten'!$A:$L,3,0) / VLOOKUP($D38,'Technische Daten'!$A:$L,10,0) * (-1),0) ->  | J38: =VLOOKUP($D38,'Technische Daten'!$A:$L,5,0) ->  | K38: =IF($D38 <> "",VLOOKUP($D38,'Technische Daten'!$A:$L,4,0) - VLOOKUP($D38,'Technische Daten'!$A:$L,10,0) * H38 - I38,0) -> 0 | M38: =IF(D38 <> "",IF(N37 <> 0,N37+N38,M36+N37+N38),"") ->  | N38: =IF($D38 <> "",VLOOKUP($D38,'Technische Daten'!$A:$L,2,0),0) -> 0 | O38: =IF(D36 <> "",1,0) -> 0
A39: EPM-S405 | E39: =IF(D39<>"",VLOOKUP(D39,Texte!A$45:B$107,2,0),"") ->  | K39: =IF($D39 <> "",VLOOKUP($D39,'Technische Daten'!$A:$L,3,0),0) -> 0 | L39: =K39 -> 0 | M39: =IF(N39 = 0,M38,N39) ->  | N39: =IF($D39 <> "",VLOOKUP($D39,'Technische Daten'!$A:$L,2,0),0) -> 0 | O39: =IF(OR(L40 < 0,M40 < 0,D39 <> "",P40 <> 0),1,0) -> 0
A40: EPM-S406 | B40: =Texte!$B$98 -> Modulposition | C40: =(ROW() - 4)/ 2 -> 18 | E40: =IF(D40<>"",VLOOKUP(D40,Texte!A$45:B$107,2,0),"") ->  | F40: =IF(VLOOKUP($D40,'Technische Daten'!$A:$L,10,0) <> "",1,0) ->  | G40: =IF(F40 = 1,VLOOKUP($D40,'Technische Daten'!$A:$L,3,0) / VLOOKUP($D40,'Technische Daten'!$A:$L,10,0) * (-1),0) ->  | J40: =VLOOKUP($D40,'Technische Daten'!$A:$L,5,0) ->  | K40: =IF($D40 <> "",VLOOKUP($D40,'Technische Daten'!$A:$L,4,0) - VLOOKUP($D40,'Technische Daten'!$A:$L,10,0) * H40 - I40,0) -> 0 | M40: =IF(D40 <> "",IF(N39 <> 0,N39+N40,M38+N39+N40),"") ->  | N40: =IF($D40 <> "",VLOOKUP($D40,'Technische Daten'!$A:$L,2,0),0) -> 0 | O40: =IF(D38 <> "",1,0) -> 0
A41: EPM-S408 | E41: =IF(D41<>"",VLOOKUP(D41,Texte!A$45:B$107,2,0),"") ->  | K41: =IF($D41 <> "",VLOOKUP($D41,'Technische Daten'!$A:$L,3,0),0) -> 0 | L41: =K41 -> 0 | M41: =IF(N41 = 0,M40,N41) ->  | N41: =IF($D41 <> "",VLOOKUP($D41,'Technische Daten'!$A:$L,2,0),0) -> 0 | O41: =IF(OR(L42 < 0,M42 < 0,D41 <> "",P42 <> 0),1,0) -> 0
A42: EPM-S500 | B42: =Texte!$B$98 -> Modulposition | C42: =(ROW() - 4)/ 2 -> 19 | E42: =IF(D42<>"",VLOOKUP(D42,Texte!A$45:B$107,2,0),"") ->  | F42: =IF(VLOOKUP($D42,'Technische Daten'!$A:$L,10,0) <> "",1,0) ->  | G42: =IF(F42 = 1,VLOOKUP($D42,'Technische Daten'!$A:$L,3,0) / VLOOKUP($D42,'Technische Daten'!$A:$L,10,0) * (-1),0) ->  | J42: =VLOOKUP($D42,'Technische Daten'!$A:$L,5,0) ->  | K42: =IF($D42 <> "",VLOOKUP($D42,'Technische Daten'!$A:$L,4,0) - VLOOKUP($D42,'Technische Daten'!$A:$L,10,0) * H42 - I42,0) -> 0 | M42: =IF(D42 <> "",IF(N41 <> 0,N41+N42,M40+N41+N42),"") ->  | N42: =IF($D42 <> "",VLOOKUP($D42,'Technische Daten'!$A:$L,2,0),0) -> 0 | O42: =IF(D40 <> "",1,0) -> 0
A43: EPM-S501 | E43: =IF(D43<>"",VLOOKUP(D43,Texte!A$45:B$107,2,0),"") ->  | K43: =IF($D43 <> "",VLOOKUP($D43,'Technische Daten'!$A:$L,3,0),0) -> 0 | L43: =K43 -> 0 | M43: =IF(N43 = 0,M42,N43) ->  | N43: =IF($D43 <> "",VLOOKUP($D43,'Technische Daten'!$A:$L,2,0),0) -> 0 | O43: =IF(OR(L44 < 0,M44 < 0,D43 <> "",P44 <> 0),1,0) -> 0
A44: EPM-S502 | B44: =Texte!$B$98 -> Modulposition | C44: =(ROW() - 4)/ 2 -> 20 | E44: =IF(D44<>"",VLOOKUP(D44,Texte!A$45:B$107,2,0),"") ->  | F44: =IF(VLOOKUP($D44,'Technische Daten'!$A:$L,10,0) <> "",1,0) ->  | G44: =IF(F44 = 1,VLOOKUP($D44,'Technische Daten'!$A:$L,3,0) / VLOOKUP($D44,'Technische Daten'!$A:$L,10,0) * (-1),0) ->  | J44: =VLOOKUP($D44,'Technische Daten'!$A:$L,5,0) ->  | K44: =IF($D44 <> "",VLOOKUP($D44,'Technische Daten'!$A:$L,4,0) - VLOOKUP($D44,'Technische Daten'!$A:$L,10,0) * H44 - I44,0) -> 0 | M44: =IF(D44 <> "",IF(N43 <> 0,N43+N44,M42+N43+N44),"") ->  | N44: =IF($D44 <> "",VLOOKUP($D44,'Technische Daten'!$A:$L,2,0),0) -> 0 | O44: =IF(D42 <> "",1,0) -> 0
A45: EPM-S503 | E45: =IF(D45<>"",VLOOKUP(D45,Texte!A$45:B$107,2,0),"") ->  | K45: =IF($D45 <> "",VLOOKUP($D45,'Technische Daten'!$A:$L,3,0),0) -> 0 | L45: =K45 -> 0 | M45: =IF(N45 = 0,M44,N45) ->  | N45: =IF($D45 <> "",VLOOKUP($D45,'Technische Daten'!$A:$L,2,0),0) -> 0 | O45: =IF(OR(L46 < 0,M46 < 0,D45 <> "",P46 <> 0),1,0) -> 0
A46: EPM-S600 | B46: =Texte!$B$98 -> Modulposition | C46: =(ROW() - 4)/ 2 -> 21 | E46: =IF(D46<>"",VLOOKUP(D46,Texte!A$45:B$107,2,0),"") ->  | F46: =IF(VLOOKUP($D46,'Technische Daten'!$A:$L,10,0) <> "",1,0) ->  | G46: =IF(F46 = 1,VLOOKUP($D46,'Technische Daten'!$A:$L,3,0) / VLOOKUP($D46,'Technische Daten'!$A:$L,10,0) * (-1),0) ->  | J46: =VLOOKUP($D46,'Technische Daten'!$A:$L,5,0) ->  | K46: =IF($D46 <> "",VLOOKUP($D46,'Technische Daten'!$A:$L,4,0) - VLOOKUP($D46,'Technische Daten'!$A:$L,10,0) * H46 - I46,0) -> 0 | M46: =IF(D46 <> "",IF(N45 <> 0,N45+N46,M44+N45+N46),"") ->  | N46: =IF($D46 <> "",VLOOKUP($D46,'Technische Daten'!$A:$L,2,0),0) -> 0 | O46: =IF(D44 <> "",1,0) -> 0
A47: EPM-S601 | E47: =IF(D47<>"",VLOOKUP(D47,Texte!A$45:B$107,2,0),"") ->  | K47: =IF($D47 <> "",VLOOKUP($D47,'Technische Daten'!$A:$L,3,0),0) -> 0 | L47: =K47 -> 0 | M47: =IF(N47 = 0,M46,N47) ->  | N47: =IF($D47 <> "",VLOOKUP($D47,'Technische Daten'!$A:$L,2,0),0) -> 0 | O47: =IF(OR(L48 < 0,M48 < 0,D47 <> "",P48 <> 0),1,0) -> 0
A48: EPM-S602 | B48: =Texte!$B$98 -> Modulposition | C48: =(ROW() - 4)/ 2 -> 22 | E48: =IF(D48<>"",VLOOKUP(D48,Texte!A$45:B$107,2,0),"") ->  | F48: =IF(VLOOKUP($D48,'Technische Daten'!$A:$L,10,0) <> "",1,0) ->  | G48: =IF(F48 = 1,VLOOKUP($D48,'Technische Daten'!$A:$L,3,0) / VLOOKUP($D48,'Technische Daten'!$A:$L,10,0) * (-1),0) ->  | J48: =VLOOKUP($D48,'Technische Daten'!$A:$L,5,0) ->  | K48: =IF($D48 <> "",VLOOKUP($D48,'Technische Daten'!$A:$L,4,0) - VLOOKUP($D48,'Technische Daten'!$A:$L,10,0) * H48 - I48,0) -> 0 | M48: =IF(D48 <> "",IF(N47 <> 0,N47+N48,M46+N47+N48),"") ->  | N48: =IF($D48 <> "",VLOOKUP($D48,'Technische Daten'!$A:$L,2,0),0) -> 0 | O48: =IF(D46 <> "",1,0) -> 0
A49: EPM-S603 | E49: =IF(D49<>"",VLOOKUP(D49,Texte!A$45:B$107,2,0),"") ->  | K49: =IF($D49 <> "",VLOOKUP($D49,'Technische Daten'!$A:$L,3,0),0) -> 0 | L49: =K49 -> 0 | M49: =IF(N49 = 0,M48,N49) ->  | N49: =IF($D49 <> "",VLOOKUP($D49,'Technische Daten'!$A:$L,2,0),0) -> 0 | O49: =IF(OR(L50 < 0,M50 < 0,D49 <> "",P50 <> 0),1,0) -> 0
A50: EPM-S604 | B50: =Texte!$B$98 -> Modulposition | C50: =(ROW() - 4)/ 2 -> 23 | E50: =IF(D50<>"",VLOOKUP(D50,Texte!A$45:B$107,2,0),"") ->  | F50: =IF(VLOOKUP($D50,'Technische Daten'!$A:$L,10,0) <> "",1,0) ->  | G50: =IF(F50 = 1,VLOOKUP($D50,'Technische Daten'!$A:$L,3,0) / VLOOKUP($D50,'Technische Daten'!$A:$L,10,0) * (-1),0) ->  | J50: =VLOOKUP($D50,'Technische Daten'!$A:$L,5,0) ->  | K50: =IF($D50 <> "",VLOOKUP($D50,'Technische Daten'!$A:$L,4,0) - VLOOKUP($D50,'Technische Daten'!$A:$L,10,0) * H50 - I50,0) -> 0 | M50: =IF(D50 <> "",IF(N49 <> 0,N49+N50,M48+N49+N50),"") ->  | N50: =IF($D50 <> "",VLOOKUP($D50,'Technische Daten'!$A:$L,2,0),0) -> 0 | O50: =IF(D48 <> "",1,0) -> 0
A51: EPM-S620 | E51: =IF(D51<>"",VLOOKUP(D51,Texte!A$45:B$107,2,0),"") ->  | K51: =IF($D51 <> "",VLOOKUP($D51,'Technische Daten'!$A:$L,3,0),0) -> 0 | L51: =K51 -> 0 | M51: =IF(N51 = 0,M50,N51) ->  | N51: =IF($D51 <> "",VLOOKUP($D51,'Technische Daten'!$A:$L,2,0),0) -> 0 | O51: =IF(OR(L52 < 0,M52 < 0,D51 <> "",P52 <> 0),1,0) -> 0
A52: EPM-S640 | B52: =Texte!$B$98 -> Modulposition | C52: =(ROW() - 4)/ 2 -> 24 | E52: =IF(D52<>"",VLOOKUP(D52,Texte!A$45:B$107,2,0),"") ->  | F52: =IF(VLOOKUP($D52,'Technische Daten'!$A:$L,10,0) <> "",1,0) ->  | G52: =IF(F52 = 1,VLOOKUP($D52,'Technische Daten'!$A:$L,3,0) / VLOOKUP($D52,'Technische Daten'!$A:$L,10,0) * (-1),0) ->  | J52: =VLOOKUP($D52,'Technische Daten'!$A:$L,5,0) ->  | K52: =IF($D52 <> "",VLOOKUP($D52,'Technische Daten'!$A:$L,4,0) - VLOOKUP($D52,'Technische Daten'!$A:$L,10,0) * H52 - I52,0) -> 0 | M52: =IF(D52 <> "",IF(N51 <> 0,N51+N52,M50+N51+N52),"") ->  | N52: =IF($D52 <> "",VLOOKUP($D52,'Technische Daten'!$A:$L,2,0),0) -> 0 | O52: =IF(D50 <> "",1,0) -> 0
A53: EPM-S650 | E53: =IF(D53<>"",VLOOKUP(D53,Texte!A$45:B$107,2,0),"") ->  | K53: =IF($D53 <> "",VLOOKUP($D53,'Technische Daten'!$A:$L,3,0),0) -> 0 | L53: =K53 -> 0 | M53: =IF(N53 = 0,M52,N53) ->  | N53: =IF($D53 <> "",VLOOKUP($D53,'Technische Daten'!$A:$L,2,0),0) -> 0 | O53: =IF(OR(L54 < 0,M54 < 0,D53 <> "",P54 <> 0),1,0) -> 0
A54: EPM-S603 | B54: =Texte!$B$98 -> Modulposition | C54: =(ROW() - 4)/ 2 -> 25 | E54: =IF(D54<>"",VLOOKUP(D54,Texte!A$45:B$107,2,0),"") ->  | F54: =IF(VLOOKUP($D54,'Technische Daten'!$A:$L,10,0) <> "",1,0) ->  | G54: =IF(F54 = 1,VLOOKUP($D54,'Technische Daten'!$A:$L,3,0) / VLOOKUP($D54,'Technische Daten'!$A:$L,10,0) * (-1),0) ->  | J54: =VLOOKUP($D54,'Technische Daten'!$A:$L,5,0) ->  | K54: =IF($D54 <> "",VLOOKUP($D54,'Technische Daten'!$A:$L,4,0) - VLOOKUP($D54,'Technische Daten'!$A:$L,10,0) * H54 - I54,0) -> 0 | M54: =IF(D54 <> "",IF(N53 <> 0,N53+N54,M52+N53+N54),"") ->  | N54: =IF($D54 <> "",VLOOKUP($D54,'Technische Daten'!$A:$L,2,0),0) -> 0 | O54: =IF(D52 <> "",1,0) -> 0
A55: EPM-S701 | E55: =IF(D55<>"",VLOOKUP(D55,Texte!A$45:B$107,2,0),"") ->  | K55: =IF($D55 <> "",VLOOKUP($D55,'Technische Daten'!$A:$L,3,0),0) -> 0 | L55: =K55 -> 0 | M55: =IF(N55 = 0,M54,N55) ->  | N55: =IF($D55 <> "",VLOOKUP($D55,'Technische Daten'!$A:$L,2,0),0) -> 0 | O55: =IF(OR(L56 < 0,M56 < 0,D55 <> "",P56 <> 0),1,0) -> 0
A56: EPM-S702 | B56: =Texte!$B$98 -> Modulposition | C56: =(ROW() - 4)/ 2 -> 26 | E56: =IF(D56<>"",VLOOKUP(D56,Texte!A$45:B$107,2,0),"") ->  | F56: =IF(VLOOKUP($D56,'Technische Daten'!$A:$L,10,0) <> "",1,0) ->  | G56: =IF(F56 = 1,VLOOKUP($D56,'Technische Daten'!$A:$L,3,0) / VLOOKUP($D56,'Technische Daten'!$A:$L,10,0) * (-1),0) ->  | J56: =VLOOKUP($D56,'Technische Daten'!$A:$L,5,0) ->  | K56: =IF($D56 <> "",VLOOKUP($D56,'Technische Daten'!$A:$L,4,0) - VLOOKUP($D56,'Technische Daten'!$A:$L,10,0) * H56 - I56,0) -> 0 | M56: =IF(D56 <> "",IF(N55 <> 0,N55+N56,M54+N55+N56),"") ->  | N56: =IF($D56 <> "",VLOOKUP($D56,'Technische Daten'!$A:$L,2,0),0) -> 0 | O56: =IF(D54 <> "",1,0) -> 0
E57: =IF(D57<>"",VLOOKUP(D57,Texte!A$45:B$107,2,0),"") ->  | K57: =IF($D57 <> "",VLOOKUP($D57,'Technische Daten'!$A:$L,3,0),0) -> 0 | L57: =K57 -> 0 | M57: =IF(N57 = 0,M56,N57) ->  | N57: =IF($D57 <> "",VLOOKUP($D57,'Technische Daten'!$A:$L,2,0),0) -> 0 | O57: =IF(OR(L58 < 0,M58 < 0,D57 <> "",P58 <> 0),1,0) -> 0
B58: =Texte!$B$98 -> Modulposition | C58: =(ROW() - 4)/ 2 -> 27 | E58: =IF(D58<>"",VLOOKUP(D58,Texte!A$45:B$107,2,0),"") ->  | F58: =IF(VLOOKUP($D58,'Technische Daten'!$A:$L,10,0) <> "",1,0) ->  | G58: =IF(F58 = 1,VLOOKUP($D58,'Technische Daten'!$A:$L,3,0) / VLOOKUP($D58,'Technische Daten'!$A:$L,10,0) * (-1),0) ->  | J58: =VLOOKUP($D58,'Technische Daten'!$A:$L,5,0) ->  | K58: =IF($D58 <> "",VLOOKUP($D58,'Technische Daten'!$A:$L,4,0) - VLOOKUP($D58,'Technische Daten'!$A:$L,10,0) * H58 - I58,0) -> 0 | M58: =IF(D58 <> "",IF(N57 <> 0,N57+N58,M56+N57+N58),"") ->  | N58: =IF($D58 <> "",VLOOKUP($D58,'Technische Daten'!$A:$L,2,0),0) -> 0 | O58: =IF(D56 <> "",1,0) -> 0
E59: =IF(D59<>"",VLOOKUP(D59,Texte!A$45:B$107,2,0),"") ->  | K59: =IF($D59 <> "",VLOOKUP($D59,'Technische Daten'!$A:$L,3,0),0) -> 0 | L59: =K59 -> 0 | M59: =IF(N59 = 0,M58,N59) ->  | N59: =IF($D59 <> "",VLOOKUP($D59,'Technische Daten'!$A:$L,2,0),0) -> 0 | O59: =IF(OR(L60 < 0,M60 < 0,D59 <> "",P60 <> 0),1,0) -> 0
B60: =Texte!$B$98 -> Modulposition | C60: =(ROW() - 4)/ 2 -> 28 | E60: =IF(D60<>"",VLOOKUP(D60,Texte!A$45:B$107,2,0),"") ->  | F60: =IF(VLOOKUP($D60,'Technische Daten'!$A:$L,10,0) <> "",1,0) ->  | G60: =IF(F60 = 1,VLOOKUP($D60,'Technische Daten'!$A:$L,3,0) / VLOOKUP($D60,'Technische Daten'!$A:$L,10,0) * (-1),0) ->  | J60: =VLOOKUP($D60,'Technische Daten'!$A:$L,5,0) ->  | K60: =IF($D60 <> "",VLOOKUP($D60,'Technische Daten'!$A:$L,4,0) - VLOOKUP($D60,'Technische Daten'!$A:$L,10,0) * H60 - I60,0) -> 0 | M60: =IF(D60 <> "",IF(N59 <> 0,N59+N60,M58+N59+N60),"") ->  | N60: =IF($D60 <> "",VLOOKUP($D60,'Technische Daten'!$A:$L,2,0),0) -> 0 | O60: =IF(D58 <> "",1,0) -> 0
E61: =IF(D61<>"",VLOOKUP(D61,Texte!A$45:B$107,2,0),"") ->  | K61: =IF($D61 <> "",VLOOKUP($D61,'Technische Daten'!$A:$L,3,0),0) -> 0 | L61: =K61 -> 0 | M61: =IF(N61 = 0,M60,N61) ->  | N61: =IF($D61 <> "",VLOOKUP($D61,'Technische Daten'!$A:$L,2,0),0) -> 0 | O61: =IF(OR(L62 < 0,M62 < 0,D61 <> "",P62 <> 0),1,0) -> 0
B62: =Texte!$B$98 -> Modulposition | C62: =(ROW() - 4)/ 2 -> 29 | E62: =IF(D62<>"",VLOOKUP(D62,Texte!A$45:B$107,2,0),"") ->  | F62: =IF(VLOOKUP($D62,'Technische Daten'!$A:$L,10,0) <> "",1,0) ->  | G62: =IF(F62 = 1,VLOOKUP($D62,'Technische Daten'!$A:$L,3,0) / VLOOKUP($D62,'Technische Daten'!$A:$L,10,0) * (-1),0) ->  | J62: =VLOOKUP($D62,'Technische Daten'!$A:$L,5,0) ->  | K62: =IF($D62 <> "",VLOOKUP($D62,'Technische Daten'!$A:$L,4,0) - VLOOKUP($D62,'Technische Daten'!$A:$L,10,0) * H62 - I62,0) -> 0 | M62: =IF(D62 <> "",IF(N61 <> 0,N61+N62,M60+N61+N62),"") ->  | N62: =IF($D62 <> "",VLOOKUP($D62,'Technische Daten'!$A:$L,2,0),0) -> 0 | O62: =IF(D60 <> "",1,0) -> 0
E63: =IF(D63<>"",VLOOKUP(D63,Texte!A$45:B$107,2,0),"") ->  | K63: =IF($D63 <> "",VLOOKUP($D63,'Technische Daten'!$A:$L,3,0),0) -> 0 | L63: =K63 -> 0 | M63: =IF(N63 = 0,M62,N63) ->  | N63: =IF($D63 <> "",VLOOKUP($D63,'Technische Daten'!$A:$L,2,0),0) -> 0 | O63: =IF(OR(L64 < 0,M64 < 0,D63 <> "",P64 <> 0),1,0) -> 0
B64: =Texte!$B$98 -> Modulposition | C64: =(ROW() - 4)/ 2 -> 30 | E64: =IF(D64<>"",VLOOKUP(D64,Texte!A$45:B$107,2,0),"") ->  | F64: =IF(VLOOKUP($D64,'Technische Daten'!$A:$L,10,0) <> "",1,0) ->  | G64: =IF(F64 = 1,VLOOKUP($D64,'Technische Daten'!$A:$L,3,0) / VLOOKUP($D64,'Technische Daten'!$A:$L,10,0) * (-1),0) ->  | J64: =VLOOKUP($D64,'Technische Daten'!$A:$L,5,0) ->  | K64: =IF($D64 <> "",VLOOKUP($D64,'Technische Daten'!$A:$L,4,0) - VLOOKUP($D64,'Technische Daten'!$A:$L,10,0) * H64 - I64,0) -> 0 | M64: =IF(D64 <> "",IF(N63 <> 0,N63+N64,M62+N63+N64),"") ->  | N64: =IF($D64 <> "",VLOOKUP($D64,'Technische Daten'!$A:$L,2,0),0) -> 0 | O64: =IF(D62 <> "",1,0) -> 0
E65: =IF(D65<>"",VLOOKUP(D65,Texte!A$45:B$107,2,0),"") ->  | K65: =IF($D65 <> "",VLOOKUP($D65,'Technische Daten'!$A:$L,3,0),0) -> 0 | L65: =K65 -> 0 | M65: =IF(N65 = 0,M64,N65) ->  | N65: =IF($D65 <> "",VLOOKUP($D65,'Technische Daten'!$A:$L,2,0),0) -> 0 | O65: =IF(OR(L66 < 0,M66 < 0,D65 <> "",P66 <> 0),1,0) -> 0
B66: =Texte!$B$98 -> Modulposition | C66: =(ROW() - 4)/ 2 -> 31 | E66: =IF(D66<>"",VLOOKUP(D66,Texte!A$45:B$107,2,0),"") ->  | F66: =IF(VLOOKUP($D66,'Technische Daten'!$A:$L,10,0) <> "",1,0) ->  | G66: =IF(F66 = 1,VLOOKUP($D66,'Technische Daten'!$A:$L,3,0) / VLOOKUP($D66,'Technische Daten'!$A:$L,10,0) * (-1),0) ->  | J66: =VLOOKUP($D66,'Technische Daten'!$A:$L,5,0) ->  | K66: =IF($D66 <> "",VLOOKUP($D66,'Technische Daten'!$A:$L,4,0) - VLOOKUP($D66,'Technische Daten'!$A:$L,10,0) * H66 - I66,0) -> 0 | M66: =IF(D66 <> "",IF(N65 <> 0,N65+N66,M64+N65+N66),"") ->  | N66: =IF($D66 <> "",VLOOKUP($D66,'Technische Daten'!$A:$L,2,0),0) -> 0 | O66: =IF(D64 <> "",1,0) -> 0
E67: =IF(D67<>"",VLOOKUP(D67,Texte!A$45:B$107,2,0),"") ->  | K67: =IF($D67 <> "",VLOOKUP($D67,'Technische Daten'!$A:$L,3,0),0) -> 0 | L67: =K67 -> 0 | M67: =IF(N67 = 0,M66,N67) ->  | N67: =IF($D67 <> "",VLOOKUP($D67,'Technische Daten'!$A:$L,2,0),0) -> 0 | O67: =IF(OR(L68 < 0,M68 < 0,D67 <> "",P68 <> 0),1,0) -> 0
B68: =Texte!$B$98 -> Modulposition | C68: =(ROW() - 4)/ 2 -> 32 | E68: =IF(D68<>"",VLOOKUP(D68,Texte!A$45:B$107,2,0),"") ->  | F68: =IF(VLOOKUP($D68,'Technische Daten'!$A:$L,10,0) <> "",1,0) ->  | G68: =IF(F68 = 1,VLOOKUP($D68,'Technische Daten'!$A:$L,3,0) / VLOOKUP($D68,'Technische Daten'!$A:$L,10,0) * (-1),0) ->  | J68: =VLOOKUP($D68,'Technische Daten'!$A:$L,5,0) ->  | K68: =IF($D68 <> "",VLOOKUP($D68,'Technische Daten'!$A:$L,4,0) - VLOOKUP($D68,'Technische Daten'!$A:$L,10,0) * H68 - I68,0) -> 0 | M68: =IF(D68 <> "",IF(N67 <> 0,N67+N68,M66+N67+N68),"") ->  | N68: =IF($D68 <> "",VLOOKUP($D68,'Technische Daten'!$A:$L,2,0),0) -> 0 | O68: =IF(D66 <> "",1,0) -> 0
E69: =IF(D69<>"",VLOOKUP(D69,Texte!A$45:B$107,2,0),"") ->  | K69: =IF($D69 <> "",VLOOKUP($D69,'Technische Daten'!$A:$L,3,0),0) -> 0 | L69: =K69 -> 0 | M69: =IF(N69 = 0,M68,N69) ->  | N69: =IF($D69 <> "",VLOOKUP($D69,'Technische Daten'!$A:$L,2,0),0) -> 0 | O69: =IF(OR(L70 < 0,M70 < 0,D69 <> "",P70 <> 0),1,0) -> 0
B70: =Texte!$B$98 -> Modulposition | C70: =(ROW() - 4)/ 2 -> 33 | E70: =IF(D70<>"",VLOOKUP(D70,Texte!A$45:B$107,2,0),"") ->  | F70: =IF(VLOOKUP($D70,'Technische Daten'!$A:$L,10,0) <> "",1,0) ->  | G70: =IF(F70 = 1,VLOOKUP($D70,'Technische Daten'!$A:$L,3,0) / VLOOKUP($D70,'Technische Daten'!$A:$L,10,0) * (-1),0) ->  | J70: =VLOOKUP($D70,'Technische Daten'!$A:$L,5,0) ->  | K70: =IF($D70 <> "",VLOOKUP($D70,'Technische Daten'!$A:$L,4,0) - VLOOKUP($D70,'Technische Daten'!$A:$L,10,0) * H70 - I70,0) -> 0 | M70: =IF(D70 <> "",IF(N69 <> 0,N69+N70,M68+N69+N70),"") ->  | N70: =IF($D70 <> "",VLOOKUP($D70,'Technische Daten'!$A:$L,2,0),0) -> 0 | O70: =IF(D68 <> "",1,0) -> 0
E71: =IF(D71<>"",VLOOKUP(D71,Texte!A$45:B$107,2,0),"") ->  | K71: =IF($D71 <> "",VLOOKUP($D71,'Technische Daten'!$A:$L,3,0),0) -> 0 | L71: =K71 -> 0 | M71: =IF(N71 = 0,M70,N71) ->  | N71: =IF($D71 <> "",VLOOKUP($D71,'Technische Daten'!$A:$L,2,0),0) -> 0 | O71: =IF(OR(L72 < 0,M72 < 0,D71 <> "",P72 <> 0),1,0) -> 0
B72: =Texte!$B$98 -> Modulposition | C72: =(ROW() - 4)/ 2 -> 34 | E72: =IF(D72<>"",VLOOKUP(D72,Texte!A$45:B$107,2,0),"") ->  | F72: =IF(VLOOKUP($D72,'Technische Daten'!$A:$L,10,0) <> "",1,0) ->  | G72: =IF(F72 = 1,VLOOKUP($D72,'Technische Daten'!$A:$L,3,0) / VLOOKUP($D72,'Technische Daten'!$A:$L,10,0) * (-1),0) ->  | J72: =VLOOKUP($D72,'Technische Daten'!$A:$L,5,0) ->  | K72: =IF($D72 <> "",VLOOKUP($D72,'Technische Daten'!$A:$L,4,0) - VLOOKUP($D72,'Technische Daten'!$A:$L,10,0) * H72 - I72,0) -> 0 | L72: =IF(D72<>"",IF(D71<>"",K71+K72, L70+K71+K72),"") ->  | M72: =IF(D72 <> "",IF(N71 <> 0,N71+N72,M70+N71+N72),"") ->  | N72: =IF($D72 <> "",VLOOKUP($D72,'Technische Daten'!$A:$L,2,0),0) -> 0 | O72: =IF(D70 <> "",1,0) -> 0
E73: =IF(D73<>"",VLOOKUP(D73,Texte!A$45:B$107,2,0),"") ->  | K73: =IF($D73 <> "",VLOOKUP($D73,'Technische Daten'!$A:$L,3,0),0) -> 0 | L73: =K73 -> 0 | M73: =IF(N73 = 0,M72,N73) ->  | N73: =IF($D73 <> "",VLOOKUP($D73,'Technische Daten'!$A:$L,2,0),0) -> 0 | O73: =IF(OR(L74 < 0,M74 < 0,D73 <> "",P74 <> 0),1,0) -> 0
B74: =Texte!$B$98 -> Modulposition | C74: =(ROW() - 4)/ 2 -> 35 | E74: =IF(D74<>"",VLOOKUP(D74,Texte!A$45:B$107,2,0),"") ->  | F74: =IF(VLOOKUP($D74,'Technische Daten'!$A:$L,10,0) <> "",1,0) ->  | G74: =IF(F74 = 1,VLOOKUP($D74,'Technische Daten'!$A:$L,3,0) / VLOOKUP($D74,'Technische Daten'!$A:$L,10,0) * (-1),0) ->  | J74: =VLOOKUP($D74,'Technische Daten'!$A:$L,5,0) ->  | K74: =IF($D74 <> "",VLOOKUP($D74,'Technische Daten'!$A:$L,4,0) - VLOOKUP($D74,'Technische Daten'!$A:$L,10,0) * H74 - I74,0) -> 0 | M74: =IF(D74 <> "",IF(N73 <> 0,N73+N74,M72+N73+N74),"") ->  | N74: =IF($D74 <> "",VLOOKUP($D74,'Technische Daten'!$A:$L,2,0),0) -> 0 | O74: =IF(D72 <> "",1,0) -> 0
E75: =IF(D75<>"",VLOOKUP(D75,Texte!A$45:B$107,2,0),"") ->  | K75: =IF($D75 <> "",VLOOKUP($D75,'Technische Daten'!$A:$L,3,0),0) -> 0 | L75: =K75 -> 0 | M75: =IF(N75 = 0,M74,N75) ->  | N75: =IF($D75 <> "",VLOOKUP($D75,'Technische Daten'!$A:$L,2,0),0) -> 0 | O75: =IF(OR(L76 < 0,M76 < 0,D75 <> "",P76 <> 0),1,0) -> 0
B76: =Texte!$B$98 -> Modulposition | C76: =(ROW() - 4)/ 2 -> 36 | E76: =IF(D76<>"",VLOOKUP(D76,Texte!A$45:B$107,2,0),"") ->  | F76: =IF(VLOOKUP($D76,'Technische Daten'!$A:$L,10,0) <> "",1,0) ->  | G76: =IF(F76 = 1,VLOOKUP($D76,'Technische Daten'!$A:$L,3,0) / VLOOKUP($D76,'Technische Daten'!$A:$L,10,0) * (-1),0) ->  | J76: =VLOOKUP($D76,'Technische Daten'!$A:$L,5,0) ->  | K76: =IF($D76 <> "",VLOOKUP($D76,'Technische Daten'!$A:$L,4,0) - VLOOKUP($D76,'Technische Daten'!$A:$L,10,0) * H76 - I76,0) -> 0 | M76: =IF(D76 <> "",IF(N75 <> 0,N75+N76,M74+N75+N76),"") ->  | N76: =IF($D76 <> "",VLOOKUP($D76,'Technische Daten'!$A:$L,2,0),0) -> 0 | O76: =IF(D74 <> "",1,0) -> 0
E77: =IF(D77<>"",VLOOKUP(D77,Texte!A$45:B$107,2,0),"") ->  | K77: =IF($D77 <> "",VLOOKUP($D77,'Technische Daten'!$A:$L,3,0),0) -> 0 | L77: =K77 -> 0 | M77: =IF(N77 = 0,M76,N77) ->  | N77: =IF($D77 <> "",VLOOKUP($D77,'Technische Daten'!$A:$L,2,0),0) -> 0 | O77: =IF(OR(L78 < 0,M78 < 0,D77 <> "",P78 <> 0),1,0) -> 0
B78: =Texte!$B$98 -> Modulposition | C78: =(ROW() - 4)/ 2 -> 37 | E78: =IF(D78<>"",VLOOKUP(D78,Texte!A$45:B$107,2,0),"") ->  | F78: =IF(VLOOKUP($D78,'Technische Daten'!$A:$L,10,0) <> "",1,0) ->  | G78: =IF(F78 = 1,VLOOKUP($D78,'Technische Daten'!$A:$L,3,0) / VLOOKUP($D78,'Technische Daten'!$A:$L,10,0) * (-1),0) ->  | J78: =VLOOKUP($D78,'Technische Daten'!$A:$L,5,0) ->  | K78: =IF($D78 <> "",VLOOKUP($D78,'Technische Daten'!$A:$L,4,0) - VLOOKUP($D78,'Technische Daten'!$A:$L,10,0) * H78 - I78,0) -> 0 | M78: =IF(D78 <> "",IF(N77 <> 0,N77+N78,M76+N77+N78),"") ->  | N78: =IF($D78 <> "",VLOOKUP($D78,'Technische Daten'!$A:$L,2,0),0) -> 0 | O78: =IF(D76 <> "",1,0) -> 0
E79: =IF(D79<>"",VLOOKUP(D79,Texte!A$45:B$107,2,0),"") ->  | K79: =IF($D79 <> "",VLOOKUP($D79,'Technische Daten'!$A:$L,3,0),0) -> 0 | L79: =K79 -> 0 | M79: =IF(N79 = 0,M78,N79) ->  | N79: =IF($D79 <> "",VLOOKUP($D79,'Technische Daten'!$A:$L,2,0),0) -> 0 | O79: =IF(OR(L80 < 0,M80 < 0,D79 <> "",P80 <> 0),1,0) -> 0
B80: =Texte!$B$98 -> Modulposition | C80: =(ROW() - 4)/ 2 -> 38 | E80: =IF(D80<>"",VLOOKUP(D80,Texte!A$45:B$107,2,0),"") ->  | F80: =IF(VLOOKUP($D80,'Technische Daten'!$A:$L,10,0) <> "",1,0) ->  | G80: =IF(F80 = 1,VLOOKUP($D80,'Technische Daten'!$A:$L,3,0) / VLOOKUP($D80,'Technische Daten'!$A:$L,10,0) * (-1),0) ->  | J80: =VLOOKUP($D80,'Technische Daten'!$A:$L,5,0) ->  | K80: =IF($D80 <> "",VLOOKUP($D80,'Technische Daten'!$A:$L,4,0) - VLOOKUP($D80,'Technische Daten'!$A:$L,10,0) * H80 - I80,0) -> 0 | M80: =IF(D80 <> "",IF(N79 <> 0,N79+N80,M78+N79+N80),"") ->  | N80: =IF($D80 <> "",VLOOKUP($D80,'Technische Daten'!$A:$L,2,0),0) -> 0 | O80: =IF(D78 <> "",1,0) -> 0
E81: =IF(D81<>"",VLOOKUP(D81,Texte!A$45:B$107,2,0),"") ->  | K81: =IF($D81 <> "",VLOOKUP($D81,'Technische Daten'!$A:$L,3,0),0) -> 0 | L81: =K81 -> 0 | M81: =IF(N81 = 0,M80,N81) ->  | N81: =IF($D81 <> "",VLOOKUP($D81,'Technische Daten'!$A:$L,2,0),0) -> 0 | O81: =IF(OR(L82 < 0,M82 < 0,D81 <> "",P82 <> 0),1,0) -> 0
B82: =Texte!$B$98 -> Modulposition | C82: =(ROW() - 4)/ 2 -> 39 | E82: =IF(D82<>"",VLOOKUP(D82,Texte!A$45:B$107,2,0),"") ->  | F82: =IF(VLOOKUP($D82,'Technische Daten'!$A:$L,10,0) <> "",1,0) ->  | G82: =IF(F82 = 1,VLOOKUP($D82,'Technische Daten'!$A:$L,3,0) / VLOOKUP($D82,'Technische Daten'!$A:$L,10,0) * (-1),0) ->  | J82: =VLOOKUP($D82,'Technische Daten'!$A:$L,5,0) ->  | K82: =IF($D82 <> "",VLOOKUP($D82,'Technische Daten'!$A:$L,4,0) - VLOOKUP($D82,'Technische Daten'!$A:$L,10,0) * H82 - I82,0) -> 0 | M82: =IF(D82 <> "",IF(N81 <> 0,N81+N82,M80+N81+N82),"") ->  | N82: =IF($D82 <> "",VLOOKUP($D82,'Technische Daten'!$A:$L,2,0),0) -> 0 | O82: =IF(D80 <> "",1,0) -> 0
E83: =IF(D83<>"",VLOOKUP(D83,Texte!A$45:B$107,2,0),"") ->  | K83: =IF($D83 <> "",VLOOKUP($D83,'Technische Daten'!$A:$L,3,0),0) -> 0 | L83: =K83 -> 0 | M83: =IF(N83 = 0,M82,N83) ->  | N83: =IF($D83 <> "",VLOOKUP($D83,'Technische Daten'!$A:$L,2,0),0) -> 0 | O83: =IF(OR(L84 < 0,M84 < 0,D83 <> "",P84 <> 0),1,0) -> 0
B84: =Texte!$B$98 -> Modulposition | C84: =(ROW() - 4)/ 2 -> 40 | E84: =IF(D84<>"",VLOOKUP(D84,Texte!A$45:B$107,2,0),"") ->  | F84: =IF(VLOOKUP($D84,'Technische Daten'!$A:$L,10,0) <> "",1,0) ->  | G84: =IF(F84 = 1,VLOOKUP($D84,'Technische Daten'!$A:$L,3,0) / VLOOKUP($D84,'Technische Daten'!$A:$L,10,0) * (-1),0) ->  | J84: =VLOOKUP($D84,'Technische Daten'!$A:$L,5,0) ->  | K84: =IF($D84 <> "",VLOOKUP($D84,'Technische Daten'!$A:$L,4,0) - VLOOKUP($D84,'Technische Daten'!$A:$L,10,0) * H84 - I84,0) -> 0 | M84: =IF(D84 <> "",IF(N83 <> 0,N83+N84,M82+N83+N84),"") ->  | N84: =IF($D84 <> "",VLOOKUP($D84,'Technische Daten'!$A:$L,2,0),0) -> 0 | O84: =IF(D82 <> "",1,0) -> 0
E85: =IF(D85<>"",VLOOKUP(D85,Texte!A$45:B$107,2,0),"") ->  | K85: =IF($D85 <> "",VLOOKUP($D85,'Technische Daten'!$A:$L,3,0),0) -> 0 | L85: =K85 -> 0 | M85: =IF(N85 = 0,M84,N85) ->  | N85: =IF($D85 <> "",VLOOKUP($D85,'Technische Daten'!$A:$L,2,0),0) -> 0 | O85: =IF(OR(L86 < 0,M86 < 0,D85 <> "",P86 <> 0),1,0) -> 0
B86: =Texte!$B$98 -> Modulposition | C86: =(ROW() - 4)/ 2 -> 41 | E86: =IF(D86<>"",VLOOKUP(D86,Texte!A$45:B$107,2,0),"") ->  | F86: =IF(VLOOKUP($D86,'Technische Daten'!$A:$L,10,0) <> "",1,0) ->  | G86: =IF(F86 = 1,VLOOKUP($D86,'Technische Daten'!$A:$L,3,0) / VLOOKUP($D86,'Technische Daten'!$A:$L,10,0) * (-1),0) ->  | J86: =VLOOKUP($D86,'Technische Daten'!$A:$L,5,0) ->  | K86: =IF($D86 <> "",VLOOKUP($D86,'Technische Daten'!$A:$L,4,0) - VLOOKUP($D86,'Technische Daten'!$A:$L,10,0) * H86 - I86,0) -> 0 | M86: =IF(D86 <> "",IF(N85 <> 0,N85+N86,M84+N85+N86),"") ->  | N86: =IF($D86 <> "",VLOOKUP($D86,'Technische Daten'!$A:$L,2,0),0) -> 0 | O86: =IF(D84 <> "",1,0) -> 0
E87: =IF(D87<>"",VLOOKUP(D87,Texte!A$45:B$107,2,0),"") ->  | K87: =IF($D87 <> "",VLOOKUP($D87,'Technische Daten'!$A:$L,3,0),0) -> 0 | L87: =K87 -> 0 | M87: =IF(N87 = 0,M86,N87) ->  | N87: =IF($D87 <> "",VLOOKUP($D87,'Technische Daten'!$A:$L,2,0),0) -> 0 | O87: =IF(OR(L88 < 0,M88 < 0,D87 <> "",P88 <> 0),1,0) -> 0
B88: =Texte!$B$98 -> Modulposition | C88: =(ROW() - 4)/ 2 -> 42 | E88: =IF(D88<>"",VLOOKUP(D88,Texte!A$45:B$107,2,0),"") ->  | F88: =IF(VLOOKUP($D88,'Technische Daten'!$A:$L,10,0) <> "",1,0) ->  | G88: =IF(F88 = 1,VLOOKUP($D88,'Technische Daten'!$A:$L,3,0) / VLOOKUP($D88,'Technische Daten'!$A:$L,10,0) * (-1),0) ->  | J88: =VLOOKUP($D88,'Technische Daten'!$A:$L,5,0) ->  | K88: =IF($D88 <> "",VLOOKUP($D88,'Technische Daten'!$A:$L,4,0) - VLOOKUP($D88,'Technische Daten'!$A:$L,10,0) * H88 - I88,0) -> 0 | M88: =IF(D88 <> "",IF(N87 <> 0,N87+N88,M86+N87+N88),"") ->  | N88: =IF($D88 <> "",VLOOKUP($D88,'Technische Daten'!$A:$L,2,0),0) -> 0 | O88: =IF(D86 <> "",1,0) -> 0
E89: =IF(D89<>"",VLOOKUP(D89,Texte!A$45:B$107,2,0),"") ->  | K89: =IF($D89 <> "",VLOOKUP($D89,'Technische Daten'!$A:$L,3,0),0) -> 0 | L89: =K89 -> 0 | M89: =IF(N89 = 0,M88,N89) ->  | N89: =IF($D89 <> "",VLOOKUP($D89,'Technische Daten'!$A:$L,2,0),0) -> 0 | O89: =IF(OR(L90 < 0,M90 < 0,D89 <> "",P90 <> 0),1,0) -> 0
B90: =Texte!$B$98 -> Modulposition | C90: =(ROW() - 4)/ 2 -> 43 | E90: =IF(D90<>"",VLOOKUP(D90,Texte!A$45:B$107,2,0),"") ->  | F90: =IF(VLOOKUP($D90,'Technische Daten'!$A:$L,10,0) <> "",1,0) ->  | G90: =IF(F90 = 1,VLOOKUP($D90,'Technische Daten'!$A:$L,3,0) / VLOOKUP($D90,'Technische Daten'!$A:$L,10,0) * (-1),0) ->  | J90: =VLOOKUP($D90,'Technische Daten'!$A:$L,5,0) ->  | K90: =IF($D90 <> "",VLOOKUP($D90,'Technische Daten'!$A:$L,4,0) - VLOOKUP($D90,'Technische Daten'!$A:$L,10,0) * H90 - I90,0) -> 0 | M90: =IF(D90 <> "",IF(N89 <> 0,N89+N90,M88+N89+N90),"") ->  | N90: =IF($D90 <> "",VLOOKUP($D90,'Technische Daten'!$A:$L,2,0),0) -> 0 | O90: =IF(D88 <> "",1,0) -> 0
E91: =IF(D91<>"",VLOOKUP(D91,Texte!A$45:B$107,2,0),"") ->  | K91: =IF($D91 <> "",VLOOKUP($D91,'Technische Daten'!$A:$L,3,0),0) -> 0 | L91: =K91 -> 0 | M91: =IF(N91 = 0,M90,N91) ->  | N91: =IF($D91 <> "",VLOOKUP($D91,'Technische Daten'!$A:$L,2,0),0) -> 0 | O91: =IF(OR(L92 < 0,M92 < 0,D91 <> "",P92 <> 0),1,0) -> 0
B92: =Texte!$B$98 -> Modulposition | C92: =(ROW() - 4)/ 2 -> 44 | E92: =IF(D92<>"",VLOOKUP(D92,Texte!A$45:B$107,2,0),"") ->  | F92: =IF(VLOOKUP($D92,'Technische Daten'!$A:$L,10,0) <> "",1,0) ->  | G92: =IF(F92 = 1,VLOOKUP($D92,'Technische Daten'!$A:$L,3,0) / VLOOKUP($D92,'Technische Daten'!$A:$L,10,0) * (-1),0) ->  | J92: =VLOOKUP($D92,'Technische Daten'!$A:$L,5,0) ->  | K92: =IF($D92 <> "",VLOOKUP($D92,'Technische Daten'!$A:$L,4,0) - VLOOKUP($D92,'Technische Daten'!$A:$L,10,0) * H92 - I92,0) -> 0 | M92: =IF(D92 <> "",IF(N91 <> 0,N91+N92,M90+N91+N92),"") ->  | N92: =IF($D92 <> "",VLOOKUP($D92,'Technische Daten'!$A:$L,2,0),0) -> 0 | O92: =IF(D90 <> "",1,0) -> 0
E93: =IF(D93<>"",VLOOKUP(D93,Texte!A$45:B$107,2,0),"") ->  | K93: =IF($D93 <> "",VLOOKUP($D93,'Technische Daten'!$A:$L,3,0),0) -> 0 | L93: =K93 -> 0 | M93: =IF(N93 = 0,M92,N93) ->  | N93: =IF($D93 <> "",VLOOKUP($D93,'Technische Daten'!$A:$L,2,0),0) -> 0 | O93: =IF(OR(L94 < 0,M94 < 0,D93 <> "",P94 <> 0),1,0) -> 0
B94: =Texte!$B$98 -> Modulposition | C94: =(ROW() - 4)/ 2 -> 45 | E94: =IF(D94<>"",VLOOKUP(D94,Texte!A$45:B$107,2,0),"") ->  | F94: =IF(VLOOKUP($D94,'Technische Daten'!$A:$L,10,0) <> "",1,0) ->  | G94: =IF(F94 = 1,VLOOKUP($D94,'Technische Daten'!$A:$L,3,0) / VLOOKUP($D94,'Technische Daten'!$A:$L,10,0) * (-1),0) ->  | J94: =VLOOKUP($D94,'Technische Daten'!$A:$L,5,0) ->  | K94: =IF($D94 <> "",VLOOKUP($D94,'Technische Daten'!$A:$L,4,0) - VLOOKUP($D94,'Technische Daten'!$A:$L,10,0) * H94 - I94,0) -> 0 | M94: =IF(D94 <> "",IF(N93 <> 0,N93+N94,M92+N93+N94),"") ->  | N94: =IF($D94 <> "",VLOOKUP($D94,'Technische Daten'!$A:$L,2,0),0) -> 0 | O94: =IF(D92 <> "",1,0) -> 0
E95: =IF(D95<>"",VLOOKUP(D95,Texte!A$45:B$107,2,0),"") ->  | K95: =IF($D95 <> "",VLOOKUP($D95,'Technische Daten'!$A:$L,3,0),0) -> 0 | L95: =K95 -> 0 | M95: =IF(N95 = 0,M94,N95) ->  | N95: =IF($D95 <> "",VLOOKUP($D95,'Technische Daten'!$A:$L,2,0),0) -> 0 | O95: =IF(OR(L96 < 0,M96 < 0,D95 <> "",P96 <> 0),1,0) -> 0
B96: =Texte!$B$98 -> Modulposition | C96: =(ROW() - 4)/ 2 -> 46 | E96: =IF(D96<>"",VLOOKUP(D96,Texte!A$45:B$107,2,0),"") ->  | F96: =IF(VLOOKUP($D96,'Technische Daten'!$A:$L,10,0) <> "",1,0) ->  | G96: =IF(F96 = 1,VLOOKUP($D96,'Technische Daten'!$A:$L,3,0) / VLOOKUP($D96,'Technische Daten'!$A:$L,10,0) * (-1),0) ->  | J96: =VLOOKUP($D96,'Technische Daten'!$A:$L,5,0) ->  | K96: =IF($D96 <> "",VLOOKUP($D96,'Technische Daten'!$A:$L,4,0) - VLOOKUP($D96,'Technische Daten'!$A:$L,10,0) * H96 - I96,0) -> 0 | M96: =IF(D96 <> "",IF(N95 <> 0,N95+N96,M94+N95+N96),"") ->  | N96: =IF($D96 <> "",VLOOKUP($D96,'Technische Daten'!$A:$L,2,0),0) -> 0 | O96: =IF(D94 <> "",1,0) -> 0
E97: =IF(D97<>"",VLOOKUP(D97,Texte!A$45:B$107,2,0),"") ->  | K97: =IF($D97 <> "",VLOOKUP($D97,'Technische Daten'!$A:$L,3,0),0) -> 0 | L97: =K97 -> 0 | M97: =IF(N97 = 0,M96,N97) ->  | N97: =IF($D97 <> "",VLOOKUP($D97,'Technische Daten'!$A:$L,2,0),0) -> 0 | O97: =IF(OR(L98 < 0,M98 < 0,D97 <> "",P98 <> 0),1,0) -> 0
B98: =Texte!$B$98 -> Modulposition | C98: =(ROW() - 4)/ 2 -> 47 | E98: =IF(D98<>"",VLOOKUP(D98,Texte!A$45:B$107,2,0),"") ->  | F98: =IF(VLOOKUP($D98,'Technische Daten'!$A:$L,10,0) <> "",1,0) ->  | G98: =IF(F98 = 1,VLOOKUP($D98,'Technische Daten'!$A:$L,3,0) / VLOOKUP($D98,'Technische Daten'!$A:$L,10,0) * (-1),0) ->  | J98: =VLOOKUP($D98,'Technische Daten'!$A:$L,5,0) ->  | K98: =IF($D98 <> "",VLOOKUP($D98,'Technische Daten'!$A:$L,4,0) - VLOOKUP($D98,'Technische Daten'!$A:$L,10,0) * H98 - I98,0) -> 0 | M98: =IF(D98 <> "",IF(N97 <> 0,N97+N98,M96+N97+N98),"") ->  | N98: =IF($D98 <> "",VLOOKUP($D98,'Technische Daten'!$A:$L,2,0),0) -> 0 | O98: =IF(D96 <> "",1,0) -> 0
E99: =IF(D99<>"",VLOOKUP(D99,Texte!A$45:B$107,2,0),"") ->  | K99: =IF($D99 <> "",VLOOKUP($D99,'Technische Daten'!$A:$L,3,0),0) -> 0 | L99: =K99 -> 0 | M99: =IF(N99 = 0,M98,N99) ->  | N99: =IF($D99 <> "",VLOOKUP($D99,'Technische Daten'!$A:$L,2,0),0) -> 0 | O99: =IF(OR(L100 < 0,M100 < 0,D99 <> "",P100 <> 0),1,0) -> 0
B100: =Texte!$B$98 -> Modulposition | C100: =(ROW() - 4)/ 2 -> 48 | E100: =IF(D100<>"",VLOOKUP(D100,Texte!A$45:B$107,2,0),"") ->  | F100: =IF(VLOOKUP($D100,'Technische Daten'!$A:$L,10,0) <> "",1,0) ->  | G100: =IF(F100 = 1,VLOOKUP($D100,'Technische Daten'!$A:$L,3,0) / VLOOKUP($D100,'Technische Daten'!$A:$L,10,0) * (-1),0) ->  | J100: =VLOOKUP($D100,'Technische Daten'!$A:$L,5,0) ->  | K100: =IF($D100 <> "",VLOOKUP($D100,'Technische Daten'!$A:$L,4,0) - VLOOKUP($D100,'Technische Daten'!$A:$L,10,0) * H100 - I100,0) -> 0 | M100: =IF(D100 <> "",IF(N99 <> 0,N99+N100,M98+N99+N100),"") ->  | N100: =IF($D100 <> "",VLOOKUP($D100,'Technische Daten'!$A:$L,2,0),0) -> 0 | O100: =IF(D98 <> "",1,0) -> 0
E101: =IF(D101<>"",VLOOKUP(D101,Texte!A$45:B$107,2,0),"") ->  | K101: =IF($D101 <> "",VLOOKUP($D101,'Technische Daten'!$A:$L,3,0),0) -> 0 | L101: =K101 -> 0 | M101: =IF(N101 = 0,M100,N101) ->  | N101: =IF($D101 <> "",VLOOKUP($D101,'Technische Daten'!$A:$L,2,0),0) -> 0 | O101: =IF(OR(L102 < 0,M102 < 0,D101 <> "",P102 <> 0),1,0) -> 0
B102: =Texte!$B$98 -> Modulposition | C102: =(ROW() - 4)/ 2 -> 49 | E102: =IF(D102<>"",VLOOKUP(D102,Texte!A$45:B$107,2,0),"") ->  | F102: =IF(VLOOKUP($D102,'Technische Daten'!$A:$L,10,0) <> "",1,0) ->  | G102: =IF(F102 = 1,VLOOKUP($D102,'Technische Daten'!$A:$L,3,0) / VLOOKUP($D102,'Technische Daten'!$A:$L,10,0) * (-1),0) ->  | J102: =VLOOKUP($D102,'Technische Daten'!$A:$L,5,0) ->  | K102: =IF($D102 <> "",VLOOKUP($D102,'Technische Daten'!$A:$L,4,0) - VLOOKUP($D102,'Technische Daten'!$A:$L,10,0) * H102 - I102,0) -> 0 | M102: =IF(D102 <> "",IF(N101 <> 0,N101+N102,M100+N101+N102),"") ->  | N102: =IF($D102 <> "",VLOOKUP($D102,'Technische Daten'!$A:$L,2,0),0) -> 0 | O102: =IF(D100 <> "",1,0) -> 0
E103: =IF(D103<>"",VLOOKUP(D103,Texte!A$45:B$107,2,0),"") ->  | K103: =IF($D103 <> "",VLOOKUP($D103,'Technische Daten'!$A:$L,3,0),0) -> 0 | L103: =K103 -> 0 | M103: =IF(N103 = 0,M102,N103) ->  | N103: =IF($D103 <> "",VLOOKUP($D103,'Technische Daten'!$A:$L,2,0),0) -> 0 | O103: =IF(OR(L104 < 0,M104 < 0,D103 <> "",P104 <> 0),1,0) -> 0
B104: =Texte!$B$98 -> Modulposition | C104: =(ROW() - 4)/ 2 -> 50 | E104: =IF(D104<>"",VLOOKUP(D104,Texte!A$45:B$107,2,0),"") ->  | F104: =IF(VLOOKUP($D104,'Technische Daten'!$A:$L,10,0) <> "",1,0) ->  | G104: =IF(F104 = 1,VLOOKUP($D104,'Technische Daten'!$A:$L,3,0) / VLOOKUP($D104,'Technische Daten'!$A:$L,10,0) * (-1),0) ->  | J104: =VLOOKUP($D104,'Technische Daten'!$A:$L,5,0) ->  | K104: =IF($D104 <> "",VLOOKUP($D104,'Technische Daten'!$A:$L,4,0) - VLOOKUP($D104,'Technische Daten'!$A:$L,10,0) * H104 - I104,0) -> 0 | M104: =IF(D104 <> "",IF(N103 <> 0,N103+N104,M102+N103+N104),"") ->  | N104: =IF($D104 <> "",VLOOKUP($D104,'Technische Daten'!$A:$L,2,0),0) -> 0 | O104: =IF(D102 <> "",1,0) -> 0
E105: =IF(D105<>"",VLOOKUP(D105,Texte!A$45:B$107,2,0),"") ->  | K105: =IF($D105 <> "",VLOOKUP($D105,'Technische Daten'!$A:$L,3,0),0) -> 0 | L105: =K105 -> 0 | M105: =IF(N105 = 0,M104,N105) ->  | N105: =IF($D105 <> "",VLOOKUP($D105,'Technische Daten'!$A:$L,2,0),0) -> 0 | O105: =IF(OR(L106 < 0,M106 < 0,D105 <> "",P106 <> 0),1,0) -> 0
B106: =Texte!$B$98 -> Modulposition | C106: =(ROW() - 4)/ 2 -> 51 | E106: =IF(D106<>"",VLOOKUP(D106,Texte!A$45:B$107,2,0),"") ->  | F106: =IF(VLOOKUP($D106,'Technische Daten'!$A:$L,10,0) <> "",1,0) ->  | G106: =IF(F106 = 1,VLOOKUP($D106,'Technische Daten'!$A:$L,3,0) / VLOOKUP($D106,'Technische Daten'!$A:$L,10,0) * (-1),0) ->  | J106: =VLOOKUP($D106,'Technische Daten'!$A:$L,5,0) ->  | K106: =IF($D106 <> "",VLOOKUP($D106,'Technische Daten'!$A:$L,4,0) - VLOOKUP($D106,'Technische Daten'!$A:$L,10,0) * H106 - I106,0) -> 0 | M106: =IF(D106 <> "",IF(N105 <> 0,N105+N106,M104+N105+N106),"") ->  | N106: =IF($D106 <> "",VLOOKUP($D106,'Technische Daten'!$A:$L,2,0),0) -> 0 | O106: =IF(D104 <> "",1,0) -> 0
E107: =IF(D107<>"",VLOOKUP(D107,Texte!A$45:B$107,2,0),"") ->  | K107: =IF($D107 <> "",VLOOKUP($D107,'Technische Daten'!$A:$L,3,0),0) -> 0 | L107: =K107 -> 0 | M107: =IF(N107 = 0,M106,N107) ->  | N107: =IF($D107 <> "",VLOOKUP($D107,'Technische Daten'!$A:$L,2,0),0) -> 0 | O107: =IF(OR(L108 < 0,M108 < 0,D107 <> "",P108 <> 0),1,0) -> 0
B108: =Texte!$B$98 -> Modulposition | C108: =(ROW() - 4)/ 2 -> 52 | E108: =IF(D108<>"",VLOOKUP(D108,Texte!A$45:B$107,2,0),"") ->  | F108: =IF(VLOOKUP($D108,'Technische Daten'!$A:$L,10,0) <> "",1,0) ->  | G108: =IF(F108 = 1,VLOOKUP($D108,'Technische Daten'!$A:$L,3,0) / VLOOKUP($D108,'Technische Daten'!$A:$L,10,0) * (-1),0) ->  | J108: =VLOOKUP($D108,'Technische Daten'!$A:$L,5,0) ->  | K108: =IF($D108 <> "",VLOOKUP($D108,'Technische Daten'!$A:$L,4,0) - VLOOKUP($D108,'Technische Daten'!$A:$L,10,0) * H108 - I108,0) -> 0 | M108: =IF(D108 <> "",IF(N107 <> 0,N107+N108,M106+N107+N108),"") ->  | N108: =IF($D108 <> "",VLOOKUP($D108,'Technische Daten'!$A:$L,2,0),0) -> 0 | O108: =IF(D106 <> "",1,0) -> 0
E109: =IF(D109<>"",VLOOKUP(D109,Texte!A$45:B$107,2,0),"") ->  | K109: =IF($D109 <> "",VLOOKUP($D109,'Technische Daten'!$A:$L,3,0),0) -> 0 | L109: =K109 -> 0 | M109: =IF(N109 = 0,M108,N109) ->  | N109: =IF($D109 <> "",VLOOKUP($D109,'Technische Daten'!$A:$L,2,0),0) -> 0 | O109: =IF(OR(L110 < 0,M110 < 0,D109 <> "",P110 <> 0),1,0) -> 0
B110: =Texte!$B$98 -> Modulposition | C110: =(ROW() - 4)/ 2 -> 53 | E110: =IF(D110<>"",VLOOKUP(D110,Texte!A$45:B$107,2,0),"") ->  | F110: =IF(VLOOKUP($D110,'Technische Daten'!$A:$L,10,0) <> "",1,0) ->  | G110: =IF(F110 = 1,VLOOKUP($D110,'Technische Daten'!$A:$L,3,0) / VLOOKUP($D110,'Technische Daten'!$A:$L,10,0) * (-1),0) ->  | J110: =VLOOKUP($D110,'Technische Daten'!$A:$L,5,0) ->  | K110: =IF($D110 <> "",VLOOKUP($D110,'Technische Daten'!$A:$L,4,0) - VLOOKUP($D110,'Technische Daten'!$A:$L,10,0) * H110 - I110,0) -> 0 | M110: =IF(D110 <> "",IF(N109 <> 0,N109+N110,M108+N109+N110),"") ->  | N110: =IF($D110 <> "",VLOOKUP($D110,'Technische Daten'!$A:$L,2,0),0) -> 0 | O110: =IF(D108 <> "",1,0) -> 0
E111: =IF(D111<>"",VLOOKUP(D111,Texte!A$45:B$107,2,0),"") ->  | K111: =IF($D111 <> "",VLOOKUP($D111,'Technische Daten'!$A:$L,3,0),0) -> 0 | L111: =K111 -> 0 | M111: =IF(N111 = 0,M110,N111) ->  | N111: =IF($D111 <> "",VLOOKUP($D111,'Technische Daten'!$A:$L,2,0),0) -> 0 | O111: =IF(OR(L112 < 0,M112 < 0,D111 <> "",P112 <> 0),1,0) -> 0
B112: =Texte!$B$98 -> Modulposition | C112: =(ROW() - 4)/ 2 -> 54 | E112: =IF(D112<>"",VLOOKUP(D112,Texte!A$45:B$107,2,0),"") ->  | F112: =IF(VLOOKUP($D112,'Technische Daten'!$A:$L,10,0) <> "",1,0) ->  | G112: =IF(F112 = 1,VLOOKUP($D112,'Technische Daten'!$A:$L,3,0) / VLOOKUP($D112,'Technische Daten'!$A:$L,10,0) * (-1),0) ->  | J112: =VLOOKUP($D112,'Technische Daten'!$A:$L,5,0) ->  | K112: =IF($D112 <> "",VLOOKUP($D112,'Technische Daten'!$A:$L,4,0) - VLOOKUP($D112,'Technische Daten'!$A:$L,10,0) * H112 - I112,0) -> 0 | M112: =IF(D112 <> "",IF(N111 <> 0,N111+N112,M110+N111+N112),"") ->  | N112: =IF($D112 <> "",VLOOKUP($D112,'Technische Daten'!$A:$L,2,0),0) -> 0 | O112: =IF(D110 <> "",1,0) -> 0
E113: =IF(D113<>"",VLOOKUP(D113,Texte!A$45:B$107,2,0),"") ->  | K113: =IF($D113 <> "",VLOOKUP($D113,'Technische Daten'!$A:$L,3,0),0) -> 0 | L113: =K113 -> 0 | M113: =IF(N113 = 0,M112,N113) ->  | N113: =IF($D113 <> "",VLOOKUP($D113,'Technische Daten'!$A:$L,2,0),0) -> 0 | O113: =IF(OR(L114 < 0,M114 < 0,D113 <> "",P114 <> 0),1,0) -> 0
B114: =Texte!$B$98 -> Modulposition | C114: =(ROW() - 4)/ 2 -> 55 | E114: =IF(D114<>"",VLOOKUP(D114,Texte!A$45:B$107,2,0),"") ->  | F114: =IF(VLOOKUP($D114,'Technische Daten'!$A:$L,10,0) <> "",1,0) ->  | G114: =IF(F114 = 1,VLOOKUP($D114,'Technische Daten'!$A:$L,3,0) / VLOOKUP($D114,'Technische Daten'!$A:$L,10,0) * (-1),0) ->  | J114: =VLOOKUP($D114,'Technische Daten'!$A:$L,5,0) ->  | K114: =IF($D114 <> "",VLOOKUP($D114,'Technische Daten'!$A:$L,4,0) - VLOOKUP($D114,'Technische Daten'!$A:$L,10,0) * H114 - I114,0) -> 0 | M114: =IF(D114 <> "",IF(N113 <> 0,N113+N114,M112+N113+N114),"") ->  | N114: =IF($D114 <> "",VLOOKUP($D114,'Technische Daten'!$A:$L,2,0),0) -> 0 | O114: =IF(D112 <> "",1,0) -> 0
E115: =IF(D115<>"",VLOOKUP(D115,Texte!A$45:B$107,2,0),"") ->  | K115: =IF($D115 <> "",VLOOKUP($D115,'Technische Daten'!$A:$L,3,0),0) -> 0 | L115: =K115 -> 0 | M115: =IF(N115 = 0,M114,N115) ->  | N115: =IF($D115 <> "",VLOOKUP($D115,'Technische Daten'!$A:$L,2,0),0) -> 0 | O115: =IF(OR(L116 < 0,M116 < 0,D115 <> "",P116 <> 0),1,0) -> 0
B116: =Texte!$B$98 -> Modulposition | C116: =(ROW() - 4)/ 2 -> 56 | E116: =IF(D116<>"",VLOOKUP(D116,Texte!A$45:B$107,2,0),"") ->  | F116: =IF(VLOOKUP($D116,'Technische Daten'!$A:$L,10,0) <> "",1,0) ->  | G116: =IF(F116 = 1,VLOOKUP($D116,'Technische Daten'!$A:$L,3,0) / VLOOKUP($D116,'Technische Daten'!$A:$L,10,0) * (-1),0) ->  | J116: =VLOOKUP($D116,'Technische Daten'!$A:$L,5,0) ->  | K116: =IF($D116 <> "",VLOOKUP($D116,'Technische Daten'!$A:$L,4,0) - VLOOKUP($D116,'Technische Daten'!$A:$L,10,0) * H116 - I116,0) -> 0 | M116: =IF(D116 <> "",IF(N115 <> 0,N115+N116,M114+N115+N116),"") ->  | N116: =IF($D116 <> "",VLOOKUP($D116,'Technische Daten'!$A:$L,2,0),0) -> 0 | O116: =IF(D114 <> "",1,0) -> 0
E117: =IF(D117<>"",VLOOKUP(D117,Texte!A$45:B$107,2,0),"") ->  | K117: =IF($D117 <> "",VLOOKUP($D117,'Technische Daten'!$A:$L,3,0),0) -> 0 | L117: =K117 -> 0 | M117: =IF(N117 = 0,M116,N117) ->  | N117: =IF($D117 <> "",VLOOKUP($D117,'Technische Daten'!$A:$L,2,0),0) -> 0 | O117: =IF(OR(L118 < 0,M118 < 0,D117 <> "",P118 <> 0),1,0) -> 0
B118: =Texte!$B$98 -> Modulposition | C118: =(ROW() - 4)/ 2 -> 57 | E118: =IF(D118<>"",VLOOKUP(D118,Texte!A$45:B$107,2,0),"") ->  | F118: =IF(VLOOKUP($D118,'Technische Daten'!$A:$L,10,0) <> "",1,0) ->  | G118: =IF(F118 = 1,VLOOKUP($D118,'Technische Daten'!$A:$L,3,0) / VLOOKUP($D118,'Technische Daten'!$A:$L,10,0) * (-1),0) ->  | J118: =VLOOKUP($D118,'Technische Daten'!$A:$L,5,0) ->  | K118: =IF($D118 <> "",VLOOKUP($D118,'Technische Daten'!$A:$L,4,0) - VLOOKUP($D118,'Technische Daten'!$A:$L,10,0) * H118 - I118,0) -> 0 | M118: =IF(D118 <> "",IF(N117 <> 0,N117+N118,M116+N117+N118),"") ->  | N118: =IF($D118 <> "",VLOOKUP($D118,'Technische Daten'!$A:$L,2,0),0) -> 0 | O118: =IF(D116 <> "",1,0) -> 0
E119: =IF(D119<>"",VLOOKUP(D119,Texte!A$45:B$107,2,0),"") ->  | K119: =IF($D119 <> "",VLOOKUP($D119,'Technische Daten'!$A:$L,3,0),0) -> 0 | L119: =K119 -> 0 | M119: =IF(N119 = 0,M118,N119) ->  | N119: =IF($D119 <> "",VLOOKUP($D119,'Technische Daten'!$A:$L,2,0),0) -> 0 | O119: =IF(OR(L120 < 0,M120 < 0,D119 <> "",P120 <> 0),1,0) -> 0
B120: =Texte!$B$98 -> Modulposition | C120: =(ROW() - 4)/ 2 -> 58 | E120: =IF(D120<>"",VLOOKUP(D120,Texte!A$45:B$107,2,0),"") ->  | F120: =IF(VLOOKUP($D120,'Technische Daten'!$A:$L,10,0) <> "",1,0) ->  | G120: =IF(F120 = 1,VLOOKUP($D120,'Technische Daten'!$A:$L,3,0) / VLOOKUP($D120,'Technische Daten'!$A:$L,10,0) * (-1),0) ->  | J120: =VLOOKUP($D120,'Technische Daten'!$A:$L,5,0) ->  | K120: =IF($D120 <> "",VLOOKUP($D120,'Technische Daten'!$A:$L,4,0) - VLOOKUP($D120,'Technische Daten'!$A:$L,10,0) * H120 - I120,0) -> 0 | M120: =IF(D120 <> "",IF(N119 <> 0,N119+N120,M118+N119+N120),"") ->  | N120: =IF($D120 <> "",VLOOKUP($D120,'Technische Daten'!$A:$L,2,0),0) -> 0 | O120: =IF(D118 <> "",1,0) -> 0
E121: =IF(D121<>"",VLOOKUP(D121,Texte!A$45:B$107,2,0),"") ->  | K121: =IF($D121 <> "",VLOOKUP($D121,'Technische Daten'!$A:$L,3,0),0) -> 0 | L121: =K121 -> 0 | M121: =IF(N121 = 0,M120,N121) ->  | N121: =IF($D121 <> "",VLOOKUP($D121,'Technische Daten'!$A:$L,2,0),0) -> 0 | O121: =IF(OR(L122 < 0,M122 < 0,D121 <> "",P122 <> 0),1,0) -> 0
B122: =Texte!$B$98 -> Modulposition | C122: =(ROW() - 4)/ 2 -> 59 | E122: =IF(D122<>"",VLOOKUP(D122,Texte!A$45:B$107,2,0),"") ->  | F122: =IF(VLOOKUP($D122,'Technische Daten'!$A:$L,10,0) <> "",1,0) ->  | G122: =IF(F122 = 1,VLOOKUP($D122,'Technische Daten'!$A:$L,3,0) / VLOOKUP($D122,'Technische Daten'!$A:$L,10,0) * (-1),0) ->  | J122: =VLOOKUP($D122,'Technische Daten'!$A:$L,5,0) ->  | K122: =IF($D122 <> "",VLOOKUP($D122,'Technische Daten'!$A:$L,4,0) - VLOOKUP($D122,'Technische Daten'!$A:$L,10,0) * H122 - I122,0) -> 0 | M122: =IF(D122 <> "",IF(N121 <> 0,N121+N122,M120+N121+N122),"") ->  | N122: =IF($D122 <> "",VLOOKUP($D122,'Technische Daten'!$A:$L,2,0),0) -> 0 | O122: =IF(D120 <> "",1,0) -> 0
E123: =IF(D123<>"",VLOOKUP(D123,Texte!A$45:B$107,2,0),"") ->  | K123: =IF($D123 <> "",VLOOKUP($D123,'Technische Daten'!$A:$L,3,0),0) -> 0 | L123: =K123 -> 0 | M123: =IF(N123 = 0,M122,N123) ->  | N123: =IF($D123 <> "",VLOOKUP($D123,'Technische Daten'!$A:$L,2,0),0) -> 0 | O123: =IF(OR(L124 < 0,M124 < 0,D123 <> "",P124 <> 0),1,0) -> 0
B124: =Texte!$B$98 -> Modulposition | C124: =(ROW() - 4)/ 2 -> 60 | E124: =IF(D124<>"",VLOOKUP(D124,Texte!A$45:B$107,2,0),"") ->  | F124: =IF(VLOOKUP($D124,'Technische Daten'!$A:$L,10,0) <> "",1,0) ->  | G124: =IF(F124 = 1,VLOOKUP($D124,'Technische Daten'!$A:$L,3,0) / VLOOKUP($D124,'Technische Daten'!$A:$L,10,0) * (-1),0) ->  | J124: =VLOOKUP($D124,'Technische Daten'!$A:$L,5,0) ->  | K124: =IF($D124 <> "",VLOOKUP($D124,'Technische Daten'!$A:$L,4,0) - VLOOKUP($D124,'Technische Daten'!$A:$L,10,0) * H124 - I124,0) -> 0 | M124: =IF(D124 <> "",IF(N123 <> 0,N123+N124,M122+N123+N124),"") ->  | N124: =IF($D124 <> "",VLOOKUP($D124,'Technische Daten'!$A:$L,2,0),0) -> 0 | O124: =IF(D122 <> "",1,0) -> 0
E125: =IF(D125<>"",VLOOKUP(D125,Texte!A$45:B$107,2,0),"") ->  | K125: =IF($D125 <> "",VLOOKUP($D125,'Technische Daten'!$A:$L,3,0),0) -> 0 | L125: =K125 -> 0 | M125: =IF(N125 = 0,M124,N125) ->  | N125: =IF($D125 <> "",VLOOKUP($D125,'Technische Daten'!$A:$L,2,0),0) -> 0 | O125: =IF(OR(L126 < 0,M126 < 0,D125 <> "",P126 <> 0),1,0) -> 0
B126: =Texte!$B$98 -> Modulposition | C126: =(ROW() - 4)/ 2 -> 61 | E126: =IF(D126<>"",VLOOKUP(D126,Texte!A$45:B$107,2,0),"") ->  | F126: =IF(VLOOKUP($D126,'Technische Daten'!$A:$L,10,0) <> "",1,0) ->  | G126: =IF(F126 = 1,VLOOKUP($D126,'Technische Daten'!$A:$L,3,0) / VLOOKUP($D126,'Technische Daten'!$A:$L,10,0) * (-1),0) ->  | J126: =VLOOKUP($D126,'Technische Daten'!$A:$L,5,0) ->  | K126: =IF($D126 <> "",VLOOKUP($D126,'Technische Daten'!$A:$L,4,0) - VLOOKUP($D126,'Technische Daten'!$A:$L,10,0) * H126 - I126,0) -> 0 | M126: =IF(D126 <> "",IF(N125 <> 0,N125+N126,M124+N125+N126),"") ->  | N126: =IF($D126 <> "",VLOOKUP($D126,'Technische Daten'!$A:$L,2,0),0) -> 0 | O126: =IF(D124 <> "",1,0) -> 0
E127: =IF(D127<>"",VLOOKUP(D127,Texte!A$45:B$107,2,0),"") ->  | K127: =IF($D127 <> "",VLOOKUP($D127,'Technische Daten'!$A:$L,3,0),0) -> 0 | L127: =K127 -> 0 | M127: =IF(N127 = 0,M126,N127) ->  | N127: =IF($D127 <> "",VLOOKUP($D127,'Technische Daten'!$A:$L,2,0),0) -> 0 | O127: =IF(OR(L128 < 0,M128 < 0,D127 <> "",P128 <> 0),1,0) -> 0
B128: =Texte!$B$98 -> Modulposition | C128: =(ROW() - 4)/ 2 -> 62 | E128: =IF(D128<>"",VLOOKUP(D128,Texte!A$45:B$107,2,0),"") ->  | F128: =IF(VLOOKUP($D128,'Technische Daten'!$A:$L,10,0) <> "",1,0) ->  | G128: =IF(F128 = 1,VLOOKUP($D128,'Technische Daten'!$A:$L,3,0) / VLOOKUP($D128,'Technische Daten'!$A:$L,10,0) * (-1),0) ->  | J128: =VLOOKUP($D128,'Technische Daten'!$A:$L,5,0) ->  | K128: =IF($D128 <> "",VLOOKUP($D128,'Technische Daten'!$A:$L,4,0) - VLOOKUP($D128,'Technische Daten'!$A:$L,10,0) * H128 - I128,0) -> 0 | M128: =IF(D128 <> "",IF(N127 <> 0,N127+N128,M126+N127+N128),"") ->  | N128: =IF($D128 <> "",VLOOKUP($D128,'Technische Daten'!$A:$L,2,0),0) -> 0 | O128: =IF(D126 <> "",1,0) -> 0
E129: =IF(D129<>"",VLOOKUP(D129,Texte!A$45:B$107,2,0),"") ->  | K129: =IF($D129 <> "",VLOOKUP($D129,'Technische Daten'!$A:$L,3,0),0) -> 0 | L129: =K129 -> 0 | M129: =IF(N129 = 0,M128,N129) ->  | N129: =IF($D129 <> "",VLOOKUP($D129,'Technische Daten'!$A:$L,2,0),0) -> 0 | O129: =IF(OR(L130 < 0,M130 < 0,D129 <> "",P130 <> 0),1,0) -> 0
B130: =Texte!$B$98 -> Modulposition | C130: =(ROW() - 4)/ 2 -> 63 | E130: =IF(D130<>"",VLOOKUP(D130,Texte!A$45:B$107,2,0),"") ->  | F130: =IF(VLOOKUP($D130,'Technische Daten'!$A:$L,10,0) <> "",1,0) ->  | G130: =IF(F130 = 1,VLOOKUP($D130,'Technische Daten'!$A:$L,3,0) / VLOOKUP($D130,'Technische Daten'!$A:$L,10,0) * (-1),0) ->  | J130: =VLOOKUP($D130,'Technische Daten'!$A:$L,5,0) ->  | K130: =IF($D130 <> "",VLOOKUP($D130,'Technische Daten'!$A:$L,4,0) - VLOOKUP($D130,'Technische Daten'!$A:$L,10,0) * H130 - I130,0) -> 0 | M130: =IF(D130 <> "",IF(N129 <> 0,N129+N130,M128+N129+N130),"") ->  | N130: =IF($D130 <> "",VLOOKUP($D130,'Technische Daten'!$A:$L,2,0),0) -> 0 | O130: =IF(D128 <> "",1,0) -> 0
E131: =IF(D131<>"",VLOOKUP(D131,Texte!A$45:B$107,2,0),"") ->  | K131: =IF($D131 <> "",VLOOKUP($D131,'Technische Daten'!$A:$L,3,0),0) -> 0 | L131: =K131 -> 0 | M131: =IF(N131 = 0,M130,N131) ->  | N131: =IF($D131 <> "",VLOOKUP($D131,'Technische Daten'!$A:$L,2,0),0) -> 0 | O131: =IF(OR(L132 < 0,M132 < 0,D131 <> "",P132 <> 0),1,0) -> 0
B132: =Texte!$B$98 -> Modulposition | C132: =(ROW() - 4)/ 2 -> 64 | E132: =IF(D132<>"",VLOOKUP(D132,Texte!A$45:B$107,2,0),"") ->  | F132: =IF(VLOOKUP($D132,'Technische Daten'!$A:$L,10,0) <> "",1,0) ->  | G132: =IF(F132 = 1,VLOOKUP($D132,'Technische Daten'!$A:$L,3,0) / VLOOKUP($D132,'Technische Daten'!$A:$L,10,0) * (-1),0) ->  | J132: =VLOOKUP($D132,'Technische Daten'!$A:$L,5,0) ->  | K132: =IF($D132 <> "",VLOOKUP($D132,'Technische Daten'!$A:$L,4,0) - VLOOKUP($D132,'Technische Daten'!$A:$L,10,0) * H132 - I132,0) -> 0 | M132: =IF(D132 <> "",IF(N131 <> 0,N131+N132,M130+N131+N132),"") ->  | N132: =IF($D132 <> "",VLOOKUP($D132,'Technische Daten'!$A:$L,2,0),0) -> 0 | O132: =IF(D130 <> "",1,0) -> 0
